Workbook

Sheet Summary
B2: Inputs: | L2: Assumptions: | N2: Current year plus three required data set.
C3: Rate Impact for Year (2024-2028) | D3: 2023 | I3: Include CA Climate Credit in Rates | J3: N | L3: Current Effective Rates | N3: 2024-10-01
C4: Baseline Region - (Residential bill) | D4: 9 warm | I4: Typical residential average usage kWh/month | J4: 500 | L4: Sales Forecast | N4: =D3 -> 2023
L5: Residential bill calculated using | N5: Schedule D, Basic, Single Family | S5: Annual Usage
L6: Non-CARE bill impact calculated with average summer usage of | P6: =IF($D$4="All",SUMPRODUCT('Res Bill Impact'!P$22:P$30,'Res Bill Impact'!$T$22:$T$30),VLOOKUP(D$4,'Res Bill Impact'!$O$22:$S$30,2,FALSE)) -> 649.7090395 | Q6: kWh per month | R6: Non-CARE | S6: =(P6*4)+(P7*8) -> 6281.598952
B7: Pending Proceedings | D7: Include in Impact (Y) | E7: Applicable Year(s) | L7: Non-CARE bill impact calculated with average winter usage of | P7: =IF($D$4="All",SUMPRODUCT('Res Bill Impact'!Q$22:Q$30,'Res Bill Impact'!$T$22:$T$30),VLOOKUP(D$4,'Res Bill Impact'!$O$22:$S$30,3,FALSE)) -> 460.3453492 | Q7: kWh per month
B8: 2025 GRC | D8: Y | E8: 2025-2028 | L8: CARE bill impact calculated with average summer usage of | P8: =IF($D$4="All",SUMPRODUCT('Res Bill Impact'!R$22:R$30,'Res Bill Impact'!$U$22:$U$30),VLOOKUP(D$4,'Res Bill Impact'!$O$22:$S$30,4,FALSE)) -> 599.1816396 | Q8: kWh per month | R8: CARE | S8: =(P8*4)+(P9*8) -> 5832.684305
B9: 2025 ERRA Forecast | D9: Y | E9: 2025-2028 | L9: CARE bill impact calculated with average winter usage of | P9: =IF($D$4="All",SUMPRODUCT('Res Bill Impact'!S$22:S$30,'Res Bill Impact'!$U$22:$U$30),VLOOKUP(D$4,'Res Bill Impact'!$O$22:$S$30,5,FALSE)) -> 429.4947183 | Q9: kWh per month
B10: Diablo Canyon NBC | D10: Y | E10: 2025-2030 | L10: Essential Use (Basic) bill impact calculated with average summer usage of | P10: =IF($D$4="All",SUMPRODUCT('Res Bill Impact'!I$22:I$30,'Res Bill Impact'!$T$22:$T$30),VLOOKUP(D$4,'Res Bill Impact'!$H$22:$L$30,2,FALSE)) -> 514.0473 | Q10: kWh per month | R10: Essential Use (Basic) | S10: =(P10*4)+(P11*8) -> 4976.2212
B11: WMCE | D11: Y | E11: 2025 | L11: Essential Use (Basic) bill impact calculated with average winter usage of | P11: =IF($D$4="All",SUMPRODUCT('Res Bill Impact'!J$22:J$30,'Res Bill Impact'!$T$22:$T$30),VLOOKUP(D$4,'Res Bill Impact'!$H$22:$L$30,3,FALSE)) -> 365.004 | Q11: kWh per month
B12: 2021 ERRA Review | D12: Y | E12: 2025 | L12: Essential Use (All-Electric) bill impact calculated with average summer usage of | P12: =IF($D$4="All",SUMPRODUCT('Res Bill Impact'!K$22:K$30,'Res Bill Impact'!$T$22:$T$30),VLOOKUP(D$4,'Res Bill Impact'!$H$22:$L$30,4,FALSE)) -> 380.2125 | Q12: kWh per month | R12: Essential Use (All-Electric) | S12: =(P12*4)+(P13*8) -> 4903.2204
B13: 2022 ERRA Review | D13: Y | E13: 2025 | L13: Essential Use (All-Electric) bill impact calculated with average winter usage of | P13: =IF($D$4="All",SUMPRODUCT('Res Bill Impact'!L$22:L$30,'Res Bill Impact'!$T$22:$T$30),VLOOKUP(D$4,'Res Bill Impact'!$H$22:$L$30,5,FALSE)) -> 422.7963 | Q13: kWh per month
B14: 2023 ERRA Review | D14: Y | E14: 2025 | L14: Average monthly usage is for all customers (Non-CARE and CARE) based on seasonal usage in | R14: 2023
B15: 2022 WM/VM (Non-IRR Portion) | D15: Y | E15: 2025 | L15: Summer season | N15: 4 | O15: months
B16: Thomas Fire WEMA FRC | D16: Y | E16: 2026-2028 | L16: Winter Season | N16: 8 | O16: months
B17: Thomas Fire CEMA | D17: Y | E17: 2025 | L17: Residential Bi-Annual Climate Credit | N17: -86
B18: Woolsey CEMA | D18: Y | E18: 2027
B19: Woolsey WEMA FRC | D19: Y | E19: 2027-2028
B20: Section 851 - Sale of GO 5 Property | D20: Y | E20: 2025
B21: Section 851 - Sale of Hydroelectric San Bernardino | D21: Y | E21: 2025
B22: Section 851 - Sale of Hydroelectric Fontana Union Water | D22: Y | E22: 2025
B27: Outputs:
D28: (A) | E28: (B) | F28: (C) | G28: (D) | H28: (D)/(A) | I28: (D)/(B) | J28: (D)/(C) | N28: (A) | O28: (B) | P28: (C) | Q28: (D) | R28: (D)/(A) | S28: (D)/(B) | T28: (D)/(C)
B29: Bundled Average Rates - ¢/kWh | L29: Total System (Bundled and Unbundled) Average Rates - ¢/kWh
B30: Customer Group | D30: 2024-01-01 | E30: =N3 -> 2024-10-01 | F30: =$D$3&" Authorized" -> 2023 Authorized | G30: =$D$3&" w/Pending" -> 2023 w/Pending | H30: % Change over 1/1/2024 | I30: % Change over 10/1/2024 | J30: % Change over Authorized | L30: Customer Group | N30: =$D$30 -> 2024-01-01 | O30: =$E$30 -> 2024-10-01 | P30: =$D$3&" Authorized" -> 2023 Authorized | Q30: =$D$3&" w/Pending" -> 2023 w/Pending | R30: =$H$30 -> % Change over 1/1/2024 | S30: =$I$30 -> % Change over 10/1/2024 | T30: % Change over Authorized
B31: Residential | D31: =IF(J3="Y",'SAR and RAR'!W28,'SAR and RAR'!X28) -> 33.3931272 | E31: ='SAR and RAR'!G28 -> 32.48904534 | F31: ='SAR and RAR'!H28 ->  | G31: ='SAR and RAR'!I28 ->  | H31: =$G31/D31-1 ->  | I31: =$G31/E31-1 ->  | J31: =$G31/F31-1 ->  | L31: Total Residential (RAR) | N31: =IF(J3="Y",'SAR and RAR'!Z28,'SAR and RAR'!AA28) -> 29.10809807 | O31: ='SAR and RAR'!O28 -> 28.95523483 | P31: ='SAR and RAR'!P28 ->  | Q31: ='SAR and RAR'!Q28 ->  | R31: =$Q31/N31-1 -> 
C32: Small Commercial | D32: =IF(J3="Y",'SAR and AR (GS1)'!W28,'SAR and AR (GS1)'!X28) -> 30.14551612 | E32: ='SAR and AR (GS1)'!G28 -> 28.73720747 | F32: ='SAR and AR (GS1)'!H28 ->  | G32: ='SAR and AR (GS1)'!I28 ->  | I32: =$G32/E32-1 ->  | J32: =$G32/F32-1 ->  | M32: Total Small Commercial (AR) | N32: =IF(J3="Y",'SAR and AR (GS1)'!Z28,'SAR and AR (GS1)'!AA28) -> 26.47868339 | O32: ='SAR and AR (GS1)'!O28 -> 25.68007636 | P32: ='SAR and AR (GS1)'!P28 ->  | Q32: ='SAR and AR (GS1)'!Q28 ->  | R32: =$Q32/N32-1 ->  | S32: =$Q32/O32-1 ->  | T32: =$Q32/P32-1 -> 
B33: System | D33: =IF(J3="Y",'SAR and RAR'!W29,'SAR and RAR'!X29) -> 28.1784653 | E33: ='SAR and RAR'!G29 -> 27.22240766 | F33: ='SAR and RAR'!H29 ->  | G33: ='SAR and RAR'!I29 ->  | I33: =$G33/E33-1 ->  | J33: =$G33/F33-1 ->  | L33: Total System (SAR) | N33: =IF(J3="Y",'SAR and RAR'!Z29,'SAR and RAR'!AA29) -> 23.14130572 | O33: ='SAR and RAR'!O29 -> 22.890967 | P33: ='SAR and RAR'!P29 ->  | Q33: ='SAR and RAR'!Q29 -> 
B36: Bundled Residential Monthly Average Bills
D37: =$D$30 -> 2024-01-01 | E37: =$E$30 -> 2024-10-01 | F37: =$D$3&" Authorized" -> 2023 Authorized | G37: =$D$3&" w/Pending" -> 2023 w/Pending | H37: =$H$30 -> % Change over 1/1/2024 | I37: =$I$30 -> % Change over 10/1/2024 | J37: % Change over Authorized
B38: Non-CARE | D38: =((D44*4)+(D50*8))/12 -> 173.7389697 | E38: =((E44*4)+(E50*8))/12 -> 168.7167941 | H38: =$G38/D38-1 ->  | J38: =$G38/F38-1 -> 
B39: CARE | D39: 102.0385024 | E39: =((E45*4)+(E51*8))/12 -> 98.93006058
B40: Total | D40: 148.6438061 | E40: =((E46*4)+(E52*8))/12 -> 144.2914374 | J40: =$G40/F40-1 -> 
B42: Bundled Residential Monthly Average Bills - Summer
D43: =$D$30 -> 2024-01-01 | E43: =$E$30 -> 2024-10-01 | F43: =$D$3&" Authorized" -> 2023 Authorized | G43: =$D$3&" w/Pending" -> 2023 w/Pending | H43: =$H$30 -> % Change over 1/1/2024 | I43: =$I$30 -> % Change over 10/1/2024 | J43: % Change over Authorized
B44: Non-CARE | D44: =VLOOKUP($D$4,'Res Bill Impact'!$B$37:$J$46,2,FALSE)+O17 -> 218.931201 | E44: =VLOOKUP($D$4,'Res Bill Impact'!$B$37:$J$46,4,FALSE) -> 212.6961864 | F44: =VLOOKUP($D$4,'Res Bill Impact'!$B$37:$J$46,6,FALSE) ->  | G44: =VLOOKUP($D$4,'Res Bill Impact'!$B$37:$J$46,8,FALSE) ->  | H44: =$G44/D44-1 ->  | J44: =$G44/F44-1 -> 
B45: CARE | D45: =VLOOKUP($D$4,'Res Bill Impact'!$B$52:$J$61,2,FALSE) -> 128.7742739 | E45: =VLOOKUP($D$4,'Res Bill Impact'!$B$52:$J$61,4,FALSE) -> 124.9471325 | F45: =VLOOKUP($D$4,'Res Bill Impact'!$B$52:$J$61,6,FALSE) ->  | G45: =VLOOKUP($D$4,'Res Bill Impact'!$B$52:$J$61,8,FALSE) -> 
B46: Total | D46: =D44*0.65+D45*0.35 -> 187.3762765 | E46: =E44*0.65+E45*0.35 -> 181.9840175 | F46: =F44*0.65+F45*0.35 ->  | G46: =G44*0.65+G45*0.35 ->  | J46: =$G46/F46-1 -> 
B48: Bundled Residential Monthly Average Bills - Winter
D49: =$D$30 -> 2024-01-01 | E49: =$E$30 -> 2024-10-01 | F49: =$D$3&" Authorized" -> 2023 Authorized | G49: =$D$3&" w/Pending" -> 2023 w/Pending | H49: =$H$30 -> % Change over 1/1/2024 | I49: =$I$30 -> % Change over 10/1/2024 | J49: % Change over Authorized
B50: Non-CARE | D50: =VLOOKUP($D$4,'Res Bill Impact'!$B$37:$J$46,3,FALSE) -> 151.142854 | E50: =VLOOKUP($D$4,'Res Bill Impact'!$B$37:$J$46,5,FALSE) -> 146.7270979 | F50: =VLOOKUP($D$4,'Res Bill Impact'!$B$37:$J$46,7,FALSE) ->  | G50: =VLOOKUP($D$4,'Res Bill Impact'!$B$37:$J$46,9,FALSE) ->  | H50: =$G50/D50-1 ->  | J50: =$G50/F50-1 -> 
B51: CARE | D51: =VLOOKUP($D$4,'Res Bill Impact'!$B$52:$J$61,3,FALSE) -> 88.67061665 | E51: =VLOOKUP($D$4,'Res Bill Impact'!$B$52:$J$61,5,FALSE) -> 85.92152463 | F51: =VLOOKUP($D$4,'Res Bill Impact'!$B$52:$J$61,7,FALSE) ->  | G51: =VLOOKUP($D$4,'Res Bill Impact'!$B$52:$J$61,9,FALSE) -> 
B52: Total | D52: =D50*0.65+D51*0.35 -> 129.277571 | E52: =E50*0.65+E51*0.35 -> 125.4451473 | F52: =F50*0.65+F51*0.35 ->  | G52: =G50*0.65+G51*0.35 -> 
B55: Bundled Residential Monthly Average Bills
D56: =$D$30 -> 2024-01-01 | E56: =$E$30 -> 2024-10-01 | F56: =$D$3&" Authorized" -> 2023 Authorized | G56: =$D$3&" w/Pending" -> 2023 w/Pending | H56: =$H$30 -> % Change over 1/1/2024 | I56: =$I$30 -> % Change over 10/1/2024 | J56: % Change over Authorized
B57: Essential Use (Basic) - Non-CARE | D57: =((D64*4)+(D71*8))/12 -> 126.5463005 | E57: 122.7892535 | H57: =$G57/D57-1 ->  | J57: =$G57/F57-1 -> 
B58: Essential Use (Basic) - CARE | D58: 81.23929589 | E58: 78.68898252 | J58: =$G58/F58-1 -> 
B59: Essential Use (All-Electric) - Non-CARE | D59: 124.4933963 | E59: 120.7914649
B60: Essential Use (All-Electric) - CARE | D60: 79.84796147 | E60: 77.33506102
B62: Bundled Residential Monthly Average Bills - Summer
D63: =$D$30 -> 2024-01-01 | E63: =$E$30 -> 2024-10-01 | F63: =$D$3&" Authorized" -> 2023 Authorized | G63: =$D$3&" w/Pending" -> 2023 w/Pending | H63: =$H$30 -> % Change over 1/1/2024 | I63: =$I$30 -> % Change over 10/1/2024 | J63: % Change over Authorized
B64: Essential Use (Basic) - Non-CARE | D64: =VLOOKUP($D$4,'Res Bill Impact'!$L$37:$T$46,2,FALSE) -> 160.0770685 | E64: =VLOOKUP($D$4,'Res Bill Impact'!$L$37:$T$46,4,FALSE) -> 155.4198 | F64: =VLOOKUP($D$4,'Res Bill Impact'!$L$37:$T$46,6,FALSE) ->  | G64: =VLOOKUP($D$4,'Res Bill Impact'!$L$37:$T$46,8,FALSE) ->  | H64: =$G64/D64-1 ->  | J64: =$G64/F64-1 -> 
B65: Essential Use (Basic) - CARE | D65: =VLOOKUP($D$4,'Res Bill Impact'!$V$37:$AD$46,2,FALSE) -> 103.9644246 | E65: =VLOOKUP($D$4,'Res Bill Impact'!$V$37:$AD$46,4,FALSE) -> 100.8030338 | F65: =VLOOKUP($D$4,'Res Bill Impact'!$V$37:$AD$46,6,FALSE) ->  | G65: =VLOOKUP($D$4,'Res Bill Impact'!$V$37:$AD$46,8,FALSE) ->  | J65: =$G65/F65-1 -> 
B66: Essential Use (All-Electric) - Non-CARE | D66: =VLOOKUP($D$4,'Res Bill Impact'!$L$52:$T$61,2,FALSE) -> 114.9131769 | E66: =VLOOKUP($D$4,'Res Bill Impact'!$L$52:$T$61,4,FALSE) -> 111.4684517 | F66: =VLOOKUP($D$4,'Res Bill Impact'!$L$52:$T$61,6,FALSE) ->  | G66: =VLOOKUP($D$4,'Res Bill Impact'!$L$52:$T$61,8,FALSE) -> 
B67: Essential Use (All-Electric) - CARE | D67: =VLOOKUP($D$4,'Res Bill Impact'!$V$52:$AD$61,2,FALSE) -> 73.35506754 | E67: =VLOOKUP($D$4,'Res Bill Impact'!$V$52:$AD$61,4,FALSE) -> 71.01676067 | F67: =VLOOKUP($D$4,'Res Bill Impact'!$V$46:$AD$61,6,FALSE) ->  | G67: =VLOOKUP($D$4,'Res Bill Impact'!$V$52:$AD$61,8,FALSE) -> 
B69: Bundled Residential Monthly Average Bills - Winter
D70: =$D$30 -> 2024-01-01 | E70: =$E$30 -> 2024-10-01 | F70: =$D$3&" Authorized" -> 2023 Authorized | G70: =$D$3&" w/Pending" -> 2023 w/Pending | H70: =$H$30 -> % Change over 1/1/2024 | I70: =$I$30 -> % Change over 10/1/2024 | J70: % Change over Authorized
B71: Essential Use (Basic) - Non-CARE | D71: =VLOOKUP($D$4,'Res Bill Impact'!$L$37:$T$46,3,FALSE) -> 109.7809165 | E71: =VLOOKUP($D$4,'Res Bill Impact'!$L$37:$T$46,5,FALSE) -> 106.4739803 | F71: =VLOOKUP($D$4,'Res Bill Impact'!$L$37:$T$46,7,FALSE) ->  | G71: =VLOOKUP($D$4,'Res Bill Impact'!$L$37:$T$46,9,FALSE) ->  | H71: =$G71/D71-1 ->  | J71: =$G71/F71-1 -> 
B72: Essential Use (Basic) - CARE | D72: =VLOOKUP($D$4,'Res Bill Impact'!$V$37:$AD$46,3,FALSE) -> 69.87673151 | E72: =VLOOKUP($D$4,'Res Bill Impact'!$V$37:$AD$46,5,FALSE) -> 67.63195691 | F72: =VLOOKUP($D$4,'Res Bill Impact'!$V$37:$AD$46,7,FALSE) ->  | G72: =VLOOKUP($D$4,'Res Bill Impact'!$V$37:$AD$46,9,FALSE) -> 
B73: Essential Use (All-Electric) - Non-CARE | D73: =VLOOKUP($D$4,'Res Bill Impact'!$L$52:$T$61,3,FALSE) -> 129.2835061 | E73: =VLOOKUP($D$4,'Res Bill Impact'!$L$52:$T$61,5,FALSE) -> 125.4529716 | F73: =VLOOKUP($D$4,'Res Bill Impact'!$L$52:$T$61,7,FALSE) ->  | G73: =VLOOKUP($D$4,'Res Bill Impact'!$L$52:$T$61,9,FALSE) -> 
B74: Essential Use (All-Electric) - CARE | D74: =VLOOKUP($D$4,'Res Bill Impact'!$V$52:$AD$61,3,FALSE) -> 83.09440844 | E74: =VLOOKUP($D$4,'Res Bill Impact'!$V$52:$AD$61,5,FALSE) -> 80.49421119 | F74: =VLOOKUP($D$4,'Res Bill Impact'!$V$46:$AD$61,7,FALSE) ->  | G74: =VLOOKUP($D$4,'Res Bill Impact'!$V$52:$AD$61,9,FALSE) -> 
B77: Bundled Residential Monthly Average Bills
D78: =$D$30 -> 2024-01-01 | E78: =$E$30 -> 2024-10-01 | F78: =$D$3&" Authorized" -> 2023 Authorized | G78: =$D$3&" w/Pending" -> 2023 w/Pending | H78: =$H$30 -> % Change over 1/1/2024 | I78: =$I$30 -> % Change over 10/1/2024 | J78: % Change over Authorized
B79: =J4&"kWh Monthly Usage - Non-CARE" -> 500kWh Monthly Usage - Non-CARE | D79: =((D84*4)+(D89*8))/12 -> 164.0097097 | E79: 159.2484165 | H79: =$G79/D79-1 ->  | I79: =$G79/E79-1 ->  | J79: =$G79/F79-1 -> 
B80: =J4&"kWh Monthly Usage - CARE" -> 500kWh Monthly Usage - CARE | D80: 106.3953994 | E80: 103.1701039 | H80: =$G80/D80-1 ->  | I80: =$G80/E80-1 -> 
B82: Bundled Residential Monthly Average Bills - Summer
D83: =$D$30 -> 2024-01-01 | E83: =$E$30 -> 2024-10-01 | F83: =$D$3&" Authorized" -> 2023 Authorized | G83: =$D$3&" w/Pending" -> 2023 w/Pending | H83: =$H$30 -> % Change over 1/1/2024 | I83: =$I$30 -> % Change over 10/1/2024 | J83: % Change over Authorized
B84: =J4&"kWh Monthly Usage - Non-CARE" -> 500kWh Monthly Usage - Non-CARE | D84: =VLOOKUP($D$4,'Res Bill Impact'!$L$67:$T$76,2,FALSE) -> 155.3366667 | E84: =VLOOKUP($D$4,'Res Bill Impact'!$L$67:$T$76,4,FALSE) -> 150.8066667 | F84: =VLOOKUP($D$4,'Res Bill Impact'!$L$67:$T$76,6,FALSE) ->  | G84: =VLOOKUP($D$4,'Res Bill Impact'!$L$67:$T$76,8,FALSE) ->  | H84: =$G84/D84-1 ->  | I84: =$G84/E84-1 ->  | J84: =$G84/F84-1 -> 
B85: =J4&"kWh Monthly Usage - CARE" -> 500kWh Monthly Usage - CARE | D85: =VLOOKUP($D$4,'Res Bill Impact'!$V$67:$AD$76,2,FALSE) -> 100.7516667 | E85: =VLOOKUP($D$4,'Res Bill Impact'!$V$67:$AD$76,4,FALSE) -> 97.67666667 | F85: =VLOOKUP($D$4,'Res Bill Impact'!$V$67:$AD$76,6,FALSE) ->  | G85: =VLOOKUP($D$4,'Res Bill Impact'!$V$67:$AD$76,8,FALSE) ->  | H85: =$G85/D85-1 ->  | I85: =$G85/E85-1 -> 
B87: Bundled Residential Monthly Average Bills - Winter
D88: =$D$30 -> 2024-01-01 | E88: =$E$30 -> 2024-10-01 | F88: =$D$3&" Authorized" -> 2023 Authorized | G88: =$D$3&" w/Pending" -> 2023 w/Pending | H88: =$H$30 -> % Change over 1/1/2024 | I88: =$I$30 -> % Change over 10/1/2024 | J88: % Change over Authorized
B89: =J4&"kWh Monthly Usage - Non-CARE" -> 500kWh Monthly Usage - Non-CARE | D89: =VLOOKUP($D$4,'Res Bill Impact'!$L$67:$T$76,3,FALSE) -> 168.3462312 | E89: =VLOOKUP($D$4,'Res Bill Impact'!$L$67:$T$76,5,FALSE) -> 163.4692915 | F89: =VLOOKUP($D$4,'Res Bill Impact'!$L$67:$T$76,7,FALSE) ->  | G89: =VLOOKUP($D$4,'Res Bill Impact'!$L$67:$T$76,9,FALSE) ->  | H89: =$G89/D89-1 ->  | I89: =$G89/E89-1 ->  | J89: =$G89/F89-1 -> 
B90: =J4&"kWh Monthly Usage - CARE" -> 500kWh Monthly Usage - CARE | D90: =VLOOKUP($D$4,'Res Bill Impact'!$V$67:$AD$76,3,FALSE) -> 109.2172658 | E90: =VLOOKUP($D$4,'Res Bill Impact'!$V$67:$AD$76,5,FALSE) -> 105.9168225 | F90: =VLOOKUP($D$4,'Res Bill Impact'!$V$67:$AD$76,7,FALSE) ->  | G90: =VLOOKUP($D$4,'Res Bill Impact'!$V$67:$AD$76,9,FALSE) ->  | H90: =$G90/D90-1 ->  | I90: =$G90/E90-1 -> 
B93: Bundled Residential Monthly Average Bills
D94: =$D$30 -> 2024-01-01 | E94: =$E$30 -> 2024-10-01 | F94: =$D$3&" Authorized" -> 2023 Authorized | G94: =$D$3&" w/Pending" -> 2023 w/Pending | H94: =$H$30 -> % Change over 1/1/2024 | I94: =$I$30 -> % Change over 10/1/2024 | J94: % Change over Authorized
B95: All-Electric - Non-CARE | D95: =((D101*4)+(D107*8))/12 -> 132.8693509 | E95: =((E101*4)+(E107*8))/12 -> 128.9431171 | H95: =$G95/D95-1 ->  | J95: =$G95/F95-1 -> 
B96: All-Electric - CARE | D96: =((D102*4)+(D108*8))/12 -> 81.26959874 | E96: 78.71887609
B97: All-Electric - Total | D97: =((D103*4)+(D109*8))/12 -> 114.8094377 | E97: 111.3646328 | J97: =$G97/F97-1 -> 
B99: Bundled Residential Monthly Average Bills - Summer
D100: =$D$30 -> 2024-01-01 | E100: =$E$30 -> 2024-10-01 | F100: =$D$3&" Authorized" -> 2023 Authorized | G100: =$D$3&" w/Pending" -> 2023 w/Pending | H100: =$H$30 -> % Change over 1/1/2024 | I100: =$I$30 -> % Change over 10/1/2024 | J100: % Change over Authorized
B101: All-Electric - Non-CARE | D101: =VLOOKUP($D$4,'Res Bill Impact'!$B$67:$J$76,2,FALSE) -> 157.9399372 | E101: =VLOOKUP($D$4,'Res Bill Impact'!$B$67:$J$76,4,FALSE) -> 153.3417619 | F101: =VLOOKUP($D$4,'Res Bill Impact'!$B$67:$J$76,6,FALSE) ->  | G101: =VLOOKUP($D$4,'Res Bill Impact'!$B$67:$J$76,8,FALSE) ->  | H101: =$G101/D101-1 ->  | I101: =$G101/E101-1 ->  | J101: =$G101/F101-1 -> 
B102: All-Electric - CARE | D102: =VLOOKUP($D$4,'Res Bill Impact'!$B$82:$J$91,2,FALSE) -> 95.14934981 | E102: =VLOOKUP($D$4,'Res Bill Impact'!$B$82:$J$91,4,FALSE) -> 92.22621249 | F102: =VLOOKUP($D$4,'Res Bill Impact'!$B$82:$J$91,6,FALSE) ->  | G102: =VLOOKUP($D$4,'Res Bill Impact'!$B$82:$J$91,8,FALSE) ->  | H102: =$G102/D102-1 ->  | I102: =$G102/E102-1 ->  | J102: =$G102/F102-1 -> 
B103: All-Electric - Total | D103: =D101*0.65+D102*0.35 -> 135.9632316 | E103: =E101*0.65+E102*0.35 -> 131.9513196 | F103: =F101*0.65+F102*0.35 ->  | G103: =G101*0.65+G102*0.35 ->  | H103: =$G103/D103-1 ->  | I103: =$G103/E103-1 ->  | J103: =$G103/F103-1 -> 
B105: Bundled Residential Monthly Average Bills - Winter
D106: =$D$30 -> 2024-01-01 | E106: =$E$30 -> 2024-10-01 | F106: =$D$3&" Authorized" -> 2023 Authorized | G106: =$D$3&" w/Pending" -> 2023 w/Pending | H106: =$H$30 -> % Change over 1/1/2024 | I106: =$I$30 -> % Change over 10/1/2024 | J106: % Change over Authorized
B107: All-Electric - Non-CARE | D107: =VLOOKUP($D$4,'Res Bill Impact'!$B$67:$J$76,3,FALSE) -> 120.3340578 | E107: =VLOOKUP($D$4,'Res Bill Impact'!$B$67:$J$76,5,FALSE) -> 116.7437947 | F107: =VLOOKUP($D$4,'Res Bill Impact'!$B$67:$J$76,7,FALSE) ->  | G107: =VLOOKUP($D$4,'Res Bill Impact'!$B$67:$J$76,9,FALSE) ->  | H107: =$G107/D107-1 ->  | J107: =$G107/F107-1 -> 
B108: All-Electric - CARE | D108: =VLOOKUP($D$4,'Res Bill Impact'!$B$82:$J$91,3,FALSE) -> 74.3297232 | E108: =VLOOKUP($D$4,'Res Bill Impact'!$B$82:$J$91,5,FALSE) -> 71.96520789 | F108: =VLOOKUP($D$4,'Res Bill Impact'!$B$82:$J$91,7,FALSE) ->  | G108: =VLOOKUP($D$4,'Res Bill Impact'!$B$82:$J$91,9,FALSE) -> 
B109: All-Electric - Total | D109: =D107*0.65+D108*0.35 -> 104.2325407 | E109: =E107*0.65+E108*0.35 -> 101.0712893 | F109: =F107*0.65+F108*0.35 ->  | G109: =G107*0.65+G108*0.35 -> 
B111: Small Commercial Monthly Average Bills
D112: =$D$30 -> 2024-01-01 | E112: =$E$30 -> 2024-10-01 | F112: =$D$3&" Authorized" -> 2023 Authorized | G112: =$D$3&" w/Pending" -> 2023 w/Pending | H112: =$H$30 -> % Change over 1/1/2024 | I112: =$I$30 -> % Change over 10/1/2024 | J112: % Change over Authorized
B113: NAICS 531 | D113: =((D119*4)+(D125*8))/12 -> 207.3300075 | E113: =((E119*4)+(E125*8))/12 -> 197.8551073 | H113: =$G113/D113-1 ->  | J113: =$G113/F113-1 -> 
B114: NAICS 621 | D114: =((D120*4)+(D126*8))/12 -> 285.7849678 | E114: 272.5836542
B115: NAICS 722 | D115: =((D121*4)+(D127*8))/12 -> 832.1005395 | E115: 790.4468954 | J115: =$G115/F115-1 -> 
B117: Small Commercial Monthly Average Bills - Summer
D118: 2023-01-01 | E118: =$E$30 -> 2024-10-01 | F118: =$D$3&" Authorized" -> 2023 Authorized | G118: =$D$3&" w/Pending" -> 2023 w/Pending | H118: =$H$30 -> % Change over 1/1/2024 | I118: =$I$30 -> % Change over 10/1/2024 | J118: % Change over Authorized
B119: NAICS 531 | D119: ='Bill Impact (GS1)'!C37 -> 234.0395423 | E119: ='Bill Impact (GS1)'!E37 -> 221.0228543 | F119: ='Bill Impact (GS1)'!G37 ->  | G119: ='Bill Impact (GS1)'!I37 ->  | H119: =$G119/D119-1 ->  | I119: =$G119/E119-1 ->  | J119: =$G119/F119-1 -> 
B120: NAICS 621 | D120: ='Bill Impact (GS1)'!C38 -> 392.3446243 | E120: ='Bill Impact (GS1)'!E38 -> 368.9952255 | F120: ='Bill Impact (GS1)'!G38 ->  | G120: ='Bill Impact (GS1)'!I38 ->  | H120: =$G120/D120-1 ->  | I120: =$G120/E120-1 ->  | J120: =$G120/F120-1 -> 
B121: NAICS 722 | D121: ='Bill Impact (GS1)'!C39 -> 1118.894788 | E121: ='Bill Impact (GS1)'!E39 -> 1049.241234 | F121: ='Bill Impact (GS1)'!G39 ->  | G121: ='Bill Impact (GS1)'!I39 ->  | H121: =$G121/D121-1 ->  | I121: =$G121/E121-1 ->  | J121: =$G121/F121-1 -> 
B123: Small Commercial Monthly Average Bills - Winter
D124: 2023-01-01 | E124: =$E$30 -> 2024-10-01 | F124: =$D$3&" Authorized" -> 2023 Authorized | G124: =$D$3&" w/Pending" -> 2023 w/Pending | H124: =$H$30 -> % Change over 1/1/2024 | I124: =$I$30 -> % Change over 10/1/2024 | J124: % Change over Authorized
B125: NAICS 531 | D125: ='Bill Impact (GS1)'!D37 -> 193.9752401 | E125: ='Bill Impact (GS1)'!F37 -> 186.2712338 | F125: ='Bill Impact (GS1)'!H37 ->  | G125: ='Bill Impact (GS1)'!J37 ->  | H125: =$G125/D125-1 ->  | J125: =$G125/F125-1 -> 
B126: NAICS 621 | D126: ='Bill Impact (GS1)'!D38 -> 232.5051395 | E126: ='Bill Impact (GS1)'!F38 -> 224.3778685 | F126: ='Bill Impact (GS1)'!H38 ->  | G126: ='Bill Impact (GS1)'!J38 -> 
B127: NAICS 722 | D127: ='Bill Impact (GS1)'!D39 -> 688.7034154 | E127: ='Bill Impact (GS1)'!F39 -> 661.0497264 | F127: ='Bill Impact (GS1)'!H39 ->  | G127: ='Bill Impact (GS1)'!J39 -> 

Sheet Selected Data
A1: Summary of Selected Data
N2: 2024 Revenue
N3: Requirement
N4: $000
A5: 1 | B5: Current total system-level revenue requirement that is used for defining the reporting threshold: | N5: ='Authorized Rev Req'!J98 -> 17449871.66
B7: A | C7: One-percent reporting threshold | N7: =N5*0.01 -> 174498.7166
A9: 2 | B9: List of currently open proceedings that exceed the threshold for use of the affordability metrics (proceedings shaded gray filed prior to D.22-08-023):
N10: Annual Revenue
B11: A | C11: ='Incremental Rev Req'!B86 -> A.23-05-010 | D11: ='Incremental Rev Req'!$A$85 -> 2025 GRC | N11: =SUM('Incremental Rev Req'!M85:M87) -> 2005750.592
B12: B | C12: A.23-10-001 | D12: 2022 Wildfire Mgmt/Veg. Mgmt (WM/VM) | N12: 383538
B13: C | C13: ='Incremental Rev Req'!B100 -> A.24-04-005 | D13: =Summary!B11 -> WMCE | N13: ='Incremental Rev Req'!G100 -> 326337
B14: D | C14: ='Incremental Rev Req'!B110 -> A.23-08-013 | D14: Thomas Fire WEMA/CEMA | N14: ='Incremental Rev Req'!D110+'Incremental Rev Req'!D111 -> 189846
B15: E | C15: ER25-XXX | D15: FERC TO 2025 | N15: =SUM('Incremental Rev Req'!G73:G76)-SUM('Incremental Rev Req'!F73:F76) -> 294036.54
B16: F | C16: ='Incremental Rev Req'!$B$99 -> A.24-03-013 | D16: =Summary!B10 -> Diablo Canyon NBC | N16: ='Incremental Rev Req'!G99 -> 305655
B17: G | C17: A.24-10-002 | D17: Woolsey WEMA FRC | N17: ='Incremental Rev Req'!D113 -> 367000
A20: 3 | B20: List of currently open proceedings for which affordability metrics have been filed: | N20: Annual Revenue
B21: A | C21: =C11 -> A.23-05-010 | D21: 2025 GRC | N21: =N11 -> 2005750.592
B22: B | C22: A.23-10-001 | D22: 2022 Wildfire Mgmt/Veg. Mgmt (WM/VM) | N22: =N12 -> 383538
B23: C | C23: =C13 -> A.24-04-005 | D23: =D13 -> WMCE | N23: =N13 -> 326337
B24: D | C24: =C14 -> A.23-08-013 | D24: =D14 -> Thomas Fire WEMA/CEMA | N24: =N14 -> 189846
B25: E | C25: =C17 -> A.24-10-002 | D25: =D17 -> Woolsey WEMA FRC | N25: =N17 -> 367000
A27: 4 | B27: List of currently open proceedings that do not exceed the threshold for use of the affordability metrics (proceedings shaded gray filed prior to D.22-08-023):
N28: Annual Revenue
B29: A | C29: ='Incremental Rev Req'!$B$101 -> A.22-04-001 | D29: ='Incremental Rev Req'!$A$101 -> 2021 ERRA Review | N29: ='Incremental Rev Req'!$D$101 -> 25706
B30: B | C30: ='Incremental Rev Req'!B102 -> A.23-04-003 | D30: ='Incremental Rev Req'!A102 -> 2022 ERRA Review | N30: ='Incremental Rev Req'!D102+'Incremental Rev Req'!D103 -> 50874
B31: C | C31: ='Incremental Rev Req'!B105 -> A.24-04-001 | D31: 2023 ERRA Review | N31: =SUM('Incremental Rev Req'!D104:D105) -> -63195
B32: D | C32: A.24-05-007 | D32: 2025 ERRA Forecast (Amount less Trigger) | N32: =SUM('Incremental Rev Req'!M88:M97) -> -509848.1834
B33: E | C33: A.24-08-003 | D33: Section 851 - Sale of GO 5 Property | N33: 29400
B34: F | C34: A.24-08-012 | D34: Section 851 - Sale of Hydroelectric San Bernardino | N34: 60300
B35: G | C35: A.24-09-008 | D35: Section 851 - Sale of Hydroelectric Fontana Union Water | N35: 9500
B36: H | C36: A.24-10-002 | D36: Woolsey CEMA | N36: ='Incremental Rev Req'!I112 -> 52967
A38: 5 | B38: Total system-level revenue requirement if all pending revenue were granted in full: requests were granted in full
B39: A | C39: YE 2024 | N39: ='Incremental Rev Req'!$T$75 -> 17530066.19
B40: B | C40: YE 2025 | N40: ='Incremental Rev Req'!$U$75 -> 19883129.73
B41: C | C41: YE 2026 | N41: ='Incremental Rev Req'!$V$75 -> 18593560.41
B42: D | C42: YE 2027 | N42: ='Incremental Rev Req'!$W$75 -> 19749660.91
B43: E | C43: YE 2028 | N43: ='Incremental Rev Req'!$X$75 -> 20418054.23
A45: 6 | B45: Bundled residential average rate (RAR) if all pending revenue were granted in full (from Cost and Rate Tracker (CRT) as submitted by utility):
N46: cents/kWh
B47: A | C47: YE 2024 | N47: 32.51450143 | R47: =Summary!G31 ->  | S47: =Summary!G31 -> 
B48: B | C48: YE 2025 | N48: 36.97313211
B49: C | C49: YE 2026 | N49: 33.93125964
B50: D | C50: YE 2027 | N50: 35.2449691
B51: E | C51: YE 2028 | N51: 35.79574938
A53: 7 | B53: Bundled residential average monthly bill corresponding to RAR above for typical customer in climate zone 9 using 500 kWh (from CRT as submitted by utility):
B55: A | C55: YE 2024 | M55: 157.4476905 | N55: 101.9521079 | Q55: =Summary!G79 ->  | R55: =Summary!G80 ->  | S55: =Summary!G79 ->  | T55: =Summary!G80 -> 
B56: B | C56: YE 2025 | M56: 182.8001685 | N56: 119.1003121
B57: C | C57: YE 2026 | M57: 166.6027869 | N57: 108.1445386
B58: D | C58: YE 2027 | M58: 167.7134718 | N58: 108.8957966
B59: E | C59: YE 2028 | M59: 169.5610707 | N59: 110.145497
A61: 8 | B61: Bundled small commercial average rate (TOU-GS-1) if all pending revenue were granted in full (from Cost and Rate Tracker (CRT) as submitted by utility):
N62: cents/kWh
B63: A | C63: YE 2024 | N63: 28.50677667 | R63: =Summary!G32 ->  | S63: =Summary!G32 -> 
B64: B | C64: YE 2025 | N64: 33.06764748
B65: C | C65: YE 2026 | N65: 26.38190702
B66: D | C66: YE 2027 | N66: 29.7166016
B67: E | C67: YE 2028 | N67: 28.89340175
A69: 9 | B69: Bundled small commercial average monthly bill corresponding to TOU-GS-1 rate above for typical customer by NAICS (from CRT as submitted by utility):
L70: NAICS 531 | M70: NAICS 621 | N70: NAICS 722
B71: A | C71: YE 2024 | L71: 196.5205827 | M71: 270.7060131 | N71: 784.8054985 | P71: =Summary!G113 ->  | Q71: =Summary!G114 ->  | R71: =Summary!G115 ->  | S71: =Summary!G113 ->  | T71: =Summary!G114 ->  | U71: =Summary!G115 -> 
B72: B | C72: YE 2025 | L72: 226.5682513 | M72: 312.9822913 | N72: 911.8251268
B73: C | C73: YE 2026 | L73: 182.7404302 | M73: 251.3177016 | N73: 726.5530641
B74: D | C74: YE 2027 | L74: 205.7208621 | M74: 283.6505639 | N74: 823.6975698
B75: E | C75: YE 2028 | L75: 200.6866881 | M75: 276.5676137 | N75: 802.4167538

Sheet Authorized Rev Req
B2: Annual Period 2024
B3: Reporting Date: Quarter Ended September 30
C4: January 1, 2023 | D4: March 1, 2023 | E4: June 1, 2023 | F4: October 1, 2023 | G4: January 1, 2024 | H4: March 1, 2024 | I4: June 1, 2024 | J4: October 1, 2024 | K4: January 1, 20251/
C5: 4929-E-A | D5: 4977-E | E5: 5041-E | F5: 5109-E | G5: 5178-E | H5: 5235-E | I5: 5307-E | J5: 5379-E / E-A | K5: 5421-E
B6: Filing Description | L6: Revenue Recovery Mechanism | M6: Authority for Revenue Requirement | N6: Balancing Account
A7: Safety Affordability Reliability Proceedings | B7: Safety Affordability Reliability Proceedings
A8: 2018 GRC (Attrition Years) | B8: General Rate Case (GRC-G) | C8: 735101 | D8: 729370 | E8: 729370 | F8: ='[16]2023 - Oct Table 2'!$F$27 -> 729370 | G8: ='[16]2024 - Jan Table 2'!$F$27 -> 754977 | H8: ='[16]2024 Proc Mar Table 1'!$I$30 -> 766648.8347 | I8: ='[16]2024 Proc Mar Table 1'!$I$30 -> 766648.8347 | J8: ='[16]2025- Jan Table 2 (Prelim)'!$E$26 -> 766648.8347 | K8: ='[16]2025- Jan Table 2 (Prelim)'!$F$26 -> 760627.5753 | L8: Generation | M8: D.23-11-096, Advice 5120-E; Advice 5406-E | N8: N
A9: 2018 GRC (Attrition Years) | B9: General Rate Case (GRC-N) | C9: 62456 | D9: 61815 | E9: 61815 | F9: ='[16]2023 - Oct Table 2'!$F$41 -> 61815 | G9: ='[16]2024 - Jan Table 2'!$F$41 -> 61347 | H9: ='[16]2024 Proc Mar Table 1'!$I$31 -> 62607.60614 | I9: ='[16]2024 Proc Mar Table 1'!$I$31 -> 62607.60614 | J9: ='[16]2025- Jan Table 2 (Prelim)'!$E$39 -> 62607.60614 | K9: ='[16]2025- Jan Table 2 (Prelim)'!$F$39 -> 61952.34378 | L9: New System Gen | M9: D.23-11-096, Advice 5120-E; Advice 5406-E | N9: N
A10: 2018 GRC (Attrition Years) | B10: General Rate Case (GRC-D) | C10: 6995075 | D10: 6911672 | E10: ='[17]2023 - Jun Table 2'!$F$58 -> 6841923 | F10: ='[16]2023 - Oct Table 2'!$F$63 -> 6841923 | G10: ='[16]2024 - Jan Table 2'!$F$63 -> 7565233 | H10: ='[16]2024 Proc Mar Table 1'!$I$32 -> 7752988.246 | I10: ='[16]2024 Proc Mar Table 1'!$I$32 -> 7752988.246 | J10: ='[16]2025- Jan Table 2 (Prelim)'!$E$59 -> 7752988.246 | K10: ='[16]2025- Jan Table 2 (Prelim)'!$F$59 -> 7655298.489 | L10: Distribution | M10: D.23-11-096, Advice 5120-E; Advice 5406-E | N10: N
A11: 2018 GRC Memo Account/One-Time/FF&U | B11: 2021 GRCRRMA (27-month amortization) | C11: -3564.790897 | D11: -3564.790897 | E11: -3564.790897 | F11: ='[16]2023 - Oct Table 2'!$F$28 -> -3564.790897 | G11: ='[16]2024 - Jan Table 2'!$F$28 -> 0 | H11: ='[16]2024 - Jan Table 2'!$F$28 -> 0 | I11: ='[16]2024 - Jan Table 2'!$F$28 -> 0 | L11: Generation | M11: D.21-08-036 | N11: Y
A12: 2018 GRC Memo Account/One-Time/FF&U | B12: 2021 GRCRRMA (27-month amortization) | C12: 2213.394759 | D12: 2213.394759 | E12: 2213.394759 | F12: ='[16]2023 - Oct Table 2'!$F$42 -> 2213.394759 | G12: ='[16]2024 - Jan Table 2'!$F$42 -> 0 | H12: ='[16]2024 - Jan Table 2'!$F$42 -> 0 | I12: ='[16]2024 - Jan Table 2'!$F$42 -> 0 | L12: New System Gen | M12: D.21-08-036 | N12: Y
A13: Non-utility Affiliate Credits | B13: 2021 GRCRRMA (27-month amortization) | C13: 322298.9749 | D13: 322298.9749 | E13: 322298.9749 | F13: ='[16]2023 - Oct Table 2'!$F$64 -> 322298.9749 | G13: ='[16]2024 - Jan Table 2'!$F$64 -> 0 | H13: ='[16]2024 - Jan Table 2'!$F$64 -> 0 | I13: ='[16]2024 - Jan Table 2'!$F$64 -> 0 | L13: Distribution | M13: D.21-08-036 | N13: Y
A14: Pole Loading & Deteriorated Poles Balancing Account | B14: Non-utility Affiliate Credits | C14: -4288.865465 | D14: -4288.865465 | E14: -4288.865465 | F14: ='[16]2023 - Oct Table 2'!$F$62 -> -4288.865465 | G14: ='[16]2024 - Jan Table 2'!$F$62 -> -4485.891476 | H14: ='[16]2024 - Jan Table 2'!$F$62 -> -4485.891476 | I14: ='[16]2024 - Jan Table 2'!$F$62 -> -4485.891476 | J14: ='[16]2025- Jan Table 2 (Prelim)'!$E$58 -> -4485.891476 | K14: ='[16]2025- Jan Table 2 (Prelim)'!$F$58 -> -4501.552916 | L14: Distribution | M14: D.15-10-037 | N14: N
A15: Tax Accounting Memorandum Account (TAMA) | B15: Pole Loading & Deteriorated Pole Programs Balancing Account | C15: 52270.76244 | D15: 52270.76244 | E15: 52270.76244 | F15: ='[16]2023 - Oct Table 2'!$F$56 -> 52270.76244 | G15: ='[16]2024 - Jan Table 2'!$F$56 -> -51916.65043 | H15: ='[16]2024 - Jan Table 2'!$F$56 -> -51916.65043 | I15: ='[16]2024 - Jan Table 2'!$F$56 -> -51916.65043 | J15: ='[16]2025- Jan Table 2 (Prelim)'!$E$53 -> -51916.65043 | K15: ='[16]2025- Jan Table 2 (Prelim)'!$F$53 -> -14072.56849 | L15: Distribution | M15: D.21-08-036 | N15: Y
A16: Pension/PBOP/Medical Balancing Accounts | B16: 2020 TAMA Balance | C16: 142.5835769 | D16: 142.5835769 | E16: 142.5835769 | F16: ='[16]2023 - Oct Table 2'!$F$57 -> 142.5835769 | G16: ='[16]2024 - Jan Table 2'!$F$57 -> 0 | H16: ='[16]2024 - Jan Table 2'!$F$57 -> 0 | I16: ='[16]2024 - Jan Table 2'!$F$57 -> 0 | L16: Distribution | M16: D.15-10-037; Advice 4453-E | N16: Y
B17: 2022/2023 TAMA Balance | C17: 18398 | D17: 18398 | E17: 18398 | F17: ='[16]2023 - Oct Table 2'!$F$24 -> 18398 | G17: ='[16]2024 - Jan Table 2'!$F$24 -> 19974.10359 | H17: ='[16]2024 - Jan Table 2'!$F$24 -> 19974.10359 | I17: ='[16]2024 - Jan Table 2'!$F$24 -> 19974.10359 | J17: ='[16]2025- Jan Table 2 (Prelim)'!$E$24 -> 19974.10359 | K17: ='[16]2025- Jan Table 2 (Prelim)'!$F$24 -> 14976.03009 | L17: Generation | M17: Advice 5260-E | N17: Y
B18: 2022/2023 TAMA Balance | C18: 119343.2066 | D18: 119343.2066 | E18: 119343.2066 | F18: ='[16]2023 - Oct Table 2'!$F$68 -> 129422.3922 | G18: ='[16]2024 - Jan Table 2'!$F$68 -> 129422.3922 | H18: ='[16]2024 - Jan Table 2'!$F$68 -> 129422.3922 | I18: ='[16]2024 - Jan Table 2'!$F$68 -> 129422.3922 | J18: ='[16]2025- Jan Table 2 (Prelim)'!$E$66 -> 97197.38039 | K18: ='[16]2025- Jan Table 2 (Prelim)'!$F$66 -> 97197.38039 | L18: Distribution | M18: Advice 5260-E | N18: Y
A19: Pension/PBOP/Medical Balancing Accounts | B19: Pension/PBOP/Medical Balancing Accounts | C19: -9738 | D19: -9738 | E19: -9738 | F19: =SUM('[16]2023 - Oct Table 2'!$F$21:$F$23) -> -9738 | G19: =SUM('[16]2024 - Jan Table 2'!$F$21:$F$23) -> -12071.66001 | H19: =SUM('[16]2024 - Jan Table 2'!$F$21:$F$23) -> -12071.66001 | I19: =SUM('[16]2024 - Jan Table 2'!$F$21:$F$23) -> -12071.66001 | J19: =SUM('[16]2025- Jan Table 2 (Prelim)'!$E$21:$E$23) -> -12071.66001 | K19: =SUM('[16]2025- Jan Table 2 (Prelim)'!$F$21:$F$23) -> -10009.34302 | L19: Generation | M19: D.21-08-036 | N19: Y
A20: 2019 ERRA Forecast | B20: Pension/PBOP/Medical Balancing Accounts | C20: -63095.20256 | D20: -63095.20256 | E20: -63095.20256 | F20: =SUM('[16]2023 - Oct Table 2'!$F$59:$F$61) -> -63095.20256 | G20: =SUM('[16]2024 - Jan Table 2'!$F$59:$F$61) -> -78219.42906 | H20: =SUM('[16]2024 - Jan Table 2'!$F$59:$F$61) -> -78219.42906 | I20: =SUM('[16]2024 - Jan Table 2'!$F$59:$F$61) -> -78219.42906 | J20: =SUM('[16]2025- Jan Table 2 (Prelim)'!$E$55:$E$57) -> -78219.42906 | K20: =SUM('[16]2025- Jan Table 2 (Prelim)'!$F$55:$F$57) -> -64990.5188 | L20: Distribution | M20: D.21-08-036 | N20: Y
A21: 2019 ERRA Forecast | B21: ERRA Forecast | C21: 4995616 | D21: 4995616 | E21: 4995616 | F21: =SUM('[16]2023 - Oct Table 2'!$F$14:$F$16) -> 4995616 | G21: =SUM('[16]2024 - Jan Table 2'!$F$14:$F$16) -> 4703703 | H21: =SUM('[16]2024 - Jan Table 2'!$F$14:$F$16) -> 4703703 | I21: =SUM('[16]2024 - Jan Table 2'!$F$14:$F$16) -> 4703703 | J21: =SUM('[16]2025- Jan Table 2 (Prelim)'!$E$14:$E$16) -> 4703703 | K21: =SUM('[16]2025- Jan Table 2 (Prelim)'!$F$14:$F$16) -> 4085868.294 | L21: Generation | M21: A.24-05-007 (Alternate Update) | N21: N
A22: 2020 ERRA Forecast | B22: ERRA Forecast | C22: 288812 | D22: 288812 | E22: 288812 | F22: ='[16]2023 - Oct'!$E$46 -> 288812 | G22: ='[16]2024 - Jan Table 2'!$F$43 -> 402997 | H22: ='[16]2024 - Jan Table 2'!$F$43 -> 402997 | I22: ='[16]2024 - Jan Table 2'!$F$43 -> 402997 | J22: ='[16]2025- Jan Table 2 (Prelim)'!$E$40 -> 402997 | K22: ='[16]2025- Jan Table 2 (Prelim)'!$F$40 -> 457467.0227 | L22: New System Gen | M22: A.24-05-007 (Alternate Update) | N22: N
A23: 2019 ERRA Forecast | B23: ERRA Forecast (BA) | C23: 4417.190949 | D23: 4417.190949 | E23: 4417.190949 | F23: ='[16]2023 - Oct Table 2'!$F$44 -> 4417.190949 | G23: ='[16]2024 - Jan Table 2'!$F$44 -> 222439.7825 | H23: ='[16]2024 - Jan Table 2'!$F$44 -> 222439.7825 | I23: ='[16]2024 - Jan Table 2'!$F$44 -> 222439.7825 | J23: ='[16]2025- Jan Table 2 (Prelim)'!$E$41 -> 222439.7825 | K23: ='[16]2025- Jan Table 2 (Prelim)'!$F$41 -> 123960.7332 | L23: New System Gen | M23: A.24-05-007 (Alternate Update) | N23: Y
A24: 2019 ERRA Forecast | B24: ERRA Forecast | C24: -773198 | D24: -773198 | E24: -773198 | F24: ='[16]2023 - Oct Table 2'!$F$87 -> -773198 | G24: ='[16]2024 - Jan Table 2'!$F$87 -> -955105 | H24: ='[16]2024 - Jan Table 2'!$F$87 -> -955105 | I24: ='[16]2024 - Jan Table 2'!$F$87 -> -955105 | J24: ='[16]2025- Jan Table 2 (Prelim)'!$E$80 -> -955105 | K24: ='[16]2025- Jan Table 2 (Prelim)'!$F$80 -> -641623.9439 | L24: GHG Revenue | M24: A.24-05-007 (Alternate Update) | N24: N
A25: 2019 ERRA Forecast | B25: ERRA Forecast | C25: 4740 | D25: 4740 | E25: 4740 | F25: ='[16]2023 - Oct Table 2'!$F$91 -> 4740 | G25: ='[16]2024 - Jan Table 2'!$F$91 -> 4958 | H25: ='[16]2024 - Jan Table 2'!$F$91 -> 4958 | I25: ='[16]2024 - Jan Table 2'!$F$91 -> 4958 | J25: ='[16]2025- Jan Table 2 (Prelim)'!$E$84 -> 4958 | K25: ='[16]2025- Jan Table 2 (Prelim)'!$F$84 -> 5157.179022 | L25: Nuclear | M25: A.24-05-007 (Alternate Update) | N25: N
A26: 2019 ERRA Forecast | B26: ERRA Forecast | C26: -11473 | D26: -11473 | E26: -11473 | F26: ='[16]2023 - Oct Table 2'!$F$75 -> -11473 | G26: ='[16]2024 - Jan Table 2'!$F$75 -> -3582 | H26: ='[16]2024 - Jan Table 2'!$F$75 -> -3582 | I26: ='[16]2024 - Jan Table 2'!$F$75 -> -3582 | J26: ='[16]2025- Jan Table 2 (Prelim)'!$E$70 -> -3582 | K26: ='[16]2025- Jan Table 2 (Prelim)'!$F$70 -> -19169.38659 | L26: Distribution | M26: A.24-05-007 (Alternate Update) | N26: N
B27: ERRA Forecast | C27: 11161.49722 | D27: 11161.49722 | E27: 11161.49722 | F27: =SUM('[16]2023 - Oct Table 2'!$F$111:$F$113) -> 11161.49722 | G27: =SUM('[16]2024 - Jan Table 2'!$F$111:$F$113) -> 6584.546087 | H27: =SUM('[16]2024 - Jan Table 2'!$F$111:$F$113) -> 6584.546087 | I27: =SUM('[16]2024 - Jan Table 2'!$F$111:$F$113) -> 6584.546087 | J27: =SUM('[16]2025- Jan Table 2 (Prelim)'!$E$99:$E$101) -> 6584.546087 | K27: =SUM('[16]2025- Jan Table 2 (Prelim)'!$F$99:$F$101) -> 2344.499701 | L27: Public Purpose | M27: A.24-05-007 (Alternate Update) | N27: N
B28: Modified CAM (MCAM) Rate Component: | G28: ='[16]2024 - Jan Table 2'!$F$50 -> 2362.884396 | H28: ='[16]2024 - Jan Table 2'!$F$50 -> 2362.884396 | I28: ='[16]2024 - Jan Table 2'!$F$50 -> 2362.884396 | J28: ='[16]2025- Jan Table 2 (Prelim)'!$E$47 -> 2362.884396 | K28: ='[16]2025- Jan Table 2 (Prelim)'!$F$47 -> 4474.097181 | L28: MCAM | M28: A.24-05-007 (Alternate Update) | N28: N
A29: 2018 ERRA Balancing Account Trigger | B29: TMNBA/BMNBC BA | C29: -48062.22234 | D29: -48062.22234 | E29: -48062.22234 | F29: =SUM('[16]2023 - Oct Table 2'!$F$114:$F$115) -> -48062.22234 | G29: =SUM('[16]2024 - Jan Table 2'!$F$114:$F$115) -> 8772.952 | H29: =SUM('[16]2024 - Jan Table 2'!$F$114:$F$115) -> 8772.952 | I29: =SUM('[16]2024 - Jan Table 2'!$F$114:$F$115) -> 8772.952 | J29: =SUM('[16]2025- Jan Table 2 (Prelim)'!$E$102:$E$103) -> 8772.952 | K29: =SUM('[16]2025- Jan Table 2 (Prelim)'!$F$102:$F$103) -> 17109.465 | L29: Public Purpose | M29: A.24-05-007 (Alternate Update) | N29: Y
B30: ERRA/PABA/ESMA Balancing Account | C30: 1079567.057 | D30: 1079567.057 | E30: 1079567.057 | F30: ='[16]2023 - Oct Table 2'!$F$17+'[16]2023 - Oct Table 2'!$F$20+'[16]2023 - Oct Table 2'!$F$19 -> 1079567.057 | G30: ='[16]2024 - Jan Table 2'!$F$17+'[16]2024 - Jan Table 2'!$F$20+'[16]2024 - Jan Table 2'!$F$19 -> 676260.1571 | H30: ='[16]2024 - Jan Table 2'!$F$17+'[16]2024 - Jan Table 2'!$F$20+'[16]2024 - Jan Table 2'!$F$19 -> 676260.1571 | I30: ='[16]2024 - Jan Table 2'!$F$17+'[16]2024 - Jan Table 2'!$F$20+'[16]2024 - Jan Table 2'!$F$19 -> 676260.1571 | J30: =SUM('[16]2025- Jan Table 2 (Prelim)'!$E$17,'[16]2025- Jan Table 2 (Prelim)'!$E$19:$E$20) -> 676260.1571 | K30: =SUM('[16]2025- Jan Table 2 (Prelim)'!$F$17,'[16]2025- Jan Table 2 (Prelim)'!$F$19,'[16]2025- Jan Table 2 (Prelim)'!$F$20) -> 523955.1785 | L30: Generation | M30: A.24-05-007 (Alternate Update) | N30: Y
B31: 2023 ERRA Trigger | C31: 0 | D31: 0 | E31: ='[17]2023 - Jun Table 2'!$F$18 -> 459077.8602 | F31: ='[16]2023 - Oct Table 2'!$F$18 -> 459077.8602 | G31: ='[16]2024 - Jan Table 2'!$F$18 -> 459077.8602 | H31: ='[16]2024 - Jan Table 2'!$F$18 -> 459077.8602 | I31: 0 | L31: Generation | M31: D.23-04-012 / Advice 5036-E | N31: Y
B32: 2024 ERRA Trigger | J32: ='[16]2025- Jan Table 2 (Prelim)'!$E$18 -> -750729.8226 | K32: ='[16]2025- Jan Table 2 (Prelim)'!$F$18 -> -750729.8226 | L32: Generation | M32: D.24-08-015 | N32: Y
B33: DAC-GT/CSGT Clean Energy Programs (BA) | C33: 2938.502779 | D33: 2938.502779 | E33: 2938.502779 | F33: ='[16]2023 - Oct Table 2'!$F$101 -> 2938.502779 | G33: ='[16]2024 - Jan Table 2'!$F$101 -> 2572.453913 | H33: ='[16]2024 - Jan Table 2'!$F$101 -> 2572.453913 | I33: ='[16]2024 - Jan Table 2'!$F$101 -> 2572.453913 | J33: ='[16]2025- Jan Table 2 (Prelim)'!$E$93 -> 2572.453913 | K33: ='[16]2025- Jan Table 2 (Prelim)'!$F$93 -> 2996.690392 | L33: Public Purpose | M33: A.24-05-007 (Alternate Update) | N33: N
B34: 2020 ERRA Review | C34: -3742 | D34: -3742 | E34: -3742 | F34: ='[16]2023 - Oct Table 2'!$F$25 -> -3742 | G34: ='[16]2024 - Jan Table 2'!$F$25 -> 0 | H34: ='[16]2024 - Jan Table 2'!$F$25 -> 0 | I34: ='[16]2024 - Jan Table 2'!$F$25 -> 0 | L34: Generation | M34: D.22-10-004; Advice 4902-E | N34: N
B35: 2020 ERRA Review | C35: 22865.94671 | D35: 22865.94671 | E35: 22865.94671 | F35: ='[16]2023 - Oct Table 2'!$F$86 -> 22865.94671 | G35: ='[16]2024 - Jan Table 2'!$F$86 -> 0 | H35: ='[16]2024 - Jan Table 2'!$F$86 -> 0 | I35: ='[16]2024 - Jan Table 2'!$F$86 -> 0 | L35: Distribution | M35: D.22-10-004; Advice 4902-E | N35: N
B36: 2020 ERRA Review | C36: 12456.60375 | D36: 12456.60375 | E36: 12456.60375 | F36: ='[16]2023 - Oct Table 2'!$F$99 -> 12456.60375 | G36: ='[16]2024 - Jan Table 2'!$F$99 -> 0 | H36: ='[16]2024 - Jan Table 2'!$F$99 -> 0 | I36: ='[16]2024 - Jan Table 2'!$F$99 -> 0 | L36: Public Purpose | M36: D.22-10-004; Advice 4902-E | N36: N
A37: BRRBA | B37: BRRBA Balancing Account | C37: 7542.575977 | D37: 7542.575977 | E37: 7542.575977 | F37: =SUM('[16]2023 - Oct Table 2'!$F$29:$F$30) -> 7542.575977 | G37: =SUM('[16]2024 - Jan Table 2'!$F$29:$F$30) -> 4756.555825 | H37: =SUM('[16]2024 - Jan Table 2'!$F$29:$F$30) -> 4756.555825 | I37: =SUM('[16]2024 - Jan Table 2'!$F$29:$F$30) -> 4756.555825 | J37: =SUM('[16]2025- Jan Table 2 (Prelim)'!$E$27:$E$28) -> 4756.555825 | K37: =SUM('[16]2025- Jan Table 2 (Prelim)'!$F$27,'[16]2025- Jan Table 2 (Prelim)'!$F$28) -> -556.1932933 | L37: Generation | M37: D.15-10-037 | N37: Y
A38: NDAM Balancing Account | B38: BRRBA (Inc. FRC FF) | C38: -307497.1264 | D38: -307497.1264 | E38: =SUM('[17]2023 - Jun Table 2'!$F$48,'[17]2023 - Jun Table 2'!$F$50,'[17]2023 - Jun Table 2'!$F$53) -> -306980.6966 | F38: =SUM('[16]2023 - Oct Table 2'!$F$53,'[16]2023 - Oct Table 2'!$F$55,'[16]2023 - Oct Table 2'!$F$58) -> -306980.6966 | G38: =SUM('[16]2024 - Jan Table 2'!$F$53,'[16]2024 - Jan Table 2'!$F$55,'[16]2024 - Jan Table 2'!$F$58) -> 695357.185 | H38: =SUM('[16]2024 - Jan Table 2'!$F$53,'[16]2024 - Jan Table 2'!$F$55,'[16]2024 - Jan Table 2'!$F$58) -> 695357.185 | I38: =SUM('[16]2024 - Jan Table 2'!$F$53,'[16]2024 - Jan Table 2'!$F$55,'[16]2024 - Jan Table 2'!$F$58) -> 695357.185 | J38: =SUM('[16]2025- Jan Table 2 (Prelim)'!$E$50,'[16]2025- Jan Table 2 (Prelim)'!$E$52,'[16]2025- Jan Table 2 (Prelim)'!$E$54) -> 695357.185 | K38: =SUM('[16]2025- Jan Table 2 (Prelim)'!$F$50,'[16]2025- Jan Table 2 (Prelim)'!$F$52,'[16]2025- Jan Table 2 (Prelim)'!$F$54) -> 493514.4191 | L38: Distribution | M38: =M37 -> D.15-10-037 | N38: Y
A39: CARE Balancing Account | B39: NDAM Balancing Account | C39: 2770.566274 | D39: 2770.566274 | E39: 2770.566274 | F39: ='[16]2023 - Oct Table 2'!$F$92 -> 2770.566274 | G39: ='[16]2024 - Jan Table 2'!$F$92 -> 1927 | H39: ='[16]2024 - Jan Table 2'!$F$92 -> 1927 | I39: ='[16]2024 - Jan Table 2'!$F$92 -> 1927 | J39: ='[16]2025- Jan Table 2 (Prelim)'!$E$85 -> 1927 | K39: ='[16]2025- Jan Table 2 (Prelim)'!$F$85 -> -6100.406149 | L39: Nuclear | M39: D.15-10-037 | N39: Y
A40: PPPAM Balancing Account | B40: CARE Balancing Account | C40: -83502.67593 | D40: -83502.67593 | E40: -83502.67593 | F40: ='[16]2023 - Oct Table 2'!$F$97 -> -83502.67593 | G40: ='[16]2024 - Jan Table 2'!$F$97 -> 55214.93072 | H40: ='[16]2024 - Jan Table 2'!$F$97 -> 55214.93072 | I40: ='[16]2024 - Jan Table 2'!$F$97 -> 55214.93072 | J40: ='[16]2025- Jan Table 2 (Prelim)'!$E$90 -> 55214.93072 | K40: ='[16]2025- Jan Table 2 (Prelim)'!$F$90 -> 83921.34028 | L40: Public Purpose | M40: D.15-10-037 | N40: Y
B41: PPPAM Balancing Account | C41: 49633.64016 | D41: 49633.64016 | E41: 49633.64016 | F41: ='[16]2023 - Oct Table 2'!$F$98 -> 49633.64016 | G41: ='[16]2024 - Jan Table 2'!$F$98 -> 57989.27786 | H41: ='[16]2024 - Jan Table 2'!$F$98 -> 57989.27786 | I41: ='[16]2024 - Jan Table 2'!$F$98 -> 57989.27786 | J41: ='[16]2025- Jan Table 2 (Prelim)'!$E$91 -> 57989.27786 | K41: ='[16]2025- Jan Table 2 (Prelim)'!$F$91 -> 195760 | L41: Public Purpose | M41: D.15-10-037 | N41: Y
B42: Emergency Reliability OIR | C42: 1979.89967 | D42: 1979.89967 | E42: 1979.89967 | F42: ='[16]2023 - Oct Table 2'!$F$74 -> 1979.89967 | G42: ='[16]2024 - Jan Table 2'!$F$74 -> 0 | H42: ='[16]2024 - Jan Table 2'!$F$74 -> 0 | I42: ='[16]2024 - Jan Table 2'!$F$74 -> 0 | L42: Distribution | M42: D.21-12-015 | N42: N
B43: Emergency Reliability OIR | C43: 10010.72867 | D43: 10010.72867 | E43: 10010.72867 | F43: ='[16]2023 - Oct Table 2'!$F$116 -> 10010.72867 | G43: ='[16]2024 - Jan Table 2'!$F$116 -> 0 | H43: ='[16]2024 - Jan Table 2'!$F$116 -> 0 | I43: ='[16]2024 - Jan Table 2'!$F$116 -> 0 | L43: Public Purpose | M43: D.21-12-015 | N43: N
B44: Emergency Reliability UOS | F44: ='[16]2023 - Oct Table 2'!$F$32 -> 17991 | G44: ='[16]2024 - Jan Table 2'!$F$32 -> 17006 | H44: ='[16]2024 - Mar Table 2'!$F$32 -> 17591 | I44: ='[16]2024 - Mar Table 2'!$F$32 -> 17591 | J44: ='[16]2025- Jan Table 2 (Prelim)'!$E$30 -> 17591 | K44: ='[16]2025- Jan Table 2 (Prelim)'!$F$30 -> 29550.51254 | L44: Generation | M44: Advice 5421-E; Advice 5120-E; Advice 5142-E; Advice 5407-E | N44: N
B45: Emergency Reliability UOS | C45: 86303 | D45: 84963 | E45: 84963 | F45: ='[16]2023 - Oct Table 2'!$F$80 -> 66972 | G45: ='[16]2024 - Jan Table 2'!$F$80 -> 62428 | H45: ='[16]2024 - Mar Table 2'!$F$81 -> 64611 | I45: ='[16]2024 - Mar Table 2'!$F$81 -> 64611 | J45: ='[16]2025- Jan Table 2 (Prelim)'!$E$75 -> 64611 | K45: ='[16]2025- Jan Table 2 (Prelim)'!$F$75 -> 79159.14371 | L45: Distribution | M45: Advice 5421-E; Advice 5120-E; Advice 5142-E; Advice 5407-E | N45: N
B46: 2021 GRC Track 2 Non-AB 1054 CapEx | C46: 0 | D46: 0 | E46: 0 | F46: 0 | G46: 0 | H46: 0 | I46: 0 | L46: Distribution | N46: N
B47: 2021 GRC Track 2 O&M (36-Month Amortization) | C47: 135161.6901 | D47: 135161.6901 | E47: 135161.6901 | F47: ='[16]2023 - Oct Table 2'!$F$65 -> 135161.6901 | G47: ='[16]2024 - Jan Table 2'!$F$65 -> 135161.6901 | H47: ='[16]2024 - Jan Table 2'!$F$65 -> 135161.6901 | I47: ='[16]2024 - Jan Table 2'!$F$65 -> 135161.6901 | J47: ='[16]2025- Jan Table 2 (Prelim)'!$E$60 -> 135161.6901 | K47: ='[16]2025- Jan Table 2 (Prelim)'!$F$60 -> 135161.6901 | L47: Distribution | M47: D.21-01-012; Advice 4658-E/E-A | N47: N
B48: 2021 GRC Track 3 O&M (36-Month Amortization) | C48: 135415.5795 | D48: 135415.5795 | E48: 135415.5795 | F48: ='[16]2023 - Oct Table 2'!$F$66 -> 135415.5795 | G48: ='[16]2024 - Jan Table 2'!$F$66 -> 135415.5795 | H48: ='[16]2024 - Jan Table 2'!$F$66 -> 135415.5795 | I48: ='[16]2024 - Jan Table 2'!$F$66 -> 135415.5795 | J48: ='[16]2025- Jan Table 2 (Prelim)'!$E$61 -> 135415.5795 | K48: ='[16]2025- Jan Table 2 (Prelim)'!$F$61 -> 135415.5795 | L48: Distribution | M48: D.22-06-032 | N48: N
B49: VMBA Undercollection Threshold | C49: 26556.1553 | D49: 26556.1553 | E49: 26556.1553 | F49: ='[16]2023 - Oct Table 2'!$F$67 -> 29215.51344 | G49: ='[16]2024 - Jan Table 2'!$F$67 -> 29215.51344 | H49: ='[16]2024 - Jan Table 2'!$F$67 -> 29215.51344 | I49: ='[16]2024 - Jan Table 2'!$F$67 -> 29215.51344 | J49: ='[16]2025- Jan Table 2 (Prelim)'!$E$64 -> 34738.53028 | K49: ='[16]2025- Jan Table 2 (Prelim)'!$F$64 -> 34738.53028 | L49: Distribution | M49: Advice 5049-E; Advice 5245-E | N49: Y
B50: WRMBA Undercollection | J50: ='[16]2025- Jan Table 2 (Prelim)'!$E$65 -> 129014.0578 | K50: ='[16]2025- Jan Table 2 (Prelim)'!$F$65 -> 129014.0578 | L50: Distribution | M50: Advice 5267-E | N50: Y
B51: 2020 Vegetation Management Z-Factor | F51: ='[16]2023 - Oct Table 2'!$F$69 -> 37644.69531 | G51: ='[16]2024 - Jan Table 2'!$F$69 -> 37644.69531 | H51: ='[16]2024 - Jan Table 2'!$F$69 -> 37644.69531 | I51: ='[16]2024 - Jan Table 2'!$F$69 -> 37644.69531 | L51: Distribution | M51: Resolution E-5287 | N51: N
B52: 2021 Wildfire Mitigation/Vegetation Management | I52: ='[16]2024 Proc Jun Table 1'!$I$73 -> 378956.9667 | J52: ='[16]2025- Jan Table 2 (Prelim)'!$E$62 -> 378956.9667 | K52: ='[16]2025- Jan Table 2 (Prelim)'!$F$62 -> 378956.9667 | L52: Distribution | M52: D.24-03-008 | N52: N
B53: 2022 WMVM (55% Interm Rate Recovery) | J53: ='[16]2025- Jan Table 2 (Prelim)'!$E$63 -> 149902.8146 | K53: ='[16]2025- Jan Table 2 (Prelim)'!$F$63 -> 149902.8146 | L53: Distribution | M53: D.24-07-012 | N53: N
B54: Mobilehome Master Meter Balancing Account | C54: 14300.59952 | D54: 14300.59952 | E54: 14300.59952 | F54: ='[16]2023 - Oct Table 2'!$F$54 -> 14300.59952 | G54: ='[16]2024 - Jan Table 2'!$F$54 -> 18034.35236 | H54: ='[16]2024 - Jan Table 2'!$F$54 -> 18034.35236 | I54: ='[16]2024 - Jan Table 2'!$F$54 -> 18034.35236 | J54: ='[16]2025- Jan Table 2 (Prelim)'!$E$51 -> 18034.35236 | K54: ='[16]2025- Jan Table 2 (Prelim)'!$F$51 -> 23219.00309 | L54: Distribution | M54: D.15-10-037 | N54: Y
B55: WEMA 2 | C55: 0 | D55: 0 | E55: ='[17]2023 - Jun Table 2'!$F$78 -> 214140.3257 | F55: ='[16]2023 - Oct Table 2'!$F$85 -> 214140.3257 | G55: ='[16]2024 - Jan Table 2'!$F$85 -> 214140.3257 | H55: ='[16]2024 - Jan Table 2'!$F$85 -> 214140.3257 | I55: 0 | L55: Distribution | M55: D.23-05-033 | N55: N
B56: 2017 CEMA Fires | C56: 1460.866949 | D56: 1460.866949 | E56: 1460.866949 | F56: ='[16]2023 - Oct Table 2'!$F$81 -> 1460.866949 | G56: ='[16]2024 - Jan Table 2'!$F$81 -> 0 | H56: ='[16]2024 - Jan Table 2'!$F$81 -> 0 | I56: ='[16]2024 - Jan Table 2'!$F$81 -> 0 | L56: Distribution | M56: D.22-06-002 | N56: N
B57: CEMA - 2020 Storms | J57: ='[16]2025- Jan Table 2 (Prelim)'!$E$77 -> 288149.1807 | K57: ='[16]2025- Jan Table 2 (Prelim)'!$F$77 -> 288149.1807 | L57: Distribution | M57: D.24-05-037 | N57: N
B58: 2021 CEMA/WEMA | G58: ='[16]2024 - Jan Table 2'!$F$82 -> 137221.3298 | H58: ='[16]2024 - Jan Table 2'!$F$82 -> 137221.3298 | I58: ='[16]2024 - Jan Table 2'!$F$82 -> 137221.3298 | J58: ='[16]2025- Jan Table 2 (Prelim)'!$E$76 -> 137221.3298 | K58: ='[16]2025- Jan Table 2 (Prelim)'!$F$76 -> 0 | L58: Distribution | M58: D.23-11-089 | N58: Y
B59: Wildfire Self-Insurance Credit | I59: ='[16]2024 Proc Jun Table 1'!$I$69 -> -24268.43314 | J59: ='[16]2025- Jan Table 2 (Prelim)'!$E$78 -> -24268.43314 | K59: ='[16]2025- Jan Table 2 (Prelim)'!$F$78 -> -24268.43314 | L59: Distribution | M59: D.23-05-013 | N59: N
B60: CSRP Track 1 | C60: 201345.1951 | D60: 201345.1951 | E60: 201345.1951 | F60: ='[16]2023 - Oct Table 2'!$F$83 -> 201345.1951 | G60: ='[16]2024 - Jan Table 2'!$F$83 -> 0 | H60: ='[16]2024 - Jan Table 2'!$F$83 -> 0 | I60: ='[16]2024 - Jan Table 2'!$F$83 -> 0 | L60: Distribution | M60: D.22-09-015; Advice 4876-E | N60: N
B61: CSRP Track 2 | E61: ='[17]2023 - Jun Table 2'!$F$77 -> 38155.501 | F61: ='[16]2023 - Oct Table 2'!$F$84 -> 38155.501 | G61: ='[16]2024 - Jan Table 2'!$F$84 -> 38155.501 | H61: ='[16]2024 - Jan Table 2'!$F$84 -> 38155.501 | I61: 0 | L61: Distribution | M61: D.23-03-019 | N61: N
B62: Diablo Canyon Extended Operations NBC | K62: ='[16]2025- Jan Table 2 (Prelim)'!$F$96 -> 305655 | L62: DCPP | M62: A.24-03-018 | N62: N
A63: SJV DAC Pilots | B63: GSRP Recovery Bonds FRC #1 (AB 1054) | C63: 19256.772 | D63: 19256.772 | E63: 19256.772 | F63: ='[16]2023 - Oct Table 2'!$F$132 -> 19256.772 | G63: ='[16]2024 - Jan Table 2'!$F$132 -> 19256.772 | H63: ='[16]2024 - Jan Table 2'!$F$132 -> 19256.772 | I63: ='[16]2024 - Jan Table 2'!$F$132 -> 19256.772 | J63: ='[16]2025- Jan Table 2 (Prelim)'!$E$119 -> 19256.772 | K63: ='[16]2025- Jan Table 2 (Prelim)'!$F$119 -> 19256.772 | L63: Securitization | M63: D.20-11-007; Advice 4416-E | N63: N
A64: SJV DAC Pilots | B64: 2021 GRC Tracks 1 and 2 Recovery Bonds FRC #2 (AB 1054) | C64: 31732.126 | D64: 31732.126 | E64: 31732.126 | F64: ='[16]2023 - Oct Table 2'!$F$133 -> 31732.126 | G64: ='[16]2024 - Jan Table 2'!$F$133 -> 31732.126 | H64: ='[16]2024 - Jan Table 2'!$F$133 -> 31732.126 | I64: ='[16]2024 - Jan Table 2'!$F$133 -> 31732.126 | J64: ='[16]2025- Jan Table 2 (Prelim)'!$E$120 -> 31732.126 | K64: ='[16]2025- Jan Table 2 (Prelim)'!$F$120 -> 31732.126 | L64: Securitization | M64: D.21-10-025; Advice 4717-E-A | N64: N
A65: SJV DAC Pilots | B65: 2021 GRC Tracks 1 and 3 Recovery Bonds FRC #3 (AB 1054) | E65: ='[17]2023 - Jun Table 2'!$F$128 -> 55255.382 | F65: ='[16]2023 - Oct Table 2'!$F$134 -> 55255.382 | G65: ='[16]2024 - Jan Table 2'!$F$134 -> 55255.382 | H65: ='[16]2024 - Jan Table 2'!$F$134 -> 55255.382 | I65: ='[16]2024 - Jan Table 2'!$F$134 -> 55255.382 | J65: ='[16]2025- Jan Table 2 (Prelim)'!$E$121 -> 55255.382 | K65: ='[16]2025- Jan Table 2 (Prelim)'!$F$121 -> 55255.382 | L65: Securitization | M65: D.23-02-023 / Advice 5018-E | N65: N
B66: Grid Safety & Resiliency Program | L66: Distribution | M66: D.20-04-013, Advice 4197-E | N66: N
A67: Public Policy Proceedings | B67: Subtotal Safety Affordability Reliability | C67: =SUM(C8:C66) -> 14145181.23 | D67: 14054066.23 | E67: 14751462.73 | F67: 14801845.97 | G67: 15661213.72 | H67: 15864669.4 | I67: 15507984.25 | J67: 15259973.79 | K67: 14845725.33
A68: Demand Response | B68: Public Policy Proceedings
A69: Energy Efficiency | B69: Demand Response | C69: 4649.427316 | D69: 4649.427316 | E69: 4649.427316 | F69: ='[16]2023 - Oct Table 2'!$F$31+'[16]2023 - Oct Table 2'!$F$26 -> 4649.427316 | G69: ='[16]2024 - Jan Table 2'!$F$31+'[16]2024 - Jan Table 2'!$F$26 -> 10.11184714 | H69: ='[16]2024 - Mar Table 2'!$F$31+'[16]2024 - Mar Table 2'!$F$26 -> 11.12303186 | I69: ='[16]2024 - Mar Table 2'!$F$31+'[16]2024 - Mar Table 2'!$F$26 -> 11.12303186 | J69: =SUM('[16]2025- Jan Table 2 (Prelim)'!$E$25,'[16]2025- Jan Table 2 (Prelim)'!$E$29) -> 11.12303186 | K69: =SUM('[16]2025- Jan Table 2 (Prelim)'!$F$25,'[16]2025- Jan Table 2 (Prelim)'!$F$29) -> 11.04213708 | L69: Generation | M69: D.23-12-005; Advice 5421-E | N69: N
B70: Demand Response (Inc. ELPBA 2023-2025) | C70: 23987.96955 | D70: 23987.96955 | E70: 23987.96955 | F70: =SUM('[16]2023 - Oct Table 2'!$F$70,'[16]2023 - Oct Table 2'!$F$72:$F$73) -> 23987.96955 | G70: =SUM('[16]2024 - Jan Table 2'!$F$70,'[16]2024 - Jan Table 2'!$F$72:$F$73) -> 40702.88087 | H70: =SUM('[16]2024 - Mar Table 2'!$F$71,'[16]2024 - Mar Table 2'!$F$73:$F$74) -> 49287.83909 | I70: =SUM('[16]2024 - Mar Table 2'!$F$71,'[16]2024 - Mar Table 2'!$F$73:$F$74) -> 49287.83909 | J70: =SUM('[16]2025- Jan Table 2 (Prelim)'!$E$67:$E$69) -> 49287.83909 | K70: =SUM('[16]2025- Jan Table 2 (Prelim)'!$F$67:$F$69) -> 48141.6911 | L70: Distribution | M70: D.23-12-005; Advice 5421-E | N70: N
B71: Energy Efficiency (Inc. IDSM) | C71: 415373.5539 | D71: 415373.5539 | E71: 415373.5539 | F71: ='[16]2023 - Oct Table 2'!$F$106+'[16]2023 - Oct Table 2'!$F$71 -> 415373.5539 | G71: ='[16]2024 - Jan Table 2'!$F$106+'[16]2024 - Jan Table 2'!$F$71 -> 288996.5913 | H71: ='[16]2024 - Jan Table 2'!$F$106+'[16]2024 - Jan Table 2'!$F$71 -> 288996.5913 | I71: ='[16]2024 - Jan Table 2'!$F$106+'[16]2024 - Jan Table 2'!$F$71 -> 288996.5913 | J71: ='[16]2025- Jan Table 2 (Prelim)'!$E$97 -> 288996.5913 | K71: ='[16]2025- Jan Table 2 (Prelim)'!$F$97 -> 482807.0296 | L71: Public Purpose | M71: D.23-08-005; Advice 5123-E; D.24-09-031 | N71: N
B72: Energy Efficiency Market Access Program | C72: 47007.4494 | D72: 47007.4494 | E72: 47007.4494 | F72: ='[16]2023 - Oct Table 2'!$F$107 -> 47007.4494 | G72: ='[16]2024 - Jan Table 2'!$F$107 -> 0 | H72: ='[16]2024 - Jan Table 2'!$F$107 -> 0 | I72: ='[16]2024 - Jan Table 2'!$F$107 -> 0 | L72: Public Purpose | M72: D.20-08-042; D.21-11-028 | N72: N
B73: Smart Heat Pump Water Heater (SHPWH) Program | C73: 14055.46753 | D73: 14055.46753 | E73: 14055.46753 | F73: ='[16]2023 - Oct Table 2'!$F$104 -> 14055.46753 | G73: ='[16]2024 - Jan Table 2'!$F$104 -> 0 | H73: ='[16]2024 - Jan Table 2'!$F$104 -> 0 | I73: ='[16]2024 - Jan Table 2'!$F$104 -> 0 | L73: Public Purpose | M73: D.22-04-044; Advice 4858-E | N73: N
B74: New Home Energy Storage Pilot (NHESP) | E74: ='[17]2023 - Jun Table 2'!$F$99 -> 5055.923571 | F74: ='[16]2023 - Oct Table 2'!$F$105 -> 5055.923571 | G74: ='[16]2024 - Jan Table 2'!$F$105 -> 5055.923571 | H74: ='[16]2024 - Jan Table 2'!$F$105 -> 5055.923571 | I74: 0 | L74: Public Purpose | M74: D.22-04-044; Advice 4852-E | N74: N
B75: California Hub for EE Financing (CHEEF) | C75: 549.4028246 | D75: 549.4028246 | E75: 549.4028246 | F75: ='[16]2023 - Oct Table 2'!$F$109 -> 549.4028246 | G75: ='[16]2024 - Jan Table 2'!$F$109 -> 0 | H75: ='[16]2024 - Jan Table 2'!$F$109 -> 0 | I75: ='[16]2024 - Jan Table 2'!$F$109 -> 0 | L75: Public Purpose | M75: D.23-08-005; Advice 5123-E | N75: N
B76: Energy Efficiency Market Transformation | C76: 6441 | D76: 6441 | E76: 6441 | F76: ='[16]2023 - Oct Table 2'!$F$110 -> 6441 | G76: ='[16]2024 - Jan Table 2'!$F$110 -> 6441 | H76: ='[16]2024 - Jan Table 2'!$F$110 -> 6441 | I76: ='[16]2024 - Jan Table 2'!$F$110 -> 6441 | J76: ='[16]2025- Jan Table 2 (Prelim)'!$E$98 -> 6441 | K76: ='[16]2025- Jan Table 2 (Prelim)'!$F$98 -> 6441 | L76: Public Purpose | M76: D.19-12-021 | N76: N
B77: 2020 RUBA Uncollectibles (36-Month Amortization) | C77: 25700.14834 | D77: 25700.14834 | E77: 25700.14834 | F77: ='[16]2023 - Oct Table 2'!$F$100 -> 25700.14834 | G77: ='[16]2024 - Jan Table 2'!$F$100 -> 25700.14834 | H77: ='[16]2024 - Jan Table 2'!$F$100 -> 25700.14834 | I77: ='[16]2024 - Jan Table 2'!$F$100 -> 25700.14834 | J77: ='[16]2025- Jan Table 2 (Prelim)'!$E$92 -> 25700.14834 | K77: ='[16]2025- Jan Table 2 (Prelim)'!$F$92 -> 25700.14834 | L77: Public Purpose | M77: Advice 4658-E/E-A | N77: N
A78: Charge Ready Phase 1 Pilot | B78: Schools Energy Efficiency Stimulus Program | C78: 75509.17701 | D78: 75509.17701 | E78: 75509.17701 | F78: ='[16]2023 - Oct Table 2'!$F$108 -> 75509.17701 | G78: ='[16]2024 - Jan Table 2'!$F$108 -> 0 | H78: ='[16]2024 - Jan Table 2'!$F$108 -> 0 | I78: ='[16]2024 - Jan Table 2'!$F$108 -> 0 | L78: Public Purpose | M78: D.21-01-004; Advice 4633-E-A | N78: N
A79: CA Solar Initiatives/MASH/SASH | B79: Charge Ready Programs (Pilot, Bridge and Schools and Parks) | C79: 30457 | D79: 30254 | E79: 30254 | F79: =SUM('[16]2023 - Oct Table 2'!$F$76:$F$78) -> 30254 | G79: =SUM('[16]2024 - Jan Table 2'!$F$76:$F$78) -> 41775 | H79: =SUM('[16]2024 - Mar Table 2'!$F$77:$F$79) -> 42322 | I79: =SUM('[16]2024 - Mar Table 2'!$F$77:$F$79) -> 42322 | J79: =SUM('[16]2025- Jan Table 2 (Prelim)'!$E$71:$E$73) -> 42322 | K79: =SUM('[16]2025- Jan Table 2 (Prelim)'!$F$71:$F$73) -> 76686.14532 | L79: Distribution | M79: Advice 5120-E; Advice 5141-E; Advice 5407-E | N79: N
B80: Transportation Electrification | C80: 15772 | D80: 15678 | E80: 15678 | F80: ='[16]2023 - Oct Table 2'!$F$79 -> 15678 | G80: ='[16]2024 - Jan Table 2'!$F$79 -> 15804 | H80: ='[16]2024 - Mar Table 2'!$F$80 -> 16033 | I80: ='[16]2024 - Mar Table 2'!$F$80 -> 16033 | J80: ='[16]2025- Jan Table 2 (Prelim)'!$E$74 -> 16033 | K80: ='[16]2025- Jan Table 2 (Prelim)'!$F$74 -> 27307.65104 | L80: Distribution | M80: Advice 5120-E; Advice 5141-E; Advice 5407-E | N80: N
B81: Low Income Programs (ESAP) | C81: 61811.10058 | D81: 61811.10058 | E81: 61811.10058 | F81: ='[16]2023 - Oct Table 2'!$F$117 -> 61811.10058 | G81: ='[16]2024 - Jan Table 2'!$F$117 -> 92017.80899 | H81: ='[16]2024 - Jan Table 2'!$F$117 -> 92017.80899 | I81: ='[16]2024 - Jan Table 2'!$F$117 -> 92017.80899 | J81: ='[16]2025- Jan Table 2 (Prelim)'!E104 -> 92017.80899 | K81: ='[16]2025- Jan Table 2 (Prelim)'!$F$104 -> 92462.20343 | L81: Public Purpose | M81: D.21-06-015 | N81: N
A82: Statewide ME&O | B82: Low Income Programs (CARE/FERA Admin) | C82: 10644.40881 | D82: 10644.40881 | E82: 10644.40881 | F82: =SUM('[16]2023 - Oct Table 2'!$F$118:$F$119) -> 10644.40881 | G82: =SUM('[16]2024 - Jan Table 2'!$F$118:$F$119) -> 10571.12016 | H82: =SUM('[16]2024 - Jan Table 2'!$F$118:$F$119) -> 10571.12016 | I82: =SUM('[16]2024 - Jan Table 2'!$F$118:$F$119) -> 10571.12016 | J82: =SUM('[16]2025- Jan Table 2 (Prelim)'!$E$105:$E$106) -> 10571.12016 | K82: =SUM('[16]2025- Jan Table 2 (Prelim)'!$F$105:$F$106) -> 10971.64941 | L82: Public Purpose | M82: D.21-06-015; Advice 4638-E | N82: N
A83: EPIC - RD&D and Renewables | B83: Statewide ME&O | C83: 0 | D83: 0 | E83: 0 | F83: 0 | G83: 0 | H83: 0 | I83: 0 | L83: Public Purpose | N83: N
A84: Self-Generation Incentive Program (SGIP) | B84: EPIC - RD&D and Renewables | C84: 76885.42974 | D84: 76885.42974 | E84: 76885.42974 | F84: ='[16]2023 - Oct Table 2'!$F$102 -> 76885.42974 | G84: ='[16]2024 - Jan Table 2'!$F$102 -> 76885.42974 | H84: ='[16]2024 - Jan Table 2'!$F$102 -> 76885.42974 | I84: ='[16]2024 - Jan Table 2'!$F$102 -> 76885.42974 | J84: ='[16]2025- Jan Table 2 (Prelim)'!$E$94 -> 76885.42974 | K84: ='[16]2025- Jan Table 2 (Prelim)'!$F$94 -> 76885.42974 | L84: Public Purpose | M84: D.20-08-042; D.21-11-028 | N84: N
A85: Aliso Canyon Energy Storage | B85: Self-Generation Incentive Program (SGIP) | C85: 56626.34399 | D85: 56626.34399 | E85: 56626.34399 | F85: ='[16]2023 - Oct Table 2'!$F$103 -> 56626.34399 | G85: ='[16]2024 - Jan Table 2'!$F$103 -> 56626.34399 | H85: ='[16]2024 - Jan Table 2'!$F$103 -> 56626.34399 | I85: ='[16]2024 - Jan Table 2'!$F$103 -> 56626.34399 | J85: ='[16]2025- Jan Table 2 (Prelim)'!$E$95 -> 56626.34399 | K85: ='[16]2025- Jan Table 2 (Prelim)'!$F$95 -> 0 | L85: Public Purpose | M85: D.20-01-021, Advice 4169-E | N85: N
A86: Non-CPUC Jurisdictional Proceedings | B86: Subtotal Public Policy | C86: =SUM(C69:C85) -> 865469.879 | D86: 865172.879 | E86: 870228.8025 | F86: 870228.8025 | G86: 660586.3588 | H86: 669948.3282 | I86: 664892.4046 | J86: 664892.4046 | K86: 847413.9901
A87: DWR Bond/Power | B87: Non-CPUC Jurisdictional Proceedings
A88: Wildfire Fund Charge | B88: DWR Bond/Power | L88: DWR | N88: N
A89: Wildfire Fund Charge | B89: DWR Bond Refund | C89: -145519.4203 | D89: -145519.4203 | E89: 0 | F89: 0 | G89: 0 | H89: 0 | I89: 0 | L89: DWR | M89: D.21-12-001; Advice 4690-E | N89: N
A90: FERC Base Transmission | B90: Wildfire Fund Charge (AB1054) | C90: 402302 | D90: 402302 | E90: 402302 | F90: ='[16]2023 - Oct Table 2'!$F$131 -> 402302 | G90: ='[16]2024 - Jan Table 2'!$F$131 -> 408912 | H90: ='[16]2024 - Jan Table 2'!$F$131 -> 408912 | I90: ='[16]2024 - Jan Table 2'!$F$131 -> 408912 | J90: ='[16]2025- Jan Table 2 (Prelim)'!$E$118 -> 408912 | K90: ='[16]2025- Jan Table 2 (Prelim)'!$F$118 -> 423120 | L90: DWR | M90: D.22-12-007 | N90: N
A91: TRBAA | B91: FERC Base Transmission | C91: 1414935.849 | D91: 1414935.849 | E91: 1414935.849 | F91: ='[16]2023 - Oct Table 2'!$F$123 -> 1414935.849 | G91: ='[16]2024 - Jan Table 2'!$F$123 -> 1124500.46 | H91: ='[16]2024 - Jan Table 2'!$F$123 -> 1124500.46 | I91: ='[16]2024 - Jan Table 2'!$F$123 -> 1124500.46 | J91: ='[16]2025- Jan Table 2 (Prelim)'!$E$110 -> 1124500.46 | K91: ='[16]2025- Jan Table 2 (Prelim)'!$F$110 -> 1345305 | L91: FERC | M91: ER25-XXXX | N91: N
A92: RSBAA | B92: TRBAA (BA) | C92: -156456 | D92: -156456 | E92: -156456 | F92: -156456 | G92: -283956 | H92: -283956 | I92: -283956 | J92: -283956 | K92: -214482 | L92: TOTCA | M92: ER25-267, Advice 5421-E | N92: Y
A93: TACBAA | B93: RSBAA (BA) | C93: -2676 | D93: -2676 | E93: -2676 | F93: -2676 | G93: 4738 | H93: 4738 | I93: 4738 | J93: 4738 | K93: 8496 | L93: TOTCA | M93: ER25-305, Advice 5421-E | N93: Y
A94: Total Approved, Implemented Since Jan 1 or To Be Implemented | B94: TACBAA (BA) | C94: 156958 | D94: 156958 | E94: =D94+'[17]2023 Proc Jun Table 1'!$K$81 -> 98958 | F94: 98958 | G94: ='[18]Jan 2024 Rev Req_Tier 2 AL'!$F$125-G92-G93 -> 98974 | H94: ='[18]Jan 2024 Rev Req_Tier 2 AL'!$F$125-H92-H93 -> 98974 | I94: 270811 | J94: 270811 | K94: 270811 | L94: TOTCA | M94: ER24-1671-000 | N94: Y
B95: Subtotal Non-CPUC Jurisdictional | C95: =SUM(C89:C94) -> 1669544.429 | D95: 1669544.429 | E95: 1757063.849 | F95: 1757063.849 | G95: 1353168.46 | H95: =SUM(H89:H94) -> 1353168.46 | I95: 1525005.46 | J95: 1525005.46 | K95: 1833250
B96: PUCRF | C96: =E96 -> 107475 | D96: =E96 -> 107475 | E96: 107475 | F96: 107475 | G96: 80194.53144 | H96: =G96 -> 80194.53144 | I96: =H96 -> 80194.53144 | J96: =I96 -> 80194.53144 | K96: ='[16]2025 - January (Prelim)'!$E$163 -> 63307.71418 | L96: PUCRF | N96: N
B97: Total Authorized Revenue | C97: =C67+C86+C95+C96 -> 16787670.54 | D97: 16696258.54 | E97: 17486230.38 | F97: 17536613.62 | G97: 17755163.07 | H97: 17967980.72 | I97: 17778076.65 | J97: 17530066.19 | K97: 17589697.03
B98: w/o PUCRF | C98: =C97-C96 -> 16680195.54 | D98: 16588783.54 | E98: 17378755.38 | F98: 17429138.62 | G98: 17674968.54 | H98: 17887786.19 | I98: =I97-I96 -> 17697882.12 | J98: 17449871.66 | K98: 17526389.32
C99: ='[17]2023 Proc Mar Table 1'!$G$89-C98 -> 0 | D99: =-'[17]2023 - Jun Table 2'!$E$135+D98 -> 0 | E99: =-'[17]2023 - Jun Table 2'!$F$135+E98 -> 0 | F99: =-'[16]2023 - Oct Table 2'!$F$141+F98 -> 0 | G99: =-'[16]2024 - Jan Table 2'!$F$141+G98 -> 0 | H99: =-'[16]2024 - Mar Table 2'!$F$142+H98 -> 0 | I99: =-'[16]2024 - June'!$E$160+I98 -> 0

Sheet Incremental Rev Req
A2: Annual Period 2024
A3: Reporting Date: Quarter Ended September 30
A5: Current Revenue Requirement ($000): | B5: ='Authorized Rev Req'!J97 -> 17530066.19 | C5: Inc. PUCRF
A6: Current Revenue Requirement Effective: | B6: ='Authorized Rev Req'!J4 -> October 1, 2024
A7: Approved Application(s), Implemented Since Jan 1 or To Be Implemented
A8: Filing Description | B8: Proceeding | C8: Authority for Revenue Requirement | D8: Authorized Revenue Requirement ($000) | E8: Revenue Recovery Mechanism | F8: 2024 | G8: 2025 | H8: 2026 | I8: 2027 | J8: 2028 | K8: Existing or New Item (if existing, use delta from prior for rate impact) | S8: Total Authorized
A9: Safety Affordability Reliability Proceedings | T9: 2024 | U9: 2025 | V9: 2026 | W9: 2027 | X9: 2028
A10: General Rate Case (GRC-G) | C10: =VLOOKUP(A10,'Authorized Rev Req'!B$7:$M$95,12,FALSE) -> D.23-11-096, Advice 5120-E; Advice 5406-E | D10: =F10 -> 766648.8347 | E10: Generation | F10: ='Authorized Rev Req'!$J8 -> 766648.8347 | G10: ='Authorized Rev Req'!K8 -> 760627.5753 | H10: =G10 -> 760627.5753 | I10: =H10 -> 760627.5753 | J10: 760627.5753 | K10: Existing | S10: Generation | T10: =SUMIF($E$10:$E$79,$S10,F$10:F$79) -> 5426143.292 | U10: =SUMIF($E$10:$E$79,$S10,G$10:G$79) -> 6174562.781 | V10: =SUMIF($E$10:$E$79,$S10,H$10:H$79) -> 5528868.16 | W10: =SUMIF($E$10:$E$79,$S10,I$10:I$79) -> 5528868.16 | X10: =SUMIF($E$10:$E$79,$S10,J$10:J$79) -> 5528868.16
A11: General Rate Case (GRC-N) | C11: =VLOOKUP(A11,'Authorized Rev Req'!B$7:$M$95,12,FALSE) -> D.23-11-096, Advice 5120-E; Advice 5406-E | D11: =F11 -> 62607.60614 | E11: New System Gen | F11: ='Authorized Rev Req'!$J9 -> 62607.60614 | G11: ='Authorized Rev Req'!K9 -> 61952.34378 | H11: =G11 -> 61952.34378 | I11: 61952.34378 | J11: 61952.34378 | K11: Existing | S11: New System Gen | T11: 688044.3886 | U11: 687389.1263 | V11: 464949.3438 | W11: 464949.3438 | X11: 464949.3438
A12: General Rate Case (GRC-D) | C12: =VLOOKUP(A12,'Authorized Rev Req'!B$7:$M$95,12,FALSE) -> D.23-11-096, Advice 5120-E; Advice 5406-E | D12: 7752988.246 | E12: Distribution | F12: ='Authorized Rev Req'!$J10 -> 7752988.246 | G12: ='Authorized Rev Req'!K10 -> 7655298.489 | H12: 7655298.489 | I12: 7655298.489 | J12: 7655298.489 | K12: Existing | S12: Distribution | T12: 9961918.748 | U12: 8563280.097 | V12: 8055706.948 | W12: 8055217.948 | X12: 8055217.948
A13: Non-utility Affiliate Credits | C13: =VLOOKUP(A13,'Authorized Rev Req'!B$7:$M$95,12,FALSE) -> D.15-10-037 | D13: -4485.891476 | E13: Distribution | F13: ='Authorized Rev Req'!$J14 -> -4485.891476 | G13: ='Authorized Rev Req'!K14 -> -4501.552916 | H13: =G13 -> -4501.552916 | I13: =H13 -> -4501.552916 | J13: =I13 -> -4501.552916 | K13: Existing | S13: GHG Revenue | T13: -955105 | U13: -955105 | V13: -955105 | W13: -955105 | X13: -955105
A14: Pole Loading & Deteriorated Pole Programs Balancing Account | C14: =VLOOKUP(A14,'Authorized Rev Req'!B$7:$M$95,12,FALSE) -> D.21-08-036 | D14: -51916.65043 | E14: Distribution | F14: ='Authorized Rev Req'!$J15 -> -51916.65043 | G14: ='Authorized Rev Req'!K15 -> -14072.56849 | K14: Existing | S14: MCAM | T14: 2362.884396 | U14: 2362.884396 | V14: 2362.884396 | W14: 2362.884396 | X14: 2362.884396
S15: Nuclear | T15: 6885 | U15: -1142.406149 | V15: 4958 | W15: 4958 | X15: 4958
S16: Public Purpose | T16: 688372.6031 | U16: 967178.6044 | V16: 741598.7587 | W16: 740498.7587 | X16: 740498.7587
A17: 2022/2023 TAMA Balance | C17: Advice 5260-E | D17: 19974.10359 | E17: Generation | F17: ='Authorized Rev Req'!J17 -> 19974.10359 | G17: ='Authorized Rev Req'!K17 -> 14976.03009 | H17: =G17 -> 14976.03009 | I17: =H17 -> 14976.03009 | J17: 14976.03009 | K17: New | S17: DCPP | T17: 0 | U17: 0 | V17: 0 | W17: 0 | X17: 0
A18: 2022/2023 TAMA Balance | C18: Advice 5260-E | D18: 97197.38039 | E18: Distribution | F18: ='Authorized Rev Req'!J18 -> 97197.38039 | G18: ='Authorized Rev Req'!K18 -> 97197.38039 | H18: =G18 -> 97197.38039 | I18: =H18 -> 97197.38039 | J18: 97197.38039 | K18: New | S18: DWR | T18: 408912 | U18: 423120 | V18: 423120 | W18: 423120 | X18: 423120
A19: Pension/PBOP/Medical Balancing Accounts | C19: =VLOOKUP(A19,'Authorized Rev Req'!B$7:$M$95,12,FALSE) -> D.21-08-036 | D19: -12071.66001 | E19: Generation | F19: ='Authorized Rev Req'!$J19 -> -12071.66001 | G19: ='Authorized Rev Req'!K19 -> -10009.34302 | K19: Existing | S19: FERC | T19: 1124500.46 | U19: 1345305 | V19: 1345305 | W19: 1345305 | X19: 1345305
A20: Pension/PBOP/Medical Balancing Accounts | C20: =VLOOKUP(A20,'Authorized Rev Req'!B$7:$M$95,12,FALSE) -> D.21-08-036 | D20: -78219.42906 | E20: Distribution | F20: ='Authorized Rev Req'!$J20 -> -78219.42906 | G20: ='Authorized Rev Req'!K20 -> -64990.5188 | K20: Existing | S20: TOTCA | T20: -8407 | U20: 64825 | V20: 64825 | W20: 64825 | X20: 64825
A21: 2024 ERRA Forecast F&PP | C21: D.23-11-094 | D21: 4703703 | E21: Generation | F21: ='Authorized Rev Req'!$J21 -> 4703703 | G21: =F21 -> 4703703 | H21: 4703703 | I21: =H21 -> 4703703 | J21: =I21 -> 4703703 | K21: Existing | S21: Securitization | T21: 106244.28 | U21: 106244.28 | V21: 106244.28 | W21: 106244.28 | X21: 106244.28
A22: 2024 ERRA Forecast F&PP | C22: D.23-11-094 | D22: 402997 | E22: New System Gen | F22: ='Authorized Rev Req'!$J22 -> 402997 | G22: =F22 -> 402997 | H22: 402997 | I22: 402997 | J22: 402997 | K22: Existing | S22: PUCRF | T22: 80194.53144 | U22: 63307.71418 | V22: 63307.71418 | W22: 63307.71418 | X22: 63307.71418
A23: 2024 ERRA Forecast (BA) | C23: D.23-11-094 | D23: 222439.7825 | E23: New System Gen | F23: ='Authorized Rev Req'!$J23 -> 222439.7825 | G23: 222439.7825 | I23: =H23 -> 0 | J23: =I23 -> 0 | K23: Existing | T23: =SUM(T10:T22) -> 17530066.19 | U23: =SUM(U10:U22) -> 17441328.08 | V23: 15846141.09 | W23: 15844552.09 | X23: 15844552.09
A24: 2024 ERRA Forecast | C24: D.23-11-094 | D24: -955105 | E24: GHG Revenue | F24: ='Authorized Rev Req'!$J24 -> -955105 | G24: -955105 | H24: -955105 | I24: -955105 | J24: -955105 | K24: Existing | S24: Check | T24: =T23=F79 -> TRUE | U24: =U23=G79 -> TRUE | V24: =V23=H79 -> TRUE | W24: =W23=I79 -> TRUE | X24: =X23=J79 -> TRUE
A25: 2024 ERRA Forecast | C25: D.23-11-094 | D25: 4958 | E25: Nuclear | F25: ='Authorized Rev Req'!$J25 -> 4958 | G25: 4958 | H25: 4958 | I25: 4958 | J25: 4958 | K25: Existing | T25: =T23-F79 -> 0
A26: 2024 ERRA Forecast | C26: D.23-11-094 | D26: -3582 | E26: Distribution | F26: ='Authorized Rev Req'!$J26 -> -3582 | G26: -3582 | H26: -3582 | I26: -3582 | J26: -3582 | K26: Existing
A27: 2024 ERRA Forecast | C27: D.23-11-094 | D27: 6584.546087 | E27: Public Purpose | F27: ='Authorized Rev Req'!$J27 -> 6584.546087 | G27: 6584.546087 | H27: 6584.546087 | I27: 6584.546087 | J27: 6584.546087 | K27: Existing
A28: 2024 ERRA Forecast | C28: D.23-11-094 | D28: 2362.884396 | E28: MCAM | F28: ='Authorized Rev Req'!$J28 -> 2362.884396 | G28: 2362.884396 | H28: =G28 -> 2362.884396 | I28: =H28 -> 2362.884396 | J28: =I28 -> 2362.884396 | K28: Existing
A29: 2024 ERRA Forecast (BA) | C29: D.23-11-094 | D29: 8772.952 | E29: Public Purpose | F29: ='Authorized Rev Req'!$J29 -> 8772.952 | G29: 8772.952 | I29: 0 | J29: 0 | K29: Existing
A30: 2024 ERRA/PABA (BA) | C30: D.23-11-094 | D30: 676260.1571 | E30: Generation | F30: ='Authorized Rev Req'!$J30 -> 676260.1571 | G30: 676260.1571 | H30: 20000 | I30: 20000 | J30: 20000 | K30: Existing
A31: DAC-GT/CSGT Clean Energy Programs (BA) | C31: D.23-11-094 | D31: 2572.453913 | E31: Public Purpose | F31: ='Authorized Rev Req'!$J33 -> 2572.453913 | G31: 2572.453913 | H31: =G31 -> 2572.453913 | I31: =H31 -> 2572.453913 | J31: =I31 -> 2572.453913 | K31: Existing
A32: 2024 ERRA Trigger | C32: D.24-08-015 | D32: -750729.8226 | E32: Generation | F32: ='Authorized Rev Req'!J32 -> -750729.8226 | G32: 0 | K32: New
A33: BRRBA Balancing Account | C33: =VLOOKUP(A33,'Authorized Rev Req'!B$7:$M$95,12,FALSE) -> D.15-10-037 | D33: 4756.555825 | E33: Generation | F33: ='Authorized Rev Req'!$J37 -> 4756.555825 | G33: ='Authorized Rev Req'!$K37 -> -556.1932933 | K33: Existing
A34: BRRBA Balancing Account | C34: =VLOOKUP(A34,'Authorized Rev Req'!B$7:$M$95,12,FALSE) -> D.15-10-037 | D34: 695357.185 | E34: Distribution | F34: ='Authorized Rev Req'!$J38 -> 695357.185 | G34: ='Authorized Rev Req'!$K38 -> 493514.4191 | H34: 80000 | I34: 80000 | J34: 80000 | K34: Existing
A35: NDAM Balancing Account | C35: =VLOOKUP(A35,'Authorized Rev Req'!B$7:$M$95,12,FALSE) -> D.15-10-037 | D35: 1927 | E35: Nuclear | F35: ='Authorized Rev Req'!$J39 -> 1927 | G35: ='Authorized Rev Req'!$K39 -> -6100.406149 | K35: Existing
A36: CARE Balancing Account | C36: =VLOOKUP(A36,'Authorized Rev Req'!B$7:$M$95,12,FALSE) -> D.15-10-037 | D36: 55214.93072 | E36: Public Purpose | F36: ='Authorized Rev Req'!$J40 -> 55214.93072 | G36: ='Authorized Rev Req'!$K40 -> 83921.34028 | K36: Existing
A37: PPPAM Balancing Account | C37: =VLOOKUP(A37,'Authorized Rev Req'!B$7:$M$95,12,FALSE) -> D.15-10-037 | D37: 57989.27786 | E37: Public Purpose | F37: ='Authorized Rev Req'!$J41 -> 57989.27786 | G37: ='Authorized Rev Req'!$K41 -> 195760 | H37: 70000 | I37: 70000 | J37: 70000 | K37: Existing
A38: Emergency Reliability UOS | C38: =VLOOKUP(A38,'Authorized Rev Req'!B$7:$M$95,12,FALSE) -> Advice 5421-E; Advice 5120-E; Advice 5142-E; Advice 5407-E | D38: 17591 | E38: Generation | F38: ='Authorized Rev Req'!$J44 -> 17591 | G38: ='Authorized Rev Req'!$K44 -> 29550.51254 | H38: =G38 -> 29550.51254 | I38: =H38 -> 29550.51254 | J38: =I38 -> 29550.51254 | K38: New
A39: Emergency Reliability UOS | C39: =VLOOKUP(A39,'Authorized Rev Req'!B$7:$M$95,12,FALSE) -> Advice 5421-E; Advice 5120-E; Advice 5142-E; Advice 5407-E | D39: 64611 | E39: Distribution | F39: ='Authorized Rev Req'!$J45 -> 64611 | G39: ='Authorized Rev Req'!$K45 -> 79159.14371 | H39: 79159.14371 | I39: 79159.14371 | J39: 79159.14371 | K39: New
A40: 2021 GRC Track 2 O&M (36-Month Amortization) | C40: =VLOOKUP(A40,'Authorized Rev Req'!B$7:$M$95,12,FALSE) -> D.21-01-012; Advice 4658-E/E-A | D40: 135161.6901 | E40: Distribution | F40: ='Authorized Rev Req'!$J47 -> 135161.6901 | G40: 0 | K40: New
A41: 2021 GRC Track 3 O&M (36-Month Amortization) | C41: =VLOOKUP(A41,'Authorized Rev Req'!B$7:$M$95,12,FALSE) -> D.22-06-032 | D41: 135415.5795 | E41: Distribution | F41: ='Authorized Rev Req'!$J48 -> 135415.5795 | G41: 0 | K41: New
A42: VMBA Undercollection Threshold | C42: =VLOOKUP(A42,'Authorized Rev Req'!B$7:$M$95,12,FALSE) -> Advice 5049-E; Advice 5245-E | D42: 34738.53028 | E42: Distribution | F42: ='Authorized Rev Req'!J49 -> 34738.53028 | G42: 0 | K42: New
A43: 2022 WMVM (55% Interm Rate Recovery) | C43: =VLOOKUP(A43,'Authorized Rev Req'!B$7:$M$95,12,FALSE) -> D.24-07-012 | D43: 149902.8146 | E43: Distribution | F43: ='Authorized Rev Req'!J53 -> 149902.8146 | G43: ='Authorized Rev Req'!K53 -> 149902.8146 | K43: New
A44: 2020 Vegetation Management Z-Factor | C44: =VLOOKUP(A44,'Authorized Rev Req'!B$7:$M$95,12,FALSE) -> Resolution E-5287 | D44: 0 | E44: Distribution | F44: 0 | G44: 0 | K44: New
A45: 2021 Wildfire Mitigation/Vegetation Management | C45: =VLOOKUP(A45,'Authorized Rev Req'!B$7:$M$95,12,FALSE) -> D.24-03-008 | D45: 378956.9667 | E45: Distribution | F45: ='Authorized Rev Req'!J52 -> 378956.9667 | G45: 0 | K45: New
A46: Mobilehome Master Meter Balancing Account | C46: =VLOOKUP(A46,'Authorized Rev Req'!B$7:$M$95,12,FALSE) -> D.15-10-037 | D46: 18034.35236 | E46: Distribution | F46: ='Authorized Rev Req'!$J54 -> 18034.35236 | G46: ='Authorized Rev Req'!$K54 -> 23219.00309 | H46: 0 | I46: =H46 -> 0 | J46: =I46 -> 0 | K46: New
A47: WRMBA Undercollection | C47: =VLOOKUP(A47,'Authorized Rev Req'!B$7:$M$95,12,FALSE) -> Advice 5267-E | D47: 129014.0578 | E47: Distribution | F47: ='Authorized Rev Req'!J50 -> 129014.0578 | G47: 0 | K47: New
A48: CEMA - 2020 Storms | C48: =VLOOKUP(A48,'Authorized Rev Req'!B$7:$M$95,12,FALSE) -> D.24-05-037 | D48: 288149.1807 | E48: Distribution | F48: ='Authorized Rev Req'!J57 -> 288149.1807 | G48: 0 | H48: 0 | K48: New
A49: 2021 CEMA/WEMA | C49: =VLOOKUP(A49,'Authorized Rev Req'!B$7:$M$95,12,FALSE) -> D.23-11-089 | D49: 137221.3298 | E49: Distribution | F49: ='Authorized Rev Req'!$J58 -> 137221.3298 | G49: ='Authorized Rev Req'!$K58 -> 0 | K49: New
A50: Wildfire Self-Insurance Credit | C50: =VLOOKUP(A50,'Authorized Rev Req'!B$7:$M$95,12,FALSE) -> D.23-05-013 | D50: -24268.43314 | E50: Distribution | F50: ='Authorized Rev Req'!J59 -> -24268.43314 | G50: 0 | K50: New
A51: CSRP Track 1 | C51: =VLOOKUP(A51,'Authorized Rev Req'!B$7:$M$95,12,FALSE) -> D.22-09-015; Advice 4876-E | D51: 0 | E51: Distribution | F51: ='Authorized Rev Req'!$J60 -> 0 | G51: ='Authorized Rev Req'!$K60 -> 0 | K51: New
A52: ='Authorized Rev Req'!$B$61 -> CSRP Track 2 | C52: =VLOOKUP(A52,'Authorized Rev Req'!B$7:$M$95,12,FALSE) -> D.23-03-019 | D52: 0 | E52: Distribution | F52: 0 | G52: 0 | K52: New
A53: GSRP Recovery Bonds FRC #1 (AB 1054) | C53: =VLOOKUP(A53,'Authorized Rev Req'!B$7:$M$95,12,FALSE) -> D.20-11-007; Advice 4416-E | D53: 19256.772 | E53: Securitization | F53: ='Authorized Rev Req'!$J63 -> 19256.772 | G53: ='Authorized Rev Req'!$K63 -> 19256.772 | H53: =G53 -> 19256.772 | I53: =H53 -> 19256.772 | J53: =I53 -> 19256.772 | K53: New
A54: 2021 GRC Tracks 1 and 2 Recovery Bonds FRC #2 (AB 1054) | C54: =VLOOKUP(A54,'Authorized Rev Req'!B$7:$M$95,12,FALSE) -> D.21-10-025; Advice 4717-E-A | D54: 31732.126 | E54: Securitization | F54: ='Authorized Rev Req'!$J64 -> 31732.126 | G54: ='Authorized Rev Req'!$K64 -> 31732.126 | H54: =G54 -> 31732.126 | I54: 31732.126 | J54: 31732.126 | K54: New
A55: ='Authorized Rev Req'!$B$65 -> 2021 GRC Tracks 1 and 3 Recovery Bonds FRC #3 (AB 1054) | C55: =VLOOKUP(A55,'Authorized Rev Req'!B$7:$M$95,12,FALSE) -> D.23-02-023 / Advice 5018-E | D55: 55255.382 | E55: Securitization | F55: ='Authorized Rev Req'!$J65 -> 55255.382 | G55: ='Authorized Rev Req'!$K65 -> 55255.382 | H55: =G55 -> 55255.382 | I55: 55255.382 | J55: 55255.382 | K55: New
D56: 0
A57: Public Policy Proceedings | D57: 0
A58: Demand Response | C58: =VLOOKUP(A58,'Authorized Rev Req'!B$7:$M$95,12,FALSE) -> D.23-12-005; Advice 5421-E | D58: 11.12303186 | E58: Generation | F58: ='Authorized Rev Req'!$J69 -> 11.12303186 | G58: ='Authorized Rev Req'!$K69 -> 11.04213708 | H58: =G58 -> 11.04213708 | I58: =H58 -> 11.04213708 | J58: =I58 -> 11.04213708 | K58: Existing
A59: Demand Response | C59: =VLOOKUP(A59,'Authorized Rev Req'!B$7:$M$95,12,FALSE) -> D.23-12-005; Advice 5421-E | D59: 49287.83909 | E59: Distribution | F59: ='Authorized Rev Req'!$J70 -> 49287.83909 | G59: ='Authorized Rev Req'!$K70 -> 48141.6911 | H59: 48141.6911 | I59: =(H59)+-489 -> 47652.6911 | J59: =I59 -> 47652.6911 | K59: Existing
A60: Energy Efficiency (Inc. IDSM) | C60: =VLOOKUP(A60,'Authorized Rev Req'!B$7:$M$95,12,FALSE) -> D.23-08-005; Advice 5123-E; D.24-09-031 | D60: 288996.5913 | E60: Public Purpose | F60: ='Authorized Rev Req'!$J71 -> 288996.5913 | G60: ='Authorized Rev Req'!$K71 -> 482807.0296 | H60: 483700 | I60: 482600 | J60: =I60 -> 482600 | K60: Existing | S60: Total w/Authorized and Pending
A61: Energy Efficiency Market Transformation | C61: =VLOOKUP(A61,'Authorized Rev Req'!B$7:$M$95,12,FALSE) -> D.19-12-021 | D61: 6441 | E61: Public Purpose | F61: ='Authorized Rev Req'!$J76 -> 6441 | G61: ='Authorized Rev Req'!$K76 -> 6441 | H61: 16103 | I61: 16103 | J61: 16103 | K61: Existing | T61: 2024 | U61: 2025 | V61: 2026 | W61: 2027 | X61: 2028
A62: 2020 RUBA Uncollectibles (36-Month Amortization) | C62: =VLOOKUP(A62,'Authorized Rev Req'!B$7:$M$95,12,FALSE) -> Advice 4658-E/E-A | D62: 25700.14834 | E62: Public Purpose | F62: ='Authorized Rev Req'!$J77 -> 25700.14834 | G62: 0 | K62: New | S62: Generation | T62: =T10+SUMIFS(L$85:L$131,$Q$85:$Q$131,"Y",$E$85:$E$131,$S62) -> 5426143.292 | U62: =U10+SUMIFS(M$85:M$131,$Q$85:$Q$131,"Y",$E$85:$E$131,$S62) -> 5679844.521 | V62: =V10+SUMIFS(N$85:N$131,$Q$85:$Q$131,"Y",$E$85:$E$131,$S62) -> 5152307.121 | W62: =W10+SUMIFS(O$85:O$131,$Q$85:$Q$131,"Y",$E$85:$E$131,$S62) -> 5187158.273 | X62: =X10+SUMIFS(P$85:P$131,$Q$85:$Q$131,"Y",$E$85:$E$131,$S62) -> 5221257.05
A63: Charge Ready Programs (Pilot, Bridge and Schools and Parks) | C63: =VLOOKUP(A63,'Authorized Rev Req'!B$7:$M$95,12,FALSE) -> Advice 5120-E; Advice 5141-E; Advice 5407-E | D63: 42322 | E63: Distribution | F63: ='Authorized Rev Req'!$J79 -> 42322 | G63: ='Authorized Rev Req'!$K79 -> 76686.14532 | H63: =G63 -> 76686.14532 | I63: 76686.14532 | J63: 76686.14532 | K63: Existing | S63: New System Gen | T63: 688044.3886 | U63: 649091.7559 | V63: 526398.3878 | W63: 528811.86 | X63: 530881.4699
A64: Transportation Electrification | C64: =VLOOKUP(A64,'Authorized Rev Req'!B$7:$M$95,12,FALSE) -> Advice 5120-E; Advice 5141-E; Advice 5407-E | D64: 16033 | E64: Distribution | F64: ='Authorized Rev Req'!$J80 -> 16033 | G64: ='Authorized Rev Req'!$K80 -> 27307.65104 | H64: =G64 -> 27307.65104 | I64: 27307.65104 | J64: 27307.65104 | K64: New | S64: Distribution | T64: 9961918.748 | U64: 10901232.22 | V64: 10340823.63 | W64: 11460759.51 | X64: 12092984.44
A65: TE Funding Cycle 1 | C65: D.22-11-040 / Advice 4954-E | D65: 0 | E65: Distribution | F65: 0 | G65: 0 | H65: 0 | I65: 0 | J65: 0 | K65: New | S65: GHG Revenue | T65: -955105 | U65: -641623.9439 | V65: -641623.9439 | W65: -641623.9439 | X65: -641623.9439
A66: Low Income Programs (ESAP) | C66: =VLOOKUP(A66,'Authorized Rev Req'!B$7:$M$95,12,FALSE) -> D.21-06-015 | D66: 92017.80899 | E66: Public Purpose | F66: ='Authorized Rev Req'!$J81 -> 92017.80899 | G66: ='Authorized Rev Req'!$K81 -> 92462.20343 | H66: 74799.329 | I66: 74799.329 | J66: 74799.329 | K66: Existing | S66: MCAM | T66: 2362.884396 | U66: 4474.097181 | V66: 1558.097181 | W66: 1558.097181 | X66: 1558.097181
A67: Low Income Programs (CARE/FERA Admin) | C67: =VLOOKUP(A67,'Authorized Rev Req'!B$7:$M$95,12,FALSE) -> D.21-06-015; Advice 4638-E | D67: 10571.12016 | E67: Public Purpose | F67: ='Authorized Rev Req'!$J82 -> 10571.12016 | G67: ='Authorized Rev Req'!$K82 -> 10971.64941 | H67: =9276+1678 -> 10954 | I67: =9276+1678 -> 10954 | J67: 10954 | K67: Existing | S67: Nuclear | T67: 6885 | U67: -943.2271261 | V67: 5157.179022 | W67: 5157.179022 | X67: 5157.179022
A68: EPIC - RD&D and Renewables | C68: =VLOOKUP(A68,'Authorized Rev Req'!B$7:$M$95,12,FALSE) -> D.20-08-042; D.21-11-028 | D68: 76885.42974 | E68: Public Purpose | F68: ='Authorized Rev Req'!$J84 -> 76885.42974 | G68: ='Authorized Rev Req'!$K84 -> 76885.42974 | H68: =G68 -> 76885.42974 | I68: =H68 -> 76885.42974 | J68: =I68 -> 76885.42974 | K68: Existing | S68: Public Purpose | T68: 688372.6031 | U68: 982597.3075 | V68: 737782.9488 | W68: 736682.9488 | X68: 736682.9488
A69: Self-Generation Incentive Program (SGIP) | C69: =VLOOKUP(A69,'Authorized Rev Req'!B$7:$M$95,12,FALSE) -> D.20-01-021, Advice 4169-E | D69: 56626.34399 | E69: Public Purpose | F69: ='Authorized Rev Req'!$J85 -> 56626.34399 | G69: ='Authorized Rev Req'!$K85 -> 0 | H69: =G69 -> 0 | I69: 0 | J69: 0 | K69: Existing | S69: DCPP | T69: 0 | U69: 305655 | V69: 305655 | W69: 305655 | X69: 305655
D70: 0 | S70: DWR | T70: 408912 | U70: 423120 | V70: 423120 | W70: 423120 | X70: 423120
A71: Non-CPUC Jurisdictional Proceedings | D71: 0 | S71: FERC | T71: 1124500.46 | U71: 1345305 | V71: 1345305 | W71: 1345305 | X71: 1345305
A72: Wildfire Fund Charge (AB1054) | C72: =VLOOKUP(A72,'Authorized Rev Req'!B$7:$M$95,12,FALSE) -> D.22-12-007 | D72: 408912 | E72: DWR | F72: ='Authorized Rev Req'!J90 -> 408912 | G72: ='Authorized Rev Req'!K90 -> 423120 | H72: =G72 -> 423120 | I72: =H72 -> 423120 | J72: =I72 -> 423120 | K72: Existing | S72: TOTCA | T72: -8407 | U72: 64825 | V72: 64825 | W72: 64825 | X72: 64825
A73: FERC Base Transmission | C73: =VLOOKUP(A73,'Authorized Rev Req'!B$7:$M$95,12,FALSE) -> ER25-XXXX | D73: 1124500.46 | E73: FERC | F73: ='Authorized Rev Req'!J91 -> 1124500.46 | G73: ='Authorized Rev Req'!K91 -> 1345305 | H73: 1345305 | I73: 1345305 | J73: 1345305 | K73: Existing | S73: Securitization | T73: 106244.28 | U73: 106244.28 | V73: 268944.28 | W73: 268944.28 | X73: 268944.28
A74: TRBAA (BA) | C74: =VLOOKUP(A74,'Authorized Rev Req'!B$7:$M$95,12,FALSE) -> ER25-267, Advice 5421-E | D74: =F74 -> -283956 | E74: TOTCA | F74: ='Authorized Rev Req'!J92 -> -283956 | G74: ='Authorized Rev Req'!K92 -> -214482 | H74: -214482 | I74: -214482 | J74: -214482 | K74: Existing | S74: PUCRF | T74: 80194.53144 | U74: 63307.71418 | V74: 63307.71418 | W74: 63307.71418 | X74: 63307.71418
A75: RSBAA (BA) | C75: =VLOOKUP(A75,'Authorized Rev Req'!B$7:$M$95,12,FALSE) -> ER25-305, Advice 5421-E | D75: 4738 | E75: TOTCA | F75: ='Authorized Rev Req'!J93 -> 4738 | G75: ='Authorized Rev Req'!K93 -> 8496 | H75: 8496 | I75: 8496 | J75: 8496 | K75: Existing | S75: Total | T75: =SUM(T62:T74) -> 17530066.19 | U75: 19883129.73 | V75: 18593560.41 | W75: 19749660.91 | X75: 20418054.23
A76: TACBAA (BA) | C76: =VLOOKUP(A76,'Authorized Rev Req'!B$7:$M$95,12,FALSE) -> ER24-1671-000 | D76: 270811 | E76: TOTCA | F76: ='Authorized Rev Req'!J94 -> 270811 | G76: ='Authorized Rev Req'!K94 -> 270811 | H76: 270811 | I76: 270811 | J76: 270811 | K76: Existing | S76: Increase over current | T76: =T75-T23 -> 0 | U76: =U75-U23 -> 2441801.645 | V76: =V75-V23 -> 2747419.323 | W76: =W75-W23 -> 3905108.824 | X76: =X75-X23 -> 4573502.145
A77: Total Approved, Implemented Since Jan 1 or To Be Implemented | D77: =SUM(D10:D76) -> 17449871.66 | F77: =SUM(F10:F76) -> 17449871.66 | G77: =SUM(G10:G76) -> 17378020.37 | H77: =SUM(H10:H76) -> 15782833.37 | I77: =SUM(I10:I76) -> 15781244.37 | J77: =SUM(J10:J76) -> 15781244.37
A78: PUCRF | D78: =F78 -> 80194.53144 | E78: PUCRF | F78: ='Authorized Rev Req'!$J96 -> 80194.53144 | G78: ='Authorized Rev Req'!K96 -> 63307.71418 | H78: =G78 -> 63307.71418 | I78: =H78 -> 63307.71418 | J78: =I78 -> 63307.71418 | S78: Check | T78: =T76-L119 -> 0 | U78: =U76-M119 -> 0 | V78: =V76-N119 -> 0 | W78: =W76-O119 -> 0 | X78: =X76-P119 -> 0
D79: =SUM(D77:D78) -> 17530066.19 | E79: w/PUCRF | F79: =SUM(F77:F78) -> 17530066.19 | G79: =SUM(G77:G78) -> 17441328.08 | H79: =SUM(H77:H78) -> 15846141.09 | I79: 15844552.09 | J79: 15844552.09
D80: =-'Authorized Rev Req'!$J97+D79 -> 0
A82: Pending Application(s), Not Yet Approved
A83: Filing Description | B83: Proceeding | C83: Basis for Revenue Requirement | D83: Proposed Revenue Requirement ($000) | E83: Proposed Revenue Recovery Mechanism | F83: 2024 | G83: 2025 | H83: 2026 | I83: 2027 | J83: 2028 | K83: Existing or New Item (if existing, use delta from prior for rate impact) | L83: 2024 | M83: 2025 | N83: 2026 | O83: 2027 | P83: 2028
A84: Safety Affordability Reliability Proceedings | Q84: Include in Impact
A85: 2025 GRC | B85: A.23-05-010 | C85: Filed Application | D85: =G85 -> 966249 | E85: Generation | F85: 0 | G85: =[19]RawData2!O4 -> 966249 | H85: 1001901.243 | I85: 1036752.394 | J85: 1070851.171 | K85: Existing | M85: =G85-G10 -> 205621.4247 | N85: =H85-H10 -> 241273.6676 | O85: =I85-I10 -> 276124.8189 | P85: 310223.5958 | Q85: =VLOOKUP('Incremental Rev Req'!A85,Summary!$B$8:$D$26,3,FALSE) -> Y
A86: 2025 GRC | B86: A.23-05-010 | C86: Filed Application | D86: =G86 -> 67664 | E86: New System Gen | F86: 0 | G86: =[19]RawData2!O5 -> 67664 | H86: 68931.36513 | I86: 71344.83727 | J86: 73414.44716 | K86: Existing | M86: =G86-G11 -> 5711.656224 | N86: 6979.021357 | O86: 9392.493493 | P86: 11462.10338 | Q86: =Q85 -> Y
A87: 2025 GRC (Inc. One Time Recoveries) | B87: A.23-05-010 | C87: Filed Application | D87: 9449716 | E87: Distribution | F87: 0 | G87: =[19]RawData2!O6+[19]RawData2!$O$14 -> 9449716 | H87: 9956002.556 | I87: 10656460.43 | J87: 11341652.37 | K87: Existing | M87: =G87-G12 -> 1794417.511 | N87: 2300704.066 | O87: 3001161.944 | P87: 3686353.878 | Q87: =Q86 -> Y
A88: 2025 ERRA Forecast F&PP | B88: A.24-05-007 (Alternate Update) | C88: Filed Application | D88: 4085868.294 | E88: Generation | G88: ='Authorized Rev Req'!K21 -> 4085868.294 | H88: =G88 -> 4085868.294 | I88: =H88 -> 4085868.294 | J88: 4085868.294 | K88: Existing | M88: =G88-G21 -> -617834.7062 | N88: =H88-H21 -> -617834.7062 | O88: =I88-I21 -> -617834.7062 | P88: -617834.7062 | Q88: =$Q$91 -> Y
A89: 2025 ERRA Forecast F&PP | B89: A.24-05-007 (Alternate Update) | C89: Filed Application | D89: 457467.0227 | E89: New System Gen | G89: ='Authorized Rev Req'!K22 -> 457467.0227 | H89: =G89 -> 457467.0227 | I89: 457467.0227 | J89: 457467.0227 | K89: Existing | M89: 54470.0227 | N89: 54470.0227 | O89: 54470.0227 | P89: 54470.0227 | Q89: =$Q$91 -> Y
A90: 2025 ERRA Forecast (BA) | B90: A.24-05-007 (Alternate Update) | C90: Filed Application | D90: 123960.7332 | E90: New System Gen | G90: ='Authorized Rev Req'!K23 -> 123960.7332 | K90: Existing | M90: -98479.04931 | N90: 0 | O90: 0 | P90: 0 | Q90: =$Q$91 -> Y
A91: 2025 ERRA Forecast | B91: A.24-05-007 (Alternate Update) | C91: Filed Application | D91: -641623.9439 | E91: GHG Revenue | G91: ='Authorized Rev Req'!K24 -> -641623.9439 | H91: -641623.9439 | I91: -641623.9439 | J91: -641623.9439 | K91: Existing | M91: 313481.0561 | N91: 313481.0561 | O91: 313481.0561 | P91: 313481.0561 | Q91: =VLOOKUP('Incremental Rev Req'!A91,Summary!$B$8:$D$26,3,FALSE) -> Y
A92: 2025 ERRA Forecast | B92: A.24-05-007 (Alternate Update) | C92: Filed Application | D92: 5157.179022 | E92: Nuclear | G92: ='Authorized Rev Req'!K25 -> 5157.179022 | H92: 5157.179022 | I92: 5157.179022 | J92: 5157.179022 | K92: Existing | M92: 199.1790224 | N92: 199.1790224 | O92: 199.1790224 | P92: 199.1790224 | Q92: =$Q$91 -> Y
A93: 2025 ERRA Forecast | B93: A.24-05-007 (Alternate Update) | C93: Filed Application | D93: -19169.38659 | E93: Distribution | G93: ='Authorized Rev Req'!K26 -> -19169.38659 | H93: -19169.38659 | I93: -19169.38659 | J93: -19169.38659 | K93: Existing | M93: -15587.38659 | N93: -15587.38659 | O93: -15587.38659 | P93: -15587.38659 | Q93: Y
A94: 2025 ERRA Forecast | B94: A.24-05-007 (Alternate Update) | C94: Filed Application | D94: 2344.499701 | E94: Public Purpose | G94: ='Authorized Rev Req'!K27 -> 2344.499701 | H94: 2344.499701 | I94: 2344.499701 | J94: 2344.499701 | K94: Existing | M94: -4240.046386 | N94: -4240.046386 | O94: -4240.046386 | P94: -4240.046386 | Q94: Y
A95: 2025 ERRA Forecast | B95: A.24-05-007 (Alternate Update) | C95: Filed Application | D95: ='Authorized Rev Req'!K28 -> 4474.097181 | E95: MCAM | G95: =D95 -> 4474.097181 | H95: =G95-2916 -> 1558.097181 | I95: 1558.097181 | J95: 1558.097181 | K95: Existing | M95: 2111.212785 | N95: -804.7872151 | O95: -804.7872151 | P95: -804.7872151 | Q95: Y
A96: 2025 ERRA Forecast (BA) | B96: A.24-05-007 (Alternate Update) | C96: Filed Application | D96: 17109.465 | E96: Public Purpose | G96: ='Authorized Rev Req'!K29 -> 17109.465 | K96: Existing | M96: 8336.513002 | Q96: Y
A97: 2025 ERRA/PABA (BA) | B97: A.24-05-007 (Alternate Update) | C97: Filed Application | D97: 523955.1785 | E97: Generation | G97: ='Authorized Rev Req'!K30 -> 523955.1785 | H97: 20000 | I97: 20000 | J97: 20000 | K97: Existing | M97: -152304.9786 | N97: =H97-H30 -> 0 | O97: 0 | P97: 0 | Q97: Y
A98: DAC-GT/CSGT Clean Energy Programs | B98: A.24-05-007 (Alternate Update) | C98: Filed Application | D98: 2996.690392 | E98: Public Purpose | G98: ='Authorized Rev Req'!K33 -> 2996.690392 | H98: =G98 -> 2996.690392 | I98: =H98 -> 2996.690392 | J98: 2996.690392 | K98: Existing | M98: 424.2364797 | N98: =H98-H31 -> 424.2364797 | O98: 424.2364797 | P98: 424.2364797 | Q98: Y
A99: Diablo Canyon NBC | B99: A.24-03-013 | C99: Filed Application | D99: 305655 | E99: DCPP | G99: ='Authorized Rev Req'!K62 -> 305655 | H99: =G99 -> 305655 | I99: =H99 -> 305655 | J99: 305655 | K99: New | L99: =F99 -> 0 | M99: =G99 -> 305655 | N99: =H99 -> 305655 | O99: =I99 -> 305655 | P99: =J99 -> 305655 | Q99: =VLOOKUP('Incremental Rev Req'!A99,Summary!$B$8:$D$26,3,FALSE) -> Y
A100: WMCE | B100: A.24-04-005 | C100: Filed Application | D100: 326337 | E100: Distribution | G100: =[19]RawData2!$O$58 -> 326337 | K100: New | L100: 0 | M100: 326337 | N100: 0 | O100: 0 | P100: 0 | Q100: =VLOOKUP('Incremental Rev Req'!A100,Summary!$B$8:$D$26,3,FALSE) -> Y
A101: 2021 ERRA Review | B101: A.22-04-001 | C101: Filed Application | D101: =G101 -> 25706 | E101: Distribution | G101: 25706 | H101: 0 | K101: New | L101: =F101 -> 0 | M101: 25706 | N101: 0 | O101: 0 | P101: 0 | Q101: =VLOOKUP('Incremental Rev Req'!A101,Summary!$B$8:$D$26,3,FALSE) -> Y
A102: 2022 ERRA Review | B102: A.23-04-003 | C102: Filed Application | D102: =G102 -> 50640 | E102: Distribution | G102: 50640 | H102: 0 | K102: New | L102: 0 | M102: 50640 | N102: 0 | O102: 0 | P102: 0 | Q102: =VLOOKUP('Incremental Rev Req'!A102,Summary!$B$8:$D$26,3,FALSE) -> Y
A103: 2022 ERRA Review | B103: A.23-04-003 | C103: Filed Application | D103: =G103 -> 234 | E103: Public Purpose | G103: 234 | H103: 0 | K103: New | L103: 0 | M103: 234 | N103: 0 | O103: 0 | P103: 0 | Q103: =VLOOKUP('Incremental Rev Req'!A103,Summary!$B$8:$D$26,3,FALSE) -> Y
A104: 2023 ERRA Review | B104: A.24-04-001 | C104: Filed Application | D104: =G104 -> -73859 | E104: Distribution | G104: =[19]RawData2!O73 -> -73859 | K104: New | L104: =F104 -> 0 | M104: =G104 -> -73859 | N104: =H104 -> 0 | O104: =I104 -> 0 | P104: =J104 -> 0 | Q104: =VLOOKUP('Incremental Rev Req'!A104,Summary!$B$8:$D$26,3,FALSE) -> Y
A105: 2023 ERRA Review | B105: A.24-04-001 | C105: Filed Application | D105: 10664 | E105: Public Purpose | G105: =[19]RawData2!O74 -> 10664 | K105: New | L105: 0 | M105: 10664 | N105: 0 | O105: 0 | P105: 0 | Q105: =Q104 -> Y
A106: 2022 WM/VM (Non-IRR Portion) | B106: A.23-10-001 | C106: Filed Application | D106: =G106 -> 173752 | E106: Distribution | G106: 173752 | K106: New | L106: =F106 -> 0 | M106: =G106 -> 173752 | N106: =H106 -> 0 | O106: =I106 -> 0 | P106: =J106 -> 0 | Q106: =VLOOKUP('Incremental Rev Req'!A106,Summary!$B$8:$D$26,3,FALSE) -> Y
A107: Section 851 - Sale of GO 5 Property | B107: A.24-08-003 | C107: Filed Application | D107: =G107 -> 29400 | E107: Distribution | G107: =[19]RawData2!O37 -> 29400 | K107: New | L107: =F107 -> 0 | M107: =G107 -> 29400 | N107: =H107 -> 0 | O107: =I107 -> 0 | P107: =J107 -> 0 | Q107: =VLOOKUP('Incremental Rev Req'!A107,Summary!$B$8:$D$26,3,FALSE) -> Y
A108: Section 851 - Sale of Hydroelectric San Bernardino | B108: A.24-08-012 | C108: Filed Application | D108: =G108 -> 60300 | E108: Generation | G108: =[19]RawData2!O38 -> 60300 | K108: New | L108: 0 | M108: 60300 | N108: 0 | O108: 0 | P108: 0 | Q108: =VLOOKUP('Incremental Rev Req'!A108,Summary!$B$8:$D$26,3,FALSE) -> Y
A109: Section 851 - Sale of Hydroelectric Fontana Union Water | B109: A.24-09-008 | C109: Filed Application | D109: 9500 | E109: Generation | G109: =[19]RawData2!O39 -> 9500 | K109: New | L109: 0 | M109: 9500 | N109: 0 | O109: 0 | P109: 0 | Q109: =VLOOKUP('Incremental Rev Req'!A109,Summary!$B$8:$D$26,3,FALSE) -> Y
A110: Thomas Fire WEMA FRC | B110: A.23-08-013 | C110: Filed Application | D110: =H110 -> 162700 | E110: Securitization | H110: 162700 | I110: =H110 -> 162700 | J110: =I110 -> 162700 | K110: New | L110: =F110 -> 0 | M110: =G110 -> 0 | N110: 162700 | O110: 162700 | P110: 162700 | Q110: =VLOOKUP('Incremental Rev Req'!A110,Summary!$B$8:$D$26,3,FALSE) -> Y
A111: Thomas Fire CEMA | B111: A.23-08-013 | C111: Filed Application | D111: 27146 | E111: Distribution | G111: =D111 -> 27146 | K111: New | L111: =F111 -> 0 | M111: 27146 | N111: 0 | O111: 0 | P111: 0 | Q111: =VLOOKUP('Incremental Rev Req'!A111,Summary!$B$8:$D$26,3,FALSE) -> Y
A112: Woolsey CEMA | B112: A.24-10-002 | C112: Filed Application | D112: =I112 -> 52967 | E112: Distribution | I112: 52967 | K112: New | L112: =F112 -> 0 | M112: =G112 -> 0 | N112: =H112 -> 0 | O112: =I112 -> 52967 | P112: =J112 -> 0 | Q112: =VLOOKUP('Incremental Rev Req'!A112,Summary!$B$8:$D$26,3,FALSE) -> Y
A113: Woolsey WEMA FRC | B113: A.24-10-002 | C113: Filed Application | D113: =I113 -> 367000 | E113: Distribution | I113: 367000 | J113: =I113 -> 367000 | K113: New | L113: =F113 -> 0 | M113: =G113 -> 0 | N113: =H113 -> 0 | O113: =I113 -> 367000 | P113: =J113 -> 367000 | Q113: =VLOOKUP('Incremental Rev Req'!A113,Summary!$B$8:$D$26,3,FALSE) -> Y
A115: Public Policy Proceedings
A117: Non-CPUC Jurisdictional Proceedings
A119: Total Pending, Filed but not Approved | D119: =SUM(D85:D118) -> 16574310.83 | F119: =SUM(F85:F118) -> 0 | G119: =SUM(G85:G118) -> 15991643.83 | H119: =SUM(H85:H118) -> 15409788.62 | I119: =SUM(I85:I118) -> 16567478.12 | J119: =SUM(J85:J118) -> 17235871.44 | L119: =SUM(L85:L118) -> 0 | M119: =SUM(M85:M118) -> 2441801.645 | N119: =SUM(N85:N118) -> 2747419.323 | O119: =SUM(O85:O118) -> 3905108.824 | P119: =SUM(P85:P118) -> 4573502.145
L120: =L119+F79 -> 17530066.19 | M120: =M119+G79 -> 19883129.73 | N120: =N119+H79 -> 18593560.41 | O120: =O119+I79 -> 19749660.91 | P120: =P119+J79 -> 20418054.23
A123: Applications Projected to be Filed, Next 12 Months*
A124: Filing Description | B124: Estimated Filing Date | C124: Filing Basis | D124: Proposed Revenue Requirement ($000) | E124: Proposed Revenue Recovery Mechanism | F124: 2024 | G124: 2025 | H124: 2026 | I124: 2027 | J124: 2028 | K124: Existing or New Item (if existing, use delta from prior for rate impact)
A125: Safety Affordability Reliability Proceedings
A127: Public Policy Proceedings
A130: Non-CPUC Jurisdictional Proceedings | F130: =SUM(F125:F129) -> 0 | G130: =SUM(G125:G129) -> 0 | H130: =SUM(H125:H129) -> 0 | I130: =SUM(I125:I129) -> 0 | J130: =SUM(J125:J129) -> 0 | L130: =SUM(L125:L129) -> 0 | M130: 0 | N130: 0 | O130: 0 | P130: 0
A132: * All amounts in this Projected section are estimates and subject to change. SCE provides this data in an effort to be as helpful and transparent as possible to further the Commission's efforts to understand the impact all pending rate increases.

Sheet SAR and AR (GS1) (hidden)
B1: CONFIDENTIAL This Excel Sheet Is Marked Confidential In Accordance With Applicable Law and Regulation. Basis for Confidentiality In Accompanying Confidentiality Declaration. Public Disclosure Restricted.
C2: Total Revenue ($000)
C3: Authorized | D3: w/ Pending
B4: Generation | C4: =INDEX('Incremental Rev Req'!$S$9:$X$22,MATCH(B4,'Incremental Rev Req'!$S$9:$S$22,0),MATCH(Summary!$D$3,'Incremental Rev Req'!$S$9:$X$9,0)) ->  | D4: =INDEX('Incremental Rev Req'!$S$61:$X$74,MATCH(B4,'Incremental Rev Req'!$S$61:$S$74,0),MATCH(Summary!$D$3,'Incremental Rev Req'!$S$61:$X$61,0)) ->  | G4: Allocation
B5: Distribution | C5: =INDEX('Incremental Rev Req'!$S$9:$X$22,MATCH(B5,'Incremental Rev Req'!$S$9:$S$22,0),MATCH(Summary!$D$3,'Incremental Rev Req'!$S$9:$X$9,0)) ->  | D5: =INDEX('Incremental Rev Req'!$S$61:$X$74,MATCH(B5,'Incremental Rev Req'!$S$61:$S$74,0),MATCH(Summary!$D$3,'Incremental Rev Req'!$S$61:$X$61,0)) ->  | G5: Generation | H5: Distribution | I5: NDC | J5: PPPC | K5: DCPP | L5: NSGC | M5: Transmission | N5: TOTCA | O5: GHG Rev | P5: DWRBC | Q5: PUCRF | R5: SECURITIZATION
B6: Nuclear | C6: =INDEX('Incremental Rev Req'!$S$9:$X$22,MATCH(B6,'Incremental Rev Req'!$S$9:$S$22,0),MATCH(Summary!$D$3,'Incremental Rev Req'!$S$9:$X$9,0)) ->  | D6: =INDEX('Incremental Rev Req'!$S$61:$X$74,MATCH(B6,'Incremental Rev Req'!$S$61:$S$74,0),MATCH(Summary!$D$3,'Incremental Rev Req'!$S$61:$X$61,0)) ->  | F6: GS-1 | G6: =VLOOKUP(Summary!$D$3,'SAR and AR (GS1)'!$F$37:$R$42,'SAR and AR (GS1)'!G$35,FALSE) ->  | H6: =VLOOKUP(Summary!$D$3,'SAR and AR (GS1)'!$F$37:$R$42,'SAR and AR (GS1)'!H$35,FALSE) ->  | I6: =VLOOKUP(Summary!$D$3,'SAR and AR (GS1)'!$F$37:$R$42,'SAR and AR (GS1)'!I$35,FALSE) ->  | J6: =VLOOKUP(Summary!$D$3,'SAR and AR (GS1)'!$F$37:$R$42,'SAR and AR (GS1)'!J$35,FALSE) ->  | K6: =VLOOKUP(Summary!$D$3,'SAR and AR (GS1)'!$F$37:$R$42,'SAR and AR (GS1)'!K$35,FALSE) ->  | L6: =VLOOKUP(Summary!$D$3,'SAR and AR (GS1)'!$F$37:$R$42,'SAR and AR (GS1)'!L$35,FALSE) ->  | M6: =VLOOKUP(Summary!$D$3,'SAR and AR (GS1)'!$F$37:$R$42,'SAR and AR (GS1)'!M$35,FALSE) ->  | N6: =VLOOKUP(Summary!$D$3,'SAR and AR (GS1)'!$F$37:$R$42,'SAR and AR (GS1)'!N$35,FALSE) ->  | O6: =VLOOKUP(Summary!$D$3,'SAR and AR (GS1)'!$F$37:$R$42,'SAR and AR (GS1)'!O$35,FALSE) ->  | P6: =VLOOKUP(Summary!$D$3,'SAR and AR (GS1)'!$F$37:$R$42,'SAR and AR (GS1)'!P$35,FALSE) ->  | Q6: =VLOOKUP(Summary!$D$3,'SAR and AR (GS1)'!$F$37:$R$42,'SAR and AR (GS1)'!Q$35,FALSE) ->  | R6: =VLOOKUP(Summary!$D$3,'SAR and AR (GS1)'!$F$37:$R$42,'SAR and AR (GS1)'!R$35,FALSE) -> 
B7: Public Purpose | C7: =INDEX('Incremental Rev Req'!$S$9:$X$22,MATCH(B7,'Incremental Rev Req'!$S$9:$S$22,0),MATCH(Summary!$D$3,'Incremental Rev Req'!$S$9:$X$9,0)) ->  | D7: =INDEX('Incremental Rev Req'!$S$61:$X$74,MATCH(B7,'Incremental Rev Req'!$S$61:$S$74,0),MATCH(Summary!$D$3,'Incremental Rev Req'!$S$61:$X$61,0)) -> 
B8: DCPP | C8: =INDEX('Incremental Rev Req'!$S$9:$X$22,MATCH(B8,'Incremental Rev Req'!$S$9:$S$22,0),MATCH(Summary!$D$3,'Incremental Rev Req'!$S$9:$X$9,0)) ->  | D8: =INDEX('Incremental Rev Req'!$S$61:$X$74,MATCH(B8,'Incremental Rev Req'!$S$61:$S$74,0),MATCH(Summary!$D$3,'Incremental Rev Req'!$S$61:$X$61,0)) ->  | G8: Revenue ($000) - System | X8: Authorized | Y8: w/Pending
B9: New System Gen | C9: =INDEX('Incremental Rev Req'!$S$9:$X$22,MATCH(B9,'Incremental Rev Req'!$S$9:$S$22,0),MATCH(Summary!$D$3,'Incremental Rev Req'!$S$9:$X$9,0)) ->  | D9: =INDEX('Incremental Rev Req'!$S$61:$X$74,MATCH(B9,'Incremental Rev Req'!$S$61:$S$74,0),MATCH(Summary!$D$3,'Incremental Rev Req'!$S$61:$X$61,0)) ->  | F9: Authorized | G9: Generation | H9: Distribution | I9: NDC | J9: PPPC | K9: DCPP | L9: NSGC | M9: Transmission | N9: TOTCA | O9: GHG Rev | P9: DWRBC | Q9: PUCRF | R9: SECURITIZATION | S9: Total | T9: CARE Adj. | W9: % of CARE Sales | X9: =VLOOKUP(Summary!$D$3,$F$58:$Q$63,$Q$35,FALSE) -> 0 | Y9: =X9 -> 0
B10: FERC | C10: =INDEX('Incremental Rev Req'!$S$9:$X$22,MATCH(B10,'Incremental Rev Req'!$S$9:$S$22,0),MATCH(Summary!$D$3,'Incremental Rev Req'!$S$9:$X$9,0)) ->  | D10: =INDEX('Incremental Rev Req'!$S$61:$X$74,MATCH(B10,'Incremental Rev Req'!$S$61:$S$74,0),MATCH(Summary!$D$3,'Incremental Rev Req'!$S$61:$X$61,0)) ->  | F10: GS-1 | G10: =G6*G11 ->  | H10: =H6*H11 ->  | I10: =I6*I11 ->  | J10: =J6*J11 ->  | K10: =K6*K11 ->  | R10: =R6*R11 ->  | S10: =SUM(G10:R10) ->  | T10: =X14 ->  | W10: CARE Effective Discount | X10: ='SAR and RAR'!X10 -> 0.29 | Y10: =X10 -> 0.29
B11: TOTCA | C11: =INDEX('Incremental Rev Req'!$S$9:$X$22,MATCH(B11,'Incremental Rev Req'!$S$9:$S$22,0),MATCH(Summary!$D$3,'Incremental Rev Req'!$S$9:$X$9,0)) ->  | D11: =INDEX('Incremental Rev Req'!$S$61:$X$74,MATCH(B11,'Incremental Rev Req'!$S$61:$S$74,0),MATCH(Summary!$D$3,'Incremental Rev Req'!$S$61:$X$61,0)) ->  | F11: Total System | G11: =C4 ->  | H11: =C5 ->  | I11: =C6 ->  | J11: =C7 ->  | K11: =C8 ->  | L11: =C9 ->  | M11: =C10 ->  | N11: =C11 ->  | O11: =C12 ->  | P11: =C14 ->  | Q11: =C15 ->  | R11: =C16 ->  | S11: =SUM(G11:R11) ->  | T11: 0 | W11: CARE Discounst | X11: ='SAR and RAR'!X11 ->  | Y11: ='SAR and RAR'!Y11 -> 
B12: GHG Revenue | C12: =INDEX('Incremental Rev Req'!$S$9:$X$22,MATCH(B12,'Incremental Rev Req'!$S$9:$S$22,0),MATCH(Summary!$D$3,'Incremental Rev Req'!$S$9:$X$9,0)) ->  | D12: =INDEX('Incremental Rev Req'!$S$61:$X$74,MATCH(B12,'Incremental Rev Req'!$S$61:$S$74,0),MATCH(Summary!$D$3,'Incremental Rev Req'!$S$61:$X$61,0)) ->  | F12: w/Pending | W12: GS-1 Sales | X12: =VLOOKUP(Summary!$D$3,'SAR and AR (GS1)'!$F$58:$O$63,10,FALSE) -> 5855679.567 | Y12: =X12 -> 5855679.567
B13: MCAM | C13: =INDEX('Incremental Rev Req'!$S$9:$X$22,MATCH(B13,'Incremental Rev Req'!$S$9:$S$22,0),MATCH(Summary!$D$3,'Incremental Rev Req'!$S$9:$X$9,0)) ->  | D13: =INDEX('Incremental Rev Req'!$S$61:$X$74,MATCH(B13,'Incremental Rev Req'!$S$61:$S$74,0),MATCH(Summary!$D$3,'Incremental Rev Req'!$S$61:$X$61,0)) ->  | F13: GS-1 | G13: =G6*G14 ->  | H13: =H6*H14 ->  | I13: =I6*I14 ->  | J13: =J6*J14 ->  | K13: =K6*K14 ->  | R13: =R6*R14 ->  | S13: =SUM(G13:R13) ->  | T13: =Y14 ->  | W13: Total Sales (excl. CARE&SL) | X13: =VLOOKUP(Summary!$D$3,'SAR and AR (GS1)'!$F$64:$O$69,2,FALSE) ->  | Y13: =X13 -> 
B14: DWR | C14: =INDEX('Incremental Rev Req'!$S$9:$X$22,MATCH(B14,'Incremental Rev Req'!$S$9:$S$22,0),MATCH(Summary!$D$3,'Incremental Rev Req'!$S$9:$X$9,0)) ->  | D14: =INDEX('Incremental Rev Req'!$S$61:$X$74,MATCH(B14,'Incremental Rev Req'!$S$61:$S$74,0),MATCH(Summary!$D$3,'Incremental Rev Req'!$S$61:$X$61,0)) ->  | F14: Total System | G14: =D4 ->  | H14: =D5 ->  | I14: =D6 ->  | J14: =D7 ->  | K14: =D8 ->  | L14: =D9 ->  | M14: =D10 ->  | N14: =D11 ->  | O14: =D12 ->  | P14: =D14 ->  | Q14: =D15 ->  | R14: =D16 ->  | S14: =SUM(G14:R14) ->  | T14: 0 | W14: GS-1 CARE Surcharge | X14: =X11*X12/X13 ->  | Y14: =Y11*Y12/Y13 -> 
B15: PUCRF | C15: =INDEX('Incremental Rev Req'!$S$9:$X$22,MATCH(B15,'Incremental Rev Req'!$S$9:$S$22,0),MATCH(Summary!$D$3,'Incremental Rev Req'!$S$9:$X$9,0)) ->  | D15: =INDEX('Incremental Rev Req'!$S$61:$X$74,MATCH(B15,'Incremental Rev Req'!$S$61:$S$74,0),MATCH(Summary!$D$3,'Incremental Rev Req'!$S$61:$X$61,0)) ->  | W15: RES CARE Discount Specific Split | X15: ='SAR and RAR'!X15 -> 0.7896822699 | Y15: ='SAR and RAR'!Y15 -> 0.7896822699
B16: SECURITIZATION | C16: =INDEX('Incremental Rev Req'!$S$9:$X$22,MATCH(B16,'Incremental Rev Req'!$S$9:$S$22,0),MATCH(Summary!$D$3,'Incremental Rev Req'!$S$9:$X$9,0)) ->  | D16: =INDEX('Incremental Rev Req'!$S$61:$X$74,MATCH(B16,'Incremental Rev Req'!$S$61:$S$74,0),MATCH(Summary!$D$3,'Incremental Rev Req'!$S$61:$X$61,0)) ->  | S16: Authorized | T16: w/Pending | W16: CARE Surcharge Allocator | X16: ='SAR and RAR'!X16 -> 0.6524431797 | Y16: ='SAR and RAR'!Y16 -> 0.6524431797
B17: Total | C17: =SUM(C4:C16) ->  | D17: =SUM(D4:D16) ->  | G17: Revenue Split - Bundled | S17: Bundled Revenue | W17: System CARE Discount | X17: =SUM(-X11*X15)+SUM(X11*X16) ->  | Y17: =SUM(-Y11*Y15)+SUM(Y11*Y16) -> 
G18: Generation | H18: Distribution | I18: NDC | J18: PPPC | K18: DCPP | L18: NSGC | M18: Transmission | N18: TOTCA | O18: GHG Rev | P18: DWRBC | Q18: PUCRF | R18: SECURITIZATION | S18: Total | T18: Total
F19: GS-1 | G19: =VLOOKUP(Summary!$D$3,'SAR and AR (GS1)'!$F$44:$R$49,'SAR and AR (GS1)'!G$35,FALSE) ->  | H19: =VLOOKUP(Summary!$D$3,'SAR and AR (GS1)'!$F$44:$R$49,'SAR and AR (GS1)'!H$35,FALSE) ->  | I19: =VLOOKUP(Summary!$D$3,'SAR and AR (GS1)'!$F$44:$R$49,'SAR and AR (GS1)'!I$35,FALSE) ->  | J19: =VLOOKUP(Summary!$D$3,'SAR and AR (GS1)'!$F$44:$R$49,'SAR and AR (GS1)'!J$35,FALSE) ->  | K19: =VLOOKUP(Summary!$D$3,'SAR and AR (GS1)'!$F$44:$R$49,'SAR and AR (GS1)'!K$35,FALSE) ->  | L19: =VLOOKUP(Summary!$D$3,'SAR and AR (GS1)'!$F$44:$R$49,'SAR and AR (GS1)'!L$35,FALSE) ->  | M19: =VLOOKUP(Summary!$D$3,'SAR and AR (GS1)'!$F$44:$R$49,'SAR and AR (GS1)'!M$35,FALSE) ->  | N19: =VLOOKUP(Summary!$D$3,'SAR and AR (GS1)'!$F$44:$R$49,'SAR and AR (GS1)'!N$35,FALSE) ->  | O19: =VLOOKUP(Summary!$D$3,'SAR and AR (GS1)'!$F$44:$R$49,'SAR and AR (GS1)'!O$35,FALSE) ->  | P19: =VLOOKUP(Summary!$D$3,'SAR and AR (GS1)'!$F$44:$R$49,'SAR and AR (GS1)'!P$35,FALSE) ->  | Q19: =VLOOKUP(Summary!$D$3,'SAR and AR (GS1)'!$F$44:$R$49,'SAR and AR (GS1)'!Q$35,FALSE) ->  | R19: =VLOOKUP(Summary!$D$3,'SAR and AR (GS1)'!$F$44:$R$49,'SAR and AR (GS1)'!R$35,FALSE) ->  | S19: =SUMPRODUCT(G10:R10,G19:R19)+T10*H19 ->  | T19: =SUMPRODUCT(G13:R13,G19:R19)+T13*H19 -> 
F20: Total System | G20: =VLOOKUP(Summary!$D$3,'SAR and AR (GS1)'!$F$50:$R$55,'SAR and AR (GS1)'!G$35,FALSE) ->  | H20: =VLOOKUP(Summary!$D$3,'SAR and AR (GS1)'!$F$50:$R$55,'SAR and AR (GS1)'!H$35,FALSE) ->  | I20: =VLOOKUP(Summary!$D$3,'SAR and AR (GS1)'!$F$50:$R$55,'SAR and AR (GS1)'!I$35,FALSE) ->  | J20: =VLOOKUP(Summary!$D$3,'SAR and AR (GS1)'!$F$50:$R$55,'SAR and AR (GS1)'!J$35,FALSE) ->  | K20: =VLOOKUP(Summary!$D$3,'SAR and AR (GS1)'!$F$50:$R$55,'SAR and AR (GS1)'!K$35,FALSE) ->  | L20: =VLOOKUP(Summary!$D$3,'SAR and AR (GS1)'!$F$50:$R$55,'SAR and AR (GS1)'!L$35,FALSE) ->  | M20: =VLOOKUP(Summary!$D$3,'SAR and AR (GS1)'!$F$50:$R$55,'SAR and AR (GS1)'!M$35,FALSE) ->  | N20: =VLOOKUP(Summary!$D$3,'SAR and AR (GS1)'!$F$50:$R$55,'SAR and AR (GS1)'!N$35,FALSE) ->  | O20: =VLOOKUP(Summary!$D$3,'SAR and AR (GS1)'!$F$50:$R$55,'SAR and AR (GS1)'!O$35,FALSE) ->  | P20: =VLOOKUP(Summary!$D$3,'SAR and AR (GS1)'!$F$50:$R$55,'SAR and AR (GS1)'!P$35,FALSE) ->  | Q20: =VLOOKUP(Summary!$D$3,'SAR and AR (GS1)'!$F$50:$R$55,'SAR and AR (GS1)'!Q$35,FALSE) ->  | R20: =VLOOKUP(Summary!$D$3,'SAR and AR (GS1)'!$F$50:$R$55,'SAR and AR (GS1)'!R$35,FALSE) ->  | S20: =SUMPRODUCT(G11:R11,G20:R20)+X17 ->  | T20: =SUMPRODUCT(G14:R14,G20:R20)+Y17 -> 
R22: GS-1 GHG | S22: =O10*O19 ->  | T22: =O13*O19 -> 
R23: GS-1 GHG System | S23: =O11*O20 ->  | T23: =O14*O20 -> 
F26: Bundled | N26: System (Bundled and Unbundled)
F27: =Summary!N4&" Sales" -> 2023 Sales | G27: 10/1/2024 Avg Rates | H27: Proposed Avg Rates (Authorized) | I27: Proposed Avg Rates (w/Pending) | J27: % Change (Authorized) | K27: % Change (w/Pending) | N27: =Summary!N4&" Sales" -> 2023 Sales | O27: =G27 -> 10/1/2024 Avg Rates | P27: Proposed Avg Rates (Authorized) | Q27: Proposed Avg Rates (w/Pending) | R27: % Change (Authorized) | S27: % Change (w/Pending) | W27: 1/1/24 Bundled w/Credit | X27: 1/1/24 Bundled w/out Credit | Z27: 1/1/24 System w/Credit | AA27: 1/1/24 System w/out Credit
E28: GS-1 | F28: =VLOOKUP(Summary!$D$3,'SAR and AR (GS1)'!$J$58:$K$63,2,FALSE) ->  | G28: =IF(Summary!$J$3="Y",W31,X31) -> 28.73720747 | H28: =IF(Summary!$J$3="Y",S19/$F$28*100,SUM(S19-S22)/$F$28*100) ->  | I28: =IF(Summary!$J$3="Y",T19/$F$28*100,SUM(T19-T22)/$F$28*100) ->  | J28: =H28/G28-1 ->  | K28: =I28/G28-1 ->  | M28: GS-1 | N28: =VLOOKUP(Summary!$D$3,'SAR and AR (GS1)'!$N$58:$O$63,2,FALSE) ->  | O28: =IF(Summary!$J$3="Y",Z31,AA31) -> 25.68007636 | P28: =IF(Summary!$J$3="Y",SUM(S10:T10)/N28*100,SUM(S10:T10,-O10)/N28*100) ->  | Q28: =IF(Summary!$J$3="Y",SUM(S13:T13)/N28*100,SUM(S13:T13,-O13)/N28*100) ->  | R28: =P28/O28-1 ->  | S28: =Q28/O28-1 ->  | V28: GS-1 Bundled | W28: 28.70282351 | X28: 30.14551612 | Y28: GS-1 System | Z28: 24.9349469 | AA28: 26.47868339
E29: Total Bundled | F29: =VLOOKUP(Summary!$D$3,'SAR and AR (GS1)'!$J$64:$K$69,2,FALSE) ->  | G29: ='SAR and RAR'!G29 -> 27.22240766 | H29: =IF(Summary!$J$3="Y",S20/$F$29*100,SUM(S20-S23)/$F$29*100) ->  | I29: =IF(Summary!$J$3="Y",T20/$F$29*100,SUM(T20-T23)/$F$29*100) ->  | J29: =H29/G29-1 ->  | K29: =I29/G29-1 ->  | M29: Total System | N29: =VLOOKUP(Summary!$D$3,'SAR and AR (GS1)'!$N$64:$O$69,2,FALSE) ->  | O29: ='SAR and RAR'!O29 -> 22.890967 | P29: =IF(Summary!$J$3="Y",SUM(S11:T11)/N29*100,SUM(S11:T11,-O11)/N29*100) ->  | Q29: =IF(Summary!$J$3="Y",SUM(S14:T14)/N29*100,SUM(S14:T14,-O14)/N29*100) ->  | R29: =P29/O29-1 ->  | S29: =Q29/O29-1 -> 
E30: =M29 -> Total System | F30: =N29 ->  | W30: 10/1/24 Bundled w/Credit | X30: 10/1/24 Bundled w/out Credit | Z30: 10/1/24 System w/Credit | AA30: 10/1/24 System w/out Credit
V31: GS-1 Bundled | W31: 27.29451485 | X31: 28.73720747 | Y31: GS-1 System | Z31: 24.13633987 | AA31: 25.68007636
G35: 2 | H35: =G35+1 -> 3 | I35: =H35+1 -> 4 | J35: 5 | K35: 6 | L35: 7 | M35: 8 | N35: 9 | O35: 10 | P35: 11 | Q35: 12 | R35: 13
F36: GS-1 Allocator | G36: Generation | H36: Distribution | I36: NDC | J36: PPPC | K36: DCPP | L36: NSGC | M36: Transmission | N36: TOTCA | O36: GHG Rev | P36: DWRBC | Q36: PUCRF | R36: SECURITIZATION
F37: 2024 | G37: 0.09196469361 | H37: 0.07101573821 | I37: 0.07301843979 | J37: 0.06914911033 | K37: 0 | L37: 0.07395735313 | M37: 0.07258678595 | N37: 0.07235690286 | O37: 0.0946453606 | P37: 0.08033610878 | Q37: 0.07301843982 | R37: 0.08988849439
F38: 2025 | G38: 0.08812304413 | H38: 0.06959914044 | I38: 0.07113231711 | J38: 0.06749378615 | K38: 0.07036112744 | L38: 0.07200392302 | M38: 0.07136582253 | N38: 0.07069298232 | O38: 0.08057707422 | P38: 0.07915650507 | Q38: 0.07113231713 | R38: 0.08890520037
F39: 2026 | G39: 0.08812304413 | H39: 0.06959914044 | I39: 0.07113231711 | J39: 0.06749378615 | K39: 0.07036112744 | L39: 0.07200392302 | M39: 0.07136582253 | N39: 0.07069298232 | O39: 0.08057707422 | P39: 0.07915650507 | Q39: 0.07113231713 | R39: 0.08890520037
F40: 2027 | G40: 0.1042542879 | H40: 0.07886542046 | I40: 0.08058673453 | J40: 0.07640458327 | K40: =K38 -> 0.07036112744 | L40: 0.08163324239 | M40: 0.080668594 | N40: 0.07984520815 | O40: 0.09651657018 | P40: 0.08726154335 | Q40: 0.08058673521 | R40: 0.09701042073
F41: 2028 | G41: 0.1057519756 | H41: 0.07973814341 | I41: 0.08181209419 | J41: 0.07748337385 | K41: =K38 -> 0.07036112744 | L41: 0.08277358073 | M41: 0.08173795576 | N41: 0.08126005924 | O41: 0.09652020273 | P41: 0.08836727155 | Q41: 0.08181209401 | R41: 0.09798098961
F43: Revenue Split - Bundled
E44: GS-1 | F44: 2024 | G44: 1.029270051 | H44: 0.7549294038 | I44: 0.757014824 | J44: 0.7570148258 | K44: 0 | L44: 0.7570148258 | M44: 0.7570148258 | N44: 0.757014824 | O44: 0.7074651044 | P44: 0.7570148259 | Q44: 0.7570148258 | R44: 0.7570148261 | U44: =G44 -> 1.029270051
E45: GS-1 | F45: 2025 | G45: 1.03610846 | H45: 0.7028201687 | I45: 0.7044002506 | J45: 0.7044002482 | K45: 0.7044002483 | L45: 0.7044002483 | M45: 0.7044002482 | N45: 0.7044002506 | O45: 0.6931459403 | P45: 0.7044002481 | Q45: 0.7044002481 | R45: 0.7044002481 | T45: =K59/K58-1 -> -0.1055183947 | U45: =G45 -> 1.03610846
E46: GS-1 | F46: 2026 | G46: 1.03610846 | H46: 0.7028201687 | I46: 0.7044002506 | J46: 0.7044002482 | K46: 0.7044002483 | L46: 0.7044002483 | M46: 0.7044002482 | N46: 0.7044002506 | O46: 0.6931459403 | P46: 0.7044002481 | Q46: 0.7044002481 | R46: 0.7044002481 | T46: =K60/K59-1 -> 0.162567738 | U46: 1.03610846
E47: GS-1 | F47: 2027 | G47: 1.02706866 | H47: 0.7417156519 | I47: 0.7472225684 | J47: 0.7472225627 | K47: =K45 -> 0.7044002483 | L47: 0.7472225627 | M47: 0.7472225626 | N47: 0.7472225807 | O47: 0.6619181338 | P47: 0.7472225627 | Q47: 0.7472225629 | R47: 0.7472225627 | T47: =K61/K60-1 -> 0.09324204765 | U47: 1.02706866
E48: GS-1 | F48: 2028 | G48: 1.026916816 | H48: 0.7420059443 | I48: 0.7484824465 | J48: 0.7484824473 | K48: =K45 -> 0.7044002483 | L48: 0.7484824474 | M48: 0.7484824473 | N48: 0.7484824465 | O48: 0.6528623984 | P48: 0.7484824473 | Q48: 0.7484824472 | R48: 0.7484824477 | T48: =K62/K61-1 -> 0.03800973142 | U48: 1.026916816
E49: GS-1 | T49: =K63/K62-1 -> -1 | U49: 0
E50: Total System | F50: 2024 | G50: 1.03869561 | H50: 0.6902985631 | I50: 0.6656300913 | J50: 0.6802569815 | K50: 0 | L50: 0.6739645256 | M50: 0.6940398758 | N50: 0.6472606087 | O50: 0.7180561653 | P50: 0.6533003681 | Q50: 0.6656300931 | R50: 0.6636179416 | U50: 1.03869561
E51: Total System | F51: 2025 | G51: 1.049352878 | H51: 0.6541087603 | I51: 0.628302886 | J51: 0.6439010908 | K51: 0.6417400278 | L51: 0.6383213165 | M51: 0.6625587043 | N51: 0.6047830447 | O51: 0.691306377 | P51: 0.6134588996 | Q51: 0.628302884 | R51: 0.6243273263 | T51: =K65/K64-1 -> -0.0685533249 | U51: 1.049352878
E52: Total System | F52: 2026 | G52: 1.049352878 | H52: 0.6541087603 | I52: 0.628302886 | J52: 0.6439010908 | K52: 0.6417400278 | L52: 0.6383213165 | M52: 0.6625587043 | N52: 0.6047830447 | O52: 0.691306377 | P52: 0.6134588996 | Q52: 0.628302884 | R52: 0.6243273263 | T52: =K66/K65-1 -> 0.07290058435 | U52: 1.049352878
E53: Total System | F53: 2027 | G53: 1.039109596 | H53: 0.6561643606 | I53: 0.6424349156 | J53: 0.6511945012 | K53: =K51 -> 0.6417400278 | L53: 0.645737567 | M53: 0.6611341707 | N53: 0.6343728834 | O53: 0.663701183 | P53: 0.6358949822 | Q53: 0.6424349164 | R53: 0.640952991 | T53: 0.007878342139 | U53: 1.039109596
E54: Total System | F54: 2028 | G54: 1.039114345 | H54: 0.6566285776 | I54: 0.6433912532 | J54: 0.6516624162 | K54: =K51 -> 0.6417400278 | L54: 0.6464372626 | M54: 0.6616471703 | N54: 0.6359044244 | O54: 0.6540688138 | P54: 0.6380707339 | Q54: 0.6433912524 | R54: 0.6431049177 | T54: 0.02226113612 | U54: 1.039114345
E55: Total System | T55: -1 | U55: 0
F57: System Sales | J57: Bundled Sales | L57: % of Bdl | N57: System Sales
E58: GS-1 | F58: 2023 | I58: GS-1 | J58: 2024 | K58: 4432836.247 | L58: =K58/O58 -> 0.7570148258 | M58: GS-1 | N58: 2024 | O58: 5855679.567
E59: GS-1 | F59: 2024 | I59: GS-1 | J59: 2025 | K59: 3965090.482 | L59: 0.7044002482 | M59: GS-1 | N59: 2025 | O59: 5629030.502
E60: GS-1 | F60: 2025 | I60: GS-1 | J60: 2026 | K60: 4609686.273 | L60: 0.7044002482 | M60: GS-1 | N60: 2026 | O60: 6544129.258
E61: GS-1 | F61: 2026 | I61: GS-1 | J61: 2027 | K61: 5039502.861 | L61: 0.7472225626 | M61: GS-1 | N61: 2027 | O61: 6744313.023
E62: GS-1 | F62: 2027 | I62: GS-1 | J62: 2028 | K62: 5231053.011 | L62: 0.7484824474 | M62: GS-1 | N62: 2028 | O62: 6988878.669
E63: GS-1 | F63: 2028 | I63: GS-1 | M63: GS-1
E64: Non-Exempt Sales | F64: 2024 | G64: ='SAR and RAR'!G64 -> 72430361.94 | I64: Total System | J64: 2024 | K64: ='SAR and RAR'!K64 -> 53379893.43 | L64: 0.665630093 | M64: Total System | N64: 2024 | O64: ='SAR and RAR'!O64 -> 80194531.45
E65: Non-Exempt Sales | F65: 2025 | G65: 70674000.71 | I65: Total System | J65: 2025 | K65: 49720524.25 | L65: 0.628302884 | M65: Total System | N65: 2025 | O65: ='SAR and RAR'!O65 -> 79134642.73
E66: Non-Exempt Sales | F66: 2026 | G66: 73653049.42 | I66: Total System | J66: 2026 | K66: 53345179.52 | L66: 0.6503784983 | M66: Total System | N66: 2026 | O66: ='SAR and RAR'!O66 -> 82021745.28
E67: Non-Exempt Sales | F67: 2027 | G67: ='SAR and RAR'!G67 -> 76902568.52 | I67: Total System | J67: 2027 | K67: ='SAR and RAR'!K67 -> 53765451.1 | L67: 0.6424349163 | M67: Total System | N67: 2027 | O67: ='SAR and RAR'!O67 -> 83690113.56
E68: Non-Exempt Sales | F68: 2028 | G68: ='SAR and RAR'!G68 -> 78714196.58 | I68: Total System | J68: 2028 | K68: ='SAR and RAR'!K68 -> 54962331.12 | L68: 0.6433912525 | M68: Total System | N68: 2028 | O68: ='SAR and RAR'!O68 -> 85425984.44
E69: Non-Exempt Sales | I69: Total System | M69: Total System
J71: =Summary!D3 -> 2023 | K71: =VLOOKUP(Summary!D3,'SAR and AR (GS1)'!J58:K63,2,FALSE) ->  | N71: =Summary!D3 -> 2023 | O71: =VLOOKUP(Summary!D3,'SAR and AR (GS1)'!N58:O63,2,FALSE) -> 
J72: % of GS-1 Sales (Bdl) | N72: % of GS-1 Sales (Sys)
J73: 2024 | K73: =K58/K64 -> 0.0830431828 | N73: 2024 | O73: =O58/O64 -> 0.0730184398
J74: 2025 | K74: 0.07974755983 | N74: 2025 | O74: 0.07113231712
J75: 2026 | K75: 0.08641242404 | N75: 2026 | O75: 0.07978529639
J76: 2027 | K76: 0.09373124855 | N76: 2027 | O76: 0.08058673524
J77: 2028 | K77: 0.09517523918 | N77: 2028 | O77: 0.08181209401

Sheet Bill Impact (GS1) (hidden)
B1: CONFIDENTIAL This Excel Sheet Is Marked Confidential In Accordance With Applicable Law and Regulation. Basis for Confidentiality In Accompanying Confidentiality Declaration. Public Disclosure Restricted.
E3: Schedule TOU-GS-1-E
E4: =Summary!N4 -> 2023 | F4: =Summary!N3 -> 2024-10-01 | G4: Proposed | H4: Proposed | I4: Proposed | J4: Proposed
E5: Sales Forecast | F5: Rates | G5: Authorized Rates | H5: Authorized Revenue | I5: w/Pending Rates | J5: w/Pending Revenue
D7: On Peak | E7: =HLOOKUP(E$4,$F$42:$K$52,$A44,FALSE) ->  | F7: 0.6412 | G7: =F7/$F$12*$G$12 ->  | H7: =E7*G7 ->  | I7: =F7/$F$12*$I$12 ->  | J7: =E7*I7 ->  | N7: Bundled GS-1 Rev Req
D8: Mid Peak | F8: 0.3161 | G8: =F8/$F$12*$G$12 ->  | I8: =F8/$F$12*$I$12 ->  | N8: Proposed (Authorized) | O8: ='SAR and AR (GS1)'!S19/1000-'SAR and AR (GS1)'!S22/1000 -> 
D9: Off Peak | F9: 0.23387 | N9: Proposed (w/Pending) | O9: ='SAR and AR (GS1)'!T19/1000-'SAR and AR (GS1)'!T22/1000 -> 
D10: Mid Peak | F10: 0.37716
D11: Off Peak | F11: 0.24899 | G11: =F11/$F$12*$G$12 -> 
D12: SuperOff Peak | F12: 0.17902 | G12: =(O8-G14*E14*365/12/10^6)/SUM(E12,F11/F12*E11,F10/F12*E10,F9/F12*E9,F8/F12*E8,F7/F12*E7) ->  | I12: =(O9-I14*E14*365/12/10^6)/SUM(E12,F11/F12*E11,F10/F12*E10,F9/F12*E9,F8/F12*E8,F7/F12*E7) -> 
D14: Customers | E14: =HLOOKUP(E$4,$F$42:$K$53,$A51,FALSE) ->  | F14: 0.468 | G14: =F14 -> 0.468 | H14: =G14*E14*365/12/10^6 ->  | I14: =G14 -> 0.468 | J14: =I14*E14*365/12/10^6 -> 
N19: 2023 Recorded Data
B20: SCHEDULE TOU-GS-1-E ($/kWh) | E20: Proposed | F20: Proposed | N20: NAICS | O20: Summer | R20: Winter
B21: Rates | C21: Jan 2024 | D21: =Summary!N3 -> 2024-10-01 | E21: Authorized | F21: w/Pending | O21: On Peak kWh | P21: Mid Peak kWh | Q21: Off Peak kWh | R21: Mid Peak kWh | S21: Off Peak kWh | T21: Super Off Peak kWh | U21: Total kWh
B22: On Peak | C22: 0.72122 | D22: =F7 -> 0.6412 | E22: =G7 ->  | F22: =I7 ->  | N22: NAICS 531 | O22: 424.4000556 | P22: 171.0418541 | Q22: 2142.043749 | R22: 1242.293732 | S22: 2623.098488 | T22: 1422.305185 | U22: =SUM(O22:T22) -> 8025.183064
B23: Mid Peak | C23: 0.32678 | D23: =F8 -> 0.3161 | F23: =I8 ->  | N23: NAICS 621 | O23: 797.5715959 | P23: 197.8653305 | Q23: 3613.515045 | R23: 1413.274642 | S23: 2031.583162 | T23: 3587.690722 | U23: =SUM(O23:T23) -> 11641.5005
B24: Off Peak | C24: 0.24147 | D24: 0.23387 | N24: NAICS 722 | O24: 2427.208974 | P24: 1047.857092 | Q24: 9631.294795 | R24: 5240.828945 | S24: 6947.090523 | T24: 8200.931162 | U24: 33495.21149
B25: Mid Peak | C25: 0.40087 | D25: 0.37716
B26: Off Peak | C26: 0.25982 | D26: 0.24899
B27: Super Off Peak | C27: 0.18167 | D27: 0.17902
C32: Daily to Monthly Conversion Factor | D32: 30.417
C34: TOU-GS-1-E
C35: =C21 -> Jan 2024 | E35: =D21 -> 2024-10-01 | G35: =E21 -> Authorized | I35: =F21 -> w/Pending
C36: Summer | D36: Winter | E36: Summer | F36: Winter | G36: Summer | H36: Winter | I36: Summer | J36: Winter
B37: NAICS 531 | C37: =SUM(SUM($O$22*$C$22,$P$22*$C$23,$Q$22*$C$24)+SUM($F$14*365/12*4))/4 -> 234.0395423 | D37: =SUM(SUM($R$22*$C$25,$S$22*$C$26,$T$22*$C$27)+SUM($F$14*365/12*8))/8 -> 193.9752401 | E37: =SUM(SUM($O$22*$D$22,$P$22*$D$23,$Q$22*$D$24)+SUM($F$14*365/12*4))/4 -> 221.0228543 | F37: =SUM(SUM($R$22*$D$25,$S$22*$D$26,$T$22*$D$27)+SUM($F$14*365/12*8))/8 -> 186.2712338 | G37: =SUM(SUM($O$22*$E$22,$P$22*$E$23,$Q$22*$E$24)+SUM($G$14*365/12*4))/4 ->  | H37: =SUM(SUM($R$22*$E$25,$S$22*$E$26,$T$22*$E$27)+SUM($G$14*365/12*8))/8 ->  | I37: =SUM(SUM($O$22*$F$22,$P$22*$F$23,$Q$22*$F$24)+SUM($I$14*365/12*4))/4 ->  | J37: =SUM(SUM($R$22*$F$25,$S$22*$F$26,$T$22*$F$27)+SUM($G$14*365/12*8))/8 -> 
B38: NAICS 621 | C38: =SUM(SUM($O$23*$C$22,$P$23*$C$23,$Q$23*$C$24)+SUM($F$14*365/12*4))/4 -> 392.3446243 | D38: =SUM(SUM($R$23*$C$25,$S$23*$C$26,$T$23*$C$27)+SUM($F$14*365/12*8))/8 -> 232.5051395 | E38: =SUM(SUM($O$23*$D$22,$P$23*$D$23,$Q$23*$D$24)+SUM($F$14*365/12*4))/4 -> 368.9952255 | F38: =SUM(SUM($R$23*$D$25,$S$23*$D$26,$T$23*$D$27)+SUM($F$14*365/12*8))/8 -> 224.3778685 | G38: =SUM(SUM($O$23*$E$22,$P$23*$E$23,$Q$23*$E$24)+SUM($F$14*365/12*4))/4 ->  | H38: =SUM(SUM($R$23*$E$25,$S$23*$E$26,$T$23*$E$27)+SUM($F$14*365/12*8))/8 ->  | I38: =SUM(SUM($O$23*$F$22,$P$23*$F$23,$Q$23*$F$24)+SUM($I$14*365/12*4))/4 ->  | J38: =SUM(SUM($R$23*$F$25,$S$23*$F$26,$T$23*$F$27)+SUM($G$14*365/12*8))/8 -> 
B39: NAICS 722 | C39: =SUM(SUM($O$24*$C$22,$P$24*$C$23,$Q$24*$C$24)+SUM($F$14*365/12*4))/4 -> 1118.894788 | D39: =SUM(SUM($R$24*$C$25,$S$24*$C$26,$T$24*$C$27)+SUM($F$14*365/12*8))/8 -> 688.7034154 | E39: =SUM(SUM($O$24*$D$22,$P$24*$D$23,$Q$24*$D$24)+SUM($F$14*365/12*4))/4 -> 1049.241234 | F39: =SUM(SUM($R$24*$D$25,$S$24*$D$26,$T$24*$D$27)+SUM($F$14*365/12*8))/8 -> 661.0497264 | G39: =SUM(SUM($O$24*$E$22,$P$24*$E$23,$Q$24*$E$24)+SUM($F$14*365/12*4))/4 ->  | H39: =SUM(SUM($R$24*$E$25,$S$24*$E$26,$T$24*$E$27)+SUM($F$14*365/12*8))/8 ->  | I39: =SUM(SUM($O$24*$F$22,$P$24*$F$23,$Q$24*$F$24)+SUM($I$14*365/12*4))/4 ->  | J39: =SUM(SUM($R$24*$F$25,$S$24*$F$26,$T$24*$F$27)+SUM($G$14*365/12*8))/8 -> 
F42: 2024 | G42: 2025 | H42: 2026 | I42: 2027 | J42: 2028
F43: Non-CARE | G43: Non-CARE | H43: Non-CARE | I43: Non-CARE | J43: Non-CARE
A44: 3 | D44: On Peak | F44: 272.9756564 | G44: 248.3082909 | H44: 288.675208 | I44: 313.0233645 | J44: 322.4208747
A45: =A44+1 -> 4 | D45: Mid Peak | F45: 96.85773384 | G45: 88.24193316 | H45: 102.5872246 | I45: 114.778733 | J45: 117.5855057
A46: =A45+1 -> 5 | D46: Off Peak | F46: 1211.526111 | G46: 1102.482729 | H46: 1281.710852 | I46: 1384.967034 | J46: 1424.341175
A47: 6 | D47: Mid Peak | F47: 653.427509 | G47: 578.9179517 | H47: 673.0313336 | I47: 752.3822258 | J47: 784.9414788
A48: 7 | D48: Off Peak | F48: 1103.284683 | G48: 977.4853682 | H48: 1136.392953 | I48: 1237.43483 | J48: 1290.07844
A49: 8 | D49: SuperOff Peak | F49: 1094.764554 | G49: 969.6542096 | H49: 1127.288701 | I49: 1236.916674 | J49: 1291.685536
A50: 9
A51: 10 | D51: Customers | F51: 4657395.864 | G51: 4353796.304 | H51: 4469434.536 | I51: 4530906.541 | J51: 4490904.009
A52: 11
F54: =SUM(F44:F49) -> 4432.836247 | G54: 3965.090482 | H54: 4609.686273 | I54: 5039.502861 | J54: 5231.053011
E55: Customers | F55: =F51/SUM(F$51:F$52) -> 1 | G55: 4353796.304 | H55: 4469434.536 | I55: 4530906.541 | J55: 4490904.009

Sheet SAR and RAR (hidden)
B1: CONFIDENTIAL This Excel Sheet Is Marked Confidential In Accordance With Applicable Law and Regulation. Basis for Confidentiality In Accompanying Confidentiality Declaration. Public Disclosure Restricted.
C2: Total Revenue ($000)
C3: Authorized | D3: w/ Pending
B4: Generation | C4: =INDEX('Incremental Rev Req'!$S$9:$X$22,MATCH(B4,'Incremental Rev Req'!$S$9:$S$22,0),MATCH(Summary!$D$3,'Incremental Rev Req'!$S$9:$X$9,0)) ->  | D4: =INDEX('Incremental Rev Req'!$S$61:$X$74,MATCH(B4,'Incremental Rev Req'!$S$61:$S$74,0),MATCH(Summary!$D$3,'Incremental Rev Req'!$S$61:$X$61,0)) ->  | G4: Allocation
B5: Distribution | C5: =INDEX('Incremental Rev Req'!$S$9:$X$22,MATCH(B5,'Incremental Rev Req'!$S$9:$S$22,0),MATCH(Summary!$D$3,'Incremental Rev Req'!$S$9:$X$9,0)) ->  | D5: =INDEX('Incremental Rev Req'!$S$61:$X$74,MATCH(B5,'Incremental Rev Req'!$S$61:$S$74,0),MATCH(Summary!$D$3,'Incremental Rev Req'!$S$61:$X$61,0)) ->  | G5: Generation | H5: Distribution | I5: NDC | J5: PPPC | K5: DCPP | L5: NSGC | M5: Transmission | N5: TOTCA | O5: GHG Rev | P5: DWRBC | Q5: PUCRF | R5: SECURITIZATION
B6: Nuclear | C6: =INDEX('Incremental Rev Req'!$S$9:$X$22,MATCH(B6,'Incremental Rev Req'!$S$9:$S$22,0),MATCH(Summary!$D$3,'Incremental Rev Req'!$S$9:$X$9,0)) ->  | D6: =INDEX('Incremental Rev Req'!$S$61:$X$74,MATCH(B6,'Incremental Rev Req'!$S$61:$S$74,0),MATCH(Summary!$D$3,'Incremental Rev Req'!$S$61:$X$61,0)) ->  | F6: Residential | G6: =VLOOKUP(Summary!$D$3,'SAR and RAR'!$F$37:$R$42,'SAR and RAR'!G$35,FALSE) ->  | H6: =VLOOKUP(Summary!$D$3,'SAR and RAR'!$F$37:$R$42,'SAR and RAR'!H$35,FALSE) ->  | I6: =VLOOKUP(Summary!$D$3,'SAR and RAR'!$F$37:$R$42,'SAR and RAR'!I$35,FALSE) ->  | J6: =VLOOKUP(Summary!$D$3,'SAR and RAR'!$F$37:$R$42,'SAR and RAR'!J$35,FALSE) ->  | K6: =VLOOKUP(Summary!$D$3,'SAR and RAR'!$F$37:$R$42,'SAR and RAR'!K$35,FALSE) ->  | L6: =VLOOKUP(Summary!$D$3,'SAR and RAR'!$F$37:$R$42,'SAR and RAR'!L$35,FALSE) ->  | M6: =VLOOKUP(Summary!$D$3,'SAR and RAR'!$F$37:$R$42,'SAR and RAR'!M$35,FALSE) ->  | N6: =VLOOKUP(Summary!$D$3,'SAR and RAR'!$F$37:$R$42,'SAR and RAR'!N$35,FALSE) ->  | O6: =VLOOKUP(Summary!$D$3,'SAR and RAR'!$F$37:$R$42,'SAR and RAR'!O$35,FALSE) ->  | P6: =VLOOKUP(Summary!$D$3,'SAR and RAR'!$F$37:$R$42,'SAR and RAR'!P$35,FALSE) ->  | Q6: =VLOOKUP(Summary!$D$3,'SAR and RAR'!$F$37:$R$42,'SAR and RAR'!Q$35,FALSE) ->  | R6: =VLOOKUP(Summary!$D$3,'SAR and RAR'!$F$37:$R$42,'SAR and RAR'!R$35,FALSE) -> 
B7: Public Purpose | C7: =INDEX('Incremental Rev Req'!$S$9:$X$22,MATCH(B7,'Incremental Rev Req'!$S$9:$S$22,0),MATCH(Summary!$D$3,'Incremental Rev Req'!$S$9:$X$9,0)) ->  | D7: =INDEX('Incremental Rev Req'!$S$61:$X$74,MATCH(B7,'Incremental Rev Req'!$S$61:$S$74,0),MATCH(Summary!$D$3,'Incremental Rev Req'!$S$61:$X$61,0)) -> 
B8: DCPP | C8: =INDEX('Incremental Rev Req'!$S$9:$X$22,MATCH(B8,'Incremental Rev Req'!$S$9:$S$22,0),MATCH(Summary!$D$3,'Incremental Rev Req'!$S$9:$X$9,0)) ->  | D8: =INDEX('Incremental Rev Req'!$S$61:$X$74,MATCH(B8,'Incremental Rev Req'!$S$61:$S$74,0),MATCH(Summary!$D$3,'Incremental Rev Req'!$S$61:$X$61,0)) ->  | G8: Revenue ($000) - System | X8: Authorized | Y8: w/Pending
B9: New System Gen | C9: =INDEX('Incremental Rev Req'!$S$9:$X$22,MATCH(B9,'Incremental Rev Req'!$S$9:$S$22,0),MATCH(Summary!$D$3,'Incremental Rev Req'!$S$9:$X$9,0)) ->  | D9: =INDEX('Incremental Rev Req'!$S$61:$X$74,MATCH(B9,'Incremental Rev Req'!$S$61:$S$74,0),MATCH(Summary!$D$3,'Incremental Rev Req'!$S$61:$X$61,0)) ->  | F9: Authorized | G9: Generation | H9: Distribution | I9: NDC | J9: PPPC | K9: DCPP | L9: NSGC | M9: Transmission | N9: TOTCA | O9: GHG Rev | P9: DWRBC | Q9: PUCRF | R9: SECURITIZATION | S9: Total | T9: CARE Adj. | W9: % of CARE Sales | X9: =VLOOKUP(Summary!$D$3,$F$58:$Q$63,$Q$35,FALSE) ->  | Y9: =X9 -> 
B10: FERC | C10: =INDEX('Incremental Rev Req'!$S$9:$X$22,MATCH(B10,'Incremental Rev Req'!$S$9:$S$22,0),MATCH(Summary!$D$3,'Incremental Rev Req'!$S$9:$X$9,0)) ->  | D10: =INDEX('Incremental Rev Req'!$S$61:$X$74,MATCH(B10,'Incremental Rev Req'!$S$61:$S$74,0),MATCH(Summary!$D$3,'Incremental Rev Req'!$S$61:$X$61,0)) ->  | F10: Residential | G10: =G6*G11 ->  | H10: =H6*H11 ->  | I10: =I6*I11 ->  | J10: =J6*J11 ->  | K10: =K6*K11 ->  | R10: =R6*R11 ->  | S10: =SUM(G10:R10) ->  | T10: =-X11+X14 ->  | W10: CARE Effective Discount | X10: 0.29 | Y10: =X10 -> 0.29
B11: TOTCA | C11: =INDEX('Incremental Rev Req'!$S$9:$X$22,MATCH(B11,'Incremental Rev Req'!$S$9:$S$22,0),MATCH(Summary!$D$3,'Incremental Rev Req'!$S$9:$X$9,0)) ->  | D11: =INDEX('Incremental Rev Req'!$S$61:$X$74,MATCH(B11,'Incremental Rev Req'!$S$61:$S$74,0),MATCH(Summary!$D$3,'Incremental Rev Req'!$S$61:$X$61,0)) ->  | F11: Total System | G11: =C4 ->  | H11: =C5 ->  | I11: =C6 ->  | J11: =C7 ->  | K11: =C8 ->  | L11: =C9 ->  | M11: =C10 ->  | N11: =C11 ->  | O11: =C12 ->  | P11: =C14 ->  | Q11: =C15 ->  | R11: =C16 ->  | S11: =SUM(G11:R11) ->  | T11: 0 | W11: CARE Discounst | X11: =SUM(G10*G19/K71*O71,H10:N10,Q10)*X9*X10 ->  | Y11: =SUM(G13*G19/K71*O71,H13:N13,Q13)*Y9*Y10 -> 
B12: GHG Revenue | C12: =INDEX('Incremental Rev Req'!$S$9:$X$22,MATCH(B12,'Incremental Rev Req'!$S$9:$S$22,0),MATCH(Summary!$D$3,'Incremental Rev Req'!$S$9:$X$9,0)) ->  | D12: =INDEX('Incremental Rev Req'!$S$61:$X$74,MATCH(B12,'Incremental Rev Req'!$S$61:$S$74,0),MATCH(Summary!$D$3,'Incremental Rev Req'!$S$61:$X$61,0)) ->  | F12: w/Pending | W12: non-CARE Residential Sales | X12: =VLOOKUP(Summary!$D$3,'SAR and RAR'!$F$58:$G$63,2,FALSE) ->  | Y12: =X12 -> 
B13: MCAM | C13: =INDEX('Incremental Rev Req'!$S$9:$X$22,MATCH(B13,'Incremental Rev Req'!$S$9:$S$22,0),MATCH(Summary!$D$3,'Incremental Rev Req'!$S$9:$X$9,0)) ->  | D13: =INDEX('Incremental Rev Req'!$S$61:$X$74,MATCH(B13,'Incremental Rev Req'!$S$61:$S$74,0),MATCH(Summary!$D$3,'Incremental Rev Req'!$S$61:$X$61,0)) ->  | F13: Residential | G13: =G6*G14 ->  | H13: =H6*H14 ->  | I13: =I6*I14 ->  | J13: =J6*J14 ->  | K13: =K6*K14 ->  | Q13: =Q6*Q14 ->  | R13: =R6*R14 ->  | S13: =SUM(G13:R13) ->  | T13: =-Y11+Y14 ->  | W13: Total Sales (excl. CARE&SL) | X13: =VLOOKUP(Summary!$D$3,'SAR and RAR'!$F$64:$G$69,2,FALSE) ->  | Y13: =X13 -> 
B14: DWR | C14: =INDEX('Incremental Rev Req'!$S$9:$X$22,MATCH(B14,'Incremental Rev Req'!$S$9:$S$22,0),MATCH(Summary!$D$3,'Incremental Rev Req'!$S$9:$X$9,0)) ->  | D14: =INDEX('Incremental Rev Req'!$S$61:$X$74,MATCH(B14,'Incremental Rev Req'!$S$61:$S$74,0),MATCH(Summary!$D$3,'Incremental Rev Req'!$S$61:$X$61,0)) ->  | F14: Total System | G14: =D4 ->  | H14: =D5 ->  | I14: =D6 ->  | J14: =D7 ->  | K14: =D8 ->  | L14: =D9 ->  | M14: =D10 ->  | N14: =D11 ->  | O14: =D12 ->  | P14: =D14 ->  | Q14: =D15 ->  | R14: =D16 ->  | S14: =SUM(G14:R14) ->  | T14: 0 | W14: Res CARE Surcharge | X14: =X11*X12/X13 ->  | Y14: =Y11*Y12/Y13 -> 
B15: PUCRF | C15: =INDEX('Incremental Rev Req'!$S$9:$X$22,MATCH(B15,'Incremental Rev Req'!$S$9:$S$22,0),MATCH(Summary!$D$3,'Incremental Rev Req'!$S$9:$X$9,0)) ->  | D15: =INDEX('Incremental Rev Req'!$S$61:$X$74,MATCH(B15,'Incremental Rev Req'!$S$61:$S$74,0),MATCH(Summary!$D$3,'Incremental Rev Req'!$S$61:$X$61,0)) ->  | W15: RES CARE Discount Specific Split | X15: 0.7896822699 | Y15: =X15 -> 0.7896822699
B16: SECURITIZATION | C16: =INDEX('Incremental Rev Req'!$S$9:$X$22,MATCH(B16,'Incremental Rev Req'!$S$9:$S$22,0),MATCH(Summary!$D$3,'Incremental Rev Req'!$S$9:$X$9,0)) ->  | D16: =INDEX('Incremental Rev Req'!$S$61:$X$74,MATCH(B16,'Incremental Rev Req'!$S$61:$S$74,0),MATCH(Summary!$D$3,'Incremental Rev Req'!$S$61:$X$61,0)) ->  | S16: Authorized | T16: w/Pending | W16: CARE Surcharge Allocator | X16: 0.6524431797 | Y16: =X16 -> 0.6524431797
B17: Total | C17: =SUM(C4:C16) ->  | D17: =SUM(D4:D16) ->  | G17: Revenue Split - Bundled | S17: Bundled Revenue | W17: System CARE Discount | X17: =SUM(-X11*X15)+SUM(X11*X16) ->  | Y17: =SUM(-Y11*Y15)+SUM(Y11*Y16) -> 
G18: Generation | H18: Distribution | I18: NDC | J18: PPPC | K18: DCPP | L18: NSGC | M18: Transmission | N18: TOTCA | O18: GHG Rev | P18: DWRBC | Q18: PUCRF | R18: SECURITIZATION | S18: Total | T18: Total
F19: Residential | G19: =VLOOKUP(Summary!$D$3,'SAR and RAR'!$F$44:$R$49,'SAR and RAR'!G$35,FALSE) ->  | H19: =VLOOKUP(Summary!$D$3,'SAR and RAR'!$F$44:$R$49,'SAR and RAR'!H$35,FALSE) ->  | I19: =VLOOKUP(Summary!$D$3,'SAR and RAR'!$F$44:$R$49,'SAR and RAR'!I$35,FALSE) ->  | J19: =VLOOKUP(Summary!$D$3,'SAR and RAR'!$F$44:$R$49,'SAR and RAR'!J$35,FALSE) ->  | K19: =VLOOKUP(Summary!$D$3,'SAR and RAR'!$F$44:$R$49,'SAR and RAR'!K$35,FALSE) ->  | L19: =VLOOKUP(Summary!$D$3,'SAR and RAR'!$F$44:$R$49,'SAR and RAR'!L$35,FALSE) ->  | M19: =VLOOKUP(Summary!$D$3,'SAR and RAR'!$F$44:$R$49,'SAR and RAR'!M$35,FALSE) ->  | N19: =VLOOKUP(Summary!$D$3,'SAR and RAR'!$F$44:$R$49,'SAR and RAR'!N$35,FALSE) ->  | O19: =VLOOKUP(Summary!$D$3,'SAR and RAR'!$F$44:$R$49,'SAR and RAR'!O$35,FALSE) ->  | P19: =VLOOKUP(Summary!$D$3,'SAR and RAR'!$F$44:$R$49,'SAR and RAR'!P$35,FALSE) ->  | Q19: =VLOOKUP(Summary!$D$3,'SAR and RAR'!$F$44:$R$49,'SAR and RAR'!Q$35,FALSE) ->  | R19: =VLOOKUP(Summary!$D$3,'SAR and RAR'!$F$44:$R$49,'SAR and RAR'!R$35,FALSE) ->  | S19: =SUMPRODUCT(G10:R10,G19:R19)+T10*X15 ->  | T19: =SUMPRODUCT(G13:R13,G19:R19)+T13*Y15 -> 
F20: Total System | G20: =VLOOKUP(Summary!$D$3,'SAR and RAR'!$F$50:$R$55,'SAR and RAR'!G$35,FALSE) ->  | H20: =VLOOKUP(Summary!$D$3,'SAR and RAR'!$F$50:$R$55,'SAR and RAR'!H$35,FALSE) ->  | I20: =VLOOKUP(Summary!$D$3,'SAR and RAR'!$F$50:$R$55,'SAR and RAR'!I$35,FALSE) ->  | J20: =VLOOKUP(Summary!$D$3,'SAR and RAR'!$F$50:$R$55,'SAR and RAR'!J$35,FALSE) ->  | K20: =VLOOKUP(Summary!$D$3,'SAR and RAR'!$F$50:$R$55,'SAR and RAR'!K$35,FALSE) ->  | L20: =VLOOKUP(Summary!$D$3,'SAR and RAR'!$F$50:$R$55,'SAR and RAR'!L$35,FALSE) ->  | M20: =VLOOKUP(Summary!$D$3,'SAR and RAR'!$F$50:$R$55,'SAR and RAR'!M$35,FALSE) ->  | N20: =VLOOKUP(Summary!$D$3,'SAR and RAR'!$F$50:$R$55,'SAR and RAR'!N$35,FALSE) ->  | O20: =VLOOKUP(Summary!$D$3,'SAR and RAR'!$F$50:$R$55,'SAR and RAR'!O$35,FALSE) ->  | P20: =VLOOKUP(Summary!$D$3,'SAR and RAR'!$F$50:$R$55,'SAR and RAR'!P$35,FALSE) ->  | Q20: =VLOOKUP(Summary!$D$3,'SAR and RAR'!$F$50:$R$55,'SAR and RAR'!Q$35,FALSE) ->  | R20: =VLOOKUP(Summary!$D$3,'SAR and RAR'!$F$50:$R$55,'SAR and RAR'!R$35,FALSE) ->  | S20: =SUMPRODUCT(G11:R11,G20:R20)+X17 ->  | T20: =SUMPRODUCT(G14:R14,G20:R20)+Y17 -> 
Q22: Res GHG | S22: =O10*O19 ->  | T22: =O13*O19 -> 
Q23: Res GHG System | S23: =O11*O20 ->  | T23: =O14*O20 -> 
F26: Bundled | N26: System (Bundled and Unbundled)
F27: =Summary!N4&" Sales" -> 2023 Sales | G27: 10/1/2024 Avg Rates | H27: Proposed Avg Rates (Authorized) | I27: Proposed Avg Rates (w/Pending) | J27: % Change (Authorized) | K27: % Change (w/Pending) | N27: =Summary!N4&" Sales" -> 2023 Sales | O27: =G27 -> 10/1/2024 Avg Rates | P27: Proposed Avg Rates (Authorized) | Q27: Proposed Avg Rates (w/Pending) | R27: % Change (Authorized) | S27: % Change (w/Pending) | W27: 1/1/24 Bundled w/Credit | X27: 1/1/24 Bundled w/out Credit | Z27: 1/1/24 System w/Credit | AA27: 1/1/24 System w/out Credit
E28: Residential | F28: =VLOOKUP(Summary!$D$3,'SAR and RAR'!$J$58:$K$63,2,FALSE) ->  | G28: =IF(Summary!$J$3="Y",W32,X32) -> 32.48904534 | H28: =IF(Summary!$J$3="Y",S19/$F$28*100,SUM(S19-'SAR and RAR'!S22)/$F$28*100) ->  | I28: =IF(Summary!$J$3="Y",T19/$F$28*100,SUM(T19-'SAR and RAR'!T22)/$F$28*100) ->  | J28: =H28/G28-1 ->  | K28: =I28/G28-1 ->  | M28: Residential | N28: =VLOOKUP(Summary!$D$3,'SAR and RAR'!$N$58:$O$63,2,FALSE) ->  | O28: =IF(Summary!$J$3="Y",Z32,AA32) -> 28.95523483 | P28: =IF(Summary!$J$3="Y",SUM(S10:T10)/N28*100,SUM(S10,T10,-O10)/N28*100) ->  | Q28: =IF(Summary!$J$3="Y",SUM(S13:T13)/N28*100,SUM(S13,T13,-O13)/N28*100) ->  | R28: =P28/O28-1 ->  | S28: =Q28/O28-1 ->  | V28: Residential | W28: 30.21576573 | X28: 33.3931272 | Y28: Residential | Z28: 26.00963349 | AA28: 29.10809807
E29: Total Bundled | F29: =VLOOKUP(Summary!$D$3,'SAR and RAR'!$J$64:$K$69,2,FALSE) ->  | G29: =IF(Summary!$J$3="Y",W33,X33) -> 27.22240766 | H29: =IF(Summary!$J$3="Y",S20/$F$29*100,SUM(S20-S23)/$F$29*100) ->  | I29: =IF(Summary!$J$3="Y",T20/$F$29*100,SUM(T20-T23)/$F$29*100) ->  | J29: =H29/G29-1 ->  | K29: =I29/G29-1 ->  | M29: Total System | N29: =VLOOKUP(Summary!$D$3,'SAR and RAR'!$N$64:$O$69,2,FALSE) ->  | O29: =IF(Summary!$J$3="Y",Z33,AA33) -> 22.890967 | P29: =IF(Summary!$J$3="Y",SUM(S11:T11)/N29*100,SUM(S11,T11,-O11)/N29*100) ->  | Q29: =IF(Summary!$J$3="Y",SUM(S14:T14)/N29*100,SUM(S14,T14,-O14)/N29*100) ->  | R29: =P29/O29-1 ->  | S29: =Q29/O29-1 ->  | V29: Bundled | W29: 26.89367616 | X29: 28.1784653 | Y29: Total System | Z29: 21.95032046 | AA29: 23.14130572
E30: =M29 -> Total System | F30: =N29 -> 
W31: 10/1/24 Bundled w/Credit | X31: 10/1/24 Bundled w/out Credit | Z31: 10/1/24 System w/Credit | AA31: 10/1/24 System w/out Credit
V32: Residential | W32: 29.31168387 | X32: 32.48904534 | Y32: Residential | Z32: 25.85677025 | AA32: 28.95523483
V33: Bundled | W33: 25.93761853 | X33: 27.22240766 | Y33: Total System | Z33: 21.69998173 | AA33: 22.890967
G35: 2 | H35: =G35+1 -> 3 | I35: =H35+1 -> 4 | J35: 5 | K35: 6 | L35: 7 | M35: 8 | N35: 9 | O35: 10 | P35: 11 | Q35: 12 | R35: 13
F36: Residential Allocator | G36: Generation | H36: Distribution | I36: NDC | J36: PPPC | K36: DCPP | L36: NSGC | M36: Transmission | N36: TOTCA | O36: GHG Rev | P36: DWRBC | Q36: PUCRF | R36: SECURITIZATION
F37: 2024 | G37: 0.4016615649 | H37: 0.4730577324 | I37: 0.3233019528 | J37: 0.4199007955 | K37: 0 | L37: 0.4220417204 | M37: 0.4346883856 | N37: 0.1067909648 | O37: 0.8411016298 | P37: 0.2554854898 | Q37: 0.3233019528 | R37: 0.3631246136
F38: 2025 | G38: 0.4218184483 | H38: 0.4809688842 | I38: 0.3268779667 | J38: 0.4228743776 | K38: 0.4502977258 | L38: 0.4263080314 | M38: 0.4435613135 | N38: 0.1082863615 | O38: 0.8258988815 | P38: 0.2509454262 | Q38: 0.3268779687 | R38: 0.3580271591
F39: 2026 | G39: 0.4218184483 | H39: 0.4809688842 | I39: 0.3268779667 | J39: 0.4228743776 | K39: 0.4502977258 | L39: 0.4263080314 | M39: 0.4435613135 | N39: 0.1082863615 | O39: 0.8258988815 | P39: 0.2509454262 | Q39: 0.3268779687 | R39: 0.3580271591
F40: 2027 | G40: 0.4004952118 | H40: 0.4916211289 | I40: 0.3303541556 | J40: 0.4295561525 | K40: =K39 -> 0.4502977258 | L40: 0.4313020313 | M40: 0.4472654888 | N40: 0.1091047939 | O40: 0.843830433 | P40: 0.2748889773 | Q40: 0.3303541543 | R40: 0.3881941244
F41: 2028 | G41: 0.4054913817 | H41: 0.4972400794 | I41: 0.3341510144 | J41: 0.4340283714 | K41: =K40 -> 0.4502977258 | L41: 0.4357277943 | M41: 0.4515374098 | N41: 0.1106321004 | O41: 0.8448398131 | P41: 0.2807999981 | Q41: 0.3341510139 | R41: 0.3954973796
F43: Revenue Split - Bundled
E44: Residential | F44: 2024 | G44: 1.042729476 | H44: 0.6953930588 | I44: 0.7109692626 | J44: 0.7109692643 | K44: 0 | L44: 0.7109692643 | M44: 0.7109692643 | N44: 0.7109692352 | O44: 0.7290728331 | P44: 0.6804940245 | Q44: 0.7109692645 | R44: 0.6804940246 | U44: =G44 -> 1.042729476
E45: Residential | F45: 2025 | G45: 1.054722323 | H45: 0.6871276566 | I45: 0.7005298772 | J45: 0.7005298708 | K45: 0.7005298707 | L45: 0.7005298708 | M45: 0.700529844 | N45: 0.7062685803 | O45: 0.6738455405 | P45: 0.7005298706 | Q45: 0.6738455407 | R45: 0.6508609568 | T45: =K59/K58-1 -> -0.01695127029 | U45: =G45 -> 1.054722323
E46: Residential | F46: 2026 | G46: 1.054722323 | H46: 0.6871276566 | I46: 0.7005298772 | J46: 0.7005298708 | K46: 0.7005298707 | L46: 0.7005298708 | M46: 0.700529844 | N46: 0.7062685803 | O46: 0.6738455405 | P46: 0.7005298706 | Q46: 0.6738455407 | R46: 0.6508609568 | T46: =K60/K59-1 -> 0.02807754796 | U46: 1.054722323
E47: Residential | F47: 2027 | G47: 1.045801879 | H47: 0.6608118096 | I47: 0.6705942263 | J47: 0.6705942298 | K47: =K45 -> 0.7005298707 | L47: 0.6705942298 | M47: 0.6705942298 | N47: 0.6705942155 | O47: 0.6720531204 | P47: 0.6552878139 | Q47: 0.6705942298 | R47: 0.6552878139 | T47: -0.004803334313 | U47: 1.045801879
E48: Residential | F48: 2028 | G48: 1.045475877 | H48: 0.6648513206 | I48: 0.6720905597 | J48: 0.6720905599 | K48: =K45 -> 0.7005298707 | L48: 0.6720905599 | M48: 0.6720905599 | N48: 0.6720905545 | O48: 0.6622541459 | P48: 0.6613320402 | Q48: 0.6720905598 | R48: 0.6613320402 | T48: 0.03477714782 | U48: 1.045475877
E49: Residential | T49: -1 | U49: 0
E50: Total System | F50: 2024 | G50: 1.03869561 | H50: 0.6902985631 | I50: 0.6656300913 | J50: 0.6802569815 | K50: 0 | L50: 0.6739645256 | M50: 0.6940398758 | N50: 0.6472606087 | O50: 0.7180561653 | P50: 0.6533003681 | Q50: 0.6656300931 | R50: 0.6636179416 | U50: 1.03869561
E51: Total System | F51: 2025 | G51: 1.049352878 | H51: 0.6541087603 | I51: 0.628302886 | J51: 0.6439010908 | K51: 0.6439010908 | L51: 0.6417400278 | M51: 0.6625587043 | N51: 0.6047830447 | O51: 0.691306377 | P51: 0.6134588996 | Q51: 0.628302884 | R51: 0.6243273263 | T51: =K65/K64-1 -> -0.0685533249 | U51: 1.049352878
E52: Total System | F52: 2026 | G52: 1.049352878 | H52: 0.6541087603 | I52: 0.628302886 | J52: 0.6439010908 | K52: 0.6439010908 | L52: 0.6417400278 | M52: 0.6625587043 | N52: 0.6047830447 | O52: 0.691306377 | P52: 0.6134588996 | Q52: 0.628302884 | R52: 0.6243273263 | T52: =K66/K65-1 -> 0.07290058435 | U52: 1.049352878
E53: Total System | F53: 2027 | G53: 1.039109596 | H53: 0.6561643606 | I53: 0.6424349156 | J53: 0.6511945012 | K53: =K51 -> 0.6439010908 | L53: 0.645737567 | M53: 0.6611341707 | N53: 0.6343728834 | O53: 0.663701183 | P53: 0.6358949822 | Q53: 0.6424349164 | R53: 0.640952991 | T53: 0.007878342139 | U53: 1.039109596
E54: Total System | F54: 2028 | G54: 1.039114345 | H54: 0.6566285776 | I54: 0.6433912532 | J54: 0.6516624162 | K54: =K51 -> 0.6439010908 | L54: 0.6464372626 | M54: 0.6616471703 | N54: 0.6359044244 | O54: 0.6540688138 | P54: 0.6380707339 | Q54: 0.6433912524 | R54: 0.6431049177 | T54: 0.02226113612 | U54: 1.039114345
E55: Total System | T55: -1 | U55: 0
F57: System Sales | J57: Bundled Sales | L57: % of Bdl | N57: System Sales | Q57: CARE%
E58: Non-CARE Residential | F58: 2024 | G58: 18622275.65 | I58: Residential | J58: 2024 | K58: 18433334.69 | L58: =K58/O58 -> 0.7109692643 | M58: Residential | N58: 2024 | O58: 25927048.62 | Q58: =1-G58/O58 -> 0.2817433284
E59: Non-CARE Residential | F59: 2025 | G59: 17845399.53 | I59: Residential | J59: 2025 | K59: 18120866.25 | L59: 0.7005298707 | M59: Residential | N59: 2025 | O59: 25867371.26 | Q59: 0.3101193256
E60: Non-CARE Residential | F60: 2026 | G60: 19396319.29 | I60: Residential | J60: 2026 | K60: 18629655.74 | L60: 0.7005298707 | M60: Residential | N60: 2026 | O60: 26593663.62 | Q60: 0.270641324
E61: Non-CARE Residential | F61: 2027 | G61: 21245754.3 | I61: Residential | J61: 2027 | K61: 18540171.27 | L61: 0.6705942298 | M61: Residential | N61: 2027 | O61: 27647376.68 | Q61: =1-G61/O61 -> 0.2315453817
E62: Non-CARE Residential | F62: 2028 | G62: 22208189.56 | I62: Residential | J62: 2028 | K62: 19184945.55 | L62: =K62/O62 -> 0.6720905599 | M62: Residential | N62: 2028 | O62: 28545179.32 | Q62: =1-G62/O62 -> 0.2219985969
E63: Non-CARE Residential | I63: Residential | M63: Residential
E64: Non-Exempt Sales | F64: 2024 | G64: 72430361.94 | I64: Total System | J64: 2024 | K64: 53379893.43 | L64: 0.665630093 | M64: Total System | N64: 2024 | O64: 80194531.45
E65: Non-Exempt Sales | F65: 2025 | G65: 70674000.71 | I65: Total System | J65: 2025 | K65: 49720524.25 | L65: 0.628302884 | M65: Total System | N65: 2025 | O65: 79134642.73 | P65: =O65/O64-1 -> -0.01321647129
E66: Non-Exempt Sales | F66: 2026 | G66: 73653049.42 | I66: Total System | J66: 2026 | K66: 53345179.52 | L66: 0.6503784983 | M66: Total System | N66: 2026 | O66: 82021745.28 | P66: =O66/O65-1 -> 0.03648342177
E67: Non-Exempt Sales | F67: 2027 | G67: 76902568.52 | I67: Total System | J67: 2027 | K67: 53765451.1 | L67: 0.6424349163 | M67: Total System | N67: 2027 | O67: 83690113.56 | P67: 0.0203405606
E68: Non-Exempt Sales | F68: 2028 | G68: 78714196.58 | I68: Total System | J68: 2028 | K68: 54962331.12 | L68: =K68/O68 -> 0.6433912525 | M68: Total System | N68: 2028 | O68: 85425984.44 | P68: 0.02074164806
E69: Non-Exempt Sales | I69: Total System | M69: Total System
J71: =Summary!D3 -> 2023 | K71: =VLOOKUP(Summary!D3,'SAR and RAR'!J58:K63,2,FALSE) ->  | N71: =Summary!D3 -> 2023 | O71: =VLOOKUP(Summary!D3,'SAR and RAR'!N58:O63,2,FALSE) -> 
J72: % of Resl Sales (Bdl) | N72: % of Resl Sales (Sys)
J73: 2024 | K73: =K58/K64 -> 0.3453235573 | N73: 2024 | O73: =O58/O64 -> 0.3233019528
J74: 2025 | K74: 0.3644544485 | N74: 2025 | O74: 0.3268779686
J75: 2026 | K75: 0.3492284758 | N75: 2026 | O75: 0.3242269904
J76: 2027 | K76: 0.3448342922 | N76: 2027 | O76: 0.3303541543
J77: 2028 | K77: 0.3490562565 | N77: 2028 | O77: 0.3341510139

Sheet Res Bill Impact (hidden)
A1: CONFIDENTIAL The Attachment(s) Are Marked Confidential In Accordance With D. 16-08-024 and D. 17-09-023. Basis for Confidentiality In Accompanying Confidentiality Declaration.
E3: Schedule D | O3: Schedule D-CARE
E4: =Summary!N4 -> 2023 | F4: =Summary!N3 -> 2024-10-01 | G4: Proposed | H4: Proposed | I4: Proposed | J4: Proposed | O4: =Summary!N4 -> 2023 | P4: =Summary!N3 -> 2024-10-01 | Q4: Proposed | R4: Proposed | S4: Proposed | T4: Proposed
E5: Sales Forecast | F5: Rates | G5: Authorized Rates | H5: Authorized Revenue | I5: w/Pending Rates | J5: w/Pending Revenue | O5: Sales Forecast | P5: Rates | Q5: Authorized Rates | R5: Authorized Revenue | S5: w/Pending Rates | T5: w/Pending Revenue
D7: Baseline - Summer | E7: =HLOOKUP(E$4,$F$95:$K$105,$A97,FALSE) ->  | F7: 0.3284 | G7: =(W8-SUM(R14:R15,H14:H15))/SUM(SUM(E7:E8),F9/F7*SUM(E9:E10),F11/F7*SUM(E11:E12),SUM(O7:O8)*(1+(P7/F7-1)),SUM(O9:O10)*(1+(P9/F9-1))*F9/F7,SUM(O11:O12)*(1+(P11/F11-1))*F11/F7) ->  | H7: =E7*G7 ->  | I7: =(W9-SUM(T14:T15,J14:J15))/SUM(SUM(E7:E8),F9/F7*SUM(E9:E10),F11/F7*SUM(E11:E12),SUM(O7:O8)*(1+(P7/F7-1)),SUM(O9:O10)*(1+(P9/F9-1))*F9/F7,SUM(O11:O12)*(1+(P11/F11-1))*F11/F7) ->  | J7: =E7*I7 ->  | N7: Baseline - Summer | O7: =HLOOKUP(O$4,$M$95:$R$105,$A97,FALSE) ->  | P7: 0.22256 | Q7: =G7*(1+(P7/F7-1)) ->  | R7: =O7*Q7 ->  | S7: =I7*(1+(P7/F7-1)) ->  | T7: =O7*S7 ->  | V7: Bundled Residential Rev Req
D8: - Winter | F8: 0.3284 | G8: =G7 ->  | I8: =I7 ->  | N8: - Winter | P8: 0.22256 | Q8: =G8*(1+(P8/F8-1)) ->  | V8: Proposed (Authorized) | W8: ='SAR and RAR'!S19/1000-'SAR and RAR'!S22/1000+$W$6 -> 
D9: 101% - 400% of Baseline - Summer | F9: 0.4222 | G9: =F9/F$7*G$7 ->  | I9: =F9/F$7*I$7 ->  | N9: 101% - 400% of Baseline - Summer | P9: 0.2836 | V9: Proposed (w/Pending) | W9: ='SAR and RAR'!T19/1000-'SAR and RAR'!T22/1000+$W$6 -> 
D10: - Winter | F10: 0.4222 | G10: =G9 ->  | I10: =I9 ->  | N10: - Winter | P10: 0.2836
D11: 401% of Baseline - Summer | F11: 0.4222 | G11: =F11/F$7*G$7 ->  | I11: =F11/F$7*I$7 ->  | N11: 401% of Baseline - Summer | P11: 0.2836
D12: - Winter | F12: 0.4222 | G12: =G11 ->  | I12: =I11 ->  | N12: - Winter | P12: 0.2836
D14: Basic Charge - Single-Family Residence | E14: =HLOOKUP(E$4,$F$95:$K$106,$A104,FALSE) ->  | F14: 0.031 | G14: =F14 -> 0.031 | H14: =G14*E14*365/12/10^6 ->  | I14: =G14 -> 0.031 | J14: =I14*E14*365/12/10^6 ->  | N14: Basic Charge - Single-Family Residence | O14: =HLOOKUP(O$4,$M$95:$R$105,$A104,FALSE) ->  | P14: 0.024 | Q14: =P14 -> 0.024 | R14: =Q14*O14*365/12/10^6 ->  | S14: =Q14 -> 0.024 | T14: =S14*O14*365/12/10^6 -> 
D15: Basic Charge - Multi-Family Residence | E15: =HLOOKUP(E$4,$F$95:$K$106,$A105,FALSE) ->  | F15: 0.024 | G15: =F15 -> 0.024 | H15: =G15*E15*365/12/10^6 ->  | I15: =G15 -> 0.024 | J15: =I15*E15*365/12/10^6 ->  | N15: Basic Charge - Multi-Family Residence | O15: =HLOOKUP(O$4,$M$95:$R$105,$A105,FALSE) ->  | P15: 0.018 | Q15: =P15 -> 0.018 | R15: =Q15*O15*365/12/10^6 ->  | S15: =Q15 -> 0.018 | T15: =S15*O15*365/12/10^6 -> 
O19: 2023 Recorded Data - Average Monthly Usage - kWh (Bundled / Basic Service Only) | W19: 2023 Recorded Data - Average Monthly Usage - kWh (Bundled / All Electric Only)
B20: SCHEDULE D RATES ($/kWh) | E20: Proposed | F20: Proposed | H20: MONTHLY BASELINE QUANTITIES | I20: BASIC | K20: ALL-ELECTRIC | O20: Climate Zone | P20: Summer | Q20: Winter | R20: Summer | S20: Winter | T20: Sample Population Weight | W20: Climate Zone | X20: Summer | Y20: Winter | Z20: Summer | AA20: Winter | AB20: Sample Population Weight
B21: Rates | C21: Jan 2024 | D21: =Summary!N3 -> 2024-10-01 | E21: Authorized | F21: w/Pending | H21: Climate Zone | I21: Summer | J21: Winter | K21: Summer | L21: Winter | P21: Non-CARE | R21: CARE | T21: Non-CARE | U21: CARE | X21: Non-CARE | Z21: CARE | AB21: Non-CARE | AC21: CARE
B22: Tier 1 | C22: 0.33746 | D22: =F7 -> 0.3284 | E22: =G7 ->  | F22: =I7 ->  | H22: 5 warm | I22: =17*$O$32 -> 517.089 | J22: =18.4*$O$32 -> 559.6728 | K22: =16.8*$O$32 -> 511.0056 | L22: =27*$O$32 -> 821.259 | O22: 5 warm | P22: 394.0114465 | Q22: 413.7602515 | R22: 375.4651421 | S22: 377.1007638 | T22: 0.0004001160336 | U22: 6.494163848e-05 | W22: 5 warm | X22: 425.328646 | Y22: 492.1148384 | Z22: 382.0121137 | AA22: 514.0812584 | AB22: 0.0004262021681 | AC22: 0.0001760542717
B23: Tier 2 | C23: 0.43383 | D23: =F9 -> 0.4222 | E23: =G9 ->  | F23: =I9 ->  | H23: 6 cool | I23: =11.4*$O$32 -> 346.7538 | J23: =11*$O$32 -> 334.587 | K23: =8.7*$O$32 -> 264.6279 | L23: =12.6*$O$32 -> 383.2542 | O23: 6 cool | P23: 433.0846454 | Q23: 397.8968432 | R23: 387.0809173 | S23: 359.7109231 | T23: 0.1403529246 | U23: 0.05006236307 | W23: 6 cool | X23: 330.0124549 | Y23: 351.8575553 | Z23: 355.0146353 | AA23: 389.8816374 | AB23: 0.239309429 | AC23: 0.1138366921
B24: Tier 2 | C24: 0.43383 | D24: =F11 -> 0.4222 | E24: =G11 ->  | F24: =I11 ->  | H24: 8 cool | I24: =12.8*$O$32 -> 389.3376 | J24: =10.3*$O$32 -> 313.2951 | K24: =9.9*$O$32 -> 301.1283 | L24: =12.3*$O$32 -> 374.1291 | O24: 8 cool | P24: 530.8622287 | Q24: 414.1554448 | R24: 464.558938 | S24: 385.4566077 | T24: 0.2220921845 | U24: 0.1485788286 | W24: 8 cool | X24: 381.2469638 | Y24: 369.4677373 | Z24: 395.389718 | AA24: 388.746303 | AB24: 0.2355353779 | AC24: 0.1987770097
H25: 9 warm | I25: =16.9*$O$32 -> 514.0473 | J25: =12*$O$32 -> 365.004 | K25: =12.5*$O$32 -> 380.2125 | L25: =13.9*$O$32 -> 422.7963 | O25: 9 warm | P25: 649.7090395 | Q25: 460.3453492 | R25: 599.1816396 | S25: 429.4947183 | T25: 0.1345534649 | U25: 0.09818029709 | W25: 9 warm | X25: 479.3913495 | Y25: 396.2762731 | Z25: 454.9990015 | AA25: 384.474035 | AB25: 0.08488217672 | AC25: 0.08590274762
B26: SCHEDULE D-CARE RATES ($/kWh) | E26: Proposed | F26: Proposed | H26: 10 hot (Sec 745) | I26: =19.3*$O$32 -> 587.0481 | J26: =12.1*$O$32 -> 368.0457 | K26: =15.9*$O$32 -> 483.6303 | L26: =16.4*$O$32 -> 498.8388 | O26: 10 hot (Sec 745) | P26: 761.1373611 | Q26: 491.115045 | R26: 792.3016777 | S26: 497.9977029 | T26: 0.3163584106 | U26: 0.4197483703 | W26: 10 hot (Sec 745) | X26: 573.0329281 | Y26: 449.7933583 | Z26: 584.8339164 | AA26: 433.3513546 | AB26: 0.2787547484 | AC26: 0.3816621871
B27: Rates | C27: =C21 -> Jan 2024 | D27: =D21 -> 2024-10-01 | E27: Authorized | F27: w/Pending | H27: 13 hot | I27: =22.2*$O$32 -> 675.2574 | J27: =12.2*$O$32 -> 371.0874 | K27: =24.2*$O$32 -> 736.0914 | L27: =23*$O$32 -> 699.591 | O27: 13 hot | P27: 894.6000233 | Q27: 491.3912577 | R27: 916.8294796 | S27: 484.0254538 | T27: 0.05566058601 | U27: 0.1142724531 | W27: 13 hot | X27: 892.6145516 | Y27: 600.0164496 | Z27: 867.2628591 | AA27: 571.6768526 | AB27: 0.03323759227 | AC27: 0.0613725191
B28: Tier 1 | C28: 0.22871 | D28: =P7 -> 0.22256 | E28: =Q7 ->  | F28: =S7 ->  | H28: 14 hot | I28: =19.2*$O$32 -> 584.0064 | J28: =11.9*$O$32 -> 361.9623 | K28: =18.5*$O$32 -> 562.7145 | L28: =21.1*$O$32 -> 641.7987 | O28: 14 hot | P28: 730.1923164 | Q28: 490.1829008 | R28: 780.7230122 | S28: 516.7279255 | T28: 0.06670267711 | U28: 0.1078298605 | W28: 14 hot | X28: 687.9383588 | Y28: 604.4592567 | Z28: 750.2785732 | AA28: 671.0707452 | AB28: 0.04772846598 | AC28: 0.07503433058
B29: Tier 2 | C29: 0.29142 | D29: =P9 -> 0.2836 | E29: =Q9 ->  | F29: =S9 ->  | H29: 15 hot | I29: =45*$O$32 -> 1368.765 | J29: =9.7*$O$32 -> 295.0449 | K29: =24*$O$32 -> 730.008 | L29: =17.4*$O$32 -> 529.2558 | O29: 15 hot | P29: 1097.38946 | Q29: 539.5458549 | R29: 1185.07185 | S29: 516.7106052 | T29: 0.03393873112 | U29: 0.03597193757 | W29: 15 hot | X29: 845.6767468 | Y29: 463.97827 | Z29: 983.817403 | AA29: 514.8811355 | AB29: 0.03826554248 | AC29: 0.05202990575
B30: Tier 2 | C30: 0.29142 | D30: =P11 -> 0.2836 | E30: =Q12 ->  | F30: =S12 ->  | H30: 16 cool | I30: =14.7*$O$32 -> 447.1299 | J30: =12.4*$O$32 -> 377.1708 | K30: =13.5*$O$32 -> 410.6295 | L30: =23.2*$O$32 -> 705.6744 | O30: 16 cool | P30: 513.8284813 | Q30: 432.4906192 | R30: 677.5371658 | S30: 499.146825 | T30: 0.02994090508 | U30: 0.02529094809 | W30: 16 cool | X30: 443.8912353 | Y30: 584.1777272 | Z30: 637.6985348 | AA30: 596.1956691 | AB30: 0.04186046512 | AC30: 0.03120855389
N32: Daily to Monthly Conversion Factor | O32: 30.417
C34: NON-CARE | M34: Essential Use (Basic) - Non-CARE | W34: Essential Use (Basic) - CARE
C35: =C27 -> Jan 2024 | E35: =D27 -> 2024-10-01 | G35: =E21 -> Authorized | I35: =F21 -> w/Pending | M35: =C35 -> Jan 2024 | O35: =E35 -> 2024-10-01 | Q35: =G35 -> Authorized | S35: =I35 -> w/Pending | W35: =M35 -> Jan 2024 | Y35: =O35 -> 2024-10-01 | AA35: =Q35 -> Authorized | AC35: =S35 -> w/Pending
C36: Summer | D36: Winter | E36: Summer | F36: Winter | G36: Summer | H36: Winter | I36: Summer | J36: Winter | M36: Summer | N36: Winter | O36: Summer | P36: Winter | Q36: Summer | R36: Winter | S36: Summer | T36: Winter | W36: Summer | X36: Winter | Y36: Summer | Z36: Winter | AA36: Summer | AB36: Winter | AC36: Summer | AD36: Winter
B37: 5 warm | C37: =C$22*MIN(I22,P22)+IF(P22-I22>0,C$23*(P22-I22))+ROUND($F$14*365/12,2)+(Summary!N17/12)*2 -> 119.5697694 | D37: =C$22*MIN(J22,Q22)+IF(Q22-J22>0,C$23*(Q22-J22))+ROUND($F$14*365/12,2)+(Summary!N17/12)*2 -> 126.2342011 | E37: =D$22*MIN(I22,P22)+IF(P22-I22>0,D$23*(P22-I22))+ROUND($F$14*365/12,2)+(Summary!N17/12)*2 -> 116.0000257 | F37: =D$22*MIN(J22,Q22)+IF(Q22-J22>0,D$23*(Q22-J22))+ROUND($F$14*365/12,2)+(Summary!N17/12)*2 -> 122.4855332 | G37: =E$22*MIN(I22,P22)+IF(P22-I22>0,E$23*(P22-I22))+ROUND($F$14*365/12,2)+(Summary!N17/12)*2 ->  | H37: =E$22*MIN(J22,Q22)+IF(Q22-J22>0,E$23*(Q22-J22))+ROUND($F$14*365/12,2)+(Summary!N17/12)*2 ->  | I37: =F$22*MIN(I22,P22)+IF(P22-I22>0,F$23*(P22-I22))+ROUND($F$14*365/12,2)+(Summary!N17/12)*2 ->  | J37: =F$22*MIN(J22,Q22)+IF(Q22-J22>0,F$23*(Q22-J22))+ROUND($F$14*365/12,2)+(Summary!N17/12)*2 ->  | L37: 5 warm | M37: =C$22*I22+ROUND($F$14*365/12,2)+(Summary!N17/12)*2 -> 161.1035206 | N37: =C$22*J22+ROUND($F$14*365/12,2)+(Summary!N17/12)*2 -> 175.4738498 | O37: =D$22*I22+ROUND($F$14*365/12,2)+(Summary!N17/12)*2 -> 156.4186943 | P37: =D$22*J22+ROUND($F$14*365/12,2)+(Summary!N17/12)*2 -> 170.4032142 | Q37: =E$22*I22+ROUND($F$14*365/12,2)+(Summary!N17/12)*2 ->  | R37: =E$22*J22+ROUND($F$14*365/12,2)+(Summary!N17/12)*2 ->  | S37: =F$22*I22+ROUND($F$14*365/12,2)+(Summary!N17/12)*2 ->  | T37: =F$22*J22+ROUND($F$14*365/12,2)+(Summary!N17/12)*2 ->  | V37: 5 warm | W37: =C$28*I22+ROUND($P$14*365/12,2)+(Summary!N17/12)*2 -> 104.6600919 | X37: =C$28*J22+ROUND($P$14*365/12,2)+(Summary!N17/12)*2 -> 114.3994328 | Y37: =D$28*I22+ROUND($P$14*365/12,2)+(Summary!N17/12)*2 -> 101.4799945 | Z37: =D$28*J22+ROUND($P$14*365/12,2)+(Summary!N17/12)*2 -> 110.957445 | AA37: =E$28*I22+ROUND($P$14*365/12,2)+(Summary!N17/12)*2 ->  | AB37: =E$28*J22+ROUND($P$14*365/12,2)+(Summary!N17/12)*2 ->  | AC37: =F$28*I22+ROUND($P$14*365/12,2)+(Summary!N17/12)*2 ->  | AD37: =F$28*J22+ROUND($P$14*365/12,2)+(Summary!N17/12)*2 -> 
B38: 6 cool | C38: =C$22*MIN(I23,P23)+IF(P23-I23>0,C$23*(P23-I23))+ROUND($F$14*365/12,2)+(Summary!N17/12)*2 -> 141.0751147 | D38: =C$22*MIN(J23,Q23)+IF(Q23-J23>0,C$23*(Q23-J23))+ROUND($F$14*365/12,2)+(Summary!N17/12)*2 -> 126.982105 | E38: =D$22*MIN(I23,P23)+IF(P23-I23>0,D$23*(P23-I23))+ROUND($F$14*365/12,2)+(Summary!N17/12)*2 -> 136.9294975 | F38: =D$22*MIN(J23,Q23)+IF(Q23-J23>0,D$23*(Q23-J23))+ROUND($F$14*365/12,2)+(Summary!N17/12)*2 -> 123.2144533 | G38: =E$22*MIN(I23,P23)+IF(P23-I23>0,E$23*(P23-I23))+ROUND($F$14*365/12,2)+(Summary!N17/12)*2 ->  | H38: =E$22*MIN(J23,Q23)+IF(Q23-J23>0,E$23*(Q23-J23))+ROUND($F$14*365/12,2)+(Summary!N17/12)*2 ->  | I38: =F$22*MIN(I23,P23)+IF(P23-I23>0,F$23*(P23-I23))+ROUND($F$14*365/12,2)+(Summary!N17/12)*2 ->  | J38: =F$22*MIN(J23,Q23)+IF(Q23-J23>0,F$23*(Q23-J23))+ROUND($F$14*365/12,2)+(Summary!N17/12)*2 ->  | L38: 6 cool | M38: =C$22*I23+ROUND($F$14*365/12,2)+(Summary!N17/12)*2 -> 103.622204 | N38: =C$22*J23+ROUND($F$14*365/12,2)+(Summary!N17/12)*2 -> 99.51639569 | O38: =D$22*I23+ROUND($F$14*365/12,2)+(Summary!N17/12)*2 -> 100.4806146 | P38: =D$22*J23+ROUND($F$14*365/12,2)+(Summary!N17/12)*2 -> 96.48503747 | Q38: =E$22*I23+ROUND($F$14*365/12,2)+(Summary!N17/12)*2 ->  | R38: =E$22*J23+ROUND($F$14*365/12,2)+(Summary!N17/12)*2 ->  | S38: =F$22*I23+ROUND($F$14*365/12,2)+(Summary!N17/12)*2 ->  | T38: =F$22*J23+ROUND($F$14*365/12,2)+(Summary!N17/12)*2 ->  | V38: 6 cool | W38: =C$28*I23+ROUND($P$14*365/12,2)+(Summary!N17/12)*2 -> 65.70272826 | X38: =C$28*J23+ROUND($P$14*365/12,2)+(Summary!N17/12)*2 -> 62.92005944 | Y38: =D$28*I23+ROUND($P$14*365/12,2)+(Summary!N17/12)*2 -> 63.57019239 | Z38: =D$28*J23+ROUND($P$14*365/12,2)+(Summary!N17/12)*2 -> 60.86234939 | AA38: =E$28*I23+ROUND($P$14*365/12,2)+(Summary!N17/12)*2 ->  | AB38: =E$28*J23+ROUND($P$14*365/12,2)+(Summary!N17/12)*2 ->  | AC38: =F$28*I23+ROUND($P$14*365/12,2)+(Summary!N17/12)*2 ->  | AD38: =F$28*J23+ROUND($P$14*365/12,2)+(Summary!N17/12)*2 -> 
B39: 8 cool | C39: =C$22*MIN(I24,P24)+IF(P24-I24>0,C$23*(P24-I24))+ROUND($F$14*365/12,2)+(Summary!N17/12)*2 -> 179.3901628 | D39: =C$22*MIN(J24,Q24)+IF(Q24-J24>0,C$23*(Q24-J24))+ROUND($F$14*365/12,2)+(Summary!N17/12)*2 -> 136.0874745 | E39: =D$22*MIN(I24,P24)+IF(P24-I24>0,D$23*(P24-I24))+ROUND($F$14*365/12,2)+(Summary!N17/12)*2 -> 174.2168327 | F39: =D$22*MIN(J24,Q24)+IF(Q24-J24>0,D$23*(Q24-J24))+ROUND($F$14*365/12,2)+(Summary!N17/12)*2 -> 132.0760151 | G39: =E$22*MIN(I24,P24)+IF(P24-I24>0,E$23*(P24-I24))+ROUND($F$14*365/12,2)+(Summary!N17/12)*2 ->  | H39: =E$22*MIN(J24,Q24)+IF(Q24-J24>0,E$23*(Q24-J24))+ROUND($F$14*365/12,2)+(Summary!N17/12)*2 ->  | I39: =F$22*MIN(I24,P24)+IF(P24-I24>0,F$23*(P24-I24))+ROUND($F$14*365/12,2)+(Summary!N17/12)*2 ->  | J39: =F$22*MIN(J24,Q24)+IF(Q24-J24>0,F$23*(Q24-J24))+ROUND($F$14*365/12,2)+(Summary!N17/12)*2 ->  | L39: 8 cool | M39: =C$22*I24+ROUND($F$14*365/12,2)+(Summary!N17/12)*2 -> 117.9925332 | N39: =C$22*J24+ROUND($F$14*365/12,2)+(Summary!N17/12)*2 -> 92.33123111 | O39: =D$22*I24+ROUND($F$14*365/12,2)+(Summary!N17/12)*2 -> 114.4651345 | P39: =D$22*J24+ROUND($F$14*365/12,2)+(Summary!N17/12)*2 -> 89.49277751 | Q39: =E$22*I24+ROUND($F$14*365/12,2)+(Summary!N17/12)*2 ->  | R39: =E$22*J24+ROUND($F$14*365/12,2)+(Summary!N17/12)*2 ->  | S39: =F$22*I24+ROUND($F$14*365/12,2)+(Summary!N17/12)*2 ->  | T39: =F$22*J24+ROUND($F$14*365/12,2)+(Summary!N17/12)*2 ->  | V39: 8 cool | W39: =C$28*I24+ROUND($P$14*365/12,2)+(Summary!N17/12)*2 -> 75.44206916 | X39: =C$28*J24+ROUND($P$14*365/12,2)+(Summary!N17/12)*2 -> 58.05038899 | Y39: =D$28*I24+ROUND($P$14*365/12,2)+(Summary!N17/12)*2 -> 73.04764292 | Z39: =D$28*J24+ROUND($P$14*365/12,2)+(Summary!N17/12)*2 -> 56.12362412 | AA39: =E$28*I24+ROUND($P$14*365/12,2)+(Summary!N17/12)*2 ->  | AB39: =E$28*J24+ROUND($P$14*365/12,2)+(Summary!N17/12)*2 ->  | AC39: =F$28*I24+ROUND($P$14*365/12,2)+(Summary!N17/12)*2 ->  | AD39: =F$28*J24+ROUND($P$14*365/12,2)+(Summary!N17/12)*2 -> 
B40: 9 warm | C40: =C$22*MIN(I25,P25)+IF(P25-I25>0,C$23*(P25-I25))+ROUND($F$14*365/12,2)+(Summary!N17/12)*2 -> 218.931201 | D40: =C$22*MIN(J25,Q25)+IF(Q25-J25>0,C$23*(Q25-J25))+ROUND($F$14*365/12,2)+(Summary!N17/12)*2 -> 151.142854 | E40: =D$22*MIN(I25,P25)+IF(P25-I25>0,D$23*(P25-I25))+ROUND($F$14*365/12,2)+(Summary!N17/12)*2 -> 212.6961864 | F40: =D$22*MIN(J25,Q25)+IF(Q25-J25>0,D$23*(Q25-J25))+ROUND($F$14*365/12,2)+(Summary!N17/12)*2 -> 146.7270979 | G40: =E$22*MIN(I25,P25)+IF(P25-I25>0,E$23*(P25-I25))+ROUND($F$14*365/12,2)+(Summary!N17/12)*2 ->  | H40: =E$22*MIN(J25,Q25)+IF(Q25-J25>0,E$23*(Q25-J25))+ROUND($F$14*365/12,2)+(Summary!N17/12)*2 ->  | I40: =F$22*MIN(I25,P25)+IF(P25-I25>0,F$23*(P25-I25))+ROUND($F$14*365/12,2)+(Summary!N17/12)*2 ->  | J40: =F$22*MIN(J25,Q25)+IF(Q25-J25>0,F$23*(Q25-J25))+ROUND($F$14*365/12,2)+(Summary!N17/12)*2 ->  | L40: 9 warm | M40: =C$22*I25+ROUND($F$14*365/12,2)+(Summary!N17/12)*2 -> 160.0770685 | N40: =C$22*J25+ROUND($F$14*365/12,2)+(Summary!N17/12)*2 -> 109.7809165 | O40: =D$22*I25+ROUND($F$14*365/12,2)+(Summary!N17/12)*2 -> 155.4198 | P40: =D$22*J25+ROUND($F$14*365/12,2)+(Summary!N17/12)*2 -> 106.4739803 | Q40: =E$22*I25+ROUND($F$14*365/12,2)+(Summary!N17/12)*2 ->  | R40: =E$22*J25+ROUND($F$14*365/12,2)+(Summary!N17/12)*2 ->  | S40: =F$22*I25+ROUND($F$14*365/12,2)+(Summary!N17/12)*2 ->  | T40: =F$22*J25+ROUND($F$14*365/12,2)+(Summary!N17/12)*2 ->  | V40: 9 warm | W40: =C$28*I25+ROUND($P$14*365/12,2)+(Summary!N17/12)*2 -> 103.9644246 | X40: =C$28*J25+ROUND($P$14*365/12,2)+(Summary!N17/12)*2 -> 69.87673151 | Y40: =D$28*I25+ROUND($P$14*365/12,2)+(Summary!N17/12)*2 -> 100.8030338 | Z40: =D$28*J25+ROUND($P$14*365/12,2)+(Summary!N17/12)*2 -> 67.63195691 | AA40: =E$28*I25+ROUND($P$14*365/12,2)+(Summary!N17/12)*2 ->  | AB40: =E$28*J25+ROUND($P$14*365/12,2)+(Summary!N17/12)*2 ->  | AC40: =F$28*I25+ROUND($P$14*365/12,2)+(Summary!N17/12)*2 ->  | AD40: =F$28*J25+ROUND($P$14*365/12,2)+(Summary!N17/12)*2 -> 
B41: 10 hot (Sec 745) | C41: =C$22*MIN(I26,P26)+IF(P26-I26>0,C$23*(P26-I26))+ROUND($F$14*365/12,2)+(Summary!N17/12)*2 -> 260.2370626 | D41: =C$22*MIN(J26,Q26)+IF(Q26-J26>0,C$23*(Q26-J26))+ROUND($F$14*365/12,2)+(Summary!N17/12)*2 -> 164.1985425 | E41: =D$22*MIN(I26,P26)+IF(P26-I26>0,D$23*(P26-I26))+ROUND($F$14*365/12,2)+(Summary!N17/12)*2 -> 252.8937487 | F41: =D$22*MIN(J26,Q26)+IF(Q26-J26>0,D$23*(Q26-J26))+ROUND($F$14*365/12,2)+(Summary!N17/12)*2 -> 159.432752 | G41: =E$22*MIN(I26,P26)+IF(P26-I26>0,E$23*(P26-I26))+ROUND($F$14*365/12,2)+(Summary!N17/12)*2 ->  | H41: =E$22*MIN(J26,Q26)+IF(Q26-J26>0,E$23*(Q26-J26))+ROUND($F$14*365/12,2)+(Summary!N17/12)*2 ->  | I41: =F$22*MIN(I26,P26)+IF(P26-I26>0,F$23*(P26-I26))+ROUND($F$14*365/12,2)+(Summary!N17/12)*2 ->  | J41: =F$22*MIN(J26,Q26)+IF(Q26-J26>0,F$23*(Q26-J26))+ROUND($F$14*365/12,2)+(Summary!N17/12)*2 ->  | L41: 10 hot (Sec 745) | M41: =C$22*I26+ROUND($F$14*365/12,2)+(Summary!N17/12)*2 -> 184.7119185 | N41: =C$22*J26+ROUND($F$14*365/12,2)+(Summary!N17/12)*2 -> 110.8073686 | O41: =D$22*I26+ROUND($F$14*365/12,2)+(Summary!N17/12)*2 -> 179.3932627 | P41: =D$22*J26+ROUND($F$14*365/12,2)+(Summary!N17/12)*2 -> 107.4728745 | Q41: =E$22*I26+ROUND($F$14*365/12,2)+(Summary!N17/12)*2 ->  | R41: =E$22*J26+ROUND($F$14*365/12,2)+(Summary!N17/12)*2 ->  | S41: =F$22*I26+ROUND($F$14*365/12,2)+(Summary!N17/12)*2 ->  | T41: =F$22*J26+ROUND($F$14*365/12,2)+(Summary!N17/12)*2 ->  | V41: 10 hot (Sec 745) | W41: =C$28*I26+ROUND($P$14*365/12,2)+(Summary!N17/12)*2 -> 120.6604376 | X41: =C$28*J26+ROUND($P$14*365/12,2)+(Summary!N17/12)*2 -> 70.57239871 | Y41: =D$28*I26+ROUND($P$14*365/12,2)+(Summary!N17/12)*2 -> 117.0500918 | Z41: =D$28*J26+ROUND($P$14*365/12,2)+(Summary!N17/12)*2 -> 68.30891766 | AA41: =E$28*I26+ROUND($P$14*365/12,2)+(Summary!N17/12)*2 ->  | AB41: =E$28*J26+ROUND($P$14*365/12,2)+(Summary!N17/12)*2 ->  | AC41: =F$28*I26+ROUND($P$14*365/12,2)+(Summary!N17/12)*2 ->  | AD41: =F$28*J26+ROUND($P$14*365/12,2)+(Summary!N17/12)*2 -> 
B42: 13 hot | C42: =C$22*MIN(I27,P27)+IF(P27-I27>0,C$23*(P27-I27))+ROUND($F$14*365/12,2)+(Summary!N17/12)*2 -> 309.6364391 | D42: =C$22*MIN(J27,Q27)+IF(Q27-J27>0,C$23*(Q27-J27))+ROUND($F$14*365/12,2)+(Summary!N17/12)*2 -> 164.0252433 | E42: =D$22*MIN(I27,P27)+IF(P27-I27>0,D$23*(P27-I27))+ROUND($F$14*365/12,2)+(Summary!N17/12)*2 -> 300.9676524 | F42: =D$22*MIN(J27,Q27)+IF(Q27-J27>0,D$23*(Q27-J27))+ROUND($F$14*365/12,2)+(Summary!N17/12)*2 -> 159.2640575 | G42: =E$22*MIN(I27,P27)+IF(P27-I27>0,E$23*(P27-I27))+ROUND($F$14*365/12,2)+(Summary!N17/12)*2 ->  | H42: =E$22*MIN(J27,Q27)+IF(Q27-J27>0,E$23*(Q27-J27))+ROUND($F$14*365/12,2)+(Summary!N17/12)*2 ->  | I42: =F$22*MIN(I27,P27)+IF(P27-I27>0,F$23*(P27-I27))+ROUND($F$14*365/12,2)+(Summary!N17/12)*2 ->  | J42: =F$22*MIN(J27,Q27)+IF(Q27-J27>0,F$23*(Q27-J27))+ROUND($F$14*365/12,2)+(Summary!N17/12)*2 ->  | L42: 13 hot | M42: =C$22*I27+ROUND($F$14*365/12,2)+(Summary!N17/12)*2 -> 214.4790289 | N42: =C$22*J27+ROUND($F$14*365/12,2)+(Summary!N17/12)*2 -> 111.8338207 | O42: =D$22*I27+ROUND($F$14*365/12,2)+(Summary!N17/12)*2 -> 208.3611968 | P42: =D$22*J27+ROUND($F$14*365/12,2)+(Summary!N17/12)*2 -> 108.4717688 | Q42: =E$22*I27+ROUND($F$14*365/12,2)+(Summary!N17/12)*2 ->  | R42: =E$22*J27+ROUND($F$14*365/12,2)+(Summary!N17/12)*2 ->  | S42: =F$22*I27+ROUND($F$14*365/12,2)+(Summary!N17/12)*2 ->  | T42: =F$22*J27+ROUND($F$14*365/12,2)+(Summary!N17/12)*2 ->  | V42: 13 hot | W42: =C$28*I27+ROUND($P$14*365/12,2)+(Summary!N17/12)*2 -> 140.8347866 | X42: =C$28*J27+ROUND($P$14*365/12,2)+(Summary!N17/12)*2 -> 71.26806592 | Y42: =D$28*I27+ROUND($P$14*365/12,2)+(Summary!N17/12)*2 -> 136.6819536 | Z42: =D$28*J27+ROUND($P$14*365/12,2)+(Summary!N17/12)*2 -> 68.98587841 | AA42: =E$28*I27+ROUND($P$14*365/12,2)+(Summary!N17/12)*2 ->  | AB42: =E$28*J27+ROUND($P$14*365/12,2)+(Summary!N17/12)*2 ->  | AC42: =F$28*I27+ROUND($P$14*365/12,2)+(Summary!N17/12)*2 ->  | AD42: =F$28*J27+ROUND($P$14*365/12,2)+(Summary!N17/12)*2 -> 
B43: 14 hot | C43: =C$22*MIN(I28,P28)+IF(P28-I28>0,C$23*(P28-I28))+ROUND($F$14*365/12,2)+(Summary!N17/12)*2 -> 247.1053025 | D43: =C$22*MIN(J28,Q28)+IF(Q28-J28>0,C$23*(Q28-J28))+ROUND($F$14*365/12,2)+(Summary!N17/12)*2 -> 164.3804077 | E43: =D$22*MIN(I28,P28)+IF(P28-I28>0,D$23*(P28-I28))+ROUND($F$14*365/12,2)+(Summary!N17/12)*2 -> 240.1140623 | F43: =D$22*MIN(J28,Q28)+IF(Q28-J28>0,D$23*(Q28-J28))+ROUND($F$14*365/12,2)+(Summary!N17/12)*2 -> 159.6098237 | G43: =E$22*MIN(I28,P28)+IF(P28-I28>0,E$23*(P28-I28))+ROUND($F$14*365/12,2)+(Summary!N17/12)*2 ->  | H43: =E$22*MIN(J28,Q28)+IF(Q28-J28>0,E$23*(Q28-J28))+ROUND($F$14*365/12,2)+(Summary!N17/12)*2 ->  | I43: =F$22*MIN(I28,P28)+IF(P28-I28>0,F$23*(P28-I28))+ROUND($F$14*365/12,2)+(Summary!N17/12)*2 ->  | J43: =F$22*MIN(J28,Q28)+IF(Q28-J28>0,F$23*(Q28-J28))+ROUND($F$14*365/12,2)+(Summary!N17/12)*2 ->  | L43: 14 hot | M43: =C$22*I28+ROUND($F$14*365/12,2)+(Summary!N17/12)*2 -> 183.6854664 | N43: =C$22*J28+ROUND($F$14*365/12,2)+(Summary!N17/12)*2 -> 108.7544644 | O43: =D$22*I28+ROUND($F$14*365/12,2)+(Summary!N17/12)*2 -> 178.3943684 | P43: =D$22*J28+ROUND($F$14*365/12,2)+(Summary!N17/12)*2 -> 105.475086 | Q43: =E$22*I28+ROUND($F$14*365/12,2)+(Summary!N17/12)*2 ->  | R43: =E$22*J28+ROUND($F$14*365/12,2)+(Summary!N17/12)*2 ->  | S43: =F$22*I28+ROUND($F$14*365/12,2)+(Summary!N17/12)*2 ->  | T43: =F$22*J28+ROUND($F$14*365/12,2)+(Summary!N17/12)*2 ->  | V43: 14 hot | W43: =C$28*I28+ROUND($P$14*365/12,2)+(Summary!N17/12)*2 -> 119.9647704 | X43: =C$28*J28+ROUND($P$14*365/12,2)+(Summary!N17/12)*2 -> 69.1810643 | Y43: =D$28*I28+ROUND($P$14*365/12,2)+(Summary!N17/12)*2 -> 116.3731311 | Z43: =D$28*J28+ROUND($P$14*365/12,2)+(Summary!N17/12)*2 -> 66.95499615 | AA43: =E$28*I28+ROUND($P$14*365/12,2)+(Summary!N17/12)*2 ->  | AB43: =E$28*J28+ROUND($P$14*365/12,2)+(Summary!N17/12)*2 ->  | AC43: =F$28*I28+ROUND($P$14*365/12,2)+(Summary!N17/12)*2 ->  | AD43: =F$28*J28+ROUND($P$14*365/12,2)+(Summary!N17/12)*2 -> 
B44: 15 hot | C44: =C$22*MIN(I29,P29)+IF(P29-I29>0,C$23*(P29-I29))+ROUND($F$14*365/12,2)+(Summary!N17/12)*2 -> 356.9317138 | D44: =C$22*MIN(J29,Q29)+IF(Q29-J29>0,C$23*(Q29-J29))+ROUND($F$14*365/12,2)+(Summary!N17/12)*2 -> 192.2443679 | E44: =D$22*MIN(I29,P29)+IF(P29-I29>0,D$23*(P29-I29))+ROUND($F$14*365/12,2)+(Summary!N17/12)*2 -> 346.9893653 | F44: =D$22*MIN(J29,Q29)+IF(Q29-J29>0,D$23*(Q29-J29))+ROUND($F$14*365/12,2)+(Summary!N17/12)*2 -> 186.727715 | G44: =E$22*MIN(I29,P29)+IF(P29-I29>0,E$23*(P29-I29))+ROUND($F$14*365/12,2)+(Summary!N17/12)*2 ->  | H44: =E$22*MIN(J29,Q29)+IF(Q29-J29>0,E$23*(Q29-J29))+ROUND($F$14*365/12,2)+(Summary!N17/12)*2 ->  | I44: =F$22*MIN(I29,P29)+IF(P29-I29>0,F$23*(P29-I29))+ROUND($F$14*365/12,2)+(Summary!N17/12)*2 ->  | J44: =F$22*MIN(J29,Q29)+IF(Q29-J29>0,F$23*(Q29-J29))+ROUND($F$14*365/12,2)+(Summary!N17/12)*2 ->  | L44: 15 hot | M44: =C$22*I29+ROUND($F$14*365/12,2)+(Summary!N17/12)*2 -> 448.5101036 | N44: =C$22*J29+ROUND($F$14*365/12,2)+(Summary!N17/12)*2 -> 86.17251862 | O44: =D$22*I29+ROUND($F$14*365/12,2)+(Summary!N17/12)*2 -> 436.1090927 | P44: =D$22*J29+ROUND($F$14*365/12,2)+(Summary!N17/12)*2 -> 83.49941183 | Q44: =E$22*I29+ROUND($F$14*365/12,2)+(Summary!N17/12)*2 ->  | R44: =E$22*J29+ROUND($F$14*365/12,2)+(Summary!N17/12)*2 ->  | S44: =F$22*I29+ROUND($F$14*365/12,2)+(Summary!N17/12)*2 ->  | T44: =F$22*J29+ROUND($F$14*365/12,2)+(Summary!N17/12)*2 ->  | V44: 15 hot | W44: =C$28*I29+ROUND($P$14*365/12,2)+(Summary!N17/12)*2 -> 299.4469098 | X44: =C$28*J29+ROUND($P$14*365/12,2)+(Summary!N17/12)*2 -> 53.87638575 | Y44: =D$28*I29+ROUND($P$14*365/12,2)+(Summary!N17/12)*2 -> 291.0290051 | Z44: =D$28*J29+ROUND($P$14*365/12,2)+(Summary!N17/12)*2 -> 52.06185961 | AA44: =E$28*I29+ROUND($P$14*365/12,2)+(Summary!N17/12)*2 ->  | AB44: =E$28*J29+ROUND($P$14*365/12,2)+(Summary!N17/12)*2 ->  | AC44: =F$28*I29+ROUND($P$14*365/12,2)+(Summary!N17/12)*2 ->  | AD44: =F$28*J29+ROUND($P$14*365/12,2)+(Summary!N17/12)*2 -> 
B45: 16 cool | C45: =C$22*MIN(I30,P30)+IF(P30-I30>0,C$23*(P30-I30))+ROUND($F$14*365/12,2)+(Summary!N17/12)*2 -> 166.4309682 | D45: =C$22*MIN(J30,Q30)+IF(Q30-J30>0,C$23*(Q30-J30))+ROUND($F$14*365/12,2)+(Summary!N17/12)*2 -> 137.886122 | E45: =D$22*MIN(I30,P30)+IF(P30-I30>0,D$23*(P30-I30))+ROUND($F$14*365/12,2)+(Summary!N17/12)*2 -> 161.6042668 | F45: =D$22*MIN(J30,Q30)+IF(Q30-J30>0,D$23*(Q30-J30))+ROUND($F$14*365/12,2)+(Summary!N17/12)*2 -> 133.825585 | G45: =E$22*MIN(I30,P30)+IF(P30-I30>0,E$23*(P30-I30))+ROUND($F$14*365/12,2)+(Summary!N17/12)*2 ->  | H45: =E$22*MIN(J30,Q30)+IF(Q30-J30>0,E$23*(Q30-J30))+ROUND($F$14*365/12,2)+(Summary!N17/12)*2 ->  | I45: =F$22*MIN(I30,P30)+IF(P30-I30>0,F$23*(P30-I30))+ROUND($F$14*365/12,2)+(Summary!N17/12)*2 ->  | J45: =F$22*MIN(J30,Q30)+IF(Q30-J30>0,F$23*(Q30-J30))+ROUND($F$14*365/12,2)+(Summary!N17/12)*2 ->  | L45: 16 cool | M45: =C$22*I30+ROUND($F$14*365/12,2)+(Summary!N17/12)*2 -> 137.4951227 | N45: =C$22*J30+ROUND($F$14*365/12,2)+(Summary!N17/12)*2 -> 113.8867248 | O45: =D$22*I30+ROUND($F$14*365/12,2)+(Summary!N17/12)*2 -> 133.4441258 | P45: =D$22*J30+ROUND($F$14*365/12,2)+(Summary!N17/12)*2 -> 110.4695574 | Q45: =E$22*I30+ROUND($F$14*365/12,2)+(Summary!N17/12)*2 ->  | R45: =E$22*J30+ROUND($F$14*365/12,2)+(Summary!N17/12)*2 ->  | S45: =F$22*I30+ROUND($F$14*365/12,2)+(Summary!N17/12)*2 ->  | T45: =F$22*J30+ROUND($F$14*365/12,2)+(Summary!N17/12)*2 ->  | V45: 16 cool | W45: =C$28*I30+ROUND($P$14*365/12,2)+(Summary!N17/12)*2 -> 88.6597461 | X45: =C$28*J30+ROUND($P$14*365/12,2)+(Summary!N17/12)*2 -> 72.65940033 | Y45: =D$28*I30+ROUND($P$14*365/12,2)+(Summary!N17/12)*2 -> 85.90989721 | Z45: =D$28*J30+ROUND($P$14*365/12,2)+(Summary!N17/12)*2 -> 70.33979991 | AA45: =E$28*I30+ROUND($P$14*365/12,2)+(Summary!N17/12)*2 ->  | AB45: =E$28*J30+ROUND($P$14*365/12,2)+(Summary!N17/12)*2 ->  | AC45: =F$28*I30+ROUND($P$14*365/12,2)+(Summary!N17/12)*2 ->  | AD45: =F$28*J30+ROUND($P$14*365/12,2)+(Summary!N17/12)*2 -> 
B46: ALL | C46: =SUMPRODUCT(C37:C45,$T$22:$T$30) -> 222.2894692 | D46: 151.1264869 | E46: 215.9643826 | F46: 146.7113936 | L46: ALL | M46: =SUMPRODUCT(M37:M45,$T$22:$T$30) -> 164.3163851 | N46: 104.1833251 | O46: 159.545301 | P46: 101.0266709 | V46: ALL | W46: =SUMPRODUCT(W37:W45,$U$22:$U$30) -> 117.4027006 | X46: =SUMPRODUCT(X37:X45,$U$22:$U$30) -> 67.64500689 | Y46: 113.8799552 | Z46: 65.46024325
C49: CARE | M49: Essential Use (All-Electric) - Non-CARE | W49: Essential Use (All-Electric) - CARE
C50: =C27 -> Jan 2024 | E50: =D27 -> 2024-10-01 | G50: =E27 -> Authorized | I50: =F27 -> w/Pending | M50: =C50 -> Jan 2024 | O50: =E50 -> 2024-10-01 | Q50: =G50 -> Authorized | S50: =I50 -> w/Pending | W50: =M50 -> Jan 2024 | Y50: =O50 -> 2024-10-01 | AA50: =Q50 -> Authorized | AC50: =S50 -> w/Pending
C51: Summer | D51: Winter | E51: Summer | F51: Winter | G51: Summer | H51: Winter | I51: Summer | J51: Winter | M51: Summer | N51: Winter | O51: Summer | P51: Winter | Q51: Summer | R51: Winter | S51: Summer | T51: Winter | W51: Summer | X51: Winter | Y51: Summer | Z51: Winter | AA51: Summer | AB51: Winter | AC51: Summer | AD51: Winter
B52: 5 warm | C52: =C$28*MIN(I22,R22)+IF(R22-I22>0,C$29*(R22-I22))+ROUND($P$14*365/12,2)+(Summary!N17/12)*2 -> 72.26929933 | D52: =C$28*MIN(J22,S22)+IF(S22-J22>0,C$29*(S22-J22))+ROUND($P$14*365/12,2)+(Summary!N17/12)*2 -> 72.64338235 | E52: =D$28*MIN(I22,R22)+IF(R22-I22>0,D$29*(R22-I22))+ROUND($P$14*365/12,2)+(Summary!N17/12)*2 -> 69.9601887 | F52: =D$28*MIN(J22,S22)+IF(S22-J22>0,D$29*(S22-J22))+ROUND($P$14*365/12,2)+(Summary!N17/12)*2 -> 70.32421265 | G52: =E$28*MIN(I22,R22)+IF(R22-I22>0,E$29*(R22-I22))+ROUND($P$14*365/12,2)+(Summary!N17/12)*2 ->  | H52: =E$28*MIN(J22,S22)+IF(S22-J22>0,E$29*(S22-J22))+ROUND($P$14*365/12,2)+(Summary!N17/12)*2 ->  | I52: =F$28*MIN(I22,R22)+IF(R22-I22>0,F$29*(R22-I22))+ROUND($P$14*365/12,2)+(Summary!N17/12)*2 ->  | J52: =F$28*MIN(J22,S22)+IF(S22-J22>0,F$29*(S22-J22))+ROUND($P$14*365/12,2)+(Summary!N17/12)*2 ->  | L52: 5 warm | M52: =C$22*K22+ROUND($F$14*365/12,2)+(Summary!N17/12)*2 -> 159.0506164 | N52: =C$22*L22+ROUND($F$14*365/12,2)+(Summary!N17/12)*2 -> 263.7487288 | O52: =D$22*K22+ROUND($F$14*365/12,2)+(Summary!N17/12)*2 -> 154.4209057 | P52: =D$22*L22+ROUND($F$14*365/12,2)+(Summary!N17/12)*2 -> 256.3081223 | Q52: =E$22*K22+ROUND($F$14*365/12,2)+(Summary!N17/12)*2 ->  | R52: =E$22*L22+ROUND($F$14*365/12,2)+(Summary!N17/12)*2 ->  | S52: =F$22*K22+ROUND($F$14*365/12,2)+(Summary!N17/12)*2 ->  | T52: =F$22*L22+ROUND($F$14*365/12,2)+(Summary!N17/12)*2 ->  | V52: 5 warm | W52: =C$28*K22+ROUND($P$14*365/12,2)+(Summary!N17/12)*2 -> 103.2687574 | X52: =C$28*L22+ROUND($P$14*365/12,2)+(Summary!N17/12)*2 -> 174.2268126 | Y52: =D$28*K22+ROUND($P$14*365/12,2)+(Summary!N17/12)*2 -> 100.126073 | Z52: =D$28*L22+ROUND($P$14*365/12,2)+(Summary!N17/12)*2 -> 169.1760697 | AA52: =E$28*K22+ROUND($P$14*365/12,2)+(Summary!N17/12)*2 ->  | AB52: =E$28*L22+ROUND($P$14*365/12,2)+(Summary!N17/12)*2 ->  | AC52: =F$28*K22+ROUND($P$14*365/12,2)+(Summary!N17/12)*2 ->  | AD52: =F$28*L22+ROUND($P$14*365/12,2)+(Summary!N17/12)*2 -> 
B53: 6 cool | C53: =C$28*MIN(I23,R23)+IF(R23-I23>0,C$29*(R23-I23))+ROUND($P$14*365/12,2)+(Summary!N17/12)*2 -> 77.4548568 | D53: =C$28*MIN(J23,S23)+IF(S23-J23>0,C$29*(S23-J23))+ROUND($P$14*365/12,2)+(Summary!N17/12)*2 -> 70.24167309 | E53: =D$28*MIN(I23,R23)+IF(R23-I23>0,D$29*(R23-I23))+ROUND($P$14*365/12,2)+(Summary!N17/12)*2 -> 75.00696287 | F53: =D$28*MIN(J23,S23)+IF(S23-J23>0,D$29*(S23-J23))+ROUND($P$14*365/12,2)+(Summary!N17/12)*2 -> 67.98749397 | G53: =E$28*MIN(I23,R23)+IF(R23-I23>0,E$29*(R23-I23))+ROUND($P$14*365/12,2)+(Summary!N17/12)*2 ->  | H53: =E$28*MIN(J23,S23)+IF(S23-J23>0,E$29*(S23-J23))+ROUND($P$14*365/12,2)+(Summary!N17/12)*2 ->  | I53: =F$28*MIN(I23,R23)+IF(R23-I23>0,F$29*(R23-I23))+ROUND($P$14*365/12,2)+(Summary!N17/12)*2 ->  | J53: =F$28*MIN(J23,S23)+IF(S23-J23>0,F$29*(S23-J23))+ROUND($P$14*365/12,2)+(Summary!N17/12)*2 ->  | L53: 6 cool | M53: =C$22*K23+ROUND($F$14*365/12,2)+(Summary!N17/12)*2 -> 75.9079978 | N53: =C$22*L23+ROUND($F$14*365/12,2)+(Summary!N17/12)*2 -> 115.939629 | O53: =D$22*K23+ROUND($F$14*365/12,2)+(Summary!N17/12)*2 -> 73.51046903 | P53: =D$22*L23+ROUND($F$14*365/12,2)+(Summary!N17/12)*2 -> 112.4673459 | Q53: =E$22*K23+ROUND($F$14*365/12,2)+(Summary!N17/12)*2 ->  | R53: =E$22*L23+ROUND($F$14*365/12,2)+(Summary!N17/12)*2 ->  | S53: =F$22*K23+ROUND($F$14*365/12,2)+(Summary!N17/12)*2 ->  | T53: =F$22*L23+ROUND($F$14*365/12,2)+(Summary!N17/12)*2 ->  | V53: 6 cool | W53: =C$28*K23+ROUND($P$14*365/12,2)+(Summary!N17/12)*2 -> 46.91971368 | X53: =C$28*L23+ROUND($P$14*365/12,2)+(Summary!N17/12)*2 -> 74.05073475 | Y53: =D$28*K23+ROUND($P$14*365/12,2)+(Summary!N17/12)*2 -> 45.29225209 | Z53: =D$28*L23+ROUND($P$14*365/12,2)+(Summary!N17/12)*2 -> 71.69372142 | AA53: =E$28*K23+ROUND($P$14*365/12,2)+(Summary!N17/12)*2 ->  | AB53: =E$28*L23+ROUND($P$14*365/12,2)+(Summary!N17/12)*2 ->  | AC53: =F$28*K23+ROUND($P$14*365/12,2)+(Summary!N17/12)*2 ->  | AD53: =F$28*L23+ROUND($P$14*365/12,2)+(Summary!N17/12)*2 -> 
B54: 8 cool | C54: =C$28*MIN(I24,R24)+IF(R24-I24>0,C$29*(R24-I24))+ROUND($P$14*365/12,2)+(Summary!N17/12)*2 -> 97.36307149 | D54: =C$28*MIN(J24,S24)+IF(S24-J24>0,C$29*(S24-J24))+ROUND($P$14*365/12,2)+(Summary!N17/12)*2 -> 79.07969555 | E54: =D$28*MIN(I24,R24)+IF(R24-I24>0,D$29*(R24-I24))+ROUND($P$14*365/12,2)+(Summary!N17/12)*2 -> 94.38041439 | F54: =D$28*MIN(J24,S24)+IF(S24-J24>0,D$29*(S24-J24))+ROUND($P$14*365/12,2)+(Summary!N17/12)*2 -> 76.5886277 | G54: =E$28*MIN(I24,R24)+IF(R24-I24>0,E$29*(R24-I24))+ROUND($P$14*365/12,2)+(Summary!N17/12)*2 ->  | H54: =E$28*MIN(J24,S24)+IF(S24-J24>0,E$29*(S24-J24))+ROUND($P$14*365/12,2)+(Summary!N17/12)*2 ->  | I54: =F$28*MIN(I24,R24)+IF(R24-I24>0,F$29*(R24-I24))+ROUND($P$14*365/12,2)+(Summary!N17/12)*2 ->  | J54: =F$28*MIN(J24,S24)+IF(S24-J24>0,F$29*(S24-J24))+ROUND($P$14*365/12,2)+(Summary!N17/12)*2 ->  | L54: 8 cool | M54: =C$22*K24+ROUND($F$14*365/12,2)+(Summary!N17/12)*2 -> 88.22542278 | N54: =C$22*L24+ROUND($F$14*365/12,2)+(Summary!N17/12)*2 -> 112.8602728 | O54: =D$22*K24+ROUND($F$14*365/12,2)+(Summary!N17/12)*2 -> 85.49720039 | P54: =D$22*L24+ROUND($F$14*365/12,2)+(Summary!N17/12)*2 -> 109.4706631 | Q54: =E$22*K24+ROUND($F$14*365/12,2)+(Summary!N17/12)*2 ->  | R54: =E$22*L24+ROUND($F$14*365/12,2)+(Summary!N17/12)*2 ->  | S54: =F$22*K24+ROUND($F$14*365/12,2)+(Summary!N17/12)*2 ->  | T54: =F$22*L24+ROUND($F$14*365/12,2)+(Summary!N17/12)*2 ->  | V54: 8 cool | W54: =C$28*K24+ROUND($P$14*365/12,2)+(Summary!N17/12)*2 -> 55.26772016 | X54: =C$28*L24+ROUND($P$14*365/12,2)+(Summary!N17/12)*2 -> 71.96373313 | Y54: =D$28*K24+ROUND($P$14*365/12,2)+(Summary!N17/12)*2 -> 53.41578111 | Z54: =D$28*L24+ROUND($P$14*365/12,2)+(Summary!N17/12)*2 -> 69.66283916 | AA54: =E$28*K24+ROUND($P$14*365/12,2)+(Summary!N17/12)*2 ->  | AB54: =E$28*L24+ROUND($P$14*365/12,2)+(Summary!N17/12)*2 ->  | AC54: =F$28*K24+ROUND($P$14*365/12,2)+(Summary!N17/12)*2 ->  | AD54: =F$28*L24+ROUND($P$14*365/12,2)+(Summary!N17/12)*2 -> 
B55: 9 warm | C55: =C$28*MIN(I25,R25)+IF(R25-I25>0,C$29*(R25-I25))+ROUND($P$14*365/12,2)+(Summary!N17/12)*2 -> 128.7742739 | D55: =C$28*MIN(J25,S25)+IF(S25-J25>0,C$29*(S25-J25))+ROUND($P$14*365/12,2)+(Summary!N17/12)*2 -> 88.67061665 | E55: =D$28*MIN(I25,R25)+IF(R25-I25>0,D$29*(R25-I25))+ROUND($P$14*365/12,2)+(Summary!N17/12)*2 -> 124.9471325 | F55: =D$28*MIN(J25,S25)+IF(S25-J25>0,D$29*(S25-J25))+ROUND($P$14*365/12,2)+(Summary!N17/12)*2 -> 85.92152463 | G55: =E$28*MIN(I25,R25)+IF(R25-I25>0,E$29*(R25-I25))+ROUND($P$14*365/12,2)+(Summary!N17/12)*2 ->  | H55: =E$28*MIN(J25,S25)+IF(S25-J25>0,E$29*(S25-J25))+ROUND($P$14*365/12,2)+(Summary!N17/12)*2 ->  | I55: =F$28*MIN(I25,R25)+IF(R25-I25>0,F$29*(R25-I25))+ROUND($P$14*365/12,2)+(Summary!N17/12)*2 ->  | J55: =F$28*MIN(J25,S25)+IF(S25-J25>0,F$29*(S25-J25))+ROUND($P$14*365/12,2)+(Summary!N17/12)*2 ->  | L55: 9 warm | M55: =C$22*K25+ROUND($F$14*365/12,2)+(Summary!N17/12)*2 -> 114.9131769 | N55: =C$22*L25+ROUND($F$14*365/12,2)+(Summary!N17/12)*2 -> 129.2835061 | O55: =D$22*K25+ROUND($F$14*365/12,2)+(Summary!N17/12)*2 -> 111.4684517 | P55: =D$22*L25+ROUND($F$14*365/12,2)+(Summary!N17/12)*2 -> 125.4529716 | Q55: =E$22*K25+ROUND($F$14*365/12,2)+(Summary!N17/12)*2 ->  | R55: =E$22*L25+ROUND($F$14*365/12,2)+(Summary!N17/12)*2 ->  | S55: =F$22*K25+ROUND($F$14*365/12,2)+(Summary!N17/12)*2 ->  | T55: =F$22*L25+ROUND($F$14*365/12,2)+(Summary!N17/12)*2 ->  | V55: 9 warm | W55: =C$28*K25+ROUND($P$14*365/12,2)+(Summary!N17/12)*2 -> 73.35506754 | X55: =C$28*L25+ROUND($P$14*365/12,2)+(Summary!N17/12)*2 -> 83.09440844 | Y55: =D$28*K25+ROUND($P$14*365/12,2)+(Summary!N17/12)*2 -> 71.01676067 | Z55: =D$28*L25+ROUND($P$14*365/12,2)+(Summary!N17/12)*2 -> 80.49421119 | AA55: =E$28*K25+ROUND($P$14*365/12,2)+(Summary!N17/12)*2 ->  | AB55: =E$28*L25+ROUND($P$14*365/12,2)+(Summary!N17/12)*2 ->  | AC55: =F$28*K25+ROUND($P$14*365/12,2)+(Summary!N17/12)*2 ->  | AD55: =F$28*L25+ROUND($P$14*365/12,2)+(Summary!N17/12)*2 -> 
B56: 10 hot (Sec 745) | C56: =C$28*MIN(I26,R26)+IF(R26-I26>0,C$29*(R26-I26))+ROUND($P$14*365/12,2)+(Summary!N17/12)*2 -> 180.4754352 | D56: =C$28*MIN(J26,S26)+IF(S26-J26>0,C$29*(S26-J26))+ROUND($P$14*365/12,2)+(Summary!N17/12)*2 -> 108.4430114 | E56: =D$28*MIN(I26,R26)+IF(R26-I26>0,D$29*(R26-I26))+ROUND($P$14*365/12,2)+(Summary!N17/12)*2 -> 175.2600064 | F56: =D$28*MIN(J26,S26)+IF(S26-J26>0,D$29*(S26-J26))+ROUND($P$14*365/12,2)+(Summary!N17/12)*2 -> 105.1633057 | G56: =E$28*MIN(I26,R26)+IF(R26-I26>0,E$29*(R26-I26))+ROUND($P$14*365/12,2)+(Summary!N17/12)*2 ->  | H56: =E$28*MIN(J26,S26)+IF(S26-J26>0,E$29*(S26-J26))+ROUND($P$14*365/12,2)+(Summary!N17/12)*2 ->  | I56: =F$28*MIN(I26,R26)+IF(R26-I26>0,F$29*(R26-I26))+ROUND($P$14*365/12,2)+(Summary!N17/12)*2 ->  | J56: =F$28*MIN(J26,S26)+IF(S26-J26>0,F$29*(S26-J26))+ROUND($P$14*365/12,2)+(Summary!N17/12)*2 ->  | L56: 10 hot (Sec 745) | M56: =C$22*K26+ROUND($F$14*365/12,2)+(Summary!N17/12)*2 -> 149.8125477 | N56: =C$22*L26+ROUND($F$14*365/12,2)+(Summary!N17/12)*2 -> 154.9448081 | O56: =D$22*K26+ROUND($F$14*365/12,2)+(Summary!N17/12)*2 -> 145.4308572 | P56: =D$22*L26+ROUND($F$14*365/12,2)+(Summary!N17/12)*2 -> 150.4253286 | Q56: =E$22*K26+ROUND($F$14*365/12,2)+(Summary!N17/12)*2 ->  | R56: =E$22*L26+ROUND($F$14*365/12,2)+(Summary!N17/12)*2 ->  | S56: =F$22*K26+ROUND($F$14*365/12,2)+(Summary!N17/12)*2 ->  | T56: =F$22*L26+ROUND($F$14*365/12,2)+(Summary!N17/12)*2 ->  | V56: 10 hot (Sec 745) | W56: =C$28*K26+ROUND($P$14*365/12,2)+(Summary!N17/12)*2 -> 97.00775258 | X56: =C$28*L26+ROUND($P$14*365/12,2)+(Summary!N17/12)*2 -> 100.4860886 | Y56: =D$28*K26+ROUND($P$14*365/12,2)+(Summary!N17/12)*2 -> 94.03342623 | Z56: =D$28*L26+ROUND($P$14*365/12,2)+(Summary!N17/12)*2 -> 97.41822999 | AA56: =E$28*K26+ROUND($P$14*365/12,2)+(Summary!N17/12)*2 ->  | AB56: =E$28*L26+ROUND($P$14*365/12,2)+(Summary!N17/12)*2 ->  | AC56: =F$28*K26+ROUND($P$14*365/12,2)+(Summary!N17/12)*2 ->  | AD56: =F$28*L26+ROUND($P$14*365/12,2)+(Summary!N17/12)*2 -> 
B57: 13 hot | C57: =C$28*MIN(I27,R27)+IF(R27-I27>0,C$29*(R27-I27))+ROUND($P$14*365/12,2)+(Summary!N17/12)*2 -> 211.2337221 | D57: =C$28*MIN(J27,S27)+IF(S27-J27>0,C$29*(S27-J27))+ROUND($P$14*365/12,2)+(Summary!N17/12)*2 -> 104.1804736 | E57: =D$28*MIN(I27,R27)+IF(R27-I27>0,D$29*(R27-I27))+ROUND($P$14*365/12,2)+(Summary!N17/12)*2 -> 205.1917954 | F57: =D$28*MIN(J27,S27)+IF(S27-J27>0,D$29*(S27-J27))+ROUND($P$14*365/12,2)+(Summary!N17/12)*2 -> 101.0151105 | G57: =E$28*MIN(I27,R27)+IF(R27-I27>0,E$29*(R27-I27))+ROUND($P$14*365/12,2)+(Summary!N17/12)*2 ->  | H57: =E$28*MIN(J27,S27)+IF(S27-J27>0,E$29*(S27-J27))+ROUND($P$14*365/12,2)+(Summary!N17/12)*2 ->  | I57: =F$28*MIN(I27,R27)+IF(R27-I27>0,F$29*(R27-I27))+ROUND($P$14*365/12,2)+(Summary!N17/12)*2 ->  | J57: =F$28*MIN(J27,S27)+IF(S27-J27>0,F$29*(S27-J27))+ROUND($P$14*365/12,2)+(Summary!N17/12)*2 ->  | L57: 13 hot | M57: =C$22*K27+ROUND($F$14*365/12,2)+(Summary!N17/12)*2 -> 235.0080705 | N57: =C$22*L27+ROUND($F$14*365/12,2)+(Summary!N17/12)*2 -> 222.6906455 | O57: =D$22*K27+ROUND($F$14*365/12,2)+(Summary!N17/12)*2 -> 228.3390824 | P57: =D$22*L27+ROUND($F$14*365/12,2)+(Summary!N17/12)*2 -> 216.3523511 | Q57: =E$22*K27+ROUND($F$14*365/12,2)+(Summary!N17/12)*2 ->  | R57: =E$22*L27+ROUND($F$14*365/12,2)+(Summary!N17/12)*2 ->  | S57: =F$22*K27+ROUND($F$14*365/12,2)+(Summary!N17/12)*2 ->  | T57: =F$22*L27+ROUND($F$14*365/12,2)+(Summary!N17/12)*2 ->  | V57: 13 hot | W57: =C$28*K27+ROUND($P$14*365/12,2)+(Summary!N17/12)*2 -> 154.7481308 | X57: =C$28*L27+ROUND($P$14*365/12,2)+(Summary!N17/12)*2 -> 146.4001243 | Y57: =D$28*K27+ROUND($P$14*365/12,2)+(Summary!N17/12)*2 -> 150.2211687 | Z57: =D$28*L27+ROUND($P$14*365/12,2)+(Summary!N17/12)*2 -> 142.0976396 | AA57: =E$28*K27+ROUND($P$14*365/12,2)+(Summary!N17/12)*2 ->  | AB57: =E$28*L27+ROUND($P$14*365/12,2)+(Summary!N17/12)*2 ->  | AC57: =F$28*K27+ROUND($P$14*365/12,2)+(Summary!N17/12)*2 ->  | AD57: =F$28*L27+ROUND($P$14*365/12,2)+(Summary!N17/12)*2 -> 
B58: 14 hot | C58: =C$28*MIN(I28,R28)+IF(R28-I28>0,C$29*(R28-I28))+ROUND($P$14*365/12,2)+(Summary!N17/12)*2 -> 177.2919255 | D58: =C$28*MIN(J28,S28)+IF(S28-J28>0,C$29*(S28-J28))+ROUND($P$14*365/12,2)+(Summary!N17/12)*2 -> 114.2828629 | E58: =D$28*MIN(I28,R28)+IF(R28-I28>0,D$29*(R28-I28))+ROUND($P$14*365/12,2)+(Summary!N17/12)*2 -> 172.1619623 | F58: =D$28*MIN(J28,S28)+IF(S28-J28>0,D$29*(S28-J28))+ROUND($P$14*365/12,2)+(Summary!N17/12)*2 -> 110.8465275 | G58: =E$28*MIN(I28,R28)+IF(R28-I28>0,E$29*(R28-I28))+ROUND($P$14*365/12,2)+(Summary!N17/12)*2 ->  | H58: =E$28*MIN(J28,S28)+IF(S28-J28>0,E$29*(S28-J28))+ROUND($P$14*365/12,2)+(Summary!N17/12)*2 ->  | I58: =F$28*MIN(I28,R28)+IF(R28-I28>0,F$29*(R28-I28))+ROUND($P$14*365/12,2)+(Summary!N17/12)*2 ->  | J58: =F$28*MIN(J28,S28)+IF(S28-J28>0,F$29*(S28-J28))+ROUND($P$14*365/12,2)+(Summary!N17/12)*2 ->  | L58: 14 hot | M58: =C$22*K28+ROUND($F$14*365/12,2)+(Summary!N17/12)*2 -> 176.5003018 | N58: =C$22*L28+ROUND($F$14*365/12,2)+(Summary!N17/12)*2 -> 203.188056 | O58: =D$22*K28+ROUND($F$14*365/12,2)+(Summary!N17/12)*2 -> 171.4021085 | P58: =D$22*L28+ROUND($F$14*365/12,2)+(Summary!N17/12)*2 -> 197.3733597 | Q58: =E$22*K28+ROUND($F$14*365/12,2)+(Summary!N17/12)*2 ->  | R58: =E$22*L28+ROUND($F$14*365/12,2)+(Summary!N17/12)*2 ->  | S58: =F$22*K28+ROUND($F$14*365/12,2)+(Summary!N17/12)*2 ->  | T58: =F$22*L28+ROUND($F$14*365/12,2)+(Summary!N17/12)*2 ->  | V58: 14 hot | W58: =C$28*K28+ROUND($P$14*365/12,2)+(Summary!N17/12)*2 -> 115.0951 | X58: =C$28*L28+ROUND($P$14*365/12,2)+(Summary!N17/12)*2 -> 133.1824473 | Y58: =D$28*K28+ROUND($P$14*365/12,2)+(Summary!N17/12)*2 -> 111.6344058 | Z58: =D$28*L28+ROUND($P$14*365/12,2)+(Summary!N17/12)*2 -> 129.2353853 | AA58: =E$28*K28+ROUND($P$14*365/12,2)+(Summary!N17/12)*2 ->  | AB58: =E$28*L28+ROUND($P$14*365/12,2)+(Summary!N17/12)*2 ->  | AC58: =F$28*K28+ROUND($P$14*365/12,2)+(Summary!N17/12)*2 ->  | AD58: =F$28*L28+ROUND($P$14*365/12,2)+(Summary!N17/12)*2 -> 
B59: 15 hot | C59: =C$28*MIN(I29,R29)+IF(R29-I29>0,C$29*(R29-I29))+ROUND($P$14*365/12,2)+(Summary!N17/12)*2 -> 257.4344494 | D59: =C$28*MIN(J29,S29)+IF(S29-J29>0,C$29*(S29-J29))+ROUND($P$14*365/12,2)+(Summary!N17/12)*2 -> 118.4742056 | E59: =D$28*MIN(I29,R29)+IF(R29-I29>0,D$29*(R29-I29))+ROUND($P$14*365/12,2)+(Summary!N17/12)*2 -> 250.1462576 | F59: =D$28*MIN(J29,S29)+IF(S29-J29>0,D$29*(S29-J29))+ROUND($P$14*365/12,2)+(Summary!N17/12)*2 -> 114.9262536 | G59: =E$28*MIN(I29,R29)+IF(R29-I29>0,E$29*(R29-I29))+ROUND($P$14*365/12,2)+(Summary!N17/12)*2 ->  | H59: =E$28*MIN(J29,S29)+IF(S29-J29>0,E$29*(S29-J29))+ROUND($P$14*365/12,2)+(Summary!N17/12)*2 ->  | I59: =F$28*MIN(I29,R29)+IF(R29-I29>0,F$29*(R29-I29))+ROUND($P$14*365/12,2)+(Summary!N17/12)*2 ->  | J59: =F$28*MIN(J29,S29)+IF(S29-J29>0,F$29*(S29-J29))+ROUND($P$14*365/12,2)+(Summary!N17/12)*2 ->  | L59: 15 hot | M59: =C$22*K29+ROUND($F$14*365/12,2)+(Summary!N17/12)*2 -> 232.9551663 | N59: =C$22*L29+ROUND($F$14*365/12,2)+(Summary!N17/12)*2 -> 165.2093289 | O59: =D$22*K29+ROUND($F$14*365/12,2)+(Summary!N17/12)*2 -> 226.3412939 | P59: =D$22*L29+ROUND($F$14*365/12,2)+(Summary!N17/12)*2 -> 160.4142714 | Q59: =E$22*K29+ROUND($F$14*365/12,2)+(Summary!N17/12)*2 ->  | R59: =E$22*L29+ROUND($F$14*365/12,2)+(Summary!N17/12)*2 ->  | S59: =F$22*K29+ROUND($F$14*365/12,2)+(Summary!N17/12)*2 ->  | T59: =F$22*L29+ROUND($F$14*365/12,2)+(Summary!N17/12)*2 ->  | V59: 15 hot | W59: =C$28*K29+ROUND($P$14*365/12,2)+(Summary!N17/12)*2 -> 153.3567963 | X59: =C$28*L29+ROUND($P$14*365/12,2)+(Summary!N17/12)*2 -> 107.4427607 | Y59: =D$28*K29+ROUND($P$14*365/12,2)+(Summary!N17/12)*2 -> 148.8672471 | Z59: =D$28*L29+ROUND($P$14*365/12,2)+(Summary!N17/12)*2 -> 104.1878375 | AA59: =E$28*K29+ROUND($P$14*365/12,2)+(Summary!N17/12)*2 ->  | AB59: =E$28*L29+ROUND($P$14*365/12,2)+(Summary!N17/12)*2 ->  | AC59: =F$28*K29+ROUND($P$14*365/12,2)+(Summary!N17/12)*2 ->  | AD59: =F$28*L29+ROUND($P$14*365/12,2)+(Summary!N17/12)*2 -> 
B60: 16 cool | C60: =C$28*MIN(I30,R30)+IF(R30-I30>0,C$29*(R30-I30))+ROUND($P$14*365/12,2)+(Summary!N17/12)*2 -> 155.8050315 | D60: =C$28*MIN(J30,S30)+IF(S30-J30>0,C$29*(S30-J30))+ROUND($P$14*365/12,2)+(Summary!N17/12)*2 -> 108.2056535 | E60: =D$28*MIN(I30,R30)+IF(R30-I30>0,D$29*(R30-I30))+ROUND($P$14*365/12,2)+(Summary!N17/12)*2 -> 151.2533978 | F60: =D$28*MIN(J30,S30)+IF(S30-J30>0,D$29*(S30-J30))+ROUND($P$14*365/12,2)+(Summary!N17/12)*2 -> 104.9322006 | G60: =E$28*MIN(I30,R30)+IF(R30-I30>0,E$29*(R30-I30))+ROUND($P$14*365/12,2)+(Summary!N17/12)*2 ->  | H60: =E$28*MIN(J30,S30)+IF(S30-J30>0,E$29*(S30-J30))+ROUND($P$14*365/12,2)+(Summary!N17/12)*2 ->  | I60: =F$28*MIN(I30,R30)+IF(R30-I30>0,F$29*(R30-I30))+ROUND($P$14*365/12,2)+(Summary!N17/12)*2 ->  | J60: =F$28*MIN(J30,S30)+IF(S30-J30>0,F$29*(S30-J30))+ROUND($P$14*365/12,2)+(Summary!N17/12)*2 ->  | L60: 16 cool | M60: =C$22*K30+ROUND($F$14*365/12,2)+(Summary!N17/12)*2 -> 125.1776977 | N60: =C$22*L30+ROUND($F$14*365/12,2)+(Summary!N17/12)*2 -> 224.7435497 | O60: =D$22*K30+ROUND($F$14*365/12,2)+(Summary!N17/12)*2 -> 121.4573945 | P60: =D$22*L30+ROUND($F$14*365/12,2)+(Summary!N17/12)*2 -> 218.3501396 | Q60: =E$22*K30+ROUND($F$14*365/12,2)+(Summary!N17/12)*2 ->  | R60: =E$22*L30+ROUND($F$14*365/12,2)+(Summary!N17/12)*2 ->  | S60: =F$22*K30+ROUND($F$14*365/12,2)+(Summary!N17/12)*2 ->  | T60: =F$22*L30+ROUND($F$14*365/12,2)+(Summary!N17/12)*2 ->  | V60: 16 cool | W60: =C$28*K30+ROUND($P$14*365/12,2)+(Summary!N17/12)*2 -> 80.31173961 | X60: =C$28*L30+ROUND($P$14*365/12,2)+(Summary!N17/12)*2 -> 147.7914587 | Y60: =D$28*K30+ROUND($P$14*365/12,2)+(Summary!N17/12)*2 -> 77.78636819 | Z60: =D$28*L30+ROUND($P$14*365/12,2)+(Summary!N17/12)*2 -> 143.4515611 | AA60: =E$28*K30+ROUND($P$14*365/12,2)+(Summary!N17/12)*2 ->  | AB60: =E$28*L30+ROUND($P$14*365/12,2)+(Summary!N17/12)*2 ->  | AC60: =F$28*K30+ROUND($P$14*365/12,2)+(Summary!N17/12)*2 ->  | AD60: =F$28*L30+ROUND($P$14*365/12,2)+(Summary!N17/12)*2 -> 
B61: ALL | C61: =SUMPRODUCT(C52:C60,$U$22:$U$30) -> 163.202156 | D61: 100.7216688 | E61: 158.4505068 | F61: 97.64932209 | L61: ALL | M61: =SUMPRODUCT(M52:M60,$T$22:$T$30) -> 129.6760166 | N61: =SUMPRODUCT(N52:N60,$T$22:$T$30) -> 146.141317 | O61: 125.8349441 | P61: 141.8581903 | V61: ALL | W61: =SUMPRODUCT(W52:W60,$U$22:$U$30) -> 96.12993791 | X61: =SUMPRODUCT(X52:X60,$U$22:$U$30) -> 103.4411186 | Y61: 93.17921596 | Z61: 100.2937994
C64: All-Electric - Non-CARE | L64: =Summary!J4 -> 500 | M64: =L64&" kWh Monthly - Non-CARE" -> 500 kWh Monthly - Non-CARE | W64: =L64&" kWh Monthly - CARE" -> 500 kWh Monthly - CARE
C65: =C35 -> Jan 2024 | E65: 2024-10-01 | G65: Authorized | I65: w/Pending | M65: =M50 -> Jan 2024 | O65: =O50 -> 2024-10-01 | Q65: =Q50 -> Authorized | S65: =S50 -> w/Pending | W65: =M65 -> Jan 2024 | Y65: =O65 -> 2024-10-01 | AA65: =Q65 -> Authorized | AC65: =S65 -> w/Pending
C66: Summer | D66: Winter | E66: Summer | F66: Winter | G66: Summer | H66: Winter | I66: Summer | J66: Winter | M66: Summer | N66: Winter | O66: Summer | P66: Winter | Q66: Summer | R66: Winter | S66: Summer | T66: Winter | W66: Summer | X66: Winter | Y66: Summer | Z66: Winter | AA66: Summer | AB66: Winter | AC66: Summer | AD66: Winter
B67: =B37 -> 5 warm | C67: =C$22*MIN(K22,X22)+IF(X22-K22>0,C$23*(X22-K22))+ROUND($F$14*365/12,2)+(Summary!N17/12)*2 -> 130.1380715 | D67: =C$22*MIN(L22,Y22)+IF(Y22-L22>0,C$23*(Y22-L22))+ROUND($F$14*365/12,2)+(Summary!N17/12)*2 -> 152.67574 | E67: =D$22*MIN(K22,X22)+IF(X22-K22>0,D$23*(X22-K22))+ROUND($F$14*365/12,2)+(Summary!N17/12)*2 -> 126.284594 | F67: =D$22*MIN(L22,Y22)+IF(Y22-L22>0,D$23*(Y22-L22))+ROUND($F$14*365/12,2)+(Summary!N17/12)*2 -> 148.2171796 | G67: =E$22*MIN(K22,X22)+IF(X22-K22>0,E$23*(X22-K22))+ROUND($F$14*365/12,2)+(Summary!N17/12)*2 ->  | H67: =E$22*MIN(L22,Y22)+IF(Y22-L22>0,E$23*(Y22-L22))+ROUND($F$14*365/12,2)+(Summary!N17/12)*2 ->  | I67: =F$22*MIN(K22,X22)+IF(X22-K22>0,F$23*(X22-K22))+ROUND($F$14*365/12,2)+(Summary!N17/12)*2 ->  | J67: =F$22*MIN(L22,Y22)+IF(Y22-L22>0,F$23*(Y22-L22))+ROUND($F$14*365/12,2)+(Summary!N17/12)*2 ->  | L67: 5 warm | M67: =C$22*MIN(I22,$L$64)+IF($L$64-I22>0,C$23*($L$64-I22))+ROUND($F$14*365/12,2)+(Summary!N17/12)*2 -> 155.3366667 | N67: =C$22*MIN(J22,$L$64)+IF($L$64-J22>0,C$23*($L$64-J22))+ROUND($F$14*365/12,2)+(Summary!N17/12)*2 -> 155.3366667 | O67: =D$22*MIN(I22,$L$64)+IF($L$64-I22>0,D$23*($L$64-I22))+ROUND($F$14*365/12,2)+(Summary!N17/12)*2 -> 150.8066667 | P67: =D$22*MIN(J22,$L$64)+IF($L$64-J22>0,D$23*($L$64-J22))+ROUND($F$14*365/12,2)+(Summary!N17/12)*2 -> 150.8066667 | Q67: =E$22*MIN(I22,$L$64)+IF($L$64-I22>0,E$23*($L$64-I22))+ROUND($F$14*365/12,2)+(Summary!N17/12)*2 ->  | R67: =E$22*MIN(J22,$L$64)+IF($L$64-J22>0,E$23*($L$64-J22))+ROUND($F$14*365/12,2)+(Summary!N17/12)*2 ->  | S67: =F$22*MIN(I22,$L$64)+IF($L$64-I22>0,F$23*($L$64-I22))+ROUND($F$14*365/12,2)+(Summary!N17/12)*2 ->  | T67: =F$22*MIN(J22,$L$64)+IF($L$64-J22>0,F$23*($L$64-J22))+ROUND($F$14*365/12,2)+(Summary!N17/12)*2 ->  | V67: 5 warm | W67: =C$28*MIN(I22,$L$64)+IF($L$64-I22>0,C$29*($L$64-I22))+ROUND($P$14*365/12,2)+(Summary!N17/12)*2 -> 100.7516667 | X67: =C$28*MIN(J22,$L$64)+IF($L$64-J22>0,C$29*($L$64-J22))+ROUND($P$14*365/12,2)+(Summary!N17/12)*2 -> 100.7516667 | Y67: =D$28*MIN(I22,$L$64)+IF($L$64-I22>0,D$29*($L$64-I22))+ROUND($P$14*365/12,2)+(Summary!N17/12)*2 -> 97.67666667 | Z67: =D$28*MIN(J22,$L$64)+IF($L$64-J22>0,D$29*($L$64-J22))+ROUND($P$14*365/12,2)+(Summary!N17/12)*2 -> 97.67666667 | AA67: =E$28*MIN(I22,$L$64)+IF($L$64-I22>0,E$29*($L$64-I22))+ROUND($P$14*365/12,2)+(Summary!N17/12)*2 ->  | AB67: =E$28*MIN(J22,$L$64)+IF($L$64-J22>0,E$29*($L$64-J22))+ROUND($P$14*365/12,2)+(Summary!N17/12)*2 ->  | AC67: =F$28*MIN(I22,$L$64)+IF($L$64-I22>0,F$29*($L$64-I22))+ROUND($P$14*365/12,2)+(Summary!N17/12)*2 ->  | AD67: =F$28*MIN(J22,$L$64)+IF($L$64-J22>0,F$29*($L$64-J22))+ROUND($P$14*365/12,2)+(Summary!N17/12)*2 -> 
B68: 6 cool | C68: =C$22*MIN(K23,X23)+IF(X23-K23>0,C$23*(X23-K23))+ROUND($F$14*365/12,2)+(Summary!N17/12)*2 -> 104.2737793 | D68: =C$22*MIN(L23,Y23)+IF(Y23-L23>0,C$23*(Y23-L23))+ROUND($F$14*365/12,2)+(Summary!N17/12)*2 -> 105.3445173 | E68: =D$22*MIN(K23,X23)+IF(X23-K23>0,D$23*(X23-K23))+ROUND($F$14*365/12,2)+(Summary!N17/12)*2 -> 101.1158281 | F68: =D$22*MIN(L23,Y23)+IF(Y23-L23>0,D$23*(Y23-L23))+ROUND($F$14*365/12,2)+(Summary!N17/12)*2 -> 102.1566878 | G68: =E$22*MIN(K23,X23)+IF(X23-K23>0,E$23*(X23-K23))+ROUND($F$14*365/12,2)+(Summary!N17/12)*2 ->  | H68: =E$22*MIN(L23,Y23)+IF(Y23-L23>0,E$23*(Y23-L23))+ROUND($F$14*365/12,2)+(Summary!N17/12)*2 ->  | I68: =F$22*MIN(K23,X23)+IF(X23-K23>0,F$23*(X23-K23))+ROUND($F$14*365/12,2)+(Summary!N17/12)*2 ->  | J68: =F$22*MIN(L23,Y23)+IF(Y23-L23>0,F$23*(Y23-L23))+ROUND($F$14*365/12,2)+(Summary!N17/12)*2 ->  | L68: 6 cool | M68: =C$22*MIN(I23,$L$64)+IF($L$64-I23>0,C$23*($L$64-I23))+ROUND($F$14*365/12,2)+(Summary!N17/12)*2 -> 170.105003 | N68: =C$22*MIN(J23,$L$64)+IF($L$64-J23>0,C$23*($L$64-J23))+ROUND($F$14*365/12,2)+(Summary!N17/12)*2 -> 171.2775175 | O68: =D$22*MIN(I23,$L$64)+IF($L$64-I23>0,D$23*($L$64-I23))+ROUND($F$14*365/12,2)+(Summary!N17/12)*2 -> 165.1811602 | P68: =D$22*MIN(J23,$L$64)+IF($L$64-J23>0,D$23*($L$64-J23))+ROUND($F$14*365/12,2)+(Summary!N17/12)*2 -> 166.3224061 | Q68: =E$22*MIN(I23,$L$64)+IF($L$64-I23>0,E$23*($L$64-I23))+ROUND($F$14*365/12,2)+(Summary!N17/12)*2 ->  | R68: =E$22*MIN(J23,$L$64)+IF($L$64-J23>0,E$23*($L$64-J23))+ROUND($F$14*365/12,2)+(Summary!N17/12)*2 ->  | S68: =F$22*MIN(I23,$L$64)+IF($L$64-I23>0,F$23*($L$64-I23))+ROUND($F$14*365/12,2)+(Summary!N17/12)*2 ->  | T68: =F$22*MIN(J23,$L$64)+IF($L$64-J23>0,F$23*($L$64-J23))+ROUND($F$14*365/12,2)+(Summary!N17/12)*2 ->  | V68: 6 cool | W68: =C$28*MIN(I23,$L$64)+IF($L$64-I23>0,C$29*($L$64-I23))+ROUND($P$14*365/12,2)+(Summary!N17/12)*2 -> 110.3617359 | X68: =C$28*MIN(J23,$L$64)+IF($L$64-J23>0,C$29*($L$64-J23))+ROUND($P$14*365/12,2)+(Summary!N17/12)*2 -> 111.1247159 | Y68: =D$28*MIN(I23,$L$64)+IF($L$64-I23>0,D$29*($L$64-I23))+ROUND($P$14*365/12,2)+(Summary!N17/12)*2 -> 107.0308147 | Z68: =D$28*MIN(J23,$L$64)+IF($L$64-J23>0,D$29*($L$64-J23))+ROUND($P$14*365/12,2)+(Summary!N17/12)*2 -> 107.7734762 | AA68: =E$28*MIN(I23,$L$64)+IF($L$64-I23>0,E$29*($L$64-I23))+ROUND($P$14*365/12,2)+(Summary!N17/12)*2 ->  | AB68: =E$28*MIN(J23,$L$64)+IF($L$64-J23>0,E$29*($L$64-J23))+ROUND($P$14*365/12,2)+(Summary!N17/12)*2 ->  | AC68: =F$28*MIN(I23,$L$64)+IF($L$64-I23>0,F$29*($L$64-I23))+ROUND($P$14*365/12,2)+(Summary!N17/12)*2 ->  | AD68: =F$28*MIN(J23,$L$64)+IF($L$64-J23>0,F$29*($L$64-J23))+ROUND($P$14*365/12,2)+(Summary!N17/12)*2 -> 
B69: 8 cool | C69: =C$22*MIN(K24,X24)+IF(X24-K24>0,C$23*(X24-K24))+ROUND($F$14*365/12,2)+(Summary!N17/12)*2 -> 122.9833027 | D69: =C$22*MIN(L24,Y24)+IF(Y24-L24>0,C$23*(Y24-L24))+ROUND($F$14*365/12,2)+(Summary!N17/12)*2 -> 111.2872493 | E69: =D$22*MIN(K24,X24)+IF(X24-K24>0,D$23*(X24-K24))+ROUND($F$14*365/12,2)+(Summary!N17/12)*2 -> 119.3233003 | F69: =D$22*MIN(L24,Y24)+IF(Y24-L24>0,D$23*(Y24-L24))+ROUND($F$14*365/12,2)+(Summary!N17/12)*2 -> 107.9398716 | G69: =E$22*MIN(K24,X24)+IF(X24-K24>0,E$23*(X24-K24))+ROUND($F$14*365/12,2)+(Summary!N17/12)*2 ->  | H69: =E$22*MIN(L24,Y24)+IF(Y24-L24>0,E$23*(Y24-L24))+ROUND($F$14*365/12,2)+(Summary!N17/12)*2 ->  | I69: =F$22*MIN(K24,X24)+IF(X24-K24>0,F$23*(X24-K24))+ROUND($F$14*365/12,2)+(Summary!N17/12)*2 ->  | J69: =F$22*MIN(L24,Y24)+IF(Y24-L24>0,F$23*(Y24-L24))+ROUND($F$14*365/12,2)+(Summary!N17/12)*2 ->  | L69: 8 cool | M69: =C$22*MIN(I24,$L$64)+IF($L$64-I24>0,C$23*($L$64-I24))+ROUND($F$14*365/12,2)+(Summary!N17/12)*2 -> 166.0012022 | N69: =C$22*MIN(J24,$L$64)+IF($L$64-J24>0,C$23*($L$64-J24))+ROUND($F$14*365/12,2)+(Summary!N17/12)*2 -> 173.3294179 | O69: =D$22*MIN(I24,$L$64)+IF($L$64-I24>0,D$23*($L$64-I24))+ROUND($F$14*365/12,2)+(Summary!N17/12)*2 -> 161.1867998 | P69: =D$22*MIN(J24,$L$64)+IF($L$64-J24>0,D$23*($L$64-J24))+ROUND($F$14*365/12,2)+(Summary!N17/12)*2 -> 168.3195863 | Q69: =E$22*MIN(I24,$L$64)+IF($L$64-I24>0,E$23*($L$64-I24))+ROUND($F$14*365/12,2)+(Summary!N17/12)*2 ->  | R69: =E$22*MIN(J24,$L$64)+IF($L$64-J24>0,E$23*($L$64-J24))+ROUND($F$14*365/12,2)+(Summary!N17/12)*2 ->  | S69: =F$22*MIN(I24,$L$64)+IF($L$64-I24>0,F$23*($L$64-I24))+ROUND($F$14*365/12,2)+(Summary!N17/12)*2 ->  | T69: =F$22*MIN(J24,$L$64)+IF($L$64-J24>0,F$23*($L$64-J24))+ROUND($F$14*365/12,2)+(Summary!N17/12)*2 ->  | V69: 8 cool | W69: =C$28*MIN(I24,$L$64)+IF($L$64-I24>0,C$29*($L$64-I24))+ROUND($P$14*365/12,2)+(Summary!N17/12)*2 -> 107.6913058 | X69: =C$28*MIN(J24,$L$64)+IF($L$64-J24>0,C$29*($L$64-J24))+ROUND($P$14*365/12,2)+(Summary!N17/12)*2 -> 112.4599309 | Y69: =D$28*MIN(I24,$L$64)+IF($L$64-I24>0,D$29*($L$64-I24))+ROUND($P$14*365/12,2)+(Summary!N17/12)*2 -> 104.4314996 | Z69: =D$28*MIN(J24,$L$64)+IF($L$64-J24>0,D$29*($L$64-J24))+ROUND($P$14*365/12,2)+(Summary!N17/12)*2 -> 109.0731338 | AA69: =E$28*MIN(I24,$L$64)+IF($L$64-I24>0,E$29*($L$64-I24))+ROUND($P$14*365/12,2)+(Summary!N17/12)*2 ->  | AB69: =E$28*MIN(J24,$L$64)+IF($L$64-J24>0,E$29*($L$64-J24))+ROUND($P$14*365/12,2)+(Summary!N17/12)*2 ->  | AC69: =F$28*MIN(I24,$L$64)+IF($L$64-I24>0,F$29*($L$64-I24))+ROUND($P$14*365/12,2)+(Summary!N17/12)*2 ->  | AD69: =F$28*MIN(J24,$L$64)+IF($L$64-J24>0,F$29*($L$64-J24))+ROUND($P$14*365/12,2)+(Summary!N17/12)*2 -> 
B70: 9 warm | C70: =C$22*MIN(K25,X25)+IF(X25-K25>0,C$23*(X25-K25))+ROUND($F$14*365/12,2)+(Summary!N17/12)*2 -> 157.9399372 | D70: =C$22*MIN(L25,Y25)+IF(Y25-L25>0,C$23*(Y25-L25))+ROUND($F$14*365/12,2)+(Summary!N17/12)*2 -> 120.3340578 | E70: =D$22*MIN(K25,X25)+IF(X25-K25>0,D$23*(X25-K25))+ROUND($F$14*365/12,2)+(Summary!N17/12)*2 -> 153.3417619 | F70: =D$22*MIN(L25,Y25)+IF(Y25-L25>0,D$23*(Y25-L25))+ROUND($F$14*365/12,2)+(Summary!N17/12)*2 -> 116.7437947 | G70: =E$22*MIN(K25,X25)+IF(X25-K25>0,E$23*(X25-K25))+ROUND($F$14*365/12,2)+(Summary!N17/12)*2 ->  | H70: =E$22*MIN(L25,Y25)+IF(Y25-L25>0,E$23*(Y25-L25))+ROUND($F$14*365/12,2)+(Summary!N17/12)*2 ->  | I70: =F$22*MIN(K25,X25)+IF(X25-K25>0,F$23*(X25-K25))+ROUND($F$14*365/12,2)+(Summary!N17/12)*2 ->  | J70: =F$22*MIN(L25,Y25)+IF(Y25-L25>0,F$23*(Y25-L25))+ROUND($F$14*365/12,2)+(Summary!N17/12)*2 ->  | L70: 9 warm | M70: =C$22*MIN(I25,$L$64)+IF($L$64-I25>0,C$23*($L$64-I25))+ROUND($F$14*365/12,2)+(Summary!N17/12)*2 -> 155.3366667 | N70: =C$22*MIN(J25,$L$64)+IF($L$64-J25>0,C$23*($L$64-J25))+ROUND($F$14*365/12,2)+(Summary!N17/12)*2 -> 168.3462312 | O70: =D$22*MIN(I25,$L$64)+IF($L$64-I25>0,D$23*($L$64-I25))+ROUND($F$14*365/12,2)+(Summary!N17/12)*2 -> 150.8066667 | P70: =D$22*MIN(J25,$L$64)+IF($L$64-J25>0,D$23*($L$64-J25))+ROUND($F$14*365/12,2)+(Summary!N17/12)*2 -> 163.4692915 | Q70: =E$22*MIN(I25,$L$64)+IF($L$64-I25>0,E$23*($L$64-I25))+ROUND($F$14*365/12,2)+(Summary!N17/12)*2 ->  | R70: =E$22*MIN(J25,$L$64)+IF($L$64-J25>0,E$23*($L$64-J25))+ROUND($F$14*365/12,2)+(Summary!N17/12)*2 ->  | S70: =F$22*MIN(I25,$L$64)+IF($L$64-I25>0,F$23*($L$64-I25))+ROUND($F$14*365/12,2)+(Summary!N17/12)*2 ->  | T70: =F$22*MIN(J25,$L$64)+IF($L$64-J25>0,F$23*($L$64-J25))+ROUND($F$14*365/12,2)+(Summary!N17/12)*2 ->  | V70: 9 warm | W70: =C$28*MIN(I25,$L$64)+IF($L$64-I25>0,C$29*($L$64-I25))+ROUND($P$14*365/12,2)+(Summary!N17/12)*2 -> 100.7516667 | X70: =C$28*MIN(J25,$L$64)+IF($L$64-J25>0,C$29*($L$64-J25))+ROUND($P$14*365/12,2)+(Summary!N17/12)*2 -> 109.2172658 | Y70: =D$28*MIN(I25,$L$64)+IF($L$64-I25>0,D$29*($L$64-I25))+ROUND($P$14*365/12,2)+(Summary!N17/12)*2 -> 97.67666667 | Z70: =D$28*MIN(J25,$L$64)+IF($L$64-J25>0,D$29*($L$64-J25))+ROUND($P$14*365/12,2)+(Summary!N17/12)*2 -> 105.9168225 | AA70: =E$28*MIN(I25,$L$64)+IF($L$64-I25>0,E$29*($L$64-I25))+ROUND($P$14*365/12,2)+(Summary!N17/12)*2 ->  | AB70: =E$28*MIN(J25,$L$64)+IF($L$64-J25>0,E$29*($L$64-J25))+ROUND($P$14*365/12,2)+(Summary!N17/12)*2 ->  | AC70: =F$28*MIN(I25,$L$64)+IF($L$64-I25>0,F$29*($L$64-I25))+ROUND($P$14*365/12,2)+(Summary!N17/12)*2 ->  | AD70: =F$28*MIN(J25,$L$64)+IF($L$64-J25>0,F$29*($L$64-J25))+ROUND($P$14*365/12,2)+(Summary!N17/12)*2 -> 
B71: 10 hot (Sec 745) | C71: =C$22*MIN(K26,X26)+IF(X26-K26>0,C$23*(X26-K26))+ROUND($F$14*365/12,2)+(Summary!N17/12)*2 -> 188.5980899 | D71: =C$22*MIN(L26,Y26)+IF(Y26-L26>0,C$23*(Y26-L26))+ROUND($F$14*365/12,2)+(Summary!N17/12)*2 -> 138.3939334 | E71: =D$22*MIN(K26,X26)+IF(X26-K26>0,D$23*(X26-K26))+ROUND($F$14*365/12,2)+(Summary!N17/12)*2 -> 183.1766468 | F71: =D$22*MIN(L26,Y26)+IF(Y26-L26>0,D$23*(Y26-L26))+ROUND($F$14*365/12,2)+(Summary!N17/12)*2 -> 134.3188055 | G71: =E$22*MIN(K26,X26)+IF(X26-K26>0,E$23*(X26-K26))+ROUND($F$14*365/12,2)+(Summary!N17/12)*2 ->  | H71: =E$22*MIN(L26,Y26)+IF(Y26-L26>0,E$23*(Y26-L26))+ROUND($F$14*365/12,2)+(Summary!N17/12)*2 ->  | I71: =F$22*MIN(K26,X26)+IF(X26-K26>0,F$23*(X26-K26))+ROUND($F$14*365/12,2)+(Summary!N17/12)*2 ->  | J71: =F$22*MIN(L26,Y26)+IF(Y26-L26>0,F$23*(Y26-L26))+ROUND($F$14*365/12,2)+(Summary!N17/12)*2 ->  | L71: 10 hot (Sec 745) | M71: =C$22*MIN(I26,$L$64)+IF($L$64-I26>0,C$23*($L$64-I26))+ROUND($F$14*365/12,2)+(Summary!N17/12)*2 -> 155.3366667 | N71: =C$22*MIN(J26,$L$64)+IF($L$64-J26>0,C$23*($L$64-J26))+ROUND($F$14*365/12,2)+(Summary!N17/12)*2 -> 168.0531026 | O71: =D$22*MIN(I26,$L$64)+IF($L$64-I26>0,D$23*($L$64-I26))+ROUND($F$14*365/12,2)+(Summary!N17/12)*2 -> 150.8066667 | P71: =D$22*MIN(J26,$L$64)+IF($L$64-J26>0,D$23*($L$64-J26))+ROUND($F$14*365/12,2)+(Summary!N17/12)*2 -> 163.18398 | Q71: =E$22*MIN(I26,$L$64)+IF($L$64-I26>0,E$23*($L$64-I26))+ROUND($F$14*365/12,2)+(Summary!N17/12)*2 ->  | R71: =E$22*MIN(J26,$L$64)+IF($L$64-J26>0,E$23*($L$64-J26))+ROUND($F$14*365/12,2)+(Summary!N17/12)*2 ->  | S71: =F$22*MIN(I26,$L$64)+IF($L$64-I26>0,F$23*($L$64-I26))+ROUND($F$14*365/12,2)+(Summary!N17/12)*2 ->  | T71: =F$22*MIN(J26,$L$64)+IF($L$64-J26>0,F$23*($L$64-J26))+ROUND($F$14*365/12,2)+(Summary!N17/12)*2 ->  | V71: 10 hot (Sec 745) | W71: =C$28*MIN(I26,$L$64)+IF($L$64-I26>0,C$29*($L$64-I26))+ROUND($P$14*365/12,2)+(Summary!N17/12)*2 -> 100.7516667 | X71: =C$28*MIN(J26,$L$64)+IF($L$64-J26>0,C$29*($L$64-J26))+ROUND($P$14*365/12,2)+(Summary!N17/12)*2 -> 109.0265208 | Y71: =D$28*MIN(I26,$L$64)+IF($L$64-I26>0,D$29*($L$64-I26))+ROUND($P$14*365/12,2)+(Summary!N17/12)*2 -> 97.67666667 | Z71: =D$28*MIN(J26,$L$64)+IF($L$64-J26>0,D$29*($L$64-J26))+ROUND($P$14*365/12,2)+(Summary!N17/12)*2 -> 105.7311571 | AA71: =E$28*MIN(I26,$L$64)+IF($L$64-I26>0,E$29*($L$64-I26))+ROUND($P$14*365/12,2)+(Summary!N17/12)*2 ->  | AB71: =E$28*MIN(J26,$L$64)+IF($L$64-J26>0,E$29*($L$64-J26))+ROUND($P$14*365/12,2)+(Summary!N17/12)*2 ->  | AC71: =F$28*MIN(I26,$L$64)+IF($L$64-I26>0,F$29*($L$64-I26))+ROUND($P$14*365/12,2)+(Summary!N17/12)*2 ->  | AD71: =F$28*MIN(J26,$L$64)+IF($L$64-J26>0,F$29*($L$64-J26))+ROUND($P$14*365/12,2)+(Summary!N17/12)*2 -> 
B72: 13 hot | C72: =C$22*MIN(K27,X27)+IF(X27-K27>0,C$23*(X27-K27))+ROUND($F$14*365/12,2)+(Summary!N17/12)*2 -> 302.9125094 | D72: =C$22*MIN(L27,Y27)+IF(Y27-L27>0,C$23*(Y27-L27))+ROUND($F$14*365/12,2)+(Summary!N17/12)*2 -> 189.0882177 | E72: =D$22*MIN(K27,X27)+IF(X27-K27>0,D$23*(X27-K27))+ROUND($F$14*365/12,2)+(Summary!N17/12)*2 -> 294.423157 | F72: =D$22*MIN(L27,Y27)+IF(Y27-L27>0,D$23*(Y27-L27))+ROUND($F$14*365/12,2)+(Summary!N17/12)*2 -> 183.6520687 | G72: =E$22*MIN(K27,X27)+IF(X27-K27>0,E$23*(X27-K27))+ROUND($F$14*365/12,2)+(Summary!N17/12)*2 ->  | H72: =E$22*MIN(L27,Y27)+IF(Y27-L27>0,E$23*(Y27-L27))+ROUND($F$14*365/12,2)+(Summary!N17/12)*2 ->  | I72: =F$22*MIN(K27,X27)+IF(X27-K27>0,F$23*(X27-K27))+ROUND($F$14*365/12,2)+(Summary!N17/12)*2 ->  | J72: =F$22*MIN(L27,Y27)+IF(Y27-L27>0,F$23*(Y27-L27))+ROUND($F$14*365/12,2)+(Summary!N17/12)*2 ->  | L72: 13 hot | M72: =C$22*MIN(I27,$L$64)+IF($L$64-I27>0,C$23*($L$64-I27))+ROUND($F$14*365/12,2)+(Summary!N17/12)*2 -> 155.3366667 | N72: =C$22*MIN(J27,$L$64)+IF($L$64-J27>0,C$23*($L$64-J27))+ROUND($F$14*365/12,2)+(Summary!N17/12)*2 -> 167.7599739 | O72: =D$22*MIN(I27,$L$64)+IF($L$64-I27>0,D$23*($L$64-I27))+ROUND($F$14*365/12,2)+(Summary!N17/12)*2 -> 150.8066667 | P72: =D$22*MIN(J27,$L$64)+IF($L$64-J27>0,D$23*($L$64-J27))+ROUND($F$14*365/12,2)+(Summary!N17/12)*2 -> 162.8986685 | Q72: =E$22*MIN(I27,$L$64)+IF($L$64-I27>0,E$23*($L$64-I27))+ROUND($F$14*365/12,2)+(Summary!N17/12)*2 ->  | R72: =E$22*MIN(J27,$L$64)+IF($L$64-J27>0,E$23*($L$64-J27))+ROUND($F$14*365/12,2)+(Summary!N17/12)*2 ->  | S72: =F$22*MIN(I27,$L$64)+IF($L$64-I27>0,F$23*($L$64-I27))+ROUND($F$14*365/12,2)+(Summary!N17/12)*2 ->  | T72: =F$22*MIN(J27,$L$64)+IF($L$64-J27>0,F$23*($L$64-J27))+ROUND($F$14*365/12,2)+(Summary!N17/12)*2 ->  | V72: 13 hot | W72: =C$28*MIN(I27,$L$64)+IF($L$64-I27>0,C$29*($L$64-I27))+ROUND($P$14*365/12,2)+(Summary!N17/12)*2 -> 100.7516667 | X72: =C$28*MIN(J27,$L$64)+IF($L$64-J27>0,C$29*($L$64-J27))+ROUND($P$14*365/12,2)+(Summary!N17/12)*2 -> 108.8357758 | Y72: =D$28*MIN(I27,$L$64)+IF($L$64-I27>0,D$29*($L$64-I27))+ROUND($P$14*365/12,2)+(Summary!N17/12)*2 -> 97.67666667 | Z72: =D$28*MIN(J27,$L$64)+IF($L$64-J27>0,D$29*($L$64-J27))+ROUND($P$14*365/12,2)+(Summary!N17/12)*2 -> 105.5454918 | AA72: =E$28*MIN(I27,$L$64)+IF($L$64-I27>0,E$29*($L$64-I27))+ROUND($P$14*365/12,2)+(Summary!N17/12)*2 ->  | AB72: =E$28*MIN(J27,$L$64)+IF($L$64-J27>0,E$29*($L$64-J27))+ROUND($P$14*365/12,2)+(Summary!N17/12)*2 ->  | AC72: =F$28*MIN(I27,$L$64)+IF($L$64-I27>0,F$29*($L$64-I27))+ROUND($P$14*365/12,2)+(Summary!N17/12)*2 ->  | AD72: =F$28*MIN(J27,$L$64)+IF($L$64-J27>0,F$29*($L$64-J27))+ROUND($P$14*365/12,2)+(Summary!N17/12)*2 -> 
B73: 14 hot | C73: =C$22*MIN(K28,X28)+IF(X28-K28>0,C$23*(X28-K28))+ROUND($F$14*365/12,2)+(Summary!N17/12)*2 -> 230.8261685 | D73: =C$22*MIN(L28,Y28)+IF(Y28-L28>0,C$23*(Y28-L28))+ROUND($F$14*365/12,2)+(Summary!N17/12)*2 -> 190.5874874 | E73: =D$22*MIN(K28,X28)+IF(X28-K28>0,D$23*(X28-K28))+ROUND($F$14*365/12,2)+(Summary!N17/12)*2 -> 224.2716217 | F73: =D$22*MIN(L28,Y28)+IF(Y28-L28>0,D$23*(Y28-L28))+ROUND($F$14*365/12,2)+(Summary!N17/12)*2 -> 185.1110866 | G73: =E$22*MIN(K28,X28)+IF(X28-K28>0,E$23*(X28-K28))+ROUND($F$14*365/12,2)+(Summary!N17/12)*2 ->  | H73: =E$22*MIN(L28,Y28)+IF(Y28-L28>0,E$23*(Y28-L28))+ROUND($F$14*365/12,2)+(Summary!N17/12)*2 ->  | I73: =F$22*MIN(K28,X28)+IF(X28-K28>0,F$23*(X28-K28))+ROUND($F$14*365/12,2)+(Summary!N17/12)*2 ->  | J73: =F$22*MIN(L28,Y28)+IF(Y28-L28>0,F$23*(Y28-L28))+ROUND($F$14*365/12,2)+(Summary!N17/12)*2 ->  | L73: 14 hot | M73: =C$22*MIN(I28,$L$64)+IF($L$64-I28>0,C$23*($L$64-I28))+ROUND($F$14*365/12,2)+(Summary!N17/12)*2 -> 155.3366667 | N73: =C$22*MIN(J28,$L$64)+IF($L$64-J28>0,C$23*($L$64-J28))+ROUND($F$14*365/12,2)+(Summary!N17/12)*2 -> 168.6393598 | O73: =D$22*MIN(I28,$L$64)+IF($L$64-I28>0,D$23*($L$64-I28))+ROUND($F$14*365/12,2)+(Summary!N17/12)*2 -> 150.8066667 | P73: =D$22*MIN(J28,$L$64)+IF($L$64-J28>0,D$23*($L$64-J28))+ROUND($F$14*365/12,2)+(Summary!N17/12)*2 -> 163.7546029 | Q73: =E$22*MIN(I28,$L$64)+IF($L$64-I28>0,E$23*($L$64-I28))+ROUND($F$14*365/12,2)+(Summary!N17/12)*2 ->  | R73: =E$22*MIN(J28,$L$64)+IF($L$64-J28>0,E$23*($L$64-J28))+ROUND($F$14*365/12,2)+(Summary!N17/12)*2 ->  | S73: =F$22*MIN(I28,$L$64)+IF($L$64-I28>0,F$23*($L$64-I28))+ROUND($F$14*365/12,2)+(Summary!N17/12)*2 ->  | T73: =F$22*MIN(J28,$L$64)+IF($L$64-J28>0,F$23*($L$64-J28))+ROUND($F$14*365/12,2)+(Summary!N17/12)*2 ->  | V73: 14 hot | W73: =C$28*MIN(I28,$L$64)+IF($L$64-I28>0,C$29*($L$64-I28))+ROUND($P$14*365/12,2)+(Summary!N17/12)*2 -> 100.7516667 | X73: =C$28*MIN(J28,$L$64)+IF($L$64-J28>0,C$29*($L$64-J28))+ROUND($P$14*365/12,2)+(Summary!N17/12)*2 -> 109.4080108 | Y73: =D$28*MIN(I28,$L$64)+IF($L$64-I28>0,D$29*($L$64-I28))+ROUND($P$14*365/12,2)+(Summary!N17/12)*2 -> 97.67666667 | Z73: =D$28*MIN(J28,$L$64)+IF($L$64-J28>0,D$29*($L$64-J28))+ROUND($P$14*365/12,2)+(Summary!N17/12)*2 -> 106.1024879 | AA73: =E$28*MIN(I28,$L$64)+IF($L$64-I28>0,E$29*($L$64-I28))+ROUND($P$14*365/12,2)+(Summary!N17/12)*2 ->  | AB73: =E$28*MIN(J28,$L$64)+IF($L$64-J28>0,E$29*($L$64-J28))+ROUND($P$14*365/12,2)+(Summary!N17/12)*2 ->  | AC73: =F$28*MIN(I28,$L$64)+IF($L$64-I28>0,F$29*($L$64-I28))+ROUND($P$14*365/12,2)+(Summary!N17/12)*2 ->  | AD73: =F$28*MIN(J28,$L$64)+IF($L$64-J28>0,F$29*($L$64-J28))+ROUND($P$14*365/12,2)+(Summary!N17/12)*2 -> 
B74: 15 hot | C74: =C$22*MIN(K29,X29)+IF(X29-K29>0,C$23*(X29-K29))+ROUND($F$14*365/12,2)+(Summary!N17/12)*2 -> 283.1357388 | D74: =C$22*MIN(L29,Y29)+IF(Y29-L29>0,C$23*(Y29-L29))+ROUND($F$14*365/12,2)+(Summary!N17/12)*2 -> 143.1807737 | E74: =D$22*MIN(K29,X29)+IF(X29-K29>0,D$23*(X29-K29))+ROUND($F$14*365/12,2)+(Summary!N17/12)*2 -> 275.1766388 | F74: =D$22*MIN(L29,Y29)+IF(Y29-L29>0,D$23*(Y29-L29))+ROUND($F$14*365/12,2)+(Summary!N17/12)*2 -> 138.9771305 | G74: =E$22*MIN(K29,X29)+IF(X29-K29>0,E$23*(X29-K29))+ROUND($F$14*365/12,2)+(Summary!N17/12)*2 ->  | H74: =E$22*MIN(L29,Y29)+IF(Y29-L29>0,E$23*(Y29-L29))+ROUND($F$14*365/12,2)+(Summary!N17/12)*2 ->  | I74: =F$22*MIN(K29,X29)+IF(X29-K29>0,F$23*(X29-K29))+ROUND($F$14*365/12,2)+(Summary!N17/12)*2 ->  | J74: =F$22*MIN(L29,Y29)+IF(Y29-L29>0,F$23*(Y29-L29))+ROUND($F$14*365/12,2)+(Summary!N17/12)*2 ->  | L74: 15 hot | M74: =C$22*MIN(I29,$L$64)+IF($L$64-I29>0,C$23*($L$64-I29))+ROUND($F$14*365/12,2)+(Summary!N17/12)*2 -> 155.3366667 | N74: =C$22*MIN(J29,$L$64)+IF($L$64-J29>0,C$23*($L$64-J29))+ROUND($F$14*365/12,2)+(Summary!N17/12)*2 -> 175.0881897 | O74: =D$22*MIN(I29,$L$64)+IF($L$64-I29>0,D$23*($L$64-I29))+ROUND($F$14*365/12,2)+(Summary!N17/12)*2 -> 150.8066667 | P74: =D$22*MIN(J29,$L$64)+IF($L$64-J29>0,D$23*($L$64-J29))+ROUND($F$14*365/12,2)+(Summary!N17/12)*2 -> 170.031455 | Q74: =E$22*MIN(I29,$L$64)+IF($L$64-I29>0,E$23*($L$64-I29))+ROUND($F$14*365/12,2)+(Summary!N17/12)*2 ->  | R74: =E$22*MIN(J29,$L$64)+IF($L$64-J29>0,E$23*($L$64-J29))+ROUND($F$14*365/12,2)+(Summary!N17/12)*2 ->  | S74: =F$22*MIN(I29,$L$64)+IF($L$64-I29>0,F$23*($L$64-I29))+ROUND($F$14*365/12,2)+(Summary!N17/12)*2 ->  | T74: =F$22*MIN(J29,$L$64)+IF($L$64-J29>0,F$23*($L$64-J29))+ROUND($F$14*365/12,2)+(Summary!N17/12)*2 ->  | V74: 15 hot | W74: =C$28*MIN(I29,$L$64)+IF($L$64-I29>0,C$29*($L$64-I29))+ROUND($P$14*365/12,2)+(Summary!N17/12)*2 -> 100.7516667 | X74: =C$28*MIN(J29,$L$64)+IF($L$64-J29>0,C$29*($L$64-J29))+ROUND($P$14*365/12,2)+(Summary!N17/12)*2 -> 113.604401 | Y74: =D$28*MIN(I29,$L$64)+IF($L$64-I29>0,D$29*($L$64-I29))+ROUND($P$14*365/12,2)+(Summary!N17/12)*2 -> 97.67666667 | Z74: =D$28*MIN(J29,$L$64)+IF($L$64-J29>0,D$29*($L$64-J29))+ROUND($P$14*365/12,2)+(Summary!N17/12)*2 -> 110.187126 | AA74: =E$28*MIN(I29,$L$64)+IF($L$64-I29>0,E$29*($L$64-I29))+ROUND($P$14*365/12,2)+(Summary!N17/12)*2 ->  | AB74: =E$28*MIN(J29,$L$64)+IF($L$64-J29>0,E$29*($L$64-J29))+ROUND($P$14*365/12,2)+(Summary!N17/12)*2 ->  | AC74: =F$28*MIN(I29,$L$64)+IF($L$64-I29>0,F$29*($L$64-I29))+ROUND($P$14*365/12,2)+(Summary!N17/12)*2 ->  | AD74: =F$28*MIN(J29,$L$64)+IF($L$64-J29>0,F$29*($L$64-J29))+ROUND($P$14*365/12,2)+(Summary!N17/12)*2 -> 
B75: 16 cool | C75: =C$22*MIN(K30,X30)+IF(X30-K30>0,C$23*(X30-K30))+ROUND($F$14*365/12,2)+(Summary!N17/12)*2 -> 139.6076363 | D75: =C$22*MIN(L30,Y30)+IF(Y30-L30>0,C$23*(Y30-L30))+ROUND($F$14*365/12,2)+(Summary!N17/12)*2 -> 183.7432825 | E75: =D$22*MIN(K30,X30)+IF(X30-K30>0,D$23*(X30-K30))+ROUND($F$14*365/12,2)+(Summary!N17/12)*2 -> 135.5004991 | F75: =D$22*MIN(L30,Y30)+IF(Y30-L30>0,D$23*(Y30-L30))+ROUND($F$14*365/12,2)+(Summary!N17/12)*2 -> 178.4506323 | G75: =E$22*MIN(K30,X30)+IF(X30-K30>0,E$23*(X30-K30))+ROUND($F$14*365/12,2)+(Summary!N17/12)*2 ->  | H75: =E$22*MIN(L30,Y30)+IF(Y30-L30>0,E$23*(Y30-L30))+ROUND($F$14*365/12,2)+(Summary!N17/12)*2 ->  | I75: =F$22*MIN(K30,X30)+IF(X30-K30>0,F$23*(X30-K30))+ROUND($F$14*365/12,2)+(Summary!N17/12)*2 ->  | J75: =F$22*MIN(L30,Y30)+IF(Y30-L30>0,F$23*(Y30-L30))+ROUND($F$14*365/12,2)+(Summary!N17/12)*2 ->  | L75: 16 cool | M75: =C$22*MIN(I30,$L$64)+IF($L$64-I30>0,C$23*($L$64-I30))+ROUND($F$14*365/12,2)+(Summary!N17/12)*2 -> 160.4317582 | N75: =C$22*MIN(J30,$L$64)+IF($L$64-J30>0,C$23*($L$64-J30))+ROUND($F$14*365/12,2)+(Summary!N17/12)*2 -> 167.1737167 | O75: =D$22*MIN(I30,$L$64)+IF($L$64-I30>0,D$23*($L$64-I30))+ROUND($F$14*365/12,2)+(Summary!N17/12)*2 -> 155.765882 | P75: =D$22*MIN(J30,$L$64)+IF($L$64-J30>0,D$23*($L$64-J30))+ROUND($F$14*365/12,2)+(Summary!N17/12)*2 -> 162.3280456 | Q75: =E$22*MIN(I30,$L$64)+IF($L$64-I30>0,E$23*($L$64-I30))+ROUND($F$14*365/12,2)+(Summary!N17/12)*2 ->  | R75: =E$22*MIN(J30,$L$64)+IF($L$64-J30>0,E$23*($L$64-J30))+ROUND($F$14*365/12,2)+(Summary!N17/12)*2 ->  | S75: =F$22*MIN(I30,$L$64)+IF($L$64-I30>0,F$23*($L$64-I30))+ROUND($F$14*365/12,2)+(Summary!N17/12)*2 ->  | T75: =F$22*MIN(J30,$L$64)+IF($L$64-J30>0,F$23*($L$64-J30))+ROUND($F$14*365/12,2)+(Summary!N17/12)*2 ->  | V75: 16 cool | W75: =C$28*MIN(I30,$L$64)+IF($L$64-I30>0,C$29*($L$64-I30))+ROUND($P$14*365/12,2)+(Summary!N17/12)*2 -> 104.0671506 | X75: =C$28*MIN(J30,$L$64)+IF($L$64-J30>0,C$29*($L$64-J30))+ROUND($P$14*365/12,2)+(Summary!N17/12)*2 -> 108.4542858 | Y75: =D$28*MIN(I30,$L$64)+IF($L$64-I30>0,D$29*($L$64-I30))+ROUND($P$14*365/12,2)+(Summary!N17/12)*2 -> 100.9038576 | Z75: =D$28*MIN(J30,$L$64)+IF($L$64-J30>0,D$29*($L$64-J30))+ROUND($P$14*365/12,2)+(Summary!N17/12)*2 -> 105.174161 | AA75: =E$28*MIN(I30,$L$64)+IF($L$64-I30>0,E$29*($L$64-I30))+ROUND($P$14*365/12,2)+(Summary!N17/12)*2 ->  | AB75: =E$28*MIN(J30,$L$64)+IF($L$64-J30>0,E$29*($L$64-J30))+ROUND($P$14*365/12,2)+(Summary!N17/12)*2 ->  | AC75: =F$28*MIN(I30,$L$64)+IF($L$64-I30>0,F$29*($L$64-I30))+ROUND($P$14*365/12,2)+(Summary!N17/12)*2 ->  | AD75: =F$28*MIN(J30,$L$64)+IF($L$64-J30>0,F$29*($L$64-J30))+ROUND($P$14*365/12,2)+(Summary!N17/12)*2 -> 
B76: ALL | C76: =SUMPRODUCT(C67:C75,$AB$22:$AB$30) -> 157.7184258 | D76: =SUMPRODUCT(D67:D75,$AB$22:$AB$30) -> 128.8310289 | E76: =SUMPRODUCT(E67:E75,$AB$22:$AB$30) -> 153.1259497 | F76: 125.0126424 | G76: =SUMPRODUCT(G67:G75,$AB$22:$AB$30) ->  | I76: =SUMPRODUCT(I67:I75,$AB$22:$AB$30) ->  | L76: ALL | M76: =SUMPRODUCT(M67:M75,$T$22:$T$30) -> 159.9305075 | N76: 169.947062 | O76: 155.2779987 | P76: 165.0274312 | V76: ALL | W76: =SUMPRODUCT(W67:W75,$U$22:$U$30) -> 102.3477046 | X76: =SUMPRODUCT(X67:X75,$U$22:$U$30) -> 109.8294255 | Y76: 99.2302013 | Z76: 106.51268
C79: All-Electric - CARE
C80: =C50 -> Jan 2024 | E80: 2024-10-01 | G80: Authorized | I80: w/Pending
C81: Summer | D81: Winter | E81: Summer | F81: Winter | G81: Summer | H81: Winter | I81: Summer | J81: Winter
B82: =B52 -> 5 warm | C82: =C$28*MIN(K22,Z22)+IF(Z22-K22>0,C$29*(Z22-K22))+ROUND($P$14*365/12,2)+(Summary!N17/12)*2 -> 73.76665719 | D82: =C$28*MIN(L22,AA22)+IF(AA22-L22>0,C$29*(AA22-L22))+ROUND($P$14*365/12,2)+(Summary!N17/12)*2 -> 103.9721913 | E82: =D$28*MIN(K22,Z22)+IF(Z22-K22>0,D$29*(Z22-K22))+ROUND($P$14*365/12,2)+(Summary!N17/12)*2 -> 71.41728269 | F82: =D$28*MIN(L22,AA22)+IF(AA22-L22>0,D$29*(AA22-L22))+ROUND($P$14*365/12,2)+(Summary!N17/12)*2 -> 100.8105915 | G82: =E$28*MIN(K22,Z22)+IF(Z22-K22>0,E$29*(Z22-K22))+ROUND($P$14*365/12,2)+(Summary!N17/12)*2 ->  | H82: =E$28*MIN(L22,AA22)+IF(AA22-L22>0,E$29*(AA22-L22))+ROUND($P$14*365/12,2)+(Summary!N17/12)*2 ->  | I82: =F$28*MIN(K22,Z22)+IF(Z22-K22>0,F$29*(Z22-K22))+ROUND($P$14*365/12,2)+(Summary!N17/12)*2 ->  | J82: =F$28*MIN(L22,AA22)+IF(AA22-L22>0,F$29*(AA22-L22))+ROUND($P$14*365/12,2)+(Summary!N17/12)*2 -> 
B83: 6 cool | C83: =C$28*MIN(K23,Z23)+IF(Z23-K23>0,C$29*(Z23-K23))+ROUND($P$14*365/12,2)+(Summary!N17/12)*2 -> 73.26021609 | D83: =C$28*MIN(L23,AA23)+IF(AA23-L23>0,C$29*(AA23-L23))+ROUND($P$14*365/12,2)+(Summary!N17/12)*2 -> 75.98210254 | E83: =D$28*MIN(K23,Z23)+IF(Z23-K23>0,D$29*(Z23-K23))+ROUND($P$14*365/12,2)+(Summary!N17/12)*2 -> 70.92593024 | F83: =D$28*MIN(L23,AA23)+IF(AA23-L23>0,D$29*(AA23-L23))+ROUND($P$14*365/12,2)+(Summary!N17/12)*2 -> 73.57326265 | G83: =E$28*MIN(K23,Z23)+IF(Z23-K23>0,E$29*(Z23-K23))+ROUND($P$14*365/12,2)+(Summary!N17/12)*2 ->  | H83: =E$28*MIN(L23,AA23)+IF(AA23-L23>0,E$29*(AA23-L23))+ROUND($P$14*365/12,2)+(Summary!N17/12)*2 ->  | I83: =F$28*MIN(K23,Z23)+IF(Z23-K23>0,F$29*(Z23-K23))+ROUND($P$14*365/12,2)+(Summary!N17/12)*2 ->  | J83: =F$28*MIN(L23,AA23)+IF(AA23-L23>0,F$29*(AA23-L23))+ROUND($P$14*365/12,2)+(Summary!N17/12)*2 -> 
B84: 8 cool | C84: =C$28*MIN(K24,Z24)+IF(Z24-K24>0,C$29*(Z24-K24))+ROUND($P$14*365/12,2)+(Summary!N17/12)*2 -> 82.73738261 | D84: =C$28*MIN(L24,AA24)+IF(AA24-L24>0,C$29*(AA24-L24))+ROUND($P$14*365/12,2)+(Summary!N17/12)*2 -> 76.22347842 | E84: =D$28*MIN(K24,Z24)+IF(Z24-K24>0,D$29*(Z24-K24))+ROUND($P$14*365/12,2)+(Summary!N17/12)*2 -> 80.14831927 | F84: =D$28*MIN(L24,AA24)+IF(AA24-L24>0,D$29*(AA24-L24))+ROUND($P$14*365/12,2)+(Summary!N17/12)*2 -> 73.80827793 | G84: =E$28*MIN(K24,Z24)+IF(Z24-K24>0,E$29*(Z24-K24))+ROUND($P$14*365/12,2)+(Summary!N17/12)*2 ->  | H84: =E$28*MIN(L24,AA24)+IF(AA24-L24>0,E$29*(AA24-L24))+ROUND($P$14*365/12,2)+(Summary!N17/12)*2 ->  | I84: =F$28*MIN(K24,Z24)+IF(Z24-K24>0,F$29*(Z24-K24))+ROUND($P$14*365/12,2)+(Summary!N17/12)*2 ->  | J84: =F$28*MIN(L24,AA24)+IF(AA24-L24>0,F$29*(AA24-L24))+ROUND($P$14*365/12,2)+(Summary!N17/12)*2 -> 
B85: 9 warm | C85: =C$28*MIN(K25,Z25)+IF(Z25-K25>0,C$29*(Z25-K25))+ROUND($P$14*365/12,2)+(Summary!N17/12)*2 -> 95.14934981 | D85: =C$28*MIN(L25,AA25)+IF(AA25-L25>0,C$29*(AA25-L25))+ROUND($P$14*365/12,2)+(Summary!N17/12)*2 -> 74.3297232 | E85: =D$28*MIN(K25,Z25)+IF(Z25-K25>0,D$29*(Z25-K25))+ROUND($P$14*365/12,2)+(Summary!N17/12)*2 -> 92.22621249 | F85: =D$28*MIN(L25,AA25)+IF(AA25-L25>0,D$29*(AA25-L25))+ROUND($P$14*365/12,2)+(Summary!N17/12)*2 -> 71.96520789 | G85: =E$28*MIN(K25,Z25)+IF(Z25-K25>0,E$29*(Z25-K25))+ROUND($P$14*365/12,2)+(Summary!N17/12)*2 ->  | H85: =E$28*MIN(L25,AA25)+IF(AA25-L25>0,E$29*(AA25-L25))+ROUND($P$14*365/12,2)+(Summary!N17/12)*2 ->  | I85: =F$28*MIN(K25,Z25)+IF(Z25-K25>0,F$29*(Z25-K25))+ROUND($P$14*365/12,2)+(Summary!N17/12)*2 ->  | J85: =F$28*MIN(L25,AA25)+IF(AA25-L25>0,F$29*(AA25-L25))+ROUND($P$14*365/12,2)+(Summary!N17/12)*2 -> 
B86: 10 hot (Sec 745) | C86: =C$28*MIN(K26,Z26)+IF(Z26-K26>0,C$29*(Z26-K26))+ROUND($P$14*365/12,2)+(Summary!N17/12)*2 -> 126.5005105 | D86: =C$28*MIN(L26,AA26)+IF(AA26-L26>0,C$29*(AA26-L26))+ROUND($P$14*365/12,2)+(Summary!N17/12)*2 -> 85.50845497 | E86: =D$28*MIN(K26,Z26)+IF(Z26-K26>0,D$29*(Z26-K26))+ROUND($P$14*365/12,2)+(Summary!N17/12)*2 -> 122.7347718 | F86: =D$28*MIN(L26,AA26)+IF(AA26-L26>0,D$29*(AA26-L26))+ROUND($P$14*365/12,2)+(Summary!N17/12)*2 -> 82.84334414 | G86: =E$28*MIN(K26,Z26)+IF(Z26-K26>0,E$29*(Z26-K26))+ROUND($P$14*365/12,2)+(Summary!N17/12)*2 ->  | H86: =E$28*MIN(L26,AA26)+IF(AA26-L26>0,E$29*(AA26-L26))+ROUND($P$14*365/12,2)+(Summary!N17/12)*2 ->  | I86: =F$28*MIN(K26,Z26)+IF(Z26-K26>0,F$29*(Z26-K26))+ROUND($P$14*365/12,2)+(Summary!N17/12)*2 ->  | J86: =F$28*MIN(L26,AA26)+IF(AA26-L26>0,F$29*(AA26-L26))+ROUND($P$14*365/12,2)+(Summary!N17/12)*2 -> 
B87: 13 hot | C87: =C$28*MIN(K27,Z27)+IF(Z27-K27>0,C$29*(Z27-K27))+ROUND($P$14*365/12,2)+(Summary!N17/12)*2 -> 192.9741174 | D87: =C$28*MIN(L27,AA27)+IF(AA27-L27>0,C$29*(AA27-L27))+ROUND($P$14*365/12,2)+(Summary!N17/12)*2 -> 117.1448796 | E87: =D$28*MIN(K27,Z27)+IF(Z27-K27>0,D$29*(Z27-K27))+ROUND($P$14*365/12,2)+(Summary!N17/12)*2 -> 187.4213944 | F87: =D$28*MIN(L27,AA27)+IF(AA27-L27>0,D$29*(AA27-L27))+ROUND($P$14*365/12,2)+(Summary!N17/12)*2 -> 113.629067 | G87: =E$28*MIN(K27,Z27)+IF(Z27-K27>0,E$29*(Z27-K27))+ROUND($P$14*365/12,2)+(Summary!N17/12)*2 ->  | H87: =E$28*MIN(L27,AA27)+IF(AA27-L27>0,E$29*(AA27-L27))+ROUND($P$14*365/12,2)+(Summary!N17/12)*2 ->  | I87: =F$28*MIN(K27,Z27)+IF(Z27-K27>0,F$29*(Z27-K27))+ROUND($P$14*365/12,2)+(Summary!N17/12)*2 ->  | J87: =F$28*MIN(L27,AA27)+IF(AA27-L27>0,F$29*(AA27-L27))+ROUND($P$14*365/12,2)+(Summary!N17/12)*2 -> 
B88: 14 hot | C88: =C$28*MIN(K28,Z28)+IF(Z28-K28>0,C$29*(Z28-K28))+ROUND($P$14*365/12,2)+(Summary!N17/12)*2 -> 169.7550222 | D88: =C$28*MIN(L28,AA28)+IF(AA28-L28>0,C$29*(AA28-L28))+ROUND($P$14*365/12,2)+(Summary!N17/12)*2 -> 141.7129067 | E88: =D$28*MIN(K28,Z28)+IF(Z28-K28>0,D$29*(Z28-K28))+ROUND($P$14*365/12,2)+(Summary!N17/12)*2 -> 164.827577 | F88: =D$28*MIN(L28,AA28)+IF(AA28-L28>0,D$29*(AA28-L28))+ROUND($P$14*365/12,2)+(Summary!N17/12)*2 -> 137.5369373 | G88: =E$28*MIN(K28,Z28)+IF(Z28-K28>0,E$29*(Z28-K28))+ROUND($P$14*365/12,2)+(Summary!N17/12)*2 ->  | H88: =E$28*MIN(L28,AA28)+IF(AA28-L28>0,E$29*(AA28-L28))+ROUND($P$14*365/12,2)+(Summary!N17/12)*2 ->  | I88: =F$28*MIN(K28,Z28)+IF(Z28-K28>0,F$29*(Z28-K28))+ROUND($P$14*365/12,2)+(Summary!N17/12)*2 ->  | J88: =F$28*MIN(L28,AA28)+IF(AA28-L28>0,F$29*(AA28-L28))+ROUND($P$14*365/12,2)+(Summary!N17/12)*2 -> 
B89: 15 hot | C89: =C$28*MIN(K29,Z29)+IF(Z29-K29>0,C$29*(Z29-K29))+ROUND($P$14*365/12,2)+(Summary!N17/12)*2 -> 227.3219326 | D89: =C$28*MIN(L29,AA29)+IF(AA29-L29>0,C$29*(AA29-L29))+ROUND($P$14*365/12,2)+(Summary!N17/12)*2 -> 104.1551312 | E89: =D$28*MIN(K29,Z29)+IF(Z29-K29>0,D$29*(Z29-K29))+ROUND($P$14*365/12,2)+(Summary!N17/12)*2 -> 220.8475938 | F89: =D$28*MIN(L29,AA29)+IF(AA29-L29>0,D$29*(AA29-L29))+ROUND($P$14*365/12,2)+(Summary!N17/12)*2 -> 100.9886122 | G89: =E$28*MIN(K29,Z29)+IF(Z29-K29>0,E$29*(Z29-K29))+ROUND($P$14*365/12,2)+(Summary!N17/12)*2 ->  | H89: =E$28*MIN(L29,AA29)+IF(AA29-L29>0,E$29*(AA29-L29))+ROUND($P$14*365/12,2)+(Summary!N17/12)*2 ->  | I89: =F$28*MIN(K29,Z29)+IF(Z29-K29>0,F$29*(Z29-K29))+ROUND($P$14*365/12,2)+(Summary!N17/12)*2 ->  | J89: =F$28*MIN(L29,AA29)+IF(AA29-L29>0,F$29*(AA29-L29))+ROUND($P$14*365/12,2)+(Summary!N17/12)*2 -> 
B90: 16 cool | C90: =C$28*MIN(K30,Z30)+IF(Z30-K30>0,C$29*(Z30-K30))+ROUND($P$14*365/12,2)+(Summary!N17/12)*2 -> 146.4841977 | D90: =C$28*MIN(L30,AA30)+IF(AA30-L30>0,C$29*(AA30-L30))+ROUND($P$14*365/12,2)+(Summary!N17/12)*2 -> 122.7525781 | E90: =D$28*MIN(K30,Z30)+IF(Z30-K30>0,D$29*(Z30-K30))+ROUND($P$14*365/12,2)+(Summary!N17/12)*2 -> 142.1831465 | F90: =D$28*MIN(L30,AA30)+IF(AA30-L30>0,D$29*(AA30-L30))+ROUND($P$14*365/12,2)+(Summary!N17/12)*2 -> 119.0859748 | G90: =E$28*MIN(K30,Z30)+IF(Z30-K30>0,E$29*(Z30-K30))+ROUND($P$14*365/12,2)+(Summary!N17/12)*2 ->  | H90: =E$28*MIN(L30,AA30)+IF(AA30-L30>0,E$29*(AA30-L30))+ROUND($P$14*365/12,2)+(Summary!N17/12)*2 ->  | I90: =F$28*MIN(K30,Z30)+IF(Z30-K30>0,F$29*(Z30-K30))+ROUND($P$14*365/12,2)+(Summary!N17/12)*2 ->  | J90: =F$28*MIN(L30,AA30)+IF(AA30-L30>0,F$29*(AA30-L30))+ROUND($P$14*365/12,2)+(Summary!N17/12)*2 -> 
B91: ALL | C91: =SUMPRODUCT(C82:C90,$AC$22:$AC$30) -> 122.23289 | D91: =SUMPRODUCT(D82:D90,$AC$22:$AC$30) -> 89.91272402 | E91: 118.5821562 | F91: 87.1292779 | J91: =SUMPRODUCT(J82:J90,$AC$22:$AC$30) -> 
F95: 2024 | G95: 2025 | H95: 2026 | I95: 2027 | J95: 2028 | M95: 2024 | N95: 2025 | O95: 2026 | P95: 2027 | Q95: 2028
F96: Non-CARE | G96: Non-CARE | H96: Non-CARE | I96: Non-CARE | J96: Non-CARE | M96: CARE | N96: CARE | O96: CARE | P96: CARE | Q96: CARE
A97: 3 | D97: Baseline - Summer | F97: 3287.495023 | G97: 2995.578687 | H97: 3079.687191 | I97: 3237.557979 | J97: 3377.559548 | M97: 1689.937435 | N97: 1727.822617 | O97: 1776.33564 | P97: 1271.053725 | Q97: 1222.390317
A98: =A97+1 -> 4 | D98: - Winter | F98: 4300.402818 | G98: 4206.230226 | H98: 4324.330857 | I98: 5165.582922 | J98: 5479.050398 | M98: 2368.755339 | N98: 2572.346002 | O98: 2644.57117 | P98: 2000.926418 | Q98: 1961.500084
A99: =A98+1 -> 5 | D99: 101% - 400% of Baseline - Summer | F99: 2032.586852 | G99: 1854.550956 | H99: 1906.622199 | I99: 1959.810966 | J99: 2044.968462 | M99: 712.7216767 | N99: 725.1004303 | O99: 745.4594723 | P99: 527.9987271 | Q99: 508.0555877
A100: 6 | D100: - Winter | F100: 2626.223182 | G100: 2564.092029 | H100: 2636.085446 | I100: 3096.980113 | J100: 3295.315998 | M100: 963.0257777 | N100: 1042.475822 | O100: 1071.745987 | P100: 797.4422387 | Q100: 785.5776148
A101: 7 | D101: 401% of Baseline - Summer | F101: 161.2501891 | G101: 147.0668915 | H101: 151.1961692 | I101: 155.2308471 | J101: 162.0989274 | M101: 8.134685164 | N101: 8.254269406 | O101: 8.486029051 | P101: 6.00397581 | Q101: 5.799047516
A102: 8 | D102: - Winter | F102: 264.3892374 | G102: 257.5241032 | H102: 264.7547485 | I102: 306.924138 | J102: 327.9959315 | M102: 18.41246945 | N102: 19.82421382 | O102: 20.38082913 | P102: 14.65855515 | Q102: 14.63297607
A103: 9
A104: 10 | D104: Basic Charge - Single-Family Residence | F104: 19603314.91 | G104: =$F107/SUM($F$107:$F$108)*G$108 -> 18805989.44 | H104: 18907439.19 | I104: 19184179.45 | J104: 19113717.36 | M104: 6331622.207 | N104: =$M107/SUM($M$107:$M$108)*N$108 -> 6440477.497 | O104: 6475220.94 | P104: 5359268.386 | Q104: 5281828.318
A105: 11 | D105: Basic Charge - Multi-Family Residence | F105: 8917593.383 | G105: 8554888.18 | H105: 8601037.906 | I105: 8726927.692 | J105: 8694874.325 | M105: 5316184.884 | N105: 5407582.448 | O105: 5436753.893 | P105: 4499772.831 | Q105: 4434752.255
F107: =F104/SUM(F$104:F$105) -> 0.6873313679 | G107: =SUM(G97:G102) -> 12025.04289 | H107: =SUM(H97:H102) -> 12362.67661 | I107: =SUM(I97:I102) -> 13922.08697 | J107: =SUM(J97:J102) -> 14686.98926 | M107: =M104/SUM(M$104:M$105) -> 0.5435892059 | N107: =SUM(N97:N102) -> 6095.823354 | O107: =SUM(O97:O102) -> 6266.979127 | P107: =SUM(P97:P102) -> 4618.083639 | Q107: =SUM(Q97:Q102) -> 4497.955627
E108: Customers | F108: =F105/SUM(F$104:F$105) -> 0.3126686321 | G108: 27360877.62 | H108: 27508477.1 | I108: 27911107.14 | J108: 27808591.69 | M108: =M105/SUM(M$104:M$105) -> 0.4564107941 | N108: 11848059.95 | O108: 11911974.83 | P108: 9859041.218 | Q108: 9716580.573

Sheet Simple Bill Insert Calc (2)
B2: Inputs: | K2: Assumptions:
K3: Current Effective Rates | M3: =Summary!N3 -> 2024-10-01
C4: Baseline Region - (Residential bill) | D4: 8 cool | K4: Sales Forecast | M4: 2024
C5: Typical residential average usage kWh/month | D5: 500 | K5: Residential bill calculated using | M5: Schedule D, Basic, Single Family
C6: Include CA Climate Credit in Rates | D6: N | K6: Non-CARE bill impact calculated with average summer usage of | O6: =IF($D$4="All",SUMPRODUCT('Res Bill Impact (2)'!P$22:P$30,'Res Bill Impact (2)'!$T$22:$T$30),VLOOKUP(D$4,'Res Bill Impact (2)'!$O$22:$S$30,2,FALSE)) -> 530.8622287 | P6: kWh per month
D7: Revenue Change | K7: Non-CARE bill impact calculated with average winter usage of | O7: =IF($D$4="All",SUMPRODUCT('Res Bill Impact (2)'!Q$22:Q$30,'Res Bill Impact (2)'!$T$22:$T$30),VLOOKUP(D$4,'Res Bill Impact (2)'!$O$22:$S$30,3,FALSE)) -> 414.1554448 | P7: kWh per month
C8: Generation | K8: CARE bill impact calculated with average summer usage of | O8: =IF($D$4="All",SUMPRODUCT('Res Bill Impact (2)'!R$22:R$30,'Res Bill Impact (2)'!$U$22:$U$30),VLOOKUP(D$4,'Res Bill Impact (2)'!$O$22:$S$30,4,FALSE)) -> 464.558938 | P8: kWh per month
C9: Distribution | K9: CARE bill impact calculated with average winter usage of | O9: =IF($D$4="All",SUMPRODUCT('Res Bill Impact (2)'!S$22:S$30,'Res Bill Impact (2)'!$U$22:$U$30),VLOOKUP(D$4,'Res Bill Impact (2)'!$O$22:$S$30,5,FALSE)) -> 385.4566077 | P9: kWh per month
C10: Nuclear | K10: Essential Use (Basic) bill impact calculated with average summer usage of | O10: =IF($D$4="All",SUMPRODUCT('Res Bill Impact (2)'!I$22:I$30,'Res Bill Impact (2)'!$T$22:$T$30),VLOOKUP($D$4,'Res Bill Impact (2)'!$H$22:$L$30,2,FALSE)) -> 389.3376 | P10: kWh per month
C11: Public Purpose | K11: Essential Use (Basic) bill impact calculated with average winter usage of | O11: =IF($D$4="All",SUMPRODUCT('Res Bill Impact (2)'!J$22:J$30,'Res Bill Impact (2)'!$T$22:$T$30),VLOOKUP($D$4,'Res Bill Impact (2)'!$H$22:$L$30,3,FALSE)) -> 313.2951 | P11: kWh per month
C12: DCPP | K12: Essential Use (All-Electric) bill impact calculated with average summer usage of | O12: =IF($D$4="All",SUMPRODUCT('Res Bill Impact (2)'!K$22:K$30,'Res Bill Impact (2)'!$T$22:$T$30),VLOOKUP($D$4,'Res Bill Impact (2)'!$H$22:$L$30,4,FALSE)) -> 301.1283 | P12: kWh per month
C13: New System Gen | K13: Essential Use (All-Electric) bill impact calculated with average winter usage of | O13: =IF($D$4="All",SUMPRODUCT('Res Bill Impact (2)'!L$22:L$30,'Res Bill Impact (2)'!$T$22:$T$30),VLOOKUP($D$4,'Res Bill Impact (2)'!$H$22:$L$30,5,FALSE)) -> 374.1291 | P13: kWh per month
C14: FERC | K14: Average monthly usage is for all customers (Non-CARE and CARE) based on seasonal usage in | Q14: 2023
C15: TOTCA | K15: Summer season | M15: 4 | N15: months
C16: GHG Revenue | K16: Winter Season | M16: 8 | N16: months
C17: DWR | K17: Residential Bi-Annual Climate Credit | M17: -86
C18: PUCRF
C19: SECURITIZATION
C20: Total | D20: =SUM(D8:D19) -> 0
B21: Outputs:
D22: (A) | E22: (B) | F22: (C) | G22: (C)/(A) | H22: (C)/(B) | L22: (A) | M22: (B) | N22: (C) | O22: (C)/(A) | P22: (C)/(B)
B23: Bundled Average Rates - ¢/kWh | J23: Total System (Bundled and Unbundled) Average Rates - ¢/kWh
B24: Customer Group | D24: 2024-01-01 | E24: =M3 -> 2024-10-01 | F24: Proposed | G24: % Change over 1/1/2024 | H24: % Change over Current | J24: Customer Group | L24: =$D$24 -> 2024-01-01 | M24: =$E$24 -> 2024-10-01 | N24: Proposed | O24: =$G$24 -> % Change over 1/1/2024 | P24: % Change over Current
B25: Residential | D25: =IF(D6="Y",'SAR and RAR'!W28,'SAR and RAR'!X28) -> 33.3931272 | E25: ='SAR and RAR (2)'!F24 -> 32.48904534 | F25: ='SAR and RAR (2)'!G24 -> 32.48904534 | G25: =$F25/D25-1 -> -0.02707389013 | H25: 0 | J25: Total Residential (RAR) | L25: =IF(D6="Y",'SAR and RAR'!Z28,'SAR and RAR'!AA28) -> 29.10809807 | M25: ='SAR and RAR (2)'!N24 -> 28.95523483 | N25: ='SAR and RAR (2)'!O24 -> 28.95523483 | O25: =$N25/L25-1 -> -0.005251570859 | P25: 0
C26: Small Commercial | D26: =IF(D6="Y",'SAR and AR (GS1)'!W28,'SAR and AR (GS1)'!X28) -> 30.14551612 | E26: ='SAR and AR (GS1) (2)'!G24 -> 28.73720747 | F26: ='SAR and AR (GS1) (2)'!H24 -> 28.73720747 | G26: -0.04671701915 | H26: 0 | K26: Small Commercial (AR) | L26: =IF(D6="Y",'SAR and AR (GS1)'!Z28,'SAR and AR (GS1)'!AA28) -> 26.47868339 | M26: ='SAR and AR (GS1) (2)'!O24 -> 25.68007636 | N26: ='SAR and AR (GS1) (2)'!P24 -> 25.68007636 | O26: -0.03016037547 | P26: 0
B27: System | D27: =IF(D6="Y",'SAR and RAR'!W29,'SAR and RAR'!X29) -> 28.1784653 | E27: ='SAR and RAR (2)'!F25 -> 27.22240766 | F27: ='SAR and RAR (2)'!G25 -> 27.22240766 | G27: -0.03392866231 | H27: 0 | J27: Total System (SAR) | L27: =IF(D6="Y",'SAR and RAR'!Z29,'SAR and RAR'!AA29) -> 23.14130572 | M27: ='SAR and RAR (2)'!N25 -> 22.890967 | N27: ='SAR and RAR (2)'!O25 -> 22.890967 | O27: -0.0108178306 | P27: 0
B30: Bundled Residential Monthly Average Bills
D31: =$D$24 -> 2024-01-01 | E31: =$E$24 -> 2024-10-01 | F31: Proposed | G31: =$G$24 -> % Change over 1/1/2024 | H31: % Change over Current
B32: Non-CARE | D32: =((D39*4)+(D45*8))/12 -> 150.5217039 | E32: 146.1229543 | F32: 146.1229543 | G32: =$F32/D32-1 -> -0.02922335799 | H32: 0
B33: CARE | D33: 85.1741542 | E33: 82.51922326 | F33: 82.51922326 | G33: -0.03117061699 | H33: 0
B34: Total | D34: 127.6500615 | E34: 123.8616484 | F34: 123.8616484 | G34: -0.02967811412 | H34: 0
B36: Seasonality:
B37: Bundled Residential Monthly Average Bills - Summer
D38: =$D$24 -> 2024-01-01 | E38: =$E$24 -> 2024-10-01 | F38: Proposed | G38: =$G$24 -> % Change over 1/1/2024 | H38: % Change over Current
B39: Non-CARE | D39: =VLOOKUP($D$4,'Res Bill Impact (2)'!$B$37:$H$46,2,FALSE) -> 179.3901628 | E39: =VLOOKUP($D$4,'Res Bill Impact (2)'!$B$37:$H$46,4,FALSE) -> 174.2168327 | F39: =VLOOKUP($D$4,'Res Bill Impact (2)'!$B$37:$H$46,6,FALSE) -> 174.2168327 | G39: =$F39/D39-1 -> -0.02883842685 | H39: 0
B40: CARE | D40: =VLOOKUP($D$4,'Res Bill Impact (2)'!$B$52:$H$61,2,FALSE) -> 97.36307149 | E40: =VLOOKUP($D$4,'Res Bill Impact (2)'!$B$52:$H$61,4,FALSE) -> 94.38041439 | F40: =VLOOKUP($D$4,'Res Bill Impact (2)'!$B$52:$H$61,6,FALSE) -> 94.38041439 | G40: -0.03063437767 | H40: 0
B41: Total | D41: =D39*0.65+D40*0.35 -> 150.6806809 | E41: =E39*0.65+E40*0.35 -> 146.2740863 | F41: =F39*0.65+F40*0.35 -> 146.2740863 | G41: -0.02924458874 | H41: 0
B43: Bundled Residential Monthly Average Bills - Winter
D44: =$D$24 -> 2024-01-01 | E44: =$E$24 -> 2024-10-01 | F44: Proposed | G44: =$G$24 -> % Change over 1/1/2024 | H44: % Change over Current
B45: Non-CARE | D45: =VLOOKUP($D$4,'Res Bill Impact (2)'!$B$37:$H$46,3,FALSE) -> 136.0874745 | E45: =VLOOKUP($D$4,'Res Bill Impact (2)'!$B$37:$H$46,5,FALSE) -> 132.0760151 | F45: =VLOOKUP($D$4,'Res Bill Impact (2)'!$B$37:$H$46,7,FALSE) -> 132.0760151 | G45: =$F45/D45-1 -> -0.02947706562 | H45: 0
B46: CARE | D46: =VLOOKUP($D$4,'Res Bill Impact (2)'!$B$52:$H$61,3,FALSE) -> 79.07969555 | E46: =VLOOKUP($D$4,'Res Bill Impact (2)'!$B$52:$H$61,5,FALSE) -> 76.5886277 | F46: =VLOOKUP($D$4,'Res Bill Impact (2)'!$B$52:$H$61,7,FALSE) -> 76.5886277 | G46: -0.03150072642 | H46: 0
B47: Total | D47: =D45*0.65+D46*0.35 -> 116.1347519 | E47: =E45*0.65+E46*0.35 -> 112.6554295 | F47: =F45*0.65+F46*0.35 -> 112.6554295 | G47: -0.02995935595 | H47: 0
B50: Bundled Residential Monthly Average Bills
D51: =$D$24 -> 2024-01-01 | E51: =$E$24 -> 2024-10-01 | F51: =$F$24 -> Proposed | G51: =$G$24 -> % Change over 1/1/2024 | H51: % Change over Current
B52: Essential Use (Basic) - Non-CARE | D52: =((D59*4)+(D66*8))/12 -> 100.8849985 | E52: 97.81689651 | F52: 97.81689651 | G52: =$F52/D52-1 -> -0.03041187493 | H52: 0
B53: Essential Use (Basic) - CARE | D53: 63.84761571 | E53: 61.76496372 | F53: 61.76496372 | G53: -0.03261910358 | H53: 0
B54: Essential Use (All-Electric) - Non-CARE | D54: 104.6486561 | E54: 101.4795089 | F54: 101.4795089 | G54: -0.0302836878 | H54: 0
B55: Essential Use (All-Electric) - CARE | D55: =((D62*4)+(D69*8))/12 -> 66.39839547 | E55: =((E62*4)+(E69*8))/12 -> 64.24715315 | F55: =((F62*4)+(F69*8))/12 -> 64.24715315 | G55: -0.03239901069 | H55: 0
B57: Bundled Residential Monthly Average Bills - Summer
D58: =$D$24 -> 2024-01-01 | E58: =$E$24 -> 2024-10-01 | F58: =$F$24 -> Proposed | G58: =$G$24 -> % Change over 1/1/2024 | H58: % Change over Current
B59: Essential Use (Basic) - Non-CARE | D59: =VLOOKUP($D$4,'Res Bill Impact (2)'!$J$37:$P$46,2,FALSE) -> 117.9925332 | E59: =VLOOKUP($D$4,'Res Bill Impact (2)'!$J$37:$P$46,4,FALSE) -> 114.4651345 | F59: =VLOOKUP($D$4,'Res Bill Impact (2)'!$J$37:$P$46,6,FALSE) -> 114.4651345 | G59: =$F59/D59-1 -> -0.02989510066 | H59: 0
B60: Essential Use (Basic) - CARE | D60: =VLOOKUP($D$4,'Res Bill Impact (2)'!$R$37:$X$46,2,FALSE) -> 75.44206916 | E60: =VLOOKUP($D$4,'Res Bill Impact (2)'!$R$37:$X$46,4,FALSE) -> 73.04764292 | F60: =VLOOKUP($D$4,'Res Bill Impact (2)'!$R$37:$X$46,6,FALSE) -> 73.04764292 | G60: -0.03173860774 | H60: 0
B61: Essential Use (All-Electric) - Non-CARE | D61: =VLOOKUP($D$4,'Res Bill Impact (2)'!$J$52:$P$61,2,FALSE) -> 88.22542278 | E61: =VLOOKUP($D$4,'Res Bill Impact (2)'!$J$52:$P$61,4,FALSE) -> 85.49720039 | F61: =VLOOKUP($D$4,'Res Bill Impact (2)'!$J$52:$P$61,6,FALSE) -> 85.49720039 | G61: -0.03092331339 | H61: 0
B62: Essential Use (All-Electric) - CARE | D62: =VLOOKUP($D$4,'Res Bill Impact (2)'!$R$52:$X$61,2,FALSE) -> 55.26772016 | E62: =VLOOKUP($D$4,'Res Bill Impact (2)'!$R$52:$X$61,4,FALSE) -> 53.41578111 | F62: =VLOOKUP($D$4,'Res Bill Impact (2)'!$R$52:$X$61,6,FALSE) -> 53.41578111 | G62: -0.03350851165 | H62: 0
B64: Bundled Residential Monthly Average Bills - Winter
D65: =$D$24 -> 2024-01-01 | E65: =$E$24 -> 2024-10-01 | F65: =$F$24 -> Proposed | G65: =$G$24 -> % Change over 1/1/2024 | H65: % Change over Current
B66: Essential Use (Basic) - Non-CARE | D66: =VLOOKUP($D$4,'Res Bill Impact (2)'!$J$37:$P$46,3,FALSE) -> 92.33123111 | E66: =VLOOKUP($D$4,'Res Bill Impact (2)'!$J$37:$P$46,5,FALSE) -> 89.49277751 | F66: =VLOOKUP($D$4,'Res Bill Impact (2)'!$J$37:$P$46,7,FALSE) -> 89.49277751 | G66: =$F66/D66-1 -> -0.03074207472 | H66: 0
B67: Essential Use (Basic) - CARE | D67: =VLOOKUP($D$4,'Res Bill Impact (2)'!$R$37:$X$46,3,FALSE) -> 58.05038899 | E67: =VLOOKUP($D$4,'Res Bill Impact (2)'!$R$37:$X$46,5,FALSE) -> 56.12362412 | F67: =VLOOKUP($D$4,'Res Bill Impact (2)'!$R$37:$X$46,7,FALSE) -> 56.12362412 | G67: -0.03319124813 | H67: 0
B68: Essential Use (All-Electric) - Non-CARE | D68: =VLOOKUP($D$4,'Res Bill Impact (2)'!$J$52:$P$61,3,FALSE) -> 112.8602728 | E68: =VLOOKUP($D$4,'Res Bill Impact (2)'!$J$52:$P$61,5,FALSE) -> 109.4706631 | F68: =VLOOKUP($D$4,'Res Bill Impact (2)'!$J$52:$P$61,7,FALSE) -> 109.4706631 | G68: -0.03003368292 | H68: 0
B69: Essential Use (All-Electric) - CARE | D69: =VLOOKUP($D$4,'Res Bill Impact (2)'!$R$52:$X$61,3,FALSE) -> 71.96373313 | E69: =VLOOKUP($D$4,'Res Bill Impact (2)'!$R$52:$X$61,5,FALSE) -> 69.66283916 | F69: =VLOOKUP($D$4,'Res Bill Impact (2)'!$R$52:$X$61,7,FALSE) -> 69.66283916 | G69: -0.03197296562 | H69: 0
B72: Bundled Residential Monthly Average Bills
D73: =$D$24 -> 2024-01-01 | E73: =$E$24 -> 2024-10-01 | F73: =$F$24 -> Proposed | G73: =$G$24 -> % Change over 1/1/2024 | H73: % Change over Current
B74: =D5&"kWh Monthly Usage - Non-CARE" -> 500kWh Monthly Usage - Non-CARE | D74: =((D79*4)+(D84*8))/12 -> 170.8866793 | E74: 165.9419908 | F74: 165.9419908 | G74: =$F74/D74-1 -> -0.0289354825 | H74: 0
B75: =D5&"kWh Monthly Usage - CARE" -> 500kWh Monthly Usage - CARE | D75: 110.8703892 | E75: 107.5259224 | F75: 107.5259224 | G75: -0.03016555531 | H75: 0
B77: Bundled Residential Monthly Average Bills - Summer
D78: =$D$24 -> 2024-01-01 | E78: =$E$24 -> 2024-10-01 | F78: =$F$24 -> Proposed | G78: =$G$24 -> % Change over 1/1/2024 | H78: % Change over Current
B79: =D5&"kWh Monthly Usage - Non-CARE" -> 500kWh Monthly Usage - Non-CARE | D79: =VLOOKUP($D$4,'Res Bill Impact (2)'!$J$67:$P$76,2,FALSE) -> 166.0012022 | E79: =VLOOKUP($D$4,'Res Bill Impact (2)'!$J$67:$P$76,4,FALSE) -> 161.1867998 | F79: =VLOOKUP($D$4,'Res Bill Impact (2)'!$J$67:$P$76,6,FALSE) -> 161.1867998 | G79: =$F79/D79-1 -> -0.02900221387 | H79: 0
B80: =D5&"kWh Monthly Usage - CARE" -> 500kWh Monthly Usage - CARE | D80: =VLOOKUP($D$4,'Res Bill Impact (2)'!$R$67:$X$76,2,FALSE) -> 107.6913058 | E80: =VLOOKUP($D$4,'Res Bill Impact (2)'!$R$67:$X$76,4,FALSE) -> 104.4314996 | F80: =VLOOKUP($D$4,'Res Bill Impact (2)'!$R$67:$X$76,6,FALSE) -> 104.4314996 | G80: -0.03026991069 | H80: 0
B82: Bundled Residential Monthly Average Bills - Winter
D83: =$D$24 -> 2024-01-01 | E83: =$E$24 -> 2024-10-01 | F83: =$F$24 -> Proposed | G83: =$G$24 -> % Change over 1/1/2024 | H83: % Change over Current
B84: =D5&"kWh Monthly Usage - Non-CARE" -> 500kWh Monthly Usage - Non-CARE | D84: =VLOOKUP($D$4,'Res Bill Impact (2)'!$J$67:$P$76,3,FALSE) -> 173.3294179 | E84: =VLOOKUP($D$4,'Res Bill Impact (2)'!$J$67:$P$76,5,FALSE) -> 168.3195863 | F84: =VLOOKUP($D$4,'Res Bill Impact (2)'!$J$67:$P$76,7,FALSE) -> 168.3195863 | G84: =$F84/D84-1 -> -0.02890352748 | H84: 0
B85: =D5&"kWh Monthly Usage - CARE" -> 500kWh Monthly Usage - CARE | D85: =VLOOKUP($D$4,'Res Bill Impact (2)'!$R$67:$X$76,3,FALSE) -> 112.4599309 | E85: =VLOOKUP($D$4,'Res Bill Impact (2)'!$R$67:$X$76,5,FALSE) -> 109.0731338 | F85: =VLOOKUP($D$4,'Res Bill Impact (2)'!$R$67:$X$76,7,FALSE) -> 109.0731338 | G85: -0.0301155901 | H85: 0
B88: Bundled Residential Monthly Average Bills
D89: =$D$24 -> 2024-01-01 | E89: =$E$24 -> 2024-10-01 | F89: Proposed | G89: =$G$24 -> % Change over 1/1/2024 | H89: % Change over Current
B90: All-Electric - Non-CARE | D90: =((D96*4)+(D102*8))/12 -> 115.1859338 | E90: 111.7343478 | F90: 111.7343478 | G90: =$F90/D90-1 -> -0.02996534247 | H90: 0
B91: All-Electric - CARE | D91: 78.39477982 | E91: 75.92162504 | F91: 75.92162504 | G91: -0.03154744205 | H91: 0
B92: All-Electric - Total | D92: 102.3090299 | E92: 99.19989485 | F92: 99.19989485 | G92: -0.03038964443 | H92: 0
B94: Bundled Residential Monthly Average Bills - Summer
D95: =$D$24 -> 2024-01-01 | E95: =$E$24 -> 2024-10-01 | F95: Proposed | G95: =$G$24 -> % Change over 1/1/2024 | H95: % Change over Current
B96: All-Electric - Non-CARE | D96: =VLOOKUP($D$4,'Res Bill Impact (2)'!$B$67:$H$76,2,FALSE) -> 122.9833027 | E96: =VLOOKUP($D$4,'Res Bill Impact (2)'!$B$67:$H$76,4,FALSE) -> 119.3233003 | F96: =VLOOKUP($D$4,'Res Bill Impact (2)'!$B$67:$H$76,6,FALSE) -> 119.3233003 | G96: =$F96/D96-1 -> -0.0297601575 | H96: 0
B97: All-Electric - CARE | D97: =VLOOKUP($D$4,'Res Bill Impact (2)'!$B$82:$H$91,2,FALSE) -> 82.73738261 | E97: =VLOOKUP($D$4,'Res Bill Impact (2)'!$B$82:$H$91,4,FALSE) -> 80.14831927 | F97: =VLOOKUP($D$4,'Res Bill Impact (2)'!$B$82:$H$91,6,FALSE) -> 80.14831927 | G97: -0.03129254579 | H97: 0
B98: All-Electric - Total | D98: =D96*0.65+D97*0.35 -> 108.8972307 | E98: =E96*0.65+E97*0.35 -> 105.6120569 | F98: =F96*0.65+F97*0.35 -> 105.6120569 | G98: -0.03016765206 | H98: 0
B100: Bundled Residential Monthly Average Bills - Winter
D101: =$D$24 -> 2024-01-01 | E101: =$E$24 -> 2024-10-01 | F101: Proposed | G101: =$G$24 -> % Change over 1/1/2024 | H101: % Change over Current
B102: All-Electric - Non-CARE | D102: =VLOOKUP($D$4,'Res Bill Impact (2)'!$B$67:$H$76,3,FALSE) -> 111.2872493 | E102: =VLOOKUP($D$4,'Res Bill Impact (2)'!$B$67:$H$76,5,FALSE) -> 107.9398716 | F102: =VLOOKUP($D$4,'Res Bill Impact (2)'!$B$67:$H$76,7,FALSE) -> 107.9398716 | G102: =$F102/D102-1 -> -0.0300787172 | H102: 0
B103: All-Electric - CARE | D103: =VLOOKUP($D$4,'Res Bill Impact (2)'!$B$82:$H$91,3,FALSE) -> 76.22347842 | E103: =VLOOKUP($D$4,'Res Bill Impact (2)'!$B$82:$H$91,5,FALSE) -> 73.80827793 | F103: =VLOOKUP($D$4,'Res Bill Impact (2)'!$B$82:$H$91,7,FALSE) -> 73.80827793 | G103: -0.03168578163 | H103: 0
B104: All-Electric - Total | D104: =D102*0.65+D103*0.35 -> 99.0149295 | E104: =E102*0.65+E103*0.35 -> 95.99381382 | F104: =F102*0.65+F103*0.35 -> 95.99381382 | G104: -0.03051171872 | H104: 0
B106: Small Commercial Monthly Average Bills
D107: =$D$24 -> 2024-01-01 | E107: =$E$24 -> 2024-10-01 | F107: Proposed | G107: =$G$24 -> % Change over 1/1/2024 | H107: % Change over Current
B108: NAICS 531 | D108: =((D114*4)+(D120*8))/12 -> 198.5037322 | E108: 197.8551073 | F108: 197.8551073 | G108: =$F108/D108-1 -> -0.00326756984 | H108: =$F108/E108-1 -> 0
B109: NAICS 621 | D109: 273.3611086 | E109: 272.5836542 | F109: 272.5836542 | G109: -0.002844056484 | H109: 0
B110: NAICS 722 | D110: 795.7567515 | E110: 790.4468954 | F110: 790.4468954 | G110: -0.006672712587 | H110: 0
B112: Small Commercial Monthly Average Bills - Summer
D113: =$D$24 -> 2024-01-01 | E113: =$E$24 -> 2024-10-01 | F113: Proposed | G113: =$G$24 -> % Change over 1/1/2024 | H113: % Change over Current
B114: NAICS 531 | D114: ='Bill Impact (GS1) (2)'!C37 -> 225.4677184 | E114: ='Bill Impact (GS1) (2)'!E37 -> 221.0228543 | F114: ='Bill Impact (GS1) (2)'!G37 -> 221.0228543 | G114: =$F114/D114-1 -> -0.01971397098 | H114: =$F114/E114-1 -> 0
B115: NAICS 621 | D115: ='Bill Impact (GS1) (2)'!C38 -> 378.253337 | E115: ='Bill Impact (GS1) (2)'!E38 -> 368.9952255 | F115: ='Bill Impact (GS1) (2)'!G38 -> 368.9952255 | G115: -0.02447595466 | H115: 0
B116: NAICS 722 | D116: ='Bill Impact (GS1) (2)'!C39 -> 1078.572055 | E116: ='Bill Impact (GS1) (2)'!E39 -> 1049.241234 | F116: ='Bill Impact (GS1) (2)'!G39 -> 1049.241234 | G116: -0.0271941229 | H116: 0
B118: Small Commercial Monthly Average Bills - Winter
D119: =$D$24 -> 2024-01-01 | E119: =$E$24 -> 2024-10-01 | F119: Proposed | G119: =$G$24 -> % Change over 1/1/2024 | H119: % Change over Current
B120: NAICS 531 | D120: ='Bill Impact (GS1) (2)'!D37 -> 185.021739 | E120: ='Bill Impact (GS1) (2)'!F37 -> 186.2712338 | F120: ='Bill Impact (GS1) (2)'!H37 -> 186.2712338 | G120: =$F120/D120-1 -> 0.006753232474 | H120: =$F120/E120-1 -> 0
B121: NAICS 621 | D121: ='Bill Impact (GS1) (2)'!D38 -> 220.9149944 | E121: ='Bill Impact (GS1) (2)'!F38 -> 224.3778685 | F121: ='Bill Impact (GS1) (2)'!H38 -> 224.3778685 | G121: 0.01567514294 | H121: 0
B122: NAICS 722 | D122: ='Bill Impact (GS1) (2)'!D39 -> 654.3491 | E122: ='Bill Impact (GS1) (2)'!F39 -> 661.0497264 | F122: ='Bill Impact (GS1) (2)'!H39 -> 661.0497264 | G122: 0.01024013996 | H122: 0

Sheet SAR and RAR (2) (hidden)
B1: CONFIDENTIAL This Excel Sheet Is Marked Confidential In Accordance With Applicable Law and Regulation. Basis for Confidentiality In Accompanying Confidentiality Declaration. Public Disclosure Restricted.
C2: Revenue Change ($000)
B4: Generation | C4: ='Simple Bill Insert Calc (2)'!D8 -> 0 | F4: Allocation
B5: Distribution | C5: ='Simple Bill Insert Calc (2)'!D9 -> 0 | F5: Generation | G5: Distribution | H5: NDC | I5: PPPC | J5: DCPP | K5: NSGC | L5: Transmission | M5: TOTCA | N5: GHG Rev | O5: DWRBC | P5: PUCRF | Q5: SECURITIZATION
B6: Nuclear | C6: ='Simple Bill Insert Calc (2)'!D10 -> 0 | E6: Residential | F6: ='SAR and RAR'!G37 -> 0.4016615649 | G6: 0.4764672698 | H6: ='SAR and RAR'!I37 -> 0.3233019528 | I6: 0.4338795402 | J6: ='SAR and RAR'!K37 -> 0 | K6: ='SAR and RAR'!L37 -> 0.4220417204 | L6: ='SAR and RAR'!M37 -> 0.4346883856 | M6: ='SAR and RAR'!N37 -> 0.1067909648 | N6: ='SAR and RAR'!O37 -> 0.8411016298 | O6: ='SAR and RAR'!P37 -> 0.2554854898 | P6: ='SAR and RAR'!Q37 -> 0.3233019528 | Q6: ='SAR and RAR'!R37 -> 0.3631246136
B7: Public Purpose | C7: ='Simple Bill Insert Calc (2)'!D11 -> 0
B8: DCPP | C8: ='Simple Bill Insert Calc (2)'!D12 -> 0 | F8: Revenue Change ($000) - System
B9: New System Gen | C9: ='Simple Bill Insert Calc (2)'!D13 -> 0 | F9: Generation | G9: Distribution | H9: NDC | I9: PPPC | J9: DCPP | K9: NSGC | L9: Transmission | M9: TOTCA | N9: GHG Rev | O9: DWRBC | P9: PUCRF | Q9: SECURITIZATION | R9: Total | S9: CARE Adj. | V9: % of CARE Sales (Bundled) | W9: ='SAR and RAR'!Q58 -> 0.2817433284
B10: FERC | C10: ='Simple Bill Insert Calc (2)'!D14 -> 0 | E10: Residential | F10: =F6*F11 -> 0 | G10: 0 | H10: 0 | I10: 0 | J10: 0 | K10: 0 | L10: 0 | M10: 0 | N10: 0 | O10: 0 | P10: 0 | Q10: =Q6*Q11 -> 0 | R10: =SUM(F10:Q10) -> 0 | S10: =(-W11+W14) -> 0 | V10: CARE Effective Discount | W10: ='SAR and RAR'!X10 -> 0.29
B11: TOTCA | C11: ='Simple Bill Insert Calc (2)'!D15 -> 0 | E11: Total System | F11: =C4 -> 0 | G11: =C5 -> 0 | H11: =C6 -> 0 | I11: =C7 -> 0 | J11: =C8 -> 0 | K11: =C9 -> 0 | L11: =C10 -> 0 | M11: =C11 -> 0 | N11: =C12 -> 0 | O11: =C13 -> 0 | P11: =C14 -> 0 | Q11: =C15 -> 0 | R11: =SUM(F11:Q11) -> 0 | S11: 0 | V11: CARE Discounst | W11: =SUM(F10*F16/'SAR and RAR'!K58*'SAR and RAR'!O58,G10:M10,P10)*W9*W10 -> 0
B12: GHG Revenue | C12: ='Simple Bill Insert Calc (2)'!D16 -> 0 | V12: non-CARE Sales | W12: ='SAR and RAR'!G58 -> 18622275.65
B13: DWR | C13: ='Simple Bill Insert Calc (2)'!D17 -> 0 | V13: Total Sales (excl. CARE&SL) | W13: ='SAR and RAR'!G64 -> 72430361.94
B14: PUCRF | C14: ='Simple Bill Insert Calc (2)'!D18 -> 0 | F14: Revenue Split - Bundled | R14: Bundled Revenue Change | V14: Res CARE Surcharge | W14: =W11*W12/W13 -> 0
B15: SECURITIZATION | C15: ='Simple Bill Insert Calc (2)'!D19 -> 0 | F15: Generation | G15: Distribution | H15: NDC | I15: PPPC | J15: DCPP | K15: NSGC | L15: Transmission | M15: TOTCA | N15: GHG Rev | O15: DWRBC | P15: PUCRF | Q15: SECURITIZATION | R15: Total
B16: Total | C16: =SUM(C4:C15) -> 0 | E16: Residential | F16: ='SAR and RAR'!G44 -> 1.042729476 | G16: ='SAR and RAR'!H44 -> 0.6953930588 | H16: ='SAR and RAR'!I44 -> 0.7109692626 | I16: ='SAR and RAR'!J44 -> 0.7109692643 | J16: ='SAR and RAR'!K44 -> 0 | K16: ='SAR and RAR'!L44 -> 0.7109692643 | L16: ='SAR and RAR'!M44 -> 0.7109692643 | M16: ='SAR and RAR'!N44 -> 0.7109692352 | N16: ='SAR and RAR'!O44 -> 0.7290728331 | O16: ='SAR and RAR'!P44 -> 0.6804940245 | P16: ='SAR and RAR'!Q44 -> 0.7109692645 | Q16: ='SAR and RAR'!R44 -> 0.6804940246 | R16: =SUMPRODUCT(F10:Q10,F16:Q16)+S10*'SAR and RAR'!X15 -> 0
E17: Total System | F17: ='SAR and RAR'!G50 -> 1.03869561 | G17: ='SAR and RAR'!H50 -> 0.6902985631 | H17: ='SAR and RAR'!I50 -> 0.6656300913 | I17: ='SAR and RAR'!J50 -> 0.6802569815 | J17: ='SAR and RAR'!K50 -> 0 | K17: ='SAR and RAR'!L50 -> 0.6739645256 | L17: ='SAR and RAR'!M50 -> 0.6940398758 | M17: ='SAR and RAR'!N50 -> 0.6472606087 | N17: ='SAR and RAR'!O50 -> 0.7180561653 | O17: ='SAR and RAR'!P50 -> 0.6533003681 | P17: ='SAR and RAR'!Q50 -> 0.6656300931 | Q17: ='SAR and RAR'!R50 -> 0.6636179416 | R17: =SUMPRODUCT(F11:Q11,F17:Q17) -> 0
R19: =N10*N16 -> 0
E22: Bundled | M22: System (Bundled and Unbundled)
E23: ='Simple Bill Insert Calc (2)'!M4&" Sales" -> 2024 Sales | F23: ='SAR and RAR'!G27 -> 10/1/2024 Avg Rates | G23: Proposed Avg Rates | H23: % Change | M23: ='Simple Bill Insert Calc (2)'!M4&" Sales" -> 2024 Sales | N23: ='SAR and RAR'!O27 -> 10/1/2024 Avg Rates | O23: Proposed Avg Rates | P23: % Change
D24: Residential | E24: ='SAR and RAR'!K58 -> 18433334.69 | F24: =IF('Simple Bill Insert Calc (2)'!$D$6="Y",'SAR and RAR'!W32,'SAR and RAR'!X32) -> 32.48904534 | G24: =R16/E24*100+F24 -> 32.48904534 | H24: =G24/F24-1 -> 0 | L24: Residential | M24: ='SAR and RAR'!O58 -> 25927048.62 | N24: =IF('Simple Bill Insert Calc (2)'!$D$6="Y",'SAR and RAR'!Z32,'SAR and RAR'!AA32) -> 28.95523483 | O24: =SUM(R10:S10)/M24*100+N24 -> 28.95523483 | P24: =O24/N24-1 -> 0
D25: Total System | E25: ='SAR and RAR'!K64 -> 53379893.43 | F25: =IF('Simple Bill Insert Calc (2)'!$D$6="Y",'SAR and RAR'!W33,'SAR and RAR'!X33) -> 27.22240766 | G25: =R17/E25*100+F25 -> 27.22240766 | H25: =G25/F25-1 -> 0 | L25: Total System | M25: ='SAR and RAR'!O64 -> 80194531.45 | N25: =IF('Simple Bill Insert Calc (2)'!$D$6="Y",'SAR and RAR'!Z33,'SAR and RAR'!AA33) -> 22.890967 | O25: =SUM(R11:S11)/M25*100+N25 -> 22.890967 | P25: =O25/N25-1 -> 0

Sheet Res Bill Impact (2) (hidden)
B1: CONFIDENTIAL This Excel Sheet Is Marked Confidential In Accordance With Applicable Law and Regulation. Basis for Confidentiality In Accompanying Confidentiality Declaration. Public Disclosure Restricted.
E3: Schedule D | O3: Schedule D-CARE
E4: ='Simple Bill Insert Calc (2)'!M4 -> 2024 | F4: ='Simple Bill Insert Calc (2)'!M3 -> 2024-10-01 | G4: Proposed | H4: Proposed | O4: ='Simple Bill Insert Calc (2)'!M4 -> 2024 | P4: ='Simple Bill Insert Calc (2)'!M3 -> 2024-10-01 | Q4: Proposed | R4: Proposed
E5: Sales Forecast | F5: Rates | G5: Rates | H5: Revenue | O5: Sales Forecast | P5: Rates | Q5: Rates | R5: Revenue
D7: Baseline - Summer | E7: ='Res Bill Impact'!F97 -> 3287.495023 | F7: ='Res Bill Impact'!F7 -> 0.3284 | G7: =(V10-SUM(R14:R15,H14:H15))/SUM(SUM(E7:E8),F9/F7*SUM(E9:E10),F11/F7*SUM(E11:E12),SUM(O7:O8)*(1+(P7/F7-1)),SUM(O9:O10)*(1+(P9/F9-1))*F9/F7,SUM(O11:O12)*(1+(P11/F11-1))*F11/F7) -> 0.3284 | H7: =E7*G7 -> 1079.613366 | N7: Baseline - Summer | O7: ='Res Bill Impact'!M97 -> 1689.937435 | P7: ='Res Bill Impact'!P7 -> 0.22256 | Q7: =G7*(1+(P7/F7-1)) -> 0.22256 | R7: =O7*Q7 -> 376.1124756 | U7: Bundled Residential Rev Req
D8: - Winter | E8: ='Res Bill Impact'!F98 -> 4300.402818 | F8: ='Res Bill Impact'!F8 -> 0.3284 | G8: =G7 -> 0.3284 | H8: 1412.252285 | N8: - Winter | O8: ='Res Bill Impact'!M98 -> 2368.755339 | P8: ='Res Bill Impact'!P8 -> 0.22256 | Q8: 0.22256 | R8: 527.1901883 | U8: Current | V8: =SUMPRODUCT(E7:E12,F7:F12)+SUMPRODUCT(O7:O12,P7:P12)+(E14*F14*365/12/10^6)+(E15*F15*365/12/10^6)+(O14*P14*365/12/10^6)+(O15*P15*365/12/10^6) -> 6057.120459
D9: 101% - 400% of Baseline - Summer | E9: ='Res Bill Impact'!F99 -> 2032.586852 | F9: ='Res Bill Impact'!F9 -> 0.4222 | G9: =F9/F$7*G$7 -> 0.4222 | H9: 858.1581691 | N9: 101% - 400% of Baseline - Summer | O9: ='Res Bill Impact'!M99 -> 712.7216767 | P9: ='Res Bill Impact'!P9 -> 0.2836 | Q9: 0.2836 | R9: 202.1278675 | U9: Change | V9: ='SAR and RAR (2)'!R16/1000-'SAR and RAR (2)'!R19/1000 -> 0
D10: - Winter | E10: ='Res Bill Impact'!F100 -> 2626.223182 | F10: ='Res Bill Impact'!F10 -> 0.4222 | G10: =G9 -> 0.4222 | H10: 1108.791427 | N10: - Winter | O10: ='Res Bill Impact'!M100 -> 963.0257777 | P10: ='Res Bill Impact'!P10 -> 0.2836 | Q10: 0.2836 | R10: 273.1141106 | U10: Proposed Change | V10: =SUM(V8:V9) -> 6057.120459
D11: 401% of Baseline - Summer | E11: ='Res Bill Impact'!F101 -> 161.2501891 | F11: ='Res Bill Impact'!F11 -> 0.4222 | G11: =F11/F$7*G$7 -> 0.4222 | H11: 68.07982984 | N11: 401% of Baseline - Summer | O11: ='Res Bill Impact'!M101 -> 8.134685164 | P11: ='Res Bill Impact'!P11 -> 0.2836 | Q11: 0.2836 | R11: 2.306996712 | V11: =V10-SUM(H7:H15,R7:R15) -> 0
D12: - Winter | E12: ='Res Bill Impact'!F102 -> 264.3892374 | F12: ='Res Bill Impact'!F12 -> 0.4222 | G12: =G11 -> 0.4222 | H12: 111.625136 | N12: - Winter | O12: ='Res Bill Impact'!M102 -> 18.41246945 | P12: ='Res Bill Impact'!P12 -> 0.2836 | Q12: 0.2836 | R12: 5.221776337
D14: Basic Charge - Single-Family Residence | E14: ='Res Bill Impact'!F104 -> 19603314.91 | F14: ='Res Bill Impact'!F14 -> 0.031 | G14: =F14 -> 0.031 | H14: =G14*E14*365/12/10^6 -> 18.48429235 | N14: Basic Charge - Single-Family Residence | O14: ='Res Bill Impact'!M104 -> 6331622.207 | P14: ='Res Bill Impact'!P14 -> 0.024 | Q14: =P14 -> 0.024 | R14: =Q14*O14*365/12/10^6 -> 4.622084211
D15: Basic Charge - Multi-Family Residence | E15: ='Res Bill Impact'!F105 -> 8917593.383 | F15: ='Res Bill Impact'!F15 -> 0.024 | G15: =F15 -> 0.024 | H15: =G15*E15*365/12/10^6 -> 6.50984317 | N15: Basic Charge - Multi-Family Residence | O15: ='Res Bill Impact'!M105 -> 5316184.884 | P15: ='Res Bill Impact'!P15 -> 0.018 | Q15: =P15 -> 0.018 | R15: =Q15*O15*365/12/10^6 -> 2.910611224
O19: 2023 Recorded Data - Average Monthly Usage - kWh (Bundled / Basic Service Only) | W19: 2023 Recorded Data - Average Monthly Usage - kWh (Bundled / All Electric Only)
B20: SCHEDULE D RATES ($/kWh) | H20: MONTHLY BASELINE QUANTITIES | I20: BASIC | K20: ALL-ELECTRIC | O20: Climate Zone | P20: Summer | Q20: Winter | R20: Summer | S20: Winter | T20: Sample Population Weight | W20: Climate Zone | X20: Summer | Y20: Winter | Z20: Summer | AA20: Winter | AB20: Sample Population Weight
B21: Rates | C21: Jan 2024 | D21: ='Simple Bill Insert Calc (2)'!M3 -> 2024-10-01 | E21: Proposed | H21: Climate Zone | I21: Summer | J21: Winter | K21: Summer | L21: Winter | P21: Non-CARE | R21: CARE | T21: Non-CARE | U21: CARE | X21: Non-CARE | Z21: CARE | AB21: Non-CARE | AC21: CARE
B22: Tier 1 | C22: ='Res Bill Impact'!C22 -> 0.33746 | D22: =F7 -> 0.3284 | E22: =G7 -> 0.3284 | H22: 5 warm | I22: 517.089 | J22: 559.6728 | K22: 511.0056 | L22: 821.259 | O22: 5 warm | P22: ='Res Bill Impact'!P22 -> 394.0114465 | Q22: ='Res Bill Impact'!Q22 -> 413.7602515 | R22: ='Res Bill Impact'!R22 -> 375.4651421 | S22: ='Res Bill Impact'!S22 -> 377.1007638 | T22: ='Res Bill Impact'!T22 -> 0.0004001160336 | U22: ='Res Bill Impact'!U22 -> 6.494163848e-05 | W22: 5 warm | X22: ='Res Bill Impact'!X22 -> 425.328646 | Y22: ='Res Bill Impact'!Y22 -> 492.1148384 | Z22: ='Res Bill Impact'!Z22 -> 382.0121137 | AA22: ='Res Bill Impact'!AA22 -> 514.0812584 | AB22: ='Res Bill Impact'!AB22 -> 0.0004262021681 | AC22: ='Res Bill Impact'!AC22 -> 0.0001760542717
B23: Tier 2 | C23: ='Res Bill Impact'!C23 -> 0.43383 | D23: =F9 -> 0.4222 | E23: =G9 -> 0.4222 | H23: 6 cool | I23: 346.7538 | J23: 334.587 | K23: 264.6279 | L23: 383.2542 | O23: 6 cool | P23: ='Res Bill Impact'!P23 -> 433.0846454 | Q23: ='Res Bill Impact'!Q23 -> 397.8968432 | R23: ='Res Bill Impact'!R23 -> 387.0809173 | S23: ='Res Bill Impact'!S23 -> 359.7109231 | T23: ='Res Bill Impact'!T23 -> 0.1403529246 | U23: ='Res Bill Impact'!U23 -> 0.05006236307 | W23: 6 cool | X23: ='Res Bill Impact'!X23 -> 330.0124549 | Y23: ='Res Bill Impact'!Y23 -> 351.8575553 | Z23: ='Res Bill Impact'!Z23 -> 355.0146353 | AA23: ='Res Bill Impact'!AA23 -> 389.8816374 | AB23: ='Res Bill Impact'!AB23 -> 0.239309429 | AC23: ='Res Bill Impact'!AC23 -> 0.1138366921
B24: HUC | C24: ='Res Bill Impact'!C24 -> 0.43383 | D24: =F11 -> 0.4222 | E24: =G11 -> 0.4222 | H24: 8 cool | I24: 389.3376 | J24: 313.2951 | K24: 301.1283 | L24: 374.1291 | O24: 8 cool | P24: ='Res Bill Impact'!P24 -> 530.8622287 | Q24: ='Res Bill Impact'!Q24 -> 414.1554448 | R24: ='Res Bill Impact'!R24 -> 464.558938 | S24: ='Res Bill Impact'!S24 -> 385.4566077 | T24: ='Res Bill Impact'!T24 -> 0.2220921845 | U24: ='Res Bill Impact'!U24 -> 0.1485788286 | W24: 8 cool | X24: ='Res Bill Impact'!X24 -> 381.2469638 | Y24: ='Res Bill Impact'!Y24 -> 369.4677373 | Z24: ='Res Bill Impact'!Z24 -> 395.389718 | AA24: ='Res Bill Impact'!AA24 -> 388.746303 | AB24: ='Res Bill Impact'!AB24 -> 0.2355353779 | AC24: ='Res Bill Impact'!AC24 -> 0.1987770097
H25: 9 warm | I25: 514.0473 | J25: 365.004 | K25: 380.2125 | L25: 422.7963 | O25: 9 warm | P25: ='Res Bill Impact'!P25 -> 649.7090395 | Q25: ='Res Bill Impact'!Q25 -> 460.3453492 | R25: ='Res Bill Impact'!R25 -> 599.1816396 | S25: ='Res Bill Impact'!S25 -> 429.4947183 | T25: ='Res Bill Impact'!T25 -> 0.1345534649 | U25: ='Res Bill Impact'!U25 -> 0.09818029709 | W25: 9 warm | X25: ='Res Bill Impact'!X25 -> 479.3913495 | Y25: ='Res Bill Impact'!Y25 -> 396.2762731 | Z25: ='Res Bill Impact'!Z25 -> 454.9990015 | AA25: ='Res Bill Impact'!AA25 -> 384.474035 | AB25: ='Res Bill Impact'!AB25 -> 0.08488217672 | AC25: ='Res Bill Impact'!AC25 -> 0.08590274762
B26: SCHEDULE D-CARE RATES ($/kWh) | H26: 10 hot (Sec 745) | I26: 587.0481 | J26: 368.0457 | K26: 483.6303 | L26: 498.8388 | O26: 10 hot (Sec 745) | P26: ='Res Bill Impact'!P26 -> 761.1373611 | Q26: ='Res Bill Impact'!Q26 -> 491.115045 | R26: ='Res Bill Impact'!R26 -> 792.3016777 | S26: ='Res Bill Impact'!S26 -> 497.9977029 | T26: ='Res Bill Impact'!T26 -> 0.3163584106 | U26: ='Res Bill Impact'!U26 -> 0.4197483703 | W26: 10 hot (Sec 745) | X26: ='Res Bill Impact'!X26 -> 573.0329281 | Y26: ='Res Bill Impact'!Y26 -> 449.7933583 | Z26: ='Res Bill Impact'!Z26 -> 584.8339164 | AA26: ='Res Bill Impact'!AA26 -> 433.3513546 | AB26: ='Res Bill Impact'!AB26 -> 0.2787547484 | AC26: ='Res Bill Impact'!AC26 -> 0.3816621871
B27: Rates | C27: =C21 -> Jan 2024 | D27: =D21 -> 2024-10-01 | E27: Proposed | H27: 13 hot | I27: 675.2574 | J27: 371.0874 | K27: 736.0914 | L27: 699.591 | O27: 13 hot | P27: ='Res Bill Impact'!P27 -> 894.6000233 | Q27: ='Res Bill Impact'!Q27 -> 491.3912577 | R27: ='Res Bill Impact'!R27 -> 916.8294796 | S27: ='Res Bill Impact'!S27 -> 484.0254538 | T27: ='Res Bill Impact'!T27 -> 0.05566058601 | U27: ='Res Bill Impact'!U27 -> 0.1142724531 | W27: 13 hot | X27: ='Res Bill Impact'!X27 -> 892.6145516 | Y27: ='Res Bill Impact'!Y27 -> 600.0164496 | Z27: ='Res Bill Impact'!Z27 -> 867.2628591 | AA27: ='Res Bill Impact'!AA27 -> 571.6768526 | AB27: ='Res Bill Impact'!AB27 -> 0.03323759227 | AC27: ='Res Bill Impact'!AC27 -> 0.0613725191
B28: Tier 1 | C28: ='Res Bill Impact'!C28 -> 0.22871 | D28: =P7 -> 0.22256 | E28: =Q7 -> 0.22256 | H28: 14 hot | I28: 584.0064 | J28: 361.9623 | K28: 562.7145 | L28: 641.7987 | O28: 14 hot | P28: ='Res Bill Impact'!P28 -> 730.1923164 | Q28: ='Res Bill Impact'!Q28 -> 490.1829008 | R28: ='Res Bill Impact'!R28 -> 780.7230122 | S28: ='Res Bill Impact'!S28 -> 516.7279255 | T28: ='Res Bill Impact'!T28 -> 0.06670267711 | U28: ='Res Bill Impact'!U28 -> 0.1078298605 | W28: 14 hot | X28: ='Res Bill Impact'!X28 -> 687.9383588 | Y28: ='Res Bill Impact'!Y28 -> 604.4592567 | Z28: ='Res Bill Impact'!Z28 -> 750.2785732 | AA28: ='Res Bill Impact'!AA28 -> 671.0707452 | AB28: ='Res Bill Impact'!AB28 -> 0.04772846598 | AC28: ='Res Bill Impact'!AC28 -> 0.07503433058
B29: Tier 2 | C29: ='Res Bill Impact'!C29 -> 0.29142 | D29: =P9 -> 0.2836 | E29: =Q9 -> 0.2836 | H29: 15 hot | I29: 1368.765 | J29: 295.0449 | K29: 730.008 | L29: 529.2558 | O29: 15 hot | P29: ='Res Bill Impact'!P29 -> 1097.38946 | Q29: ='Res Bill Impact'!Q29 -> 539.5458549 | R29: ='Res Bill Impact'!R29 -> 1185.07185 | S29: ='Res Bill Impact'!S29 -> 516.7106052 | T29: ='Res Bill Impact'!T29 -> 0.03393873112 | U29: ='Res Bill Impact'!U29 -> 0.03597193757 | W29: 15 hot | X29: ='Res Bill Impact'!X29 -> 845.6767468 | Y29: ='Res Bill Impact'!Y29 -> 463.97827 | Z29: ='Res Bill Impact'!Z29 -> 983.817403 | AA29: ='Res Bill Impact'!AA29 -> 514.8811355 | AB29: ='Res Bill Impact'!AB29 -> 0.03826554248 | AC29: ='Res Bill Impact'!AC29 -> 0.05202990575
B30: HUC | C30: ='Res Bill Impact'!C30 -> 0.29142 | D30: =P11 -> 0.2836 | E30: =Q12 -> 0.2836 | H30: 16 cool | I30: 447.1299 | J30: 377.1708 | K30: 410.6295 | L30: 705.6744 | O30: 16 cool | P30: ='Res Bill Impact'!P30 -> 513.8284813 | Q30: ='Res Bill Impact'!Q30 -> 432.4906192 | R30: ='Res Bill Impact'!R30 -> 677.5371658 | S30: ='Res Bill Impact'!S30 -> 499.146825 | T30: ='Res Bill Impact'!T30 -> 0.02994090508 | U30: ='Res Bill Impact'!U30 -> 0.02529094809 | W30: 16 cool | X30: ='Res Bill Impact'!X30 -> 443.8912353 | Y30: ='Res Bill Impact'!Y30 -> 584.1777272 | Z30: ='Res Bill Impact'!Z30 -> 637.6985348 | AA30: ='Res Bill Impact'!AA30 -> 596.1956691 | AB30: ='Res Bill Impact'!AB30 -> 0.04186046512 | AC30: ='Res Bill Impact'!AC30 -> 0.03120855389
N32: Daily to Monthly Conversion Factor | O32: 30.417
C34: NON-CARE | K34: Essential Use (Basic) - Non-CARE | S34: Essential Use (Basic) - CARE
C35: =C27 -> Jan 2024 | E35: =D27 -> 2024-10-01 | G35: =E21 -> Proposed | K35: =C35 -> Jan 2024 | M35: =E35 -> 2024-10-01 | O35: =G35 -> Proposed | S35: =K35 -> Jan 2024 | U35: =M35 -> 2024-10-01 | W35: =O35 -> Proposed
C36: Summer | D36: Winter | E36: Summer | F36: Winter | G36: Summer | H36: Winter | K36: Summer | L36: Winter | M36: Summer | N36: Winter | O36: Summer | P36: Winter | S36: Summer | T36: Winter | U36: Summer | V36: Winter | W36: Summer | X36: Winter
B37: 5 warm | C37: =C$22*MIN(I22,P22)+IF(P22-I22>0,C$23*(P22-I22))+ROUND($F$14*365/12,2)+('Simple Bill Insert Calc (2)'!M17*2)/12 -> 119.5697694 | D37: =C$22*MIN(J22,Q22)+IF(Q22-J22>0,C$23*(Q22-J22))+ROUND($F$14*365/12,2)+('Simple Bill Insert Calc (2)'!M17*2)/12 -> 126.2342011 | E37: =D$22*MIN(I22,P22)+IF(P22-I22>0,D$23*(P22-I22))+ROUND($F$14*365/12,2)+('Simple Bill Insert Calc (2)'!M17*2)/12 -> 116.0000257 | F37: =D$22*MIN(J22,Q22)+IF(Q22-J22>0,D$23*(Q22-J22))+ROUND($F$14*365/12,2)+('Simple Bill Insert Calc (2)'!M17*2)/12 -> 122.4855332 | G37: =E$22*MIN(I22,P22)+IF(P22-I22>0,E$23*(P22-I22))+ROUND($F$14*365/12,2)+('Simple Bill Insert Calc (2)'!M17*2)/12 -> 116.0000257 | H37: =E$22*MIN(J22,Q22)+IF(Q22-J22>0,E$23*(Q22-J22))+ROUND($F$14*365/12,2)+('Simple Bill Insert Calc (2)'!M17*2)/12 -> 122.4855332 | J37: 5 warm | K37: =C$22*I22+ROUND($F$14*365/12,2)+('Simple Bill Insert Calc (2)'!M17*2)/12 -> 161.1035206 | L37: =C$22*J22+ROUND($F$14*365/12,2)+('Simple Bill Insert Calc (2)'!M17*2)/12 -> 175.4738498 | M37: =D$22*I22+ROUND($F$14*365/12,2)+('Simple Bill Insert Calc (2)'!M17*2)/12 -> 156.4186943 | N37: =D$22*J22+ROUND($F$14*365/12,2)+('Simple Bill Insert Calc (2)'!M17*2)/12 -> 170.4032142 | O37: =E$22*I22+ROUND($F$14*365/12,2)+('Simple Bill Insert Calc (2)'!M17*2)/12 -> 156.4186943 | P37: =E$22*J22+ROUND($F$14*365/12,2)+('Simple Bill Insert Calc (2)'!M17*2)/12 -> 170.4032142 | R37: 5 warm | S37: =C$28*I22+ROUND($P$14*365/12,2)+('Simple Bill Insert Calc (2)'!M17*2)/12 -> 104.6600919 | T37: =C$28*J22+ROUND($P$14*365/12,2)+('Simple Bill Insert Calc (2)'!M17*2)/12 -> 114.3994328 | U37: =D$28*I22+ROUND($P$14*365/12,2)+('Simple Bill Insert Calc (2)'!M17*2)/12 -> 101.4799945 | V37: =D$28*J22+ROUND($P$14*365/12,2)+('Simple Bill Insert Calc (2)'!M17*2)/12 -> 110.957445 | W37: =E$28*I22+ROUND($P$14*365/12,2)+('Simple Bill Insert Calc (2)'!M17*2)/12 -> 101.4799945 | X37: =E$28*J22+ROUND($P$14*365/12,2)+('Simple Bill Insert Calc (2)'!M17*2)/12 -> 110.957445
B38: 6 cool | C38: =C$22*MIN(I23,P23)+IF(P23-I23>0,C$23*(P23-I23))+ROUND($F$14*365/12,2)+('Simple Bill Insert Calc (2)'!M17*2)/12 -> 141.0751147 | D38: =C$22*MIN(J23,Q23)+IF(Q23-J23>0,C$23*(Q23-J23))+ROUND($F$14*365/12,2)+('Simple Bill Insert Calc (2)'!M17*2)/12 -> 126.982105 | E38: =D$22*MIN(I23,P23)+IF(P23-I23>0,D$23*(P23-I23))+ROUND($F$14*365/12,2)+('Simple Bill Insert Calc (2)'!M17*2)/12 -> 136.9294975 | F38: =D$22*MIN(J23,Q23)+IF(Q23-J23>0,D$23*(Q23-J23))+ROUND($F$14*365/12,2)+('Simple Bill Insert Calc (2)'!M17*2)/12 -> 123.2144533 | G38: =E$22*MIN(I23,P23)+IF(P23-I23>0,E$23*(P23-I23))+ROUND($F$14*365/12,2)+('Simple Bill Insert Calc (2)'!M17*2)/12 -> 136.9294975 | H38: =E$22*MIN(J23,Q23)+IF(Q23-J23>0,E$23*(Q23-J23))+ROUND($F$14*365/12,2)+('Simple Bill Insert Calc (2)'!M17*2)/12 -> 123.2144533 | J38: 6 cool | K38: =C$22*I23+ROUND($F$14*365/12,2)+('Simple Bill Insert Calc (2)'!M17*2)/12 -> 103.622204 | L38: =C$22*J23+ROUND($F$14*365/12,2)+('Simple Bill Insert Calc (2)'!M17*2)/12 -> 99.51639569 | M38: =D$22*I23+ROUND($F$14*365/12,2)+('Simple Bill Insert Calc (2)'!M17*2)/12 -> 100.4806146 | N38: =D$22*J23+ROUND($F$14*365/12,2)+('Simple Bill Insert Calc (2)'!M17*2)/12 -> 96.48503747 | O38: =E$22*I23+ROUND($F$14*365/12,2)+('Simple Bill Insert Calc (2)'!M17*2)/12 -> 100.4806146 | P38: =E$22*J23+ROUND($F$14*365/12,2)+('Simple Bill Insert Calc (2)'!M17*2)/12 -> 96.48503747 | R38: 6 cool | S38: =C$28*I23+ROUND($P$14*365/12,2)+('Simple Bill Insert Calc (2)'!M17*2)/12 -> 65.70272826 | T38: =C$28*J23+ROUND($P$14*365/12,2)+('Simple Bill Insert Calc (2)'!M17*2)/12 -> 62.92005944 | U38: =D$28*I23+ROUND($P$14*365/12,2)+('Simple Bill Insert Calc (2)'!M17*2)/12 -> 63.57019239 | V38: =D$28*J23+ROUND($P$14*365/12,2)+('Simple Bill Insert Calc (2)'!M17*2)/12 -> 60.86234939 | W38: =E$28*I23+ROUND($P$14*365/12,2)+('Simple Bill Insert Calc (2)'!M17*2)/12 -> 63.57019239 | X38: =E$28*J23+ROUND($P$14*365/12,2)+('Simple Bill Insert Calc (2)'!M17*2)/12 -> 60.86234939
B39: 8 cool | C39: =C$22*MIN(I24,P24)+IF(P24-I24>0,C$23*(P24-I24))+ROUND($F$14*365/12,2)+('Simple Bill Insert Calc (2)'!M17*2)/12 -> 179.3901628 | D39: =C$22*MIN(J24,Q24)+IF(Q24-J24>0,C$23*(Q24-J24))+ROUND($F$14*365/12,2)+('Simple Bill Insert Calc (2)'!M17*2)/12 -> 136.0874745 | E39: =D$22*MIN(I24,P24)+IF(P24-I24>0,D$23*(P24-I24))+ROUND($F$14*365/12,2)+('Simple Bill Insert Calc (2)'!M17*2)/12 -> 174.2168327 | F39: =D$22*MIN(J24,Q24)+IF(Q24-J24>0,D$23*(Q24-J24))+ROUND($F$14*365/12,2)+('Simple Bill Insert Calc (2)'!M17*2)/12 -> 132.0760151 | G39: =E$22*MIN(I24,P24)+IF(P24-I24>0,E$23*(P24-I24))+ROUND($F$14*365/12,2)+('Simple Bill Insert Calc (2)'!M17*2)/12 -> 174.2168327 | H39: =E$22*MIN(J24,Q24)+IF(Q24-J24>0,E$23*(Q24-J24))+ROUND($F$14*365/12,2)+('Simple Bill Insert Calc (2)'!M17*2)/12 -> 132.0760151 | J39: 8 cool | K39: =C$22*I24+ROUND($F$14*365/12,2)+('Simple Bill Insert Calc (2)'!M17*2)/12 -> 117.9925332 | L39: =C$22*J24+ROUND($F$14*365/12,2)+('Simple Bill Insert Calc (2)'!M17*2)/12 -> 92.33123111 | M39: =D$22*I24+ROUND($F$14*365/12,2)+('Simple Bill Insert Calc (2)'!M17*2)/12 -> 114.4651345 | N39: =D$22*J24+ROUND($F$14*365/12,2)+('Simple Bill Insert Calc (2)'!M17*2)/12 -> 89.49277751 | O39: =E$22*I24+ROUND($F$14*365/12,2)+('Simple Bill Insert Calc (2)'!M17*2)/12 -> 114.4651345 | P39: =E$22*J24+ROUND($F$14*365/12,2)+('Simple Bill Insert Calc (2)'!M17*2)/12 -> 89.49277751 | R39: 8 cool | S39: =C$28*I24+ROUND($P$14*365/12,2)+('Simple Bill Insert Calc (2)'!M17*2)/12 -> 75.44206916 | T39: =C$28*J24+ROUND($P$14*365/12,2)+('Simple Bill Insert Calc (2)'!M17*2)/12 -> 58.05038899 | U39: =D$28*I24+ROUND($P$14*365/12,2)+('Simple Bill Insert Calc (2)'!M17*2)/12 -> 73.04764292 | V39: =D$28*J24+ROUND($P$14*365/12,2)+('Simple Bill Insert Calc (2)'!M17*2)/12 -> 56.12362412 | W39: =E$28*I24+ROUND($P$14*365/12,2)+('Simple Bill Insert Calc (2)'!M17*2)/12 -> 73.04764292 | X39: =E$28*J24+ROUND($P$14*365/12,2)+('Simple Bill Insert Calc (2)'!M17*2)/12 -> 56.12362412
B40: 9 warm | C40: =C$22*MIN(I25,P25)+IF(P25-I25>0,C$23*(P25-I25))+ROUND($F$14*365/12,2)+('Simple Bill Insert Calc (2)'!M17*2)/12 -> 218.931201 | D40: =C$22*MIN(J25,Q25)+IF(Q25-J25>0,C$23*(Q25-J25))+ROUND($F$14*365/12,2)+('Simple Bill Insert Calc (2)'!M17*2)/12 -> 151.142854 | E40: =D$22*MIN(I25,P25)+IF(P25-I25>0,D$23*(P25-I25))+ROUND($F$14*365/12,2)+('Simple Bill Insert Calc (2)'!M17*2)/12 -> 212.6961864 | F40: =D$22*MIN(J25,Q25)+IF(Q25-J25>0,D$23*(Q25-J25))+ROUND($F$14*365/12,2)+('Simple Bill Insert Calc (2)'!M17*2)/12 -> 146.7270979 | G40: =E$22*MIN(I25,P25)+IF(P25-I25>0,E$23*(P25-I25))+ROUND($F$14*365/12,2)+('Simple Bill Insert Calc (2)'!M17*2)/12 -> 212.6961864 | H40: =E$22*MIN(J25,Q25)+IF(Q25-J25>0,E$23*(Q25-J25))+ROUND($F$14*365/12,2)+('Simple Bill Insert Calc (2)'!M17*2)/12 -> 146.7270979 | J40: 9 warm | K40: =C$22*I25+ROUND($F$14*365/12,2)+('Simple Bill Insert Calc (2)'!M17*2)/12 -> 160.0770685 | L40: =C$22*J25+ROUND($F$14*365/12,2)+('Simple Bill Insert Calc (2)'!M17*2)/12 -> 109.7809165 | M40: =D$22*I25+ROUND($F$14*365/12,2)+('Simple Bill Insert Calc (2)'!M17*2)/12 -> 155.4198 | N40: =D$22*J25+ROUND($F$14*365/12,2)+('Simple Bill Insert Calc (2)'!M17*2)/12 -> 106.4739803 | O40: =E$22*I25+ROUND($F$14*365/12,2)+('Simple Bill Insert Calc (2)'!M17*2)/12 -> 155.4198 | P40: =E$22*J25+ROUND($F$14*365/12,2)+('Simple Bill Insert Calc (2)'!M17*2)/12 -> 106.4739803 | R40: 9 warm | S40: =C$28*I25+ROUND($P$14*365/12,2)+('Simple Bill Insert Calc (2)'!M17*2)/12 -> 103.9644246 | T40: =C$28*J25+ROUND($P$14*365/12,2)+('Simple Bill Insert Calc (2)'!M17*2)/12 -> 69.87673151 | U40: =D$28*I25+ROUND($P$14*365/12,2)+('Simple Bill Insert Calc (2)'!M17*2)/12 -> 100.8030338 | V40: =D$28*J25+ROUND($P$14*365/12,2)+('Simple Bill Insert Calc (2)'!M17*2)/12 -> 67.63195691 | W40: =E$28*I25+ROUND($P$14*365/12,2)+('Simple Bill Insert Calc (2)'!M17*2)/12 -> 100.8030338 | X40: =E$28*J25+ROUND($P$14*365/12,2)+('Simple Bill Insert Calc (2)'!M17*2)/12 -> 67.63195691
B41: 10 hot (Sec 745) | C41: =C$22*MIN(I26,P26)+IF(P26-I26>0,C$23*(P26-I26))+ROUND($F$14*365/12,2)+('Simple Bill Insert Calc (2)'!M17*2)/12 -> 260.2370626 | D41: =C$22*MIN(J26,Q26)+IF(Q26-J26>0,C$23*(Q26-J26))+ROUND($F$14*365/12,2)+('Simple Bill Insert Calc (2)'!M17*2)/12 -> 164.1985425 | E41: =D$22*MIN(I26,P26)+IF(P26-I26>0,D$23*(P26-I26))+ROUND($F$14*365/12,2)+('Simple Bill Insert Calc (2)'!M17*2)/12 -> 252.8937487 | F41: =D$22*MIN(J26,Q26)+IF(Q26-J26>0,D$23*(Q26-J26))+ROUND($F$14*365/12,2)+('Simple Bill Insert Calc (2)'!M17*2)/12 -> 159.432752 | G41: =E$22*MIN(I26,P26)+IF(P26-I26>0,E$23*(P26-I26))+ROUND($F$14*365/12,2)+('Simple Bill Insert Calc (2)'!M17*2)/12 -> 252.8937487 | H41: =E$22*MIN(J26,Q26)+IF(Q26-J26>0,E$23*(Q26-J26))+ROUND($F$14*365/12,2)+('Simple Bill Insert Calc (2)'!M17*2)/12 -> 159.432752 | J41: 10 hot (Sec 745) | K41: =C$22*I26+ROUND($F$14*365/12,2)+('Simple Bill Insert Calc (2)'!M17*2)/12 -> 184.7119185 | L41: =C$22*J26+ROUND($F$14*365/12,2)+('Simple Bill Insert Calc (2)'!M17*2)/12 -> 110.8073686 | M41: =D$22*I26+ROUND($F$14*365/12,2)+('Simple Bill Insert Calc (2)'!M17*2)/12 -> 179.3932627 | N41: =D$22*J26+ROUND($F$14*365/12,2)+('Simple Bill Insert Calc (2)'!M17*2)/12 -> 107.4728745 | O41: =E$22*I26+ROUND($F$14*365/12,2)+('Simple Bill Insert Calc (2)'!M17*2)/12 -> 179.3932627 | P41: =E$22*J26+ROUND($F$14*365/12,2)+('Simple Bill Insert Calc (2)'!M17*2)/12 -> 107.4728745 | R41: 10 hot (Sec 745) | S41: =C$28*I26+ROUND($P$14*365/12,2)+('Simple Bill Insert Calc (2)'!M17*2)/12 -> 120.6604376 | T41: =C$28*J26+ROUND($P$14*365/12,2)+('Simple Bill Insert Calc (2)'!M17*2)/12 -> 70.57239871 | U41: =D$28*I26+ROUND($P$14*365/12,2)+('Simple Bill Insert Calc (2)'!M17*2)/12 -> 117.0500918 | V41: =D$28*J26+ROUND($P$14*365/12,2)+('Simple Bill Insert Calc (2)'!M17*2)/12 -> 68.30891766 | W41: =E$28*I26+ROUND($P$14*365/12,2)+('Simple Bill Insert Calc (2)'!M17*2)/12 -> 117.0500918 | X41: =E$28*J26+ROUND($P$14*365/12,2)+('Simple Bill Insert Calc (2)'!M17*2)/12 -> 68.30891766
B42: 13 hot | C42: =C$22*MIN(I27,P27)+IF(P27-I27>0,C$23*(P27-I27))+ROUND($F$14*365/12,2)+('Simple Bill Insert Calc (2)'!M17*2)/12 -> 309.6364391 | D42: =C$22*MIN(J27,Q27)+IF(Q27-J27>0,C$23*(Q27-J27))+ROUND($F$14*365/12,2)+('Simple Bill Insert Calc (2)'!M17*2)/12 -> 164.0252433 | E42: =D$22*MIN(I27,P27)+IF(P27-I27>0,D$23*(P27-I27))+ROUND($F$14*365/12,2)+('Simple Bill Insert Calc (2)'!M17*2)/12 -> 300.9676524 | F42: =D$22*MIN(J27,Q27)+IF(Q27-J27>0,D$23*(Q27-J27))+ROUND($F$14*365/12,2)+('Simple Bill Insert Calc (2)'!M17*2)/12 -> 159.2640575 | G42: =E$22*MIN(I27,P27)+IF(P27-I27>0,E$23*(P27-I27))+ROUND($F$14*365/12,2)+('Simple Bill Insert Calc (2)'!M17*2)/12 -> 300.9676524 | H42: =E$22*MIN(J27,Q27)+IF(Q27-J27>0,E$23*(Q27-J27))+ROUND($F$14*365/12,2)+('Simple Bill Insert Calc (2)'!M17*2)/12 -> 159.2640575 | J42: 13 hot | K42: =C$22*I27+ROUND($F$14*365/12,2)+('Simple Bill Insert Calc (2)'!M17*2)/12 -> 214.4790289 | L42: =C$22*J27+ROUND($F$14*365/12,2)+('Simple Bill Insert Calc (2)'!M17*2)/12 -> 111.8338207 | M42: =D$22*I27+ROUND($F$14*365/12,2)+('Simple Bill Insert Calc (2)'!M17*2)/12 -> 208.3611968 | N42: =D$22*J27+ROUND($F$14*365/12,2)+('Simple Bill Insert Calc (2)'!M17*2)/12 -> 108.4717688 | O42: =E$22*I27+ROUND($F$14*365/12,2)+('Simple Bill Insert Calc (2)'!M17*2)/12 -> 208.3611968 | P42: =E$22*J27+ROUND($F$14*365/12,2)+('Simple Bill Insert Calc (2)'!M17*2)/12 -> 108.4717688 | R42: 13 hot | S42: =C$28*I27+ROUND($P$14*365/12,2)+('Simple Bill Insert Calc (2)'!M17*2)/12 -> 140.8347866 | T42: =C$28*J27+ROUND($P$14*365/12,2)+('Simple Bill Insert Calc (2)'!M17*2)/12 -> 71.26806592 | U42: =D$28*I27+ROUND($P$14*365/12,2)+('Simple Bill Insert Calc (2)'!M17*2)/12 -> 136.6819536 | V42: =D$28*J27+ROUND($P$14*365/12,2)+('Simple Bill Insert Calc (2)'!M17*2)/12 -> 68.98587841 | W42: =E$28*I27+ROUND($P$14*365/12,2)+('Simple Bill Insert Calc (2)'!M17*2)/12 -> 136.6819536 | X42: =E$28*J27+ROUND($P$14*365/12,2)+('Simple Bill Insert Calc (2)'!M17*2)/12 -> 68.98587841
B43: 14 hot | C43: =C$22*MIN(I28,P28)+IF(P28-I28>0,C$23*(P28-I28))+ROUND($F$14*365/12,2)+('Simple Bill Insert Calc (2)'!M17*2)/12 -> 247.1053025 | D43: =C$22*MIN(J28,Q28)+IF(Q28-J28>0,C$23*(Q28-J28))+ROUND($F$14*365/12,2)+('Simple Bill Insert Calc (2)'!M17*2)/12 -> 164.3804077 | E43: =D$22*MIN(I28,P28)+IF(P28-I28>0,D$23*(P28-I28))+ROUND($F$14*365/12,2)+('Simple Bill Insert Calc (2)'!M17*2)/12 -> 240.1140623 | F43: =D$22*MIN(J28,Q28)+IF(Q28-J28>0,D$23*(Q28-J28))+ROUND($F$14*365/12,2)+('Simple Bill Insert Calc (2)'!M17*2)/12 -> 159.6098237 | G43: =E$22*MIN(I28,P28)+IF(P28-I28>0,E$23*(P28-I28))+ROUND($F$14*365/12,2)+('Simple Bill Insert Calc (2)'!M17*2)/12 -> 240.1140623 | H43: =E$22*MIN(J28,Q28)+IF(Q28-J28>0,E$23*(Q28-J28))+ROUND($F$14*365/12,2)+('Simple Bill Insert Calc (2)'!M17*2)/12 -> 159.6098237 | J43: 14 hot | K43: =C$22*I28+ROUND($F$14*365/12,2)+('Simple Bill Insert Calc (2)'!M17*2)/12 -> 183.6854664 | L43: =C$22*J28+ROUND($F$14*365/12,2)+('Simple Bill Insert Calc (2)'!M17*2)/12 -> 108.7544644 | M43: =D$22*I28+ROUND($F$14*365/12,2)+('Simple Bill Insert Calc (2)'!M17*2)/12 -> 178.3943684 | N43: =D$22*J28+ROUND($F$14*365/12,2)+('Simple Bill Insert Calc (2)'!M17*2)/12 -> 105.475086 | O43: =E$22*I28+ROUND($F$14*365/12,2)+('Simple Bill Insert Calc (2)'!M17*2)/12 -> 178.3943684 | P43: =E$22*J28+ROUND($F$14*365/12,2)+('Simple Bill Insert Calc (2)'!M17*2)/12 -> 105.475086 | R43: 14 hot | S43: =C$28*I28+ROUND($P$14*365/12,2)+('Simple Bill Insert Calc (2)'!M17*2)/12 -> 119.9647704 | T43: =C$28*J28+ROUND($P$14*365/12,2)+('Simple Bill Insert Calc (2)'!M17*2)/12 -> 69.1810643 | U43: =D$28*I28+ROUND($P$14*365/12,2)+('Simple Bill Insert Calc (2)'!M17*2)/12 -> 116.3731311 | V43: =D$28*J28+ROUND($P$14*365/12,2)+('Simple Bill Insert Calc (2)'!M17*2)/12 -> 66.95499615 | W43: =E$28*I28+ROUND($P$14*365/12,2)+('Simple Bill Insert Calc (2)'!M17*2)/12 -> 116.3731311 | X43: =E$28*J28+ROUND($P$14*365/12,2)+('Simple Bill Insert Calc (2)'!M17*2)/12 -> 66.95499615
B44: 15 hot | C44: =C$22*MIN(I29,P29)+IF(P29-I29>0,C$23*(P29-I29))+ROUND($F$14*365/12,2)+('Simple Bill Insert Calc (2)'!M17*2)/12 -> 356.9317138 | D44: =C$22*MIN(J29,Q29)+IF(Q29-J29>0,C$23*(Q29-J29))+ROUND($F$14*365/12,2)+('Simple Bill Insert Calc (2)'!M17*2)/12 -> 192.2443679 | E44: =D$22*MIN(I29,P29)+IF(P29-I29>0,D$23*(P29-I29))+ROUND($F$14*365/12,2)+('Simple Bill Insert Calc (2)'!M17*2)/12 -> 346.9893653 | F44: =D$22*MIN(J29,Q29)+IF(Q29-J29>0,D$23*(Q29-J29))+ROUND($F$14*365/12,2)+('Simple Bill Insert Calc (2)'!M17*2)/12 -> 186.727715 | G44: =E$22*MIN(I29,P29)+IF(P29-I29>0,E$23*(P29-I29))+ROUND($F$14*365/12,2)+('Simple Bill Insert Calc (2)'!M17*2)/12 -> 346.9893653 | H44: =E$22*MIN(J29,Q29)+IF(Q29-J29>0,E$23*(Q29-J29))+ROUND($F$14*365/12,2)+('Simple Bill Insert Calc (2)'!M17*2)/12 -> 186.727715 | J44: 15 hot | K44: =C$22*I29+ROUND($F$14*365/12,2)+('Simple Bill Insert Calc (2)'!M17*2)/12 -> 448.5101036 | L44: =C$22*J29+ROUND($F$14*365/12,2)+('Simple Bill Insert Calc (2)'!M17*2)/12 -> 86.17251862 | M44: =D$22*I29+ROUND($F$14*365/12,2)+('Simple Bill Insert Calc (2)'!M17*2)/12 -> 436.1090927 | N44: =D$22*J29+ROUND($F$14*365/12,2)+('Simple Bill Insert Calc (2)'!M17*2)/12 -> 83.49941183 | O44: =E$22*I29+ROUND($F$14*365/12,2)+('Simple Bill Insert Calc (2)'!M17*2)/12 -> 436.1090927 | P44: =E$22*J29+ROUND($F$14*365/12,2)+('Simple Bill Insert Calc (2)'!M17*2)/12 -> 83.49941183 | R44: 15 hot | S44: =C$28*I29+ROUND($P$14*365/12,2)+('Simple Bill Insert Calc (2)'!M17*2)/12 -> 299.4469098 | T44: =C$28*J29+ROUND($P$14*365/12,2)+('Simple Bill Insert Calc (2)'!M17*2)/12 -> 53.87638575 | U44: =D$28*I29+ROUND($P$14*365/12,2)+('Simple Bill Insert Calc (2)'!M17*2)/12 -> 291.0290051 | V44: =D$28*J29+ROUND($P$14*365/12,2)+('Simple Bill Insert Calc (2)'!M17*2)/12 -> 52.06185961 | W44: =E$28*I29+ROUND($P$14*365/12,2)+('Simple Bill Insert Calc (2)'!M17*2)/12 -> 291.0290051 | X44: =E$28*J29+ROUND($P$14*365/12,2)+('Simple Bill Insert Calc (2)'!M17*2)/12 -> 52.06185961
B45: 16 cool | C45: =C$22*MIN(I30,P30)+IF(P30-I30>0,C$23*(P30-I30))+ROUND($F$14*365/12,2)+('Simple Bill Insert Calc (2)'!M17*2)/12 -> 166.4309682 | D45: =C$22*MIN(J30,Q30)+IF(Q30-J30>0,C$23*(Q30-J30))+ROUND($F$14*365/12,2)+('Simple Bill Insert Calc (2)'!M17*2)/12 -> 137.886122 | E45: =D$22*MIN(I30,P30)+IF(P30-I30>0,D$23*(P30-I30))+ROUND($F$14*365/12,2)+('Simple Bill Insert Calc (2)'!M17*2)/12 -> 161.6042668 | F45: =D$22*MIN(J30,Q30)+IF(Q30-J30>0,D$23*(Q30-J30))+ROUND($F$14*365/12,2)+('Simple Bill Insert Calc (2)'!M17*2)/12 -> 133.825585 | G45: =E$22*MIN(I30,P30)+IF(P30-I30>0,E$23*(P30-I30))+ROUND($F$14*365/12,2)+('Simple Bill Insert Calc (2)'!M17*2)/12 -> 161.6042668 | H45: =E$22*MIN(J30,Q30)+IF(Q30-J30>0,E$23*(Q30-J30))+ROUND($F$14*365/12,2)+('Simple Bill Insert Calc (2)'!M17*2)/12 -> 133.825585 | J45: 16 cool | K45: =C$22*I30+ROUND($F$14*365/12,2)+('Simple Bill Insert Calc (2)'!M17*2)/12 -> 137.4951227 | L45: =C$22*J30+ROUND($F$14*365/12,2)+('Simple Bill Insert Calc (2)'!M17*2)/12 -> 113.8867248 | M45: =D$22*I30+ROUND($F$14*365/12,2)+('Simple Bill Insert Calc (2)'!M17*2)/12 -> 133.4441258 | N45: =D$22*J30+ROUND($F$14*365/12,2)+('Simple Bill Insert Calc (2)'!M17*2)/12 -> 110.4695574 | O45: =E$22*I30+ROUND($F$14*365/12,2)+('Simple Bill Insert Calc (2)'!M17*2)/12 -> 133.4441258 | P45: =E$22*J30+ROUND($F$14*365/12,2)+('Simple Bill Insert Calc (2)'!M17*2)/12 -> 110.4695574 | R45: 16 cool | S45: =C$28*I30+ROUND($P$14*365/12,2)+('Simple Bill Insert Calc (2)'!M17*2)/12 -> 88.6597461 | T45: =C$28*J30+ROUND($P$14*365/12,2)+('Simple Bill Insert Calc (2)'!M17*2)/12 -> 72.65940033 | U45: =D$28*I30+ROUND($P$14*365/12,2)+('Simple Bill Insert Calc (2)'!M17*2)/12 -> 85.90989721 | V45: =D$28*J30+ROUND($P$14*365/12,2)+('Simple Bill Insert Calc (2)'!M17*2)/12 -> 70.33979991 | W45: =E$28*I30+ROUND($P$14*365/12,2)+('Simple Bill Insert Calc (2)'!M17*2)/12 -> 85.90989721 | X45: =E$28*J30+ROUND($P$14*365/12,2)+('Simple Bill Insert Calc (2)'!M17*2)/12 -> 70.33979991
B46: ALL | C46: =SUMPRODUCT(C37:C45,$T$22:$T$30) -> 222.2894692 | D46: 151.1264869 | E46: 215.9643826 | F46: 146.7113936 | G46: 215.9643826 | H46: 146.7113936 | J46: ALL | K46: =SUMPRODUCT(K37:K45,$T$22:$T$30) -> 164.3163851 | L46: 104.1833251 | M46: 159.545301 | N46: 101.0266709 | O46: 159.545301 | P46: 101.0266709 | R46: ALL | S46: =SUMPRODUCT(S37:S45,$U$22:$U$30) -> 117.4027006 | T46: =SUMPRODUCT(T37:T45,$U$22:$U$30) -> 67.64500689 | U46: 113.8799552 | V46: 65.46024325 | W46: 113.8799552 | X46: 65.46024325
C49: CARE | K49: Essential Use (All-Electric) - Non-CARE | S49: Essential Use (All-Electric) - CARE
C50: =C27 -> Jan 2024 | E50: =D27 -> 2024-10-01 | G50: =E27 -> Proposed | K50: =C50 -> Jan 2024 | M50: =E50 -> 2024-10-01 | O50: =G50 -> Proposed | S50: =K50 -> Jan 2024 | U50: =M50 -> 2024-10-01 | W50: =O50 -> Proposed
C51: Summer | D51: Winter | E51: Summer | F51: Winter | G51: Summer | H51: Winter | K51: Summer | L51: Winter | M51: Summer | N51: Winter | O51: Summer | P51: Winter | S51: Summer | T51: Winter | U51: Summer | V51: Winter | W51: Summer | X51: Winter
B52: 5 warm | C52: =C$28*MIN(I22,R22)+IF(R22-I22>0,C$29*(R22-I22))+ROUND($P$14*365/12,2)+('Simple Bill Insert Calc (2)'!M17*2)/12 -> 72.26929933 | D52: =C$28*MIN(J22,S22)+IF(S22-J22>0,C$29*(S22-J22))+ROUND($P$14*365/12,2)+('Simple Bill Insert Calc (2)'!M17*2)/12 -> 72.64338235 | E52: =D$28*MIN(I22,R22)+IF(R22-I22>0,D$29*(R22-I22))+ROUND($P$14*365/12,2)+('Simple Bill Insert Calc (2)'!M17*2)/12 -> 69.9601887 | F52: =D$28*MIN(J22,S22)+IF(S22-J22>0,D$29*(S22-J22))+ROUND($P$14*365/12,2)+('Simple Bill Insert Calc (2)'!M17*2)/12 -> 70.32421265 | G52: =E$28*MIN(I22,R22)+IF(R22-I22>0,E$29*(R22-I22))+ROUND($P$14*365/12,2)+('Simple Bill Insert Calc (2)'!M17*2)/12 -> 69.9601887 | H52: =E$28*MIN(J22,S22)+IF(S22-J22>0,E$29*(S22-J22))+ROUND($P$14*365/12,2)+('Simple Bill Insert Calc (2)'!M17*2)/12 -> 70.32421265 | J52: 5 warm | K52: =C$22*K22+ROUND($F$14*365/12,2)+('Simple Bill Insert Calc (2)'!M17*2)/12 -> 159.0506164 | L52: =C$22*L22+ROUND($F$14*365/12,2)+('Simple Bill Insert Calc (2)'!M17*2)/12 -> 263.7487288 | M52: =D$22*K22+ROUND($F$14*365/12,2)+('Simple Bill Insert Calc (2)'!M17*2)/12 -> 154.4209057 | N52: =D$22*L22+ROUND($F$14*365/12,2)+('Simple Bill Insert Calc (2)'!M17*2)/12 -> 256.3081223 | O52: =E$22*K22+ROUND($F$14*365/12,2)+('Simple Bill Insert Calc (2)'!M17*2)/12 -> 154.4209057 | P52: =E$22*L22+ROUND($F$14*365/12,2)+('Simple Bill Insert Calc (2)'!M17*2)/12 -> 256.3081223 | R52: 5 warm | S52: =C$28*K22+ROUND($P$14*365/12,2)+('Simple Bill Insert Calc (2)'!M17*2)/12 -> 103.2687574 | T52: =C$28*L22+ROUND($P$14*365/12,2)+('Simple Bill Insert Calc (2)'!M17*2)/12 -> 174.2268126 | U52: =D$28*K22+ROUND($P$14*365/12,2)+('Simple Bill Insert Calc (2)'!M17*2)/12 -> 100.126073 | V52: =D$28*L22+ROUND($P$14*365/12,2)+('Simple Bill Insert Calc (2)'!M17*2)/12 -> 169.1760697 | W52: =E$28*K22+ROUND($P$14*365/12,2)+('Simple Bill Insert Calc (2)'!M17*2)/12 -> 100.126073 | X52: =E$28*L22+ROUND($P$14*365/12,2)+('Simple Bill Insert Calc (2)'!M17*2)/12 -> 169.1760697
B53: 6 cool | C53: =C$28*MIN(I23,R23)+IF(R23-I23>0,C$29*(R23-I23))+ROUND($P$14*365/12,2)+('Simple Bill Insert Calc (2)'!M17*2)/12 -> 77.4548568 | D53: =C$28*MIN(J23,S23)+IF(S23-J23>0,C$29*(S23-J23))+ROUND($P$14*365/12,2)+('Simple Bill Insert Calc (2)'!M17*2)/12 -> 70.24167309 | E53: =D$28*MIN(I23,R23)+IF(R23-I23>0,D$29*(R23-I23))+ROUND($P$14*365/12,2)+('Simple Bill Insert Calc (2)'!M17*2)/12 -> 75.00696287 | F53: =D$28*MIN(J23,S23)+IF(S23-J23>0,D$29*(S23-J23))+ROUND($P$14*365/12,2)+('Simple Bill Insert Calc (2)'!M17*2)/12 -> 67.98749397 | G53: =E$28*MIN(I23,R23)+IF(R23-I23>0,E$29*(R23-I23))+ROUND($P$14*365/12,2)+('Simple Bill Insert Calc (2)'!M17*2)/12 -> 75.00696287 | H53: =E$28*MIN(J23,S23)+IF(S23-J23>0,E$29*(S23-J23))+ROUND($P$14*365/12,2)+('Simple Bill Insert Calc (2)'!M17*2)/12 -> 67.98749397 | J53: 6 cool | K53: =C$22*K23+ROUND($F$14*365/12,2)+('Simple Bill Insert Calc (2)'!M17*2)/12 -> 75.9079978 | L53: =C$22*L23+ROUND($F$14*365/12,2)+('Simple Bill Insert Calc (2)'!M17*2)/12 -> 115.939629 | M53: =D$22*K23+ROUND($F$14*365/12,2)+('Simple Bill Insert Calc (2)'!M17*2)/12 -> 73.51046903 | N53: =D$22*L23+ROUND($F$14*365/12,2)+('Simple Bill Insert Calc (2)'!M17*2)/12 -> 112.4673459 | O53: =E$22*K23+ROUND($F$14*365/12,2)+('Simple Bill Insert Calc (2)'!M17*2)/12 -> 73.51046903 | P53: =E$22*L23+ROUND($F$14*365/12,2)+('Simple Bill Insert Calc (2)'!M17*2)/12 -> 112.4673459 | R53: 6 cool | S53: =C$28*K23+ROUND($P$14*365/12,2)+('Simple Bill Insert Calc (2)'!M17*2)/12 -> 46.91971368 | T53: =C$28*L23+ROUND($P$14*365/12,2)+('Simple Bill Insert Calc (2)'!M17*2)/12 -> 74.05073475 | U53: =D$28*K23+ROUND($P$14*365/12,2)+('Simple Bill Insert Calc (2)'!M17*2)/12 -> 45.29225209 | V53: =D$28*L23+ROUND($P$14*365/12,2)+('Simple Bill Insert Calc (2)'!M17*2)/12 -> 71.69372142 | W53: =E$28*K23+ROUND($P$14*365/12,2)+('Simple Bill Insert Calc (2)'!M17*2)/12 -> 45.29225209 | X53: =E$28*L23+ROUND($P$14*365/12,2)+('Simple Bill Insert Calc (2)'!M17*2)/12 -> 71.69372142
B54: 8 cool | C54: =C$28*MIN(I24,R24)+IF(R24-I24>0,C$29*(R24-I24))+ROUND($P$14*365/12,2)+('Simple Bill Insert Calc (2)'!M17*2)/12 -> 97.36307149 | D54: =C$28*MIN(J24,S24)+IF(S24-J24>0,C$29*(S24-J24))+ROUND($P$14*365/12,2)+('Simple Bill Insert Calc (2)'!M17*2)/12 -> 79.07969555 | E54: =D$28*MIN(I24,R24)+IF(R24-I24>0,D$29*(R24-I24))+ROUND($P$14*365/12,2)+('Simple Bill Insert Calc (2)'!M17*2)/12 -> 94.38041439 | F54: =D$28*MIN(J24,S24)+IF(S24-J24>0,D$29*(S24-J24))+ROUND($P$14*365/12,2)+('Simple Bill Insert Calc (2)'!M17*2)/12 -> 76.5886277 | G54: =E$28*MIN(I24,R24)+IF(R24-I24>0,E$29*(R24-I24))+ROUND($P$14*365/12,2)+('Simple Bill Insert Calc (2)'!M17*2)/12 -> 94.38041439 | H54: =E$28*MIN(J24,S24)+IF(S24-J24>0,E$29*(S24-J24))+ROUND($P$14*365/12,2)+('Simple Bill Insert Calc (2)'!M17*2)/12 -> 76.5886277 | J54: 8 cool | K54: =C$22*K24+ROUND($F$14*365/12,2)+('Simple Bill Insert Calc (2)'!M17*2)/12 -> 88.22542278 | L54: =C$22*L24+ROUND($F$14*365/12,2)+('Simple Bill Insert Calc (2)'!M17*2)/12 -> 112.8602728 | M54: =D$22*K24+ROUND($F$14*365/12,2)+('Simple Bill Insert Calc (2)'!M17*2)/12 -> 85.49720039 | N54: =D$22*L24+ROUND($F$14*365/12,2)+('Simple Bill Insert Calc (2)'!M17*2)/12 -> 109.4706631 | O54: =E$22*K24+ROUND($F$14*365/12,2)+('Simple Bill Insert Calc (2)'!M17*2)/12 -> 85.49720039 | P54: =E$22*L24+ROUND($F$14*365/12,2)+('Simple Bill Insert Calc (2)'!M17*2)/12 -> 109.4706631 | R54: 8 cool | S54: =C$28*K24+ROUND($P$14*365/12,2)+('Simple Bill Insert Calc (2)'!M17*2)/12 -> 55.26772016 | T54: =C$28*L24+ROUND($P$14*365/12,2)+('Simple Bill Insert Calc (2)'!M17*2)/12 -> 71.96373313 | U54: =D$28*K24+ROUND($P$14*365/12,2)+('Simple Bill Insert Calc (2)'!M17*2)/12 -> 53.41578111 | V54: =D$28*L24+ROUND($P$14*365/12,2)+('Simple Bill Insert Calc (2)'!M17*2)/12 -> 69.66283916 | W54: =E$28*K24+ROUND($P$14*365/12,2)+('Simple Bill Insert Calc (2)'!M17*2)/12 -> 53.41578111 | X54: =E$28*L24+ROUND($P$14*365/12,2)+('Simple Bill Insert Calc (2)'!M17*2)/12 -> 69.66283916
B55: 9 warm | C55: =C$28*MIN(I25,R25)+IF(R25-I25>0,C$29*(R25-I25))+ROUND($P$14*365/12,2)+('Simple Bill Insert Calc (2)'!M17*2)/12 -> 128.7742739 | D55: =C$28*MIN(J25,S25)+IF(S25-J25>0,C$29*(S25-J25))+ROUND($P$14*365/12,2)+('Simple Bill Insert Calc (2)'!M17*2)/12 -> 88.67061665 | E55: =D$28*MIN(I25,R25)+IF(R25-I25>0,D$29*(R25-I25))+ROUND($P$14*365/12,2)+('Simple Bill Insert Calc (2)'!M17*2)/12 -> 124.9471325 | F55: =D$28*MIN(J25,S25)+IF(S25-J25>0,D$29*(S25-J25))+ROUND($P$14*365/12,2)+('Simple Bill Insert Calc (2)'!M17*2)/12 -> 85.92152463 | G55: =E$28*MIN(I25,R25)+IF(R25-I25>0,E$29*(R25-I25))+ROUND($P$14*365/12,2)+('Simple Bill Insert Calc (2)'!M17*2)/12 -> 124.9471325 | H55: =E$28*MIN(J25,S25)+IF(S25-J25>0,E$29*(S25-J25))+ROUND($P$14*365/12,2)+('Simple Bill Insert Calc (2)'!M17*2)/12 -> 85.92152463 | J55: 9 warm | K55: =C$22*K25+ROUND($F$14*365/12,2)+('Simple Bill Insert Calc (2)'!M17*2)/12 -> 114.9131769 | L55: =C$22*L25+ROUND($F$14*365/12,2)+('Simple Bill Insert Calc (2)'!M17*2)/12 -> 129.2835061 | M55: =D$22*K25+ROUND($F$14*365/12,2)+('Simple Bill Insert Calc (2)'!M17*2)/12 -> 111.4684517 | N55: =D$22*L25+ROUND($F$14*365/12,2)+('Simple Bill Insert Calc (2)'!M17*2)/12 -> 125.4529716 | O55: =E$22*K25+ROUND($F$14*365/12,2)+('Simple Bill Insert Calc (2)'!M17*2)/12 -> 111.4684517 | P55: =E$22*L25+ROUND($F$14*365/12,2)+('Simple Bill Insert Calc (2)'!M17*2)/12 -> 125.4529716 | R55: 9 warm | S55: =C$28*K25+ROUND($P$14*365/12,2)+('Simple Bill Insert Calc (2)'!M17*2)/12 -> 73.35506754 | T55: =C$28*L25+ROUND($P$14*365/12,2)+('Simple Bill Insert Calc (2)'!M17*2)/12 -> 83.09440844 | U55: =D$28*K25+ROUND($P$14*365/12,2)+('Simple Bill Insert Calc (2)'!M17*2)/12 -> 71.01676067 | V55: =D$28*L25+ROUND($P$14*365/12,2)+('Simple Bill Insert Calc (2)'!M17*2)/12 -> 80.49421119 | W55: =E$28*K25+ROUND($P$14*365/12,2)+('Simple Bill Insert Calc (2)'!M17*2)/12 -> 71.01676067 | X55: =E$28*L25+ROUND($P$14*365/12,2)+('Simple Bill Insert Calc (2)'!M17*2)/12 -> 80.49421119
B56: 10 hot (Sec 745) | C56: =C$28*MIN(I26,R26)+IF(R26-I26>0,C$29*(R26-I26))+ROUND($P$14*365/12,2)+('Simple Bill Insert Calc (2)'!M17*2)/12 -> 180.4754352 | D56: =C$28*MIN(J26,S26)+IF(S26-J26>0,C$29*(S26-J26))+ROUND($P$14*365/12,2)+('Simple Bill Insert Calc (2)'!M17*2)/12 -> 108.4430114 | E56: =D$28*MIN(I26,R26)+IF(R26-I26>0,D$29*(R26-I26))+ROUND($P$14*365/12,2)+('Simple Bill Insert Calc (2)'!M17*2)/12 -> 175.2600064 | F56: =D$28*MIN(J26,S26)+IF(S26-J26>0,D$29*(S26-J26))+ROUND($P$14*365/12,2)+('Simple Bill Insert Calc (2)'!M17*2)/12 -> 105.1633057 | G56: =E$28*MIN(I26,R26)+IF(R26-I26>0,E$29*(R26-I26))+ROUND($P$14*365/12,2)+('Simple Bill Insert Calc (2)'!M17*2)/12 -> 175.2600064 | H56: =E$28*MIN(J26,S26)+IF(S26-J26>0,E$29*(S26-J26))+ROUND($P$14*365/12,2)+('Simple Bill Insert Calc (2)'!M17*2)/12 -> 105.1633057 | J56: 10 hot (Sec 745) | K56: =C$22*K26+ROUND($F$14*365/12,2)+('Simple Bill Insert Calc (2)'!M17*2)/12 -> 149.8125477 | L56: =C$22*L26+ROUND($F$14*365/12,2)+('Simple Bill Insert Calc (2)'!M17*2)/12 -> 154.9448081 | M56: =D$22*K26+ROUND($F$14*365/12,2)+('Simple Bill Insert Calc (2)'!M17*2)/12 -> 145.4308572 | N56: =D$22*L26+ROUND($F$14*365/12,2)+('Simple Bill Insert Calc (2)'!M17*2)/12 -> 150.4253286 | O56: =E$22*K26+ROUND($F$14*365/12,2)+('Simple Bill Insert Calc (2)'!M17*2)/12 -> 145.4308572 | P56: =E$22*L26+ROUND($F$14*365/12,2)+('Simple Bill Insert Calc (2)'!M17*2)/12 -> 150.4253286 | R56: 10 hot (Sec 745) | S56: =C$28*K26+ROUND($P$14*365/12,2)+('Simple Bill Insert Calc (2)'!M17*2)/12 -> 97.00775258 | T56: =C$28*L26+ROUND($P$14*365/12,2)+('Simple Bill Insert Calc (2)'!M17*2)/12 -> 100.4860886 | U56: =D$28*K26+ROUND($P$14*365/12,2)+('Simple Bill Insert Calc (2)'!M17*2)/12 -> 94.03342623 | V56: =D$28*L26+ROUND($P$14*365/12,2)+('Simple Bill Insert Calc (2)'!M17*2)/12 -> 97.41822999 | W56: =E$28*K26+ROUND($P$14*365/12,2)+('Simple Bill Insert Calc (2)'!M17*2)/12 -> 94.03342623 | X56: =E$28*L26+ROUND($P$14*365/12,2)+('Simple Bill Insert Calc (2)'!M17*2)/12 -> 97.41822999
B57: 13 hot | C57: =C$28*MIN(I27,R27)+IF(R27-I27>0,C$29*(R27-I27))+ROUND($P$14*365/12,2)+('Simple Bill Insert Calc (2)'!M17*2)/12 -> 211.2337221 | D57: =C$28*MIN(J27,S27)+IF(S27-J27>0,C$29*(S27-J27))+ROUND($P$14*365/12,2)+('Simple Bill Insert Calc (2)'!M17*2)/12 -> 104.1804736 | E57: =D$28*MIN(I27,R27)+IF(R27-I27>0,D$29*(R27-I27))+ROUND($P$14*365/12,2)+('Simple Bill Insert Calc (2)'!M17*2)/12 -> 205.1917954 | F57: =D$28*MIN(J27,S27)+IF(S27-J27>0,D$29*(S27-J27))+ROUND($P$14*365/12,2)+('Simple Bill Insert Calc (2)'!M17*2)/12 -> 101.0151105 | G57: =E$28*MIN(I27,R27)+IF(R27-I27>0,E$29*(R27-I27))+ROUND($P$14*365/12,2)+('Simple Bill Insert Calc (2)'!M17*2)/12 -> 205.1917954 | H57: =E$28*MIN(J27,S27)+IF(S27-J27>0,E$29*(S27-J27))+ROUND($P$14*365/12,2)+('Simple Bill Insert Calc (2)'!M17*2)/12 -> 101.0151105 | J57: 13 hot | K57: =C$22*K27+ROUND($F$14*365/12,2)+('Simple Bill Insert Calc (2)'!M17*2)/12 -> 235.0080705 | L57: =C$22*L27+ROUND($F$14*365/12,2)+('Simple Bill Insert Calc (2)'!M17*2)/12 -> 222.6906455 | M57: =D$22*K27+ROUND($F$14*365/12,2)+('Simple Bill Insert Calc (2)'!M17*2)/12 -> 228.3390824 | N57: =D$22*L27+ROUND($F$14*365/12,2)+('Simple Bill Insert Calc (2)'!M17*2)/12 -> 216.3523511 | O57: =E$22*K27+ROUND($F$14*365/12,2)+('Simple Bill Insert Calc (2)'!M17*2)/12 -> 228.3390824 | P57: =E$22*L27+ROUND($F$14*365/12,2)+('Simple Bill Insert Calc (2)'!M17*2)/12 -> 216.3523511 | R57: 13 hot | S57: =C$28*K27+ROUND($P$14*365/12,2)+('Simple Bill Insert Calc (2)'!M17*2)/12 -> 154.7481308 | T57: =C$28*L27+ROUND($P$14*365/12,2)+('Simple Bill Insert Calc (2)'!M17*2)/12 -> 146.4001243 | U57: =D$28*K27+ROUND($P$14*365/12,2)+('Simple Bill Insert Calc (2)'!M17*2)/12 -> 150.2211687 | V57: =D$28*L27+ROUND($P$14*365/12,2)+('Simple Bill Insert Calc (2)'!M17*2)/12 -> 142.0976396 | W57: =E$28*K27+ROUND($P$14*365/12,2)+('Simple Bill Insert Calc (2)'!M17*2)/12 -> 150.2211687 | X57: =E$28*L27+ROUND($P$14*365/12,2)+('Simple Bill Insert Calc (2)'!M17*2)/12 -> 142.0976396
B58: 14 hot | C58: =C$28*MIN(I28,R28)+IF(R28-I28>0,C$29*(R28-I28))+ROUND($P$14*365/12,2)+('Simple Bill Insert Calc (2)'!M17*2)/12 -> 177.2919255 | D58: =C$28*MIN(J28,S28)+IF(S28-J28>0,C$29*(S28-J28))+ROUND($P$14*365/12,2)+('Simple Bill Insert Calc (2)'!M17*2)/12 -> 114.2828629 | E58: =D$28*MIN(I28,R28)+IF(R28-I28>0,D$29*(R28-I28))+ROUND($P$14*365/12,2)+('Simple Bill Insert Calc (2)'!M17*2)/12 -> 172.1619623 | F58: =D$28*MIN(J28,S28)+IF(S28-J28>0,D$29*(S28-J28))+ROUND($P$14*365/12,2)+('Simple Bill Insert Calc (2)'!M17*2)/12 -> 110.8465275 | G58: =E$28*MIN(I28,R28)+IF(R28-I28>0,E$29*(R28-I28))+ROUND($P$14*365/12,2)+('Simple Bill Insert Calc (2)'!M17*2)/12 -> 172.1619623 | H58: =E$28*MIN(J28,S28)+IF(S28-J28>0,E$29*(S28-J28))+ROUND($P$14*365/12,2)+('Simple Bill Insert Calc (2)'!M17*2)/12 -> 110.8465275 | J58: 14 hot | K58: =C$22*K28+ROUND($F$14*365/12,2)+('Simple Bill Insert Calc (2)'!M17*2)/12 -> 176.5003018 | L58: =C$22*L28+ROUND($F$14*365/12,2)+('Simple Bill Insert Calc (2)'!M17*2)/12 -> 203.188056 | M58: =D$22*K28+ROUND($F$14*365/12,2)+('Simple Bill Insert Calc (2)'!M17*2)/12 -> 171.4021085 | N58: =D$22*L28+ROUND($F$14*365/12,2)+('Simple Bill Insert Calc (2)'!M17*2)/12 -> 197.3733597 | O58: =E$22*K28+ROUND($F$14*365/12,2)+('Simple Bill Insert Calc (2)'!M17*2)/12 -> 171.4021085 | P58: =E$22*L28+ROUND($F$14*365/12,2)+('Simple Bill Insert Calc (2)'!M17*2)/12 -> 197.3733597 | R58: 14 hot | S58: =C$28*K28+ROUND($P$14*365/12,2)+('Simple Bill Insert Calc (2)'!M17*2)/12 -> 115.0951 | T58: =C$28*L28+ROUND($P$14*365/12,2)+('Simple Bill Insert Calc (2)'!M17*2)/12 -> 133.1824473 | U58: =D$28*K28+ROUND($P$14*365/12,2)+('Simple Bill Insert Calc (2)'!M17*2)/12 -> 111.6344058 | V58: =D$28*L28+ROUND($P$14*365/12,2)+('Simple Bill Insert Calc (2)'!M17*2)/12 -> 129.2353853 | W58: =E$28*K28+ROUND($P$14*365/12,2)+('Simple Bill Insert Calc (2)'!M17*2)/12 -> 111.6344058 | X58: =E$28*L28+ROUND($P$14*365/12,2)+('Simple Bill Insert Calc (2)'!M17*2)/12 -> 129.2353853
B59: 15 hot | C59: =C$28*MIN(I29,R29)+IF(R29-I29>0,C$29*(R29-I29))+ROUND($P$14*365/12,2)+('Simple Bill Insert Calc (2)'!M17*2)/12 -> 257.4344494 | D59: =C$28*MIN(J29,S29)+IF(S29-J29>0,C$29*(S29-J29))+ROUND($P$14*365/12,2)+('Simple Bill Insert Calc (2)'!M17*2)/12 -> 118.4742056 | E59: =D$28*MIN(I29,R29)+IF(R29-I29>0,D$29*(R29-I29))+ROUND($P$14*365/12,2)+('Simple Bill Insert Calc (2)'!M17*2)/12 -> 250.1462576 | F59: =D$28*MIN(J29,S29)+IF(S29-J29>0,D$29*(S29-J29))+ROUND($P$14*365/12,2)+('Simple Bill Insert Calc (2)'!M17*2)/12 -> 114.9262536 | G59: =E$28*MIN(I29,R29)+IF(R29-I29>0,E$29*(R29-I29))+ROUND($P$14*365/12,2)+('Simple Bill Insert Calc (2)'!M17*2)/12 -> 250.1462576 | H59: =E$28*MIN(J29,S29)+IF(S29-J29>0,E$29*(S29-J29))+ROUND($P$14*365/12,2)+('Simple Bill Insert Calc (2)'!M17*2)/12 -> 114.9262536 | J59: 15 hot | K59: =C$22*K29+ROUND($F$14*365/12,2)+('Simple Bill Insert Calc (2)'!M17*2)/12 -> 232.9551663 | L59: =C$22*L29+ROUND($F$14*365/12,2)+('Simple Bill Insert Calc (2)'!M17*2)/12 -> 165.2093289 | M59: =D$22*K29+ROUND($F$14*365/12,2)+('Simple Bill Insert Calc (2)'!M17*2)/12 -> 226.3412939 | N59: =D$22*L29+ROUND($F$14*365/12,2)+('Simple Bill Insert Calc (2)'!M17*2)/12 -> 160.4142714 | O59: =E$22*K29+ROUND($F$14*365/12,2)+('Simple Bill Insert Calc (2)'!M17*2)/12 -> 226.3412939 | P59: =E$22*L29+ROUND($F$14*365/12,2)+('Simple Bill Insert Calc (2)'!M17*2)/12 -> 160.4142714 | R59: 15 hot | S59: =C$28*K29+ROUND($P$14*365/12,2)+('Simple Bill Insert Calc (2)'!M17*2)/12 -> 153.3567963 | T59: =C$28*L29+ROUND($P$14*365/12,2)+('Simple Bill Insert Calc (2)'!M17*2)/12 -> 107.4427607 | U59: =D$28*K29+ROUND($P$14*365/12,2)+('Simple Bill Insert Calc (2)'!M17*2)/12 -> 148.8672471 | V59: =D$28*L29+ROUND($P$14*365/12,2)+('Simple Bill Insert Calc (2)'!M17*2)/12 -> 104.1878375 | W59: =E$28*K29+ROUND($P$14*365/12,2)+('Simple Bill Insert Calc (2)'!M17*2)/12 -> 148.8672471 | X59: =E$28*L29+ROUND($P$14*365/12,2)+('Simple Bill Insert Calc (2)'!M17*2)/12 -> 104.1878375
